Workbook

Sheet START
A1: =muni -> Choose name from list

Sheet Instructions
X1: KZN225 Msunduzi
D2: 2020 | X2: KZN KWAZULU-NATAL
X4: Yes
X5: No
W7: Type of Entities Range: | X7: Parent Municipality
X8: Consolidated Information
W10: Date linked | X10: 1
W11: Date | X11: =VLOOKUP(X10,W39:X55,2) -> M01 July | Y11: 2013-08-01
X14: 1
W19: MTREF Range: | X19: 2014
X20: 2015
X21: 2016
X22: 2017
X23: 2018
X24: 2019
X25: 2020
X26: 2021
X27: 2022
X28: 2023
X29: 2024
X30: 2025
X31: 2026
X32: 2027
X33: 2028
W34: MTREF Linked:
W35: MTREF: | X35: 12
X36: =INDEX(X19:X32,X35,1) -> 2025
W37: Fin Year:
X38: =MTREF&"/"&RIGHT(MTREF,2)+1 -> 2025/26
V39: Date/type of report | W39: 1 | X39: M01 July
W40: 2 | X40: M02 August
W41: 3 | X41: M03 September
W42: 4 | X42: M04 October
W43: 5 | X43: M05 November
W44: 6 | X44: M06 December
W45: 7 | X45: M07 January
W46: 8 | X46: M08 February
W47: 9 | X47: M09 March
W48: 10 | X48: M10 April
W49: 11 | X49: M11 May
W50: 12 | X50: M12 June
W51: 13 | X51: Q1 First Quarter
W52: 14 | X52: Q2 Second Quarter
W53: 15 | X53: Q3 Third Quarter
W54: 16 | X54: Q4 Fourth Quarter
W55: 17 | X55: Mid-Year Assessment

Sheet Template names (hidden)
A1: Common sheet headings
A2: Head1 | B2: =HLOOKUP(MTREF,Headings,2) -> 2024/25 | C2: Prior year -1
A3: Head2 | B3: =HLOOKUP(MTREF,Headings,5) -> Budget Year 2025/26 | C3: Year of approved budget
A4: Head2A | B4: =HLOOKUP(MTREF,Headings,4) -> 2025/26 | C4: Approved budget year
A5: Head3 | B5: =HLOOKUP(MTREF,Headings,3) -> 2025/26 Medium Term Revenue & Expenditure Framework | C5: MTREF header name
A6: Head5 | B6: Audited Outcome
A7: Head5A | B7: Outcome
A8: Head5B | B8: Pre-audit outcome
A9: Head6 | B9: Original Budget
A10: Head7 | B10: Adjusted Budget
A11: Head8 | B11: Full Year Forecast
A12: Head9 | B12: =HLOOKUP(MTREF,Headings,5) -> Budget Year 2025/26 | C12: 1st year of MTREF | D12: Year1
A13: Head10 | B13: =HLOOKUP(MTREF,Headings,6) -> Budget Year +1 2026/27 | C13: 2nd year of MTREF | D13: Year2
A14: Head11 | B14: =HLOOKUP(MTREF,Headings,7) -> Budget Year +2 2027/28 | C14: 3rd year of MTREF | D14: Year3
A15: Head12 | B15: Forecast 2010/11 | D15: Year4
A16: Head13 | B16: Forecast 2011/12 | D16: Year5
A17: Head14 | B17: Forecast 2012/13 | D17: Year6
A18: Head15 | B18: Forecast 2013/14 | D18: Year7
A19: Head16 | B19: Forecast 2014/15 | D19: Year8
A20: Head17 | B20: Forecast 2015/16 | D20: Year9
A21: Head18 | B21: Forecast 2016/17 | D21: Year10
A22: Head19 | B22: Forecast 2017/18 | D22: Year11
A23: Head20 | B23: Forecast 2018/19 | D23: Year12
A24: Head21 | B24: Forecast 2019/20 | D24: Year13
A25: Head22 | B25: Forecast 2020/21 | D25: Year14
A26: Head23 | B26: Forecast 2021/22 | D26: Year15
A27: Head24 | B27: Description | D27: Desc
A28: Head25 | B28: Schedule of funding diligence | D28: fdil
A29: Head26 | B29: Vote Description | D29: VDesc
A30: Head27 | B30: Ref
A31: Head27a | B31: References
A32: Head28 | B32: Surplus/ (Deficit) for the year | D32: Result
A33: Head29 | B33: Annual target 2007/08
A34: Head30 | B34: Revised target 2007/08
A35: Head31 | B35: Quarter ended 30 September
A36: Head32 | B36: Quarter ended 31 December
A37: Head33 | B37: Quarter ended 31 March
A38: Head34 | B38: Quarter ended 30 June
A39: Head35 | B39: Variance explanation
A40: Head36 | B40: YTD Actual 31 Dec
A41: Head37 | B41: YTD Budget 31 Dec
A42: Head38 | B42: Monthly actual
A43: Head39 | B43: YearTD actual
A44: Head40 | B44: YearTD budget
A45: Head41 | B45: YTD variance
A46: Head42 | B46: Surplus/ (Deficit) for the yr/period
A47: Head43 | B47: =Head3&" Summary" -> 2025/26 Medium Term Revenue & Expenditure Framework Summary
A48: Head44 | B48: 1996 Census
A49: Head45 | B49: 2001 Census
A50: Head46 | B50: - Adjustments Budget - Month YYYY
A51: Head47 | B51: Previous target year to complete
A52: Head48 | B52: Present value
A53: Head49 | B53: Virement
A54: Head50 | B54: Other Adjusts.
A55: Head51 | B55: Accum. Funds
A56: Head52 | B56: Multi-year capital
A57: Head53 | B57: Unfore. Unavoid.
A58: Head54 | B58: Prior Adjusted
A59: Head55 | B59: Nat. or Prov. Govt
A60: Head56 | B60: Total Adjusts.
A61: Head57 | B61: =date -> M01 July
A62: Head58 | B62: Parent muni.
A63: Head59 | B63: Downward adjusts
A64: Head60 | B64: Month | C64: Report header part name | D64: =date -> M01 July
A65: SFPerf1 | B65: Budgeted Financial Performance
A66: SFPerf2 | B66: Forecast Financial Performance
A67: SFPos1 | B67: Budgeted Financial Position
A68: SFPos2 | B68: Forecast Financial Position
A69: Cash1 | B69: Budget Cash Flow
A70: Cash2 | B70: Forecast Cash Flow
A71: RandM | B71: Expenditure includes repairs & maintenance of R'000
A72: Standard nomenclature
A73: Muni | B73: ='Lookup and lists'!B27 -> 0
A74: Municipal Entities | B74: 1 | C74: Type of report: | D74: 1
A75: =IF((MuniEntities=1)*(MuniType=2),"YES","NO") -> NO | B75: Does this municipality have entities (consolidated budget and entity budgets required)? YES/NO
A76: s71 (Monthly Mayor report) schedules and charts
A77: S71sum | B77: =IF(Consolques="YES",E77,F77) -> Table C1 Monthly Budget Statement Summary | D77: Table C1 | E77: =D77&"Consolidated Monthly Budget Statement Summary" -> Table C1 Consolidated Monthly Budget Statement Summary | F77: =D77&"Monthly Budget Statement Summary" -> Table C1 Monthly Budget Statement Summary
A78: S71C | B78: Table C3 Monthly Budget Statement - Financial Performance (revenue and expenditure by municipal vote) | D78: Table C3 | E78: =D78&"Consolidated Monthly Budget Statement - Financial Performance (revenue and expenditure by municipal vote) " -> Table C3 Consolidated Monthly Budget Statement - Financial Performance (revenue and expenditure by municipal vote) | F78: =D78&"Monthly Budget Statement - Financial Performance (revenue and expenditure by municipal vote)" -> Table C3 Monthly Budget Statement - Financial Performance (revenue and expenditure by municipal vote)
A79: S71A | B79: =IF(Consolques="YES",E79,F79) -> Table C2 Monthly Budget Statement - Financial Performance (functional classification) | D79: Table C2 | E79: =D79&"Consolidated Monthly Budget Statement - Financial Performance (functional classification) " -> Table C2 Consolidated Monthly Budget Statement - Financial Performance (functional classification) | F79: =D79&"Monthly Budget Statement - Financial Performance (functional classification)" -> Table C2 Monthly Budget Statement - Financial Performance (functional classification)
A80: S71B | B80: =IF(Consolques="YES",E80,F80) -> Table C4 Monthly Budget Statement - Financial Performance (revenue and expenditure) | D80: Table C4 | E80: =D80&"Consolidated Monthly Budget Statement - Financial Performance (revenue and expenditure) " -> Table C4 Consolidated Monthly Budget Statement - Financial Performance (revenue and expenditure) | F80: =D80&"Monthly Budget Statement - Financial Performance (revenue and expenditure)" -> Table C4 Monthly Budget Statement - Financial Performance (revenue and expenditure)
A81: S71D | B81: =IF(Consolques="YES",E81,F81) -> Table C5 Monthly Budget Statement - Capital Expenditure (municipal vote, functional classification and funding) | D81: Table C5 | E81: =D81&"Consolidated Monthly Budget Statement - Capital Expenditure (municipal vote, functional classification and funding " -> Table C5 Consolidated Monthly Budget Statement - Capital Expenditure (municipal vote, functional classification and funding | F81: =D81&"Monthly Budget Statement - Capital Expenditure (municipal vote, functional classification and funding)" -> Table C5 Monthly Budget Statement - Capital Expenditure (municipal vote, functional classification and funding)
A82: S71E | B82: Table C6 Monthly Budget Statement - Financial Position | D82: Table C6 | E82: =D82&"Consolidated Monthly Budget Statement - Financial Position " -> Table C6 Consolidated Monthly Budget Statement - Financial Position | F82: =D82&"Monthly Budget Statement - Financial Position" -> Table C6 Monthly Budget Statement - Financial Position
A83: S71F | B83: Table C7 Monthly Budget Statement - Cash Flow | D83: Table C7 | E83: =D83&"Consolidated Monthly Budget Statement - Cash Flow " -> Table C7 Consolidated Monthly Budget Statement - Cash Flow | F83: =D83&"Monthly Budget Statement - Cash Flow " -> Table C7 Monthly Budget Statement - Cash Flow
A84: S71G | B84: =D84&"Material variance explanations " -> Supporting Table SC1 Material variance explanations | D84: Supporting Table SC1
A85: S71H | B85: =D85&"Monthly Budget Statement - performance indicators " -> Supporting Table SC2 Monthly Budget Statement - performance indicators | D85: Supporting Table SC2
A86: S71I | B86: =D86&"Monthly Budget Statement - aged debtors" -> Supporting Table SC3 Monthly Budget Statement - aged debtors | D86: Supporting Table SC3
A87: S71J | B87: =D87&"Monthly Budget Statement - aged creditors " -> Supporting Table SC4 Monthly Budget Statement - aged creditors | D87: Supporting Table SC4
A88: S71K | B88: =D88&"Monthly Budget Statement - investment portfolio " -> Supporting Table SC5 Monthly Budget Statement - investment portfolio | D88: Supporting Table SC5
A89: S71L | B89: =D89&"Monthly Budget Statement - transfers and grant receipts " -> Supporting Table SC6 Monthly Budget Statement - transfers and grant receipts | D89: Supporting Table SC6
A90: S71M | B90: =D90&" Monthly Budget Statement - transfers and grant expenditure " -> Supporting Table SC7(1) Monthly Budget Statement - transfers and grant expenditure | D90: Supporting Table SC7(1)
A91: S71N | B91: =D91&"Monthly Budget Statement - councillor and staff benefits " -> Supporting Table SC8 Monthly Budget Statement - councillor and staff benefits | D91: Supporting Table SC8
A92: S71O | B92: =D92&"Monthly Budget Statement - actuals and revised targets for cash receipts" -> Supporting Table SC9 Monthly Budget Statement - actuals and revised targets for cash receipts | D92: Supporting Table SC9
A93: S71P | B93: =IF(Consolques="YES",E93,F93) -> NOT REQUIRED - municipality does not have entities or this is the parent municipality's budget | D93: Supporting Table SC10 | E93: =D93&"Monthly Budget Statement - Parent Municipality Financial Performance (revenue and expenditure) " -> Supporting Table SC10 Monthly Budget Statement - Parent Municipality Financial Performance (revenue and expenditure) | F93: NOT REQUIRED - municipality does not have entities or this is the parent municipality's budget
A94: S71Q | B94: NOT REQUIRED - municipality does not have entities or this is the parent municipality's budget | D94: Supporting Table SC11 | E94: =D94&"Monthly Budget Statement - summary of municipal entities" -> Supporting Table SC11 Monthly Budget Statement - summary of municipal entities | F94: NOT REQUIRED - municipality does not have entities or this is the parent municipality's budget
A95: S71R | B95: Supporting Table SC12 Monthly Budget Statement - capital expenditure trend | D95: Supporting Table SC12 | E95: =D95&"Consolidated Monthly Budget Statement - capital expenditure trend " -> Supporting Table SC12 Consolidated Monthly Budget Statement - capital expenditure trend | F95: =D95&"Monthly Budget Statement - capital expenditure trend" -> Supporting Table SC12 Monthly Budget Statement - capital expenditure trend
A96: S71Sa | B96: Supporting Table SC13a Monthly Budget Statement - capital expenditure on new assets by asset class | D96: Supporting Table SC13a | E96: =D96&"Consolidated Monthly Budget Statement - capital expenditure on new assets by asset class" -> Supporting Table SC13a Consolidated Monthly Budget Statement - capital expenditure on new assets by asset class | F96: =D96&"Monthly Budget Statement - capital expenditure on new assets by asset class" -> Supporting Table SC13a Monthly Budget Statement - capital expenditure on new assets by asset class
A97: S71Sb | B97: Supporting Table SC13b Monthly Budget Statement - capital expenditure on renewal of existing assets by asset class | D97: Supporting Table SC13b | E97: =D97&"Consolidated Monthly Budget Statement - capital expenditure on renewal of existing assets by asset class" -> Supporting Table SC13b Consolidated Monthly Budget Statement - capital expenditure on renewal of existing assets by asset class | F97: =D97&"Monthly Budget Statement - capital expenditure on renewal of existing assets by asset class" -> Supporting Table SC13b Monthly Budget Statement - capital expenditure on renewal of existing assets by asset class
A98: S71Sc | B98: Supporting Table SC13c Monthly Budget Statement - expenditure on repairs and maintenance by asset class | D98: Supporting Table SC13c | E98: =D98&"Consolidated Monthly Budget Statement - expenditure on repairs and maintenance by asset class" -> Supporting Table SC13c Consolidated Monthly Budget Statement - expenditure on repairs and maintenance by asset class | F98: =D98&"Monthly Budget Statement - expenditure on repairs and maintenance by asset class" -> Supporting Table SC13c Monthly Budget Statement - expenditure on repairs and maintenance by asset class
A99: S71Sd | B99: Supporting Table SC13d Monthly Budget Statement - depreciation by asset class | D99: Supporting Table SC13d | E99: =D99&"Consolidated Monthly Budget Statement - depreciation by asset class" -> Supporting Table SC13d Consolidated Monthly Budget Statement - depreciation by asset class | F99: =D99&"Monthly Budget Statement - depreciation by asset class" -> Supporting Table SC13d Monthly Budget Statement - depreciation by asset class
A100: S71Se | B100: =IF(Consolques="YES",E100,F100) -> Supporting Table SC13e Monthly Budget Statement - capital expenditure on upgrading of existing assets by asset class | D100: Supporting Table SC13e | E100: =D100&"Consolidated Monthly Budget Statement - capital expenditure on upgrading of existing assets by asset class" -> Supporting Table SC13e Consolidated Monthly Budget Statement - capital expenditure on upgrading of existing assets by asset class | F100: =D100&"Monthly Budget Statement - capital expenditure on upgrading of existing assets by asset class" -> Supporting Table SC13e Monthly Budget Statement - capital expenditure on upgrading of existing assets by asset class
B101: s71 charts listing
B102: =D102&Head2A&" Capital Expenditure Monthly Trend: actual v target" -> Chart C1 2025/26 Capital Expenditure Monthly Trend: actual v target | D102: Chart C1
B103: =D103&Head2A&" Capital Expenditure: YTD actual v YTD target" -> Chart C2 2025/26 Capital Expenditure: YTD actual v YTD target | D103: Chart C2
B104: =D104&"Aged Consumer Debtors Analysis" -> Chart C3 Aged Consumer Debtors Analysis | D104: Chart C3
B105: =D105&"Consumer Debtors (total by Debtor Customer Category)" -> Chart C4 Consumer Debtors (total by Debtor Customer Category) | D105: Chart C4
B106: =D106&"Aged Creditors Analysis" -> Chart C5 Aged Creditors Analysis | D106: Chart C5
A107: S71T | B107: =D107&" Monthly Budget Statement - Expenditure against approved rollovers" -> Supporting Table SC7(2) Monthly Budget Statement - Expenditure against approved rollovers | D107: Supporting Table SC7(2)

Sheet Lookup and lists (hidden)
A1: Description | B1: 2013 | C1: 2014 | D1: 2015 | E1: 2016 | F1: 2017 | G1: 2018 | H1: 2019 | I1: 2020 | J1: 2021 | K1: 2022 | L1: 2023 | M1: 2024 | N1: 2025 | O1: 2026 | Q1: Grants: | R1: National - opex | S1: Provincial - opex | T1: National - capex | U1: Provincial - capex | V1: YESNO
A2: ='Template names'!C2 -> Prior year -1 | B2: =B1-1&"/"&RIGHT(B1,2)-0 -> 2012/13 | C2: =C1-1&"/"&RIGHT(C1,2)-0 -> 2013/14 | D2: =D1-1&"/"&RIGHT(D1,2)-0 -> 2014/15 | E2: =E1-1&"/"&RIGHT(E1,2)-0 -> 2015/16 | F2: =F1-1&"/"&RIGHT(F1,2)-0 -> 2016/17 | G2: 2017/18 | H2: 2018/19 | I2: 2019/20 | J2: 2020/21 | K2: 2021/22 | L2: 2022/23 | M2: 2023/24 | N2: 2024/25 | O2: 2025/26 | R2: Local Government Equitable Share | S2: Health subsidy | T2: Municipal Infrastructure Grant (MIG) | U2: Agriculture | V2: Yes
A3: ='Template names'!C5 -> MTREF header name | B3: =B1&"/"&RIGHT(B1,2)+1&" Medium Term Revenue & Expenditure Framework" -> 2013/14 Medium Term Revenue & Expenditure Framework | C3: =C1&"/"&RIGHT(C1,2)+1&" Medium Term Revenue & Expenditure Framework" -> 2014/15 Medium Term Revenue & Expenditure Framework | D3: =D1&"/"&RIGHT(D1,2)+1&" Medium Term Revenue & Expenditure Framework" -> 2015/16 Medium Term Revenue & Expenditure Framework | E3: =E1&"/"&RIGHT(E1,2)+1&" Medium Term Revenue & Expenditure Framework" -> 2016/17 Medium Term Revenue & Expenditure Framework | F3: =F1&"/"&RIGHT(F1,2)+1&" Medium Term Revenue & Expenditure Framework" -> 2017/18 Medium Term Revenue & Expenditure Framework | G3: 2018/19 Medium Term Revenue & Expenditure Framework | H3: 2019/20 Medium Term Revenue & Expenditure Framework | I3: 2020/21 Medium Term Revenue & Expenditure Framework | J3: 2021/22 Medium Term Revenue & Expenditure Framework | K3: 2022/23 Medium Term Revenue & Expenditure Framework | L3: 2023/24 Medium Term Revenue & Expenditure Framework | M3: 2024/25 Medium Term Revenue & Expenditure Framework | N3: 2025/26 Medium Term Revenue & Expenditure Framework | O3: 2026/27 Medium Term Revenue & Expenditure Framework | R3: RSC Levy Replacement | S3: Ambulance subsidy | T3: Public Transport and Systems | U3: Education | V3: No
A4: ='Template names'!C4 -> Approved budget year | B4: =B1&"/"&RIGHT(B1,2)+1 -> 2013/14 | C4: =C1&"/"&RIGHT(C1,2)+1 -> 2014/15 | D4: =D1&"/"&RIGHT(D1,2)+1 -> 2015/16 | E4: =E1&"/"&RIGHT(E1,2)+1 -> 2016/17 | F4: =F1&"/"&RIGHT(F1,2)+1 -> 2017/18 | G4: 2018/19 | H4: 2019/20 | I4: 2020/21 | J4: 2021/22 | K4: 2022/23 | L4: 2023/24 | M4: 2024/25 | N4: 2025/26 | O4: 2026/27 | R4: Finance Management | S4: Housing | T4: Rural Transport Services and Infrastructure | U4: Health
A5: ='Template names'!C12 -> 1st year of MTREF | B5: ="Budget Year "&B1&"/"&RIGHT(B1,2)+1 -> Budget Year 2013/14 | C5: ="Budget Year "&C1&"/"&RIGHT(C1,2)+1 -> Budget Year 2014/15 | D5: ="Budget Year "&D1&"/"&RIGHT(D1,2)+1 -> Budget Year 2015/16 | E5: ="Budget Year "&E1&"/"&RIGHT(E1,2)+1 -> Budget Year 2016/17 | F5: ="Budget Year "&F1&"/"&RIGHT(F1,2)+1 -> Budget Year 2017/18 | G5: Budget Year 2018/19 | H5: Budget Year 2019/20 | I5: Budget Year 2020/21 | J5: Budget Year 2021/22 | K5: Budget Year 2022/23 | L5: Budget Year 2023/24 | M5: Budget Year 2024/25 | N5: Budget Year 2025/26 | O5: Budget Year 2026/27 | R5: Municipal Systems Improvement | S5: Sport and Recreation | T5: Regional Bulk Infrastructure | U5: Housing and Local Government
A6: ='Template names'!C13 -> 2nd year of MTREF | B6: ="Budget Year +1 "&B1+1&"/"&RIGHT(B1,2)+2 -> Budget Year +1 2014/15 | C6: ="Budget Year +1 "&C1+1&"/"&RIGHT(C1,2)+2 -> Budget Year +1 2015/16 | D6: ="Budget Year +1 "&D1+1&"/"&RIGHT(D1,2)+2 -> Budget Year +1 2016/17 | E6: ="Budget Year +1 "&E1+1&"/"&RIGHT(E1,2)+2 -> Budget Year +1 2017/18 | F6: ="Budget Year +1 "&F1+1&"/"&RIGHT(F1,2)+2 -> Budget Year +1 2018/19 | G6: Budget Year +1 2019/20 | H6: Budget Year +1 2020/21 | I6: Budget Year +1 2021/22 | J6: Budget Year +1 2022/23 | K6: Budget Year +1 2023/24 | L6: Budget Year +1 2024/25 | M6: Budget Year +1 2025/26 | N6: Budget Year +1 2026/27 | O6: Budget Year +1 2027/28 | R6: Water Services Operating Subsidy | T6: Rural Households Infrastructure | U6: Other Departments
A7: ='Template names'!C14 -> 3rd year of MTREF | B7: ="Budget Year +2 "&B1+2&"/"&RIGHT(B1,2)+3 -> Budget Year +2 2015/16 | C7: ="Budget Year +2 "&C1+2&"/"&RIGHT(C1,2)+3 -> Budget Year +2 2016/17 | D7: ="Budget Year +2 "&D1+2&"/"&RIGHT(D1,2)+3 -> Budget Year +2 2017/18 | E7: ="Budget Year +2 "&E1+2&"/"&RIGHT(E1,2)+3 -> Budget Year +2 2018/19 | F7: ="Budget Year +2 "&F1+2&"/"&RIGHT(F1,2)+3 -> Budget Year +2 2019/20 | G7: Budget Year +2 2020/21 | H7: Budget Year +2 2021/22 | I7: Budget Year +2 2022/23 | J7: Budget Year +2 2023/24 | K7: Budget Year +2 2024/25 | L7: Budget Year +2 2025/26 | M7: Budget Year +2 2026/27 | N7: Budget Year +2 2027/28 | O7: Budget Year +2 2028/29 | R7: Energy Efficiency and Demand Management | T7: Neighbourhood Development Partnership | U7: Public Works, Roads, Transport
A8: NOTE: This sheet should not be directly amended - select headings from sheet 'S' | R8: Integrated National Electrification Programme | T8: 2010 FIFA World Cup Stadiums Development | U8: Sport and Recreation
R9: Municipal Drought Relief
R10: 2010 FIFA World Cup Operating
R11: Electricity Demand Side Management
R12: EPWP Incentive
A26: Name link | B26: 85
A27: Name of Muni
B28: Choose name from list | C28: Set name on 'Instructions' sheet
B29: BUF Buffalo City | C29: EC EASTERN CAPE
B30: NMA Nelson Mandela Bay | C30: EC EASTERN CAPE
B31: EC101 Dr Beyers Naude | C31: EC EASTERN CAPE
B32: EC102 Blue Crane Route | C32: EC EASTERN CAPE
B33: EC104 Makana | C33: EC EASTERN CAPE
B34: EC105 Ndlambe | C34: EC EASTERN CAPE
B35: EC106 Sundays River Valley | C35: EC EASTERN CAPE
B36: EC108 Kouga | C36: EC EASTERN CAPE
B37: EC109 Kou-Kamma | C37: EC EASTERN CAPE
B38: DC10 Sarah Baartman | C38: EC EASTERN CAPE
B39: EC121 Mbhashe | C39: EC EASTERN CAPE
B40: EC122 Mnquma | C40: EC EASTERN CAPE
B41: EC123 Great Kei | C41: EC EASTERN CAPE
B42: EC124 Amahlathi | C42: EC EASTERN CAPE
B43: EC126 Ngqushwa | C43: EC EASTERN CAPE
B44: EC129 Raymond Mhlaba | C44: EC EASTERN CAPE
B45: DC12 Amathole | C45: EC EASTERN CAPE
B46: EC131 Inxuba Yethemba | C46: EC EASTERN CAPE
B47: EC135 Intsika Yethu | C47: EC EASTERN CAPE
B48: EC136 Emalahleni (Ec) | C48: EC EASTERN CAPE
B49: EC137 Engcobo | C49: EC EASTERN CAPE
B50: EC138 Sakhisizwe | C50: EC EASTERN CAPE
B51: EC139 Enoch Mgijima | C51: EC EASTERN CAPE
B52: DC13 Chris Hani | C52: EC EASTERN CAPE
B53: EC141 Elundini | C53: EC EASTERN CAPE
B54: EC142 Senqu | C54: EC EASTERN CAPE
B55: EC145 Walter Sisulu | C55: EC EASTERN CAPE
B56: DC14 Joe Gqabi | C56: EC EASTERN CAPE
B57: EC153 Ngquza Hills | C57: EC EASTERN CAPE
B58: EC154 Port St Johns | C58: EC EASTERN CAPE
B59: EC155 Nyandeni | C59: EC EASTERN CAPE
B60: EC156 Mhlontlo | C60: EC EASTERN CAPE
B61: EC157 King Sabata Dalindyebo | C61: EC EASTERN CAPE
B62: DC15 O .R. Tambo | C62: EC EASTERN CAPE
B63: EC441 Matatiele | C63: EC EASTERN CAPE
B64: EC442 Umzimvubu | C64: EC EASTERN CAPE
B65: EC443 Winnie Madikizela Mandela | C65: EC EASTERN CAPE
B66: EC444 Ntabankulu | C66: EC EASTERN CAPE
B67: DC44 Alfred Nzo | C67: EC EASTERN CAPE
B68: MAN Mangaung | C68: FS FREE STATE
B69: FS161 Letsemeng | C69: FS FREE STATE
B70: FS162 Kopanong | C70: FS FREE STATE
B71: FS163 Mohokare | C71: FS FREE STATE
B72: DC16 Xhariep | C72: FS FREE STATE
B73: FS181 Masilonyana | C73: FS FREE STATE
B74: FS182 Tokologo | C74: FS FREE STATE
B75: FS183 Tswelopele | C75: FS FREE STATE
B76: FS184 Matjhabeng | C76: FS FREE STATE
B77: FS185 Nala | C77: FS FREE STATE
B78: DC18 Lejweleputswa | C78: FS FREE STATE
B79: FS191 Setsoto | C79: FS FREE STATE
B80: FS192 Dihlabeng | C80: FS FREE STATE
B81: FS193 Nketoana | C81: FS FREE STATE
B82: FS194 Maluti-a-Phofung | C82: FS FREE STATE
B83: FS195 Phumelela | C83: FS FREE STATE
B84: FS196 Mantsopa | C84: FS FREE STATE
B85: DC19 Thabo Mofutsanyana | C85: FS FREE STATE
B86: FS201 Moqhaka | C86: FS FREE STATE
B87: FS203 Ngwathe | C87: FS FREE STATE
B88: FS204 Metsimaholo | C88: FS FREE STATE
B89: FS205 Mafube | C89: FS FREE STATE
B90: DC20 Fezile Dabi | C90: FS FREE STATE
B91: EKU City of Ekurhuleni | C91: GT GAUTENG
B92: JHB City Of Johannesburg | C92: GT GAUTENG
B93: TSH City Of Tshwane | C93: GT GAUTENG
B94: GT421 Emfuleni | C94: GT GAUTENG
B95: GT422 Midvaal | C95: GT GAUTENG
B96: GT423 Lesedi | C96: GT GAUTENG
B97: DC42 Sedibeng | C97: GT GAUTENG
B98: GT481 Mogale City | C98: GT GAUTENG
B99: GT484 Merafong City | C99: GT GAUTENG
B100: GT485 Rand West City | C100: GT GAUTENG
B101: DC48 West Rand | C101: GT GAUTENG
B102: ETH eThekwini | C102: KZN KWAZULU-NATAL
B103: KZN212 Umdoni | C103: KZN KWAZULU-NATAL
B104: KZN213 Umzumbe | C104: KZN KWAZULU-NATAL
B105: KZN214 uMuziwabantu | C105: KZN KWAZULU-NATAL
B106: KZN216 Ray Nkonyeni | C106: KZN KWAZULU-NATAL
B107: DC21 Ugu | C107: KZN KWAZULU-NATAL
B108: KZN221 uMshwathi | C108: KZN KWAZULU-NATAL
B109: KZN222 uMngeni | C109: KZN KWAZULU-NATAL
B110: KZN223 Mpofana | C110: KZN KWAZULU-NATAL
B111: KZN224 Impendle | C111: KZN KWAZULU-NATAL
B112: KZN225 Msunduzi | C112: KZN KWAZULU-NATAL
B113: KZN226 Mkhambathini | C113: KZN KWAZULU-NATAL
B114: KZN227 Richmond | C114: KZN KWAZULU-NATAL
B115: DC22 uMgungundlovu | C115: KZN KWAZULU-NATAL
B116: KZN235 Okhahlamba | C116: KZN KWAZULU-NATAL
B117: KZN237 Inkosi Langalibalele | C117: KZN KWAZULU-NATAL
B118: KZN238 Alfred Duma | C118: KZN KWAZULU-NATAL
B119: DC23 Uthukela | C119: KZN KWAZULU-NATAL
B120: KZN241 Endumeni | C120: KZN KWAZULU-NATAL
B121: KZN242 Nquthu | C121: KZN KWAZULU-NATAL
B122: KZN244 Msinga | C122: KZN KWAZULU-NATAL
B123: KZN245 Umvoti | C123: KZN KWAZULU-NATAL
B124: DC24 Umzinyathi | C124: KZN KWAZULU-NATAL
B125: KZN252 Newcastle | C125: KZN KWAZULU-NATAL
B126: KZN253 Emadlangeni | C126: KZN KWAZULU-NATAL
B127: KZN254 Dannhauser | C127: KZN KWAZULU-NATAL
B128: DC25 Amajuba | C128: KZN KWAZULU-NATAL
B129: KZN261 eDumbe | C129: KZN KWAZULU-NATAL
B130: KZN262 uPhongolo | C130: KZN KWAZULU-NATAL
B131: KZN263 Abaqulusi | C131: KZN KWAZULU-NATAL
B132: KZN265 Nongoma | C132: KZN KWAZULU-NATAL
B133: KZN266 Ulundi | C133: KZN KWAZULU-NATAL
B134: DC26 Zululand | C134: KZN KWAZULU-NATAL
B135: KZN271 Umhlabuyalingana | C135: KZN KWAZULU-NATAL
B136: KZN272 Jozini | C136: KZN KWAZULU-NATAL
B137: KZN275 Mtubatuba | C137: KZN KWAZULU-NATAL
B138: KZN276 Hlabisa Big Five | C138: KZN KWAZULU-NATAL
B139: DC27 Umkhanyakude | C139: KZN KWAZULU-NATAL
B140: KZN281 Mfolozi | C140: KZN KWAZULU-NATAL
B141: KZN282 uMhlathuze | C141: KZN KWAZULU-NATAL
B142: KZN284 uMlalazi | C142: KZN KWAZULU-NATAL
B143: KZN285 Mthonjaneni | C143: KZN KWAZULU-NATAL
B144: KZN286 Nkandla | C144: KZN KWAZULU-NATAL
B145: DC28 King Cetshwayo | C145: KZN KWAZULU-NATAL
B146: KZN291 Mandeni | C146: KZN KWAZULU-NATAL
B147: KZN292 KwaDukuza | C147: KZN KWAZULU-NATAL
B148: KZN293 Ndwedwe | C148: KZN KWAZULU-NATAL
B149: KZN294 Maphumulo | C149: KZN KWAZULU-NATAL
B150: DC29 iLembe | C150: KZN KWAZULU-NATAL
B151: KZN433 Greater Kokstad | C151: KZN KWAZULU-NATAL
B152: KZN434 Johannes Phumani Phungula | C152: KZN KWAZULU-NATAL
B153: KZN435 Umzimkhulu | C153: KZN KWAZULU-NATAL
B154: KZN436 Dr Nkosazana Dlamini Zuma | C154: KZN KWAZULU-NATAL
B155: DC43 Harry Gwala | C155: KZN KWAZULU-NATAL
B156: LIM331 Greater Giyani | C156: LIM LIMPOPO
B157: LIM332 Greater Letaba | C157: LIM LIMPOPO
B158: LIM333 Greater Tzaneen | C158: LIM LIMPOPO
B159: LIM334 Ba-Phalaborwa | C159: LIM LIMPOPO
B160: LIM335 Maruleng | C160: LIM LIMPOPO
B161: DC33 Mopani | C161: LIM LIMPOPO
B162: LIM341 Musina | C162: LIM LIMPOPO
B163: LIM343 Thulamela | C163: LIM LIMPOPO
B164: LIM344 Makhado | C164: LIM LIMPOPO
B165: LIM345 Collins Chabane | C165: LIM LIMPOPO
B166: DC34 Vhembe | C166: LIM LIMPOPO
B167: LIM351 Blouberg | C167: LIM LIMPOPO
B168: LIM353 Molemole | C168: LIM LIMPOPO
B169: LIM354 Polokwane | C169: LIM LIMPOPO
B170: LIM355 Lepelle-Nkumpi | C170: LIM LIMPOPO
B171: DC35 Capricorn | C171: LIM LIMPOPO
B172: LIM361 Thabazimbi | C172: LIM LIMPOPO
B173: LIM362 Lephalale | C173: LIM LIMPOPO
B174: LIM366 Bela Bela | C174: LIM LIMPOPO
B175: LIM367 Mogalakwena | C175: LIM LIMPOPO
B176: LIM368 Modimolle-Mookgopong | C176: LIM LIMPOPO
B177: DC36 Waterberg | C177: LIM LIMPOPO
B178: LIM471 Ephraim Mogale | C178: LIM LIMPOPO
B179: LIM472 Elias Motsoaledi | C179: LIM LIMPOPO
B180: LIM473 Makhuduthamaga | C180: LIM LIMPOPO
B181: LIM476 Tubatse Fetakgomo | C181: LIM LIMPOPO
B182: DC47 Sekhukhune | C182: LIM LIMPOPO
B183: MP301 Albert Luthuli | C183: MP MPUMALANGA
B184: MP302 Msukaligwa | C184: MP MPUMALANGA
B185: MP303 Mkhondo | C185: MP MPUMALANGA
B186: MP304 Pixley Ka Seme (MP) | C186: MP MPUMALANGA
B187: MP305 Lekwa | C187: MP MPUMALANGA
B188: MP306 Dipaleseng | C188: MP MPUMALANGA
B189: MP307 Govan Mbeki | C189: MP MPUMALANGA
B190: DC30 Gert Sibande | C190: MP MPUMALANGA
B191: MP311 Victor Khanye | C191: MP MPUMALANGA
B192: MP312 Emalahleni (Mp) | C192: MP MPUMALANGA
B193: MP313 Steve Tshwete | C193: MP MPUMALANGA
B194: MP314 Emakhazeni | C194: MP MPUMALANGA
B195: MP315 Thembisile Hani | C195: MP MPUMALANGA
B196: MP316 Dr J.S. Moroka | C196: MP MPUMALANGA
B197: DC31 Nkangala | C197: MP MPUMALANGA
B198: MP321 Thaba Chweu | C198: MP MPUMALANGA
B199: MP324 Nkomazi | C199: MP MPUMALANGA
B200: MP325 Bushbuckridge | C200: MP MPUMALANGA
B201: MP326 City of Mbombela | C201: MP MPUMALANGA
B202: DC32 Ehlanzeni | C202: MP MPUMALANGA
B203: NC451 Joe Morolong | C203: NC NORTHERN CAPE
B204: NC452 Ga-Segonyana | C204: NC NORTHERN CAPE
B205: NC453 Gamagara | C205: NC NORTHERN CAPE
B206: DC45 John Taolo Gaetsewe | C206: NC NORTHERN CAPE
B207: NC061 Richtersveld | C207: NC NORTHERN CAPE
B208: NC062 Nama Khoi | C208: NC NORTHERN CAPE
B209: NC064 Kamiesberg | C209: NC NORTHERN CAPE
B210: NC065 Hantam | C210: NC NORTHERN CAPE
B211: NC066 Karoo Hoogland | C211: NC NORTHERN CAPE
B212: NC067 Khai-Ma | C212: NC NORTHERN CAPE
B213: DC6 Namakwa | C213: NC NORTHERN CAPE
... 73 more rows

Sheet Org structure
A1: Organisational Structure Votes | C1: Organisational Structure Sub-Votes | E1: Display Sub-Votes
A2: =B2&" - "&C2 -> Vote 1 - City Manager | B2: Vote 1 | C2: City Manager
A3: =B13&" - "& C13 -> Vote 2 - City Finance | B3: 1.1 | C3: Internal Audit and Compliance | D3: 1,1 - Internal Audit and Compliance | E3: 1.1 - Internal Audit and Compliance
A4: =B24&" - "&C24 -> Vote 3 - Corporate Services | B4: 1.2 | C4: Office of the City Manager | D4: 1,2 - Office of the City Manager | E4: 1.2 - Office of the City Manager
A5: =B35&" - "&C35 -> Vote 4 - Community Services and Social Equity | B5: 1.3 | C5: Political Support | D5: 1,3 - Political Support | E5: 1.3 - Political Support
A6: =B46&" - "&C46 -> Vote 5 - Infrastructure Services | B6: 1.4 | C6: [Name of sub-vote] | D6: 1,4 - [Name of sub-vote] | E6: 1.4 - Strategic Planning
A7: =B57&" - "&C57 -> Vote 6 - Sustainable Development and City Enterprises | B7: 1.5 | C7: [Name of sub-vote] | D7: =CONCATENATE(B7, " - ", C7) -> 1.5 - [Name of sub-vote]
A8: =B68&" - "&C68 -> Vote 7 - Electricity | B8: 1.6 | C8: [Name of sub-vote] | D8: 1.6 - [Name of sub-vote]
A9: =B79&" - "&C79 -> Vote 8 - [NAME OF VOTE 8] | B9: 1.7 | C9: [Name of sub-vote] | D9: 1.7 - [Name of sub-vote]
A10: =B90&" - "&C90 -> Vote 9 - [NAME OF VOTE 9] | B10: 1.8 | C10: [Name of sub-vote] | D10: 1.8 - [Name of sub-vote]
A11: =B101&" - "&C101 -> Vote 10 - [NAME OF VOTE 10] | B11: 1.9 | C11: [Name of sub-vote] | D11: 1.9 - [Name of sub-vote]
A12: =B112&" - "&C112 -> Vote 11 - [NAME OF VOTE 11] | B12: 1.10 | C12: [Name of sub-vote] | D12: 1.10 - [Name of sub-vote]
A13: =B123&" - "&C123 -> Vote 12 - [NAME OF VOTE 12] | B13: Vote 2 | C13: City Finance
A14: =B134&" - "&C134 -> Vote 13 - [NAME OF VOTE 13] | B14: 2.1 | C14: Asset Management | D14: 2,1 - Asset Management | E14: 2.1 - Asset Management
A15: =B145&" - "&C145 -> Vote 14 - [NAME OF VOTE 14] | B15: 2.2 | C15: Budget and Treasury Management | D15: 2,2 - Budget and Treasury Management | E15: 2.2 - Budget and Treasury Management
A16: =B156&" - "&C156 -> Vote 15 - [NAME OF VOTE 15] | B16: 2.3 | C16: Expenditure Management | D16: 2,3 - Expenditure Management | E16: 2.3 - Expenditure Management
B17: 2.4 | C17: Revenue Management | D17: 2,4 - Revenue Management | E17: 2.4 - Revenue Management
B18: 2.5 | C18: Supply Chain Management | D18: 2,5 - Supply Chain Management | E18: 2.5 - Supply Chain Management
B19: 2.6 | C19: [Name of sub-vote] | D19: =CONCATENATE(B19, " - ", C19) -> 2.6 - [Name of sub-vote]
B20: 2.7 | C20: [Name of sub-vote] | D20: 2.7 - [Name of sub-vote]
B21: 2.8 | C21: [Name of sub-vote] | D21: 2.8 - [Name of sub-vote]
B22: 2.9 | C22: [Name of sub-vote] | D22: 2.9 - [Name of sub-vote]
B23: 2.10 | C23: [Name of sub-vote] | D23: 2.10 - [Name of sub-vote]
B24: Vote 3 | C24: Corporate Services
B25: 3.1 | C25: Human Resources Management | D25: 3,1 - Human Resources Management | E25: Human Resources Management
B26: 3.2 | C26: Information Technology | D26: 3,2 - Information Technology | E26: Information Technology
B27: 3.3 | C27: Legal Services | D27: 3,3 - Legal Services | E27: Legal Services
B28: 3.4 | C28: Secretariat and Auxiliary Services | D28: 3,4 - Secretariat and Auxiliary Services | E28: Secretariat and Auxiliary Services
B29: 3.5 | C29: General Manager: Corporate Service | D29: 3,5 - General Manager: Corporate Service | E29: General Manager: Corporate Service
B30: 3.6 | C30: [Name of sub-vote] | D30: =CONCATENATE(B30, " - ", C30) -> 3.6 - [Name of sub-vote]
B31: 3.7 | C31: [Name of sub-vote] | D31: 3.7 - [Name of sub-vote]
B32: 3.8 | C32: [Name of sub-vote] | D32: 3.8 - [Name of sub-vote]
B33: 3.9 | C33: [Name of sub-vote] | D33: 3.9 - [Name of sub-vote]
B34: 3.10 | C34: [Name of sub-vote] | D34: 3.10 - [Name of sub-vote]
B35: Vote 4 | C35: Community Services and Social Equity
B36: 4.1 | C36: Area Based Management | D36: 4,1 - Area Based Management | E36: 4.1 - Area Based Management
B37: 4.2 | C37: Public Safety, Emergency Services and Enforcement | D37: 4,2 - Public Safety, Emergency Services and Enforcement | E37: 4.2 - Public Safety, Emergency Services and Enforcement
B38: 4.3 | C38: Recreation and Facilities | D38: 4,3 - Recreation and Facilities | E38: 4.3 - Recreation and Facilities
B39: 4.4 | C39: Waste Management | D39: 4,4 - Waste Management | E39: 4.4 - Waste Management
B40: 4.5 | C40: General Manager: Community Services | D40: 4.5 - General Manager: Community Services | E40: 4.5 - General Manager: Community Services
B41: 4.6 | C41: [Name of sub-vote] | D41: =CONCATENATE(B41, " - ", C41) -> 4.6 - [Name of sub-vote]
B42: 4.7 | C42: [Name of sub-vote] | D42: 4.7 - [Name of sub-vote]
B43: 4.8 | C43: [Name of sub-vote] | D43: 4.8 - [Name of sub-vote]
B44: 4.9 | C44: [Name of sub-vote] | D44: 4.9 - [Name of sub-vote]
B45: 4.10 | C45: [Name of sub-vote] | D45: 4.10 - [Name of sub-vote]
B46: Vote 5 | C46: Infrastructure Services
B47: 5.1 | C47: Project Management Office | D47: 5,1 - Project Management Office | E47: 5.1 - Project Management Office
B48: 5.2 | C48: Roads and Transportation | D48: 5,2 - Roads and Transportation | E48: 5.2 - Roads and Transportation
B49: 5.3 | C49: Water and Sanitation | D49: 5,3 - Water and Sanitation | E49: 5.3 - Water and Sanitation
B50: 5.4 | C50: General Manager: Infrastructure | D50: 5,4 - General Manager: Infrastructure | E50: 5.4 - General Manager: Infrastructure
B51: 5.5 | C51: [Name of sub-vote] | D51: =CONCATENATE(B51, " - ", C51) -> 5.5 - [Name of sub-vote]
B52: 5.6 | C52: [Name of sub-vote] | D52: 5.6 - [Name of sub-vote]
B53: 5.7 | C53: [Name of sub-vote] | D53: 5.7 - [Name of sub-vote]
B54: 5.8 | C54: [Name of sub-vote] | D54: 5.8 - [Name of sub-vote]
B55: 5.9 | C55: [Name of sub-vote] | D55: 5.9 - [Name of sub-vote]
B56: 5.10 | C56: [Name of sub-vote] | D56: 5.10 - [Name of sub-vote]
B57: Vote 6 | C57: Sustainable Development and City Enterprises
B58: 6.1 | C58: City Entities | D58: 6,1 - City Entities | E58: 6.1 - City Entities
B59: 6.2 | C59: Development Services | D59: 6,2 - Development Services | E59: 6.2 - Development Services
B60: 6.3 | C60: Human Settlement Development | D60: 6,3 - Human Settlement Development | E60: 6.3 - Human Settlement Development
B61: 6.4 | C61: Town Planning | D61: 6,4 - Town Planning | E61: 6.4 - Town Planning
B62: 6.5 | C62: General Manager: Sustainable Development and City Enterprises | D62: 6,5 - General Manager: Sustainable Development and City Enterprises | E62: 6.5 - General Manager: Sustainable Development and City Enterprises
B63: 6.6 | C63: [Name of sub-vote] | D63: =CONCATENATE(B63, " - ", C63) -> 6.6 - [Name of sub-vote]
B64: 6.7 | C64: [Name of sub-vote] | D64: 6.7 - [Name of sub-vote]
B65: 6.8 | C65: [Name of sub-vote] | D65: 6.8 - [Name of sub-vote]
B66: 6.9 | C66: [Name of sub-vote] | D66: 6.9 - [Name of sub-vote]
B67: 6.10 | C67: [Name of sub-vote] | D67: 6.10 - [Name of sub-vote]
B68: Vote 7 | C68: Electricity
B69: 7.1 | C69: Electricity planning | D69: 7,1 - Electricity planning | E69: 7.1 Electricity planning
B70: 7.2 | C70: Methods and Standards | D70: 7,2 - Methods and Standards | E70: 7.2 Methods and Standards
B71: 7.3 | C71: Operations and Maintenance | D71: 7,3 - Operations and Maintenance | E71: 7.3 Operations and Maintenance
B72: 7.4 | C72: Revenue Management | D72: 7,4 - Revenue Management | E72: 7.4 Revenue Management
B73: 7.5 | C73: General Manager Electricity | D73: 7,5 - General Manager Electricity | E73: 7.5 General Manager Electricity
B74: 7.6 | C74: [Name of sub-vote] | D74: =CONCATENATE(B74, " - ", C74) -> 7.6 - [Name of sub-vote]
B75: 7.7 | C75: [Name of sub-vote] | D75: 7.7 - [Name of sub-vote]
B76: 7.8 | C76: [Name of sub-vote] | D76: 7.8 - [Name of sub-vote]
B77: 7.9 | C77: [Name of sub-vote] | D77: 7.9 - [Name of sub-vote]
B78: 7.10 | C78: [Name of sub-vote] | D78: 7.10 - [Name of sub-vote]
B79: Vote 8 | C79: [NAME OF VOTE 8]
B80: 8.1 | C80: [Name of sub-vote] | D80: =CONCATENATE(B80, " - ", C80) -> 8.1 - [Name of sub-vote] | E80: 8.1 - [Name of sub-vote]
B81: 8.2 | C81: [Name of sub-vote] | D81: 8.2 - [Name of sub-vote]
B82: 8.3 | C82: [Name of sub-vote] | D82: 8.3 - [Name of sub-vote]
B83: 8.4 | C83: [Name of sub-vote] | D83: 8.4 - [Name of sub-vote]
B84: 8.5 | C84: [Name of sub-vote] | D84: 8.5 - [Name of sub-vote]
B85: 8.6 | C85: [Name of sub-vote] | D85: 8.6 - [Name of sub-vote]
B86: 8.7 | C86: [Name of sub-vote] | D86: 8.7 - [Name of sub-vote]
B87: 8.8 | C87: [Name of sub-vote] | D87: 8.8 - [Name of sub-vote]
B88: 8.9 | C88: [Name of sub-vote] | D88: 8.9 - [Name of sub-vote]
B89: 8.10 | C89: [Name of sub-vote] | D89: 8.10 - [Name of sub-vote]
B90: Vote 9 | C90: [NAME OF VOTE 9]
B91: 9.1 | C91: [Name of sub-vote] | D91: =CONCATENATE(B91, " - ", C91) -> 9.1 - [Name of sub-vote] | E91: 9.1 - [Name of sub-vote]
B92: 9.2 | C92: [Name of sub-vote] | D92: 9.2 - [Name of sub-vote]
B93: 9.3 | C93: [Name of sub-vote] | D93: 9.3 - [Name of sub-vote]
B94: 9.4 | C94: [Name of sub-vote] | D94: 9.4 - [Name of sub-vote]
B95: 9.5 | C95: [Name of sub-vote] | D95: 9.5 - [Name of sub-vote]
B96: 9.6 | C96: [Name of sub-vote] | D96: 9.6 - [Name of sub-vote]
B97: 9.7 | C97: [Name of sub-vote] | D97: 9.7 - [Name of sub-vote]
B98: 9.8 | C98: [Name of sub-vote] | D98: 9.8 - [Name of sub-vote]
B99: 9.9 | C99: [Name of sub-vote] | D99: 9.9 - [Name of sub-vote]
B100: 9.10 | C100: [Name of sub-vote] | D100: 9.10 - [Name of sub-vote]
B101: Vote 10 | C101: [NAME OF VOTE 10]
B102: 10.1 | C102: [Name of sub-vote] | D102: =CONCATENATE(B102, " - ", C102) -> 10.1 - [Name of sub-vote] | E102: 10.1 - [Name of sub-vote]
B103: 10.2 | C103: [Name of sub-vote] | D103: 10.2 - [Name of sub-vote]
B104: 10.3 | C104: [Name of sub-vote] | D104: 10.3 - [Name of sub-vote]
B105: 10.4 | C105: [Name of sub-vote] | D105: 10.4 - [Name of sub-vote]
B106: 10.5 | C106: [Name of sub-vote] | D106: 10.5 - [Name of sub-vote]
B107: 10.6 | C107: [Name of sub-vote] | D107: 10.6 - [Name of sub-vote]
B108: 10.7 | C108: [Name of sub-vote] | D108: 10.7 - [Name of sub-vote]
B109: 10.8 | C109: [Name of sub-vote] | D109: 10.8 - [Name of sub-vote]
B110: 10.9 | C110: [Name of sub-vote] | D110: 10.9 - [Name of sub-vote]
B111: 10.10 | C111: [Name of sub-vote] | D111: 10.10 - [Name of sub-vote]
B112: Vote 11 | C112: [NAME OF VOTE 11]
B113: 11.1 | C113: [Name of sub-vote] | D113: =CONCATENATE(B113, " - ", C113) -> 11.1 - [Name of sub-vote] | E113: 11.1 - [Name of sub-vote]
B114: 11.2 | C114: [Name of sub-vote] | D114: 11.2 - [Name of sub-vote]
B115: 11.3 | C115: [Name of sub-vote] | D115: 11.3 - [Name of sub-vote]
B116: 11.4 | C116: [Name of sub-vote] | D116: 11.4 - [Name of sub-vote]
B117: 11.5 | C117: [Name of sub-vote] | D117: 11.5 - [Name of sub-vote]
B118: 11.6 | C118: [Name of sub-vote] | D118: 11.6 - [Name of sub-vote]
B119: 11.7 | C119: [Name of sub-vote] | D119: 11.7 - [Name of sub-vote]
B120: 11.8 | C120: [Name of sub-vote] | D120: 11.8 - [Name of sub-vote]
B121: 11.9 | C121: [Name of sub-vote] | D121: 11.9 - [Name of sub-vote]
B122: 11.10 | C122: [Name of sub-vote] | D122: 11.10 - [Name of sub-vote]
B123: Vote 12 | C123: [NAME OF VOTE 12]
B124: 12.1 | C124: [Name of sub-vote] | D124: =CONCATENATE(B124, " - ", C124) -> 12.1 - [Name of sub-vote] | E124: 12.1 - [Name of sub-vote]
B125: 12.2 | C125: [Name of sub-vote] | D125: 12.2 - [Name of sub-vote]
B126: 12.3 | C126: [Name of sub-vote] | D126: 12.3 - [Name of sub-vote]
B127: 12.4 | C127: [Name of sub-vote] | D127: 12.4 - [Name of sub-vote]
B128: 12.5 | C128: [Name of sub-vote] | D128: 12.5 - [Name of sub-vote]
B129: 12.6 | C129: [Name of sub-vote] | D129: 12.6 - [Name of sub-vote]
B130: 12.7 | C130: [Name of sub-vote] | D130: 12.7 - [Name of sub-vote]
B131: 12.8 | C131: [Name of sub-vote] | D131: 12.8 - [Name of sub-vote]
B132: 12.9 | C132: [Name of sub-vote] | D132: 12.9 - [Name of sub-vote]
B133: 12.10 | C133: [Name of sub-vote] | D133: 12.10 - [Name of sub-vote]
B134: Vote 13 | C134: [NAME OF VOTE 13]
B135: 13.1 | C135: [Name of sub-vote] | D135: =CONCATENATE(B135, " - ", C135) -> 13.1 - [Name of sub-vote] | E135: 13.1 - [Name of sub-vote]
B136: 13.2 | C136: [Name of sub-vote] | D136: 13.2 - [Name of sub-vote]
B137: 13.3 | C137: [Name of sub-vote] | D137: 13.3 - [Name of sub-vote]
B138: 13.4 | C138: [Name of sub-vote] | D138: 13.4 - [Name of sub-vote]
B139: 13.5 | C139: [Name of sub-vote] | D139: 13.5 - [Name of sub-vote]
B140: 13.6 | C140: [Name of sub-vote] | D140: 13.6 - [Name of sub-vote]
B141: 13.7 | C141: [Name of sub-vote] | D141: 13.7 - [Name of sub-vote]
B142: 13.8 | C142: [Name of sub-vote] | D142: 13.8 - [Name of sub-vote]
B143: 13.9 | C143: [Name of sub-vote] | D143: 13.9 - [Name of sub-vote]
B144: 13.10 | C144: [Name of sub-vote] | D144: 13.10 - [Name of sub-vote]
B145: Vote 14 | C145: [NAME OF VOTE 14]
B146: 14.1 | C146: [Name of sub-vote] | D146: =CONCATENATE(B146, " - ", C146) -> 14.1 - [Name of sub-vote] | E146: 14.1 - [Name of sub-vote]
B147: 14.2 | C147: [Name of sub-vote] | D147: 14.2 - [Name of sub-vote]
B148: 14.3 | C148: [Name of sub-vote] | D148: 14.3 - [Name of sub-vote]
B149: 14.4 | C149: [Name of sub-vote] | D149: 14.4 - [Name of sub-vote]
B150: 14.5 | C150: [Name of sub-vote] | D150: 14.5 - [Name of sub-vote]
B151: 14.6 | C151: [Name of sub-vote] | D151: 14.6 - [Name of sub-vote]
B152: 14.7 | C152: [Name of sub-vote] | D152: 14.7 - [Name of sub-vote]
B153: 14.8 | C153: [Name of sub-vote] | D153: 14.8 - [Name of sub-vote]
B154: 14.9 | C154: [Name of sub-vote] | D154: 14.9 - [Name of sub-vote]
B155: 14.10 | C155: [Name of sub-vote] | D155: 14.10 - [Name of sub-vote]
B156: Vote 15 | C156: [NAME OF VOTE 15]
B157: 15.1 | C157: [Name of sub-vote] | D157: =CONCATENATE(B157, " - ", C157) -> 15.1 - [Name of sub-vote] | E157: 15.1 - [Name of sub-vote]
B158: 15.2 | C158: [Name of sub-vote] | D158: 15.2 - [Name of sub-vote]
B159: 15.3 | C159: [Name of sub-vote] | D159: 15.3 - [Name of sub-vote]
B160: 15.4 | C160: [Name of sub-vote] | D160: 15.4 - [Name of sub-vote]
B161: 15.5 | C161: [Name of sub-vote] | D161: 15.5 - [Name of sub-vote]
B162: 15.6 | C162: [Name of sub-vote] | D162: 15.6 - [Name of sub-vote]
B163: 15.7 | C163: [Name of sub-vote] | D163: 15.7 - [Name of sub-vote]
B164: 15.8 | C164: [Name of sub-vote] | D164: 15.8 - [Name of sub-vote]
B165: 15.9 | C165: [Name of sub-vote] | D165: 15.9 - [Name of sub-vote]
B166: 15.10 | C166: [Name of sub-vote] | D166: 15.10 - [Name of sub-vote]

Sheet Contacts
A1: =Muni2&" - "&" Contact Information" -> KZN225 Msunduzi - Contact Information
A3: A. GENERAL INFORMATION
A4: Municipality | B4: =Muni2 -> KZN225 Msunduzi | C4: Set name on 'Instructions' sheet
A6: Grade | C6: 1 Grade in terms of the Remuneration of Public Office Bearers Act.
A8: Province | B8: =Instructions!X2 -> KZN KWAZULU-NATAL
A10: Web Address
A12: e-mail Address
A14: B. CONTACT INFORMATION
A15: Postal address:
A16: P.O. Box
A17: City / Town
A18: Postal Code
A20: Street address
A21: Building
A22: Street No. & Name
A23: City / Town
A24: Postal Code
A26: General Contacts
A27: Telephone number
A28: Fax number
A30: C. POLITICAL LEADERSHIP
A31: Speaker: | C31: Secretary/PA to the Speaker:
A32: ID Number | C32: ID Number
A33: Title | C33: Title
A34: Name | C34: Name
A35: Telephone number | C35: Telephone number
A36: Cell number | C36: Cell number
A37: Fax number | C37: Fax number
A38: E-mail address | C38: E-mail address
A40: Mayor/Executive Mayor: | C40: Secretary/PA to the Mayor/Executive Mayor:
A41: ID Number | C41: ID Number
A42: Title | C42: Title
A43: Name | C43: Name
A44: Telephone number | C44: Telephone number
A45: Cell number | C45: Cell number
A46: Fax number | C46: Fax number
A47: E-mail address | C47: E-mail address
A49: Deputy Mayor/Executive Mayor: | C49: Secretary/PA to the Deputy Mayor/Executive Mayor:
A50: ID Number | C50: ID Number
A51: Title | C51: Title
A52: Name | C52: Name
A53: Telephone number | C53: Telephone number
A54: Cell number | C54: Cell number
A55: Fax number | C55: Fax number
A56: E-mail address | C56: E-mail address
A58: D. MANAGEMENT LEADERSHIP
A59: Municipal Manager: | C59: Secretary/PA to the Municipal Manager:
A60: ID Number | C60: ID Number
A61: Title | C61: Title
A62: Name | C62: Name
A63: Telephone number | C63: Telephone number
A64: Cell number | C64: Cell number
A65: Fax number | C65: Fax number
A66: E-mail address | C66: E-mail address
A68: Chief Financial Officer | C68: Secretary/PA to the Chief Financial Officer
A69: ID Number | C69: ID Number
A70: Title | C70: Title
A71: Name | C71: Name
A72: Telephone number | C72: Telephone number
A73: Cell number | C73: Cell number
A74: Fax number | C74: Fax number
A75: E-mail address | C75: E-mail address
A77: Official responsible for submitting financial information | C77: Official responsible for submitting financial information
A78: ID Number | C78: ID Number
A79: Title | C79: Title
A80: Name | C80: Name
A81: Telephone number | C81: Telephone number
A82: Cell number | C82: Cell number
A83: Fax number | C83: Fax number
A84: E-mail address | C84: E-mail address
A85: Official responsible for submitting financial information | C85: Official responsible for submitting financial information
A86: ID Number | C86: ID Number
A87: Title | C87: Title
A88: Name | C88: Name
A89: Telephone number | C89: Telephone number
A90: Cell number | C90: Cell number
A91: Fax number | C91: Fax number
A92: E-mail address | C92: E-mail address
A93: Official responsible for submitting financial information | C93: Official responsible for submitting financial information
A94: ID Number | C94: ID Number
A95: Title | C95: Title
A96: Name | C96: Name
A97: Telephone number | C97: Telephone number
A98: Cell number | C98: Cell number
A99: Fax number | C99: Fax number
A100: E-mail address | C100: E-mail address
A101: Official responsible for submitting financial information | C101: Official responsible for submitting financial information
A102: ID Number | C102: ID Number
A103: Title | C103: Title
A104: Name | C104: Name
A105: Telephone number | C105: Telephone number
A106: Cell number | C106: Cell number
A107: Fax number | C107: Fax number
A108: E-mail address | C108: E-mail address
A109: Official responsible for submitting financial information | C109: Official responsible for submitting financial information
A110: ID Number | C110: ID Number
A111: Title | C111: Title
A112: Name | C112: Name
A113: Telephone number | C113: Telephone number
A114: Cell number | C114: Cell number
A115: Fax number | C115: Fax number
A116: E-mail address | C116: E-mail address
A117: Official responsible for submitting financial information | C117: Official responsible for submitting financial information
A118: ID Number | C118: ID Number
A119: Title | C119: Title
A120: Name | C120: Name
A121: Telephone number | C121: Telephone number
A122: Cell number | C122: Cell number
A123: Fax number | C123: Fax number
A124: E-mail address | C124: E-mail address
A125: Official responsible for submitting financial information | C125: Official responsible for submitting financial information
A126: ID Number | C126: ID Number
A127: Title | C127: Title
A128: Name | C128: Name
A129: Telephone number | C129: Telephone number
A130: Cell number | C130: Cell number
A131: Fax number | C131: Fax number
A132: E-mail address | C132: E-mail address
A133: Official responsible for submitting financial information
A134: ID Number
A135: Title
A136: Name
A137: Telephone number
A138: Cell number
A139: Fax number
A140: E-mail address

Sheet C1-Sum
A1: =Muni2& " - "&s71sum& " - "&date -> KZN225 Msunduzi - Table C1 Monthly Budget Statement Summary - M01 July
A2: =desc -> Description | B2: =Head1 -> 2024/25 | C2: =Head2 -> Budget Year 2025/26
B3: =Head5 -> Audited Outcome | C3: =Head6 -> Original Budget | D3: =Head7 -> Adjusted Budget | E3: =Head38 -> Monthly actual | F3: =Head39 -> YearTD actual | G3: =Head40 -> YearTD budget | H3: =Head41 -> YTD variance | I3: =Head41 -> YTD variance | J3: =Head8 -> Full Year Forecast
A4: R thousands | I4: %
A5: Financial Performance
A6: Property rates | B6: =SUM('C4-FinPerf RE'!C24) -> 0 | C6: =SUM('C4-FinPerf RE'!D24) -> 1721664641 | D6: =SUM('C4-FinPerf RE'!E24) -> 0 | E6: =SUM('C4-FinPerf RE'!F24) -> 142227870.5 | F6: =SUM('C4-FinPerf RE'!G24) -> 142227870.5 | G6: =SUM('C4-FinPerf RE'!H24) -> 143472053.4 | H6: =F6-G6 -> -1244182.917 | I6: =IF(H6=0,"",H6/G6) -> -0.008671953088 | J6: =SUM('C4-FinPerf RE'!K24) -> 1721664641
A7: Service charges | B7: =SUM('C4-FinPerf RE'!C7:C10) -> 0 | C7: =SUM('C4-FinPerf RE'!D7:D10) -> 6259263838 | D7: =SUM('C4-FinPerf RE'!E7:E10) -> 0 | E7: =SUM('C4-FinPerf RE'!F7:F10) -> 478990231.8 | F7: =SUM('C4-FinPerf RE'!G7:G10) -> 478990231.8 | G7: =SUM('C4-FinPerf RE'!H7:H10) -> 521605319.9 | H7: =F7-G7 -> -42615088.02 | I7: =IF(H7=0,"",H7/G7) -> -0.08169987229 | J7: =SUM('C4-FinPerf RE'!K7:K10) -> 6259263838
A8: Investment revenue | B8: ='C4-FinPerf RE'!C15 -> 0 | C8: ='C4-FinPerf RE'!D15 -> 256056786 | D8: ='C4-FinPerf RE'!E15 -> 0 | E8: ='C4-FinPerf RE'!F15 -> 0 | F8: ='C4-FinPerf RE'!G15 -> 0 | G8: ='C4-FinPerf RE'!H15 -> 21338065.5 | H8: =F8-G8 -> -21338065.5 | I8: =IF(H8=0,"",H8/G8) -> -1 | J8: ='C4-FinPerf RE'!K15 -> 256056786
A9: Transfers and subsidies - Operational | B9: ='C4-FinPerf RE'!C28 -> 0 | C9: ='C4-FinPerf RE'!D28 -> 1017128645 | D9: ='C4-FinPerf RE'!E28 -> 0 | E9: ='C4-FinPerf RE'!F28 -> 367744494.6 | F9: ='C4-FinPerf RE'!G28 -> 367744494.6 | G9: ='C4-FinPerf RE'!H28 -> 84760720.42 | H9: 282983774.2 | I9: =IF(H9=0,"",H9/G9) -> 3.338619266 | J9: ='C4-FinPerf RE'!K28 -> 1017128645
A10: Other own revenue | B10: =+B11-SUM(B6:B9) -> 0 | C10: =+C11-SUM(C6:C9) -> 281391181 | D10: 0 | E10: 59305019.56 | F10: 59305019.56 | G10: 23449265.08 | H10: =F10-G10 -> 35855754.48 | I10: =IF(H10=0,"",H10/G10) -> 1.529077963 | J10: =SUM('C4-FinPerf RE'!K35)-SUM('C4-FinPerf RE'!K7:K10)-'C4-FinPerf RE'!K15-'C4-FinPerf RE'!K24-'C4-FinPerf RE'!K28 -> 281391181
A11: Total Revenue (excluding capital transfers and contributions) | B11: =+'C4-FinPerf RE'!C35 -> 0 | C11: =+'C4-FinPerf RE'!D35 -> 9535505091 | D11: =+'C4-FinPerf RE'!E35 -> 0 | E11: =+'C4-FinPerf RE'!F35 -> 1048267616 | F11: =+'C4-FinPerf RE'!G35 -> 1048267616 | G11: =+'C4-FinPerf RE'!H35 -> 794625424.3 | H11: =F11-G11 -> 253642192.2 | I11: =IF(H11=0,"",H11/G11) -> 0.319197177 | J11: =+'C4-FinPerf RE'!K35 -> 9535505091
A12: Employee costs | B12: ='C4-FinPerf RE'!C37 -> 0 | C12: ='C4-FinPerf RE'!D37 -> 1900194538 | D12: ='C4-FinPerf RE'!E37 -> 0 | E12: ='C4-FinPerf RE'!F37 -> 130193473.8 | F12: ='C4-FinPerf RE'!G37 -> 130193473.8 | G12: ='C4-FinPerf RE'!H37 -> 158349544.8 | H12: -28156071.03 | I12: -0.1778096114 | J12: ='C4-FinPerf RE'!K37 -> 1900194538
A13: Remuneration of Councillors | B13: ='C4-FinPerf RE'!C38 -> 0 | C13: ='C4-FinPerf RE'!D38 -> 70449647 | D13: ='C4-FinPerf RE'!E38 -> 0 | E13: ='C4-FinPerf RE'!F38 -> 4836489.64 | F13: ='C4-FinPerf RE'!G38 -> 4836489.64 | G13: ='C4-FinPerf RE'!H38 -> 5870803.917 | H13: -1034314.277 | I13: -0.1761793259 | J13: ='C4-FinPerf RE'!K38 -> 70449647
A14: Depreciation and amortisation | B14: ='C4-FinPerf RE'!C42 -> 0 | C14: ='C4-FinPerf RE'!D42 -> 390011595 | D14: ='C4-FinPerf RE'!E42 -> 0 | E14: ='C4-FinPerf RE'!F42 -> 28534714.51 | F14: ='C4-FinPerf RE'!G42 -> 28534714.51 | G14: ='C4-FinPerf RE'!H42 -> 32500966.25 | H14: -3966251.74 | I14: -0.1220348869 | J14: ='C4-FinPerf RE'!K42 -> 390011595
A15: Interest | B15: ='C4-FinPerf RE'!C43 -> 0 | C15: ='C4-FinPerf RE'!D43 -> 56180000 | D15: ='C4-FinPerf RE'!E43 -> 0 | E15: ='C4-FinPerf RE'!F43 -> 3602920.86 | F15: ='C4-FinPerf RE'!G43 -> 3602920.86 | G15: ='C4-FinPerf RE'!H43 -> 4681666.667 | H15: -1078745.807 | I15: -0.2304191826 | J15: ='C4-FinPerf RE'!K43 -> 56180000
A16: Inventory consumed and bulk purchases | B16: =SUM('C4-FinPerf RE'!C39+'C4-FinPerf RE'!C40) -> 0 | C16: =SUM('C4-FinPerf RE'!D39+'C4-FinPerf RE'!D40) -> 4517571878 | D16: =SUM('C4-FinPerf RE'!E39+'C4-FinPerf RE'!E40) -> 0 | E16: =SUM('C4-FinPerf RE'!F39+'C4-FinPerf RE'!F40) -> 459837533.1 | F16: =SUM('C4-FinPerf RE'!G39+'C4-FinPerf RE'!G40) -> 459837533.1 | G16: =SUM('C4-FinPerf RE'!H39+'C4-FinPerf RE'!H40) -> 376464323.2 | H16: 83373209.97 | I16: 0.2214637745 | J16: =SUM('C4-FinPerf RE'!K39+'C4-FinPerf RE'!K40) -> 4517571878
A17: Transfers and subsidies | B17: ='C4-FinPerf RE'!C45 -> 0 | C17: ='C4-FinPerf RE'!D45 -> 72456937 | D17: ='C4-FinPerf RE'!E45 -> 0 | E17: ='C4-FinPerf RE'!F45 -> 3283140.01 | F17: ='C4-FinPerf RE'!G45 -> 3283140.01 | G17: ='C4-FinPerf RE'!H45 -> 6038078.083 | H17: -2754938.073 | I17: -0.4562607564 | J17: ='C4-FinPerf RE'!K45 -> 72456937
A18: Other expenditure | B18: ='C4-FinPerf RE'!C51-SUM('C1-Sum'!B12:B17) -> 0 | C18: ='C4-FinPerf RE'!D51-SUM('C1-Sum'!C12:C17) -> 1456337339 | D18: ='C4-FinPerf RE'!E51-SUM('C1-Sum'!D12:D17) -> 0 | E18: ='C4-FinPerf RE'!F51-SUM('C1-Sum'!E12:E17) -> 41658270.86 | F18: ='C4-FinPerf RE'!G51-SUM('C1-Sum'!F12:F17) -> 41658270.86 | G18: ='C4-FinPerf RE'!H51-SUM('C1-Sum'!G12:G17) -> 121361444.9 | H18: -79703174.06 | I18: -0.6567421318 | J18: ='C4-FinPerf RE'!K51-SUM('C1-Sum'!J12:J17) -> 1456337339
A19: Total Expenditure | B19: =SUM(B12:B18) -> 0 | C19: 8463201934 | D19: 0 | E19: 671946542.8 | F19: 671946542.8 | G19: 705266827.8 | H19: -33320285.01 | I19: -0.0472449344 | J19: =SUM(J12:J18) -> 8463201934
A20: Surplus/(Deficit) | B20: =B11-B19 -> 0 | C20: 1072303157 | D20: 0 | E20: 376321073.7 | F20: 376321073.7 | G20: 89358596.46 | H20: 286962477.2 | I20: 3.211358376 | J20: =J11-J19 -> 1072303157
A21: Transfers and subsidies - capital (monetary allocations) | B21: ='C4-FinPerf RE'!C53 -> 0 | C21: ='C4-FinPerf RE'!D53 -> 378676520 | D21: ='C4-FinPerf RE'!E53 -> 0 | E21: ='C4-FinPerf RE'!F53 -> 11768158.06 | F21: ='C4-FinPerf RE'!G53 -> 11768158.06 | G21: ='C4-FinPerf RE'!H53 -> 31556376.67 | H21: -19788218.61 | I21: -0.6270751175 | J21: ='C4-FinPerf RE'!K53 -> 378676520
A22: Transfers and subsidies - capital (in-kind) | B22: ='C4-FinPerf RE'!C54 -> 0 | C22: ='C4-FinPerf RE'!D54 -> 0 | D22: ='C4-FinPerf RE'!E54 -> 0 | E22: ='C4-FinPerf RE'!F54 -> 0 | F22: ='C4-FinPerf RE'!G54 -> 0 | G22: ='C4-FinPerf RE'!H54 -> 0 | H22: 0 | J22: ='C4-FinPerf RE'!K54 -> 0
A23: Surplus/(Deficit) after capital transfers & contributions | B23: =B20+B21+B22 -> 0 | C23: 1450979677 | D23: 0 | E23: 388089231.7 | F23: 388089231.7 | G23: 120914973.1 | H23: 267174258.6 | I23: 2.209604416 | J23: =J20+J21+J22 -> 1450979677
A24: Share of surplus/ (deficit) of associate | B24: ='C4-FinPerf RE'!C62 -> 0 | C24: ='C4-FinPerf RE'!D62 -> 0 | D24: ='C4-FinPerf RE'!E62 -> 0 | E24: ='C4-FinPerf RE'!F62 -> 0 | F24: ='C4-FinPerf RE'!G62 -> 0 | G24: ='C4-FinPerf RE'!H62 -> 0 | H24: 0 | J24: ='C4-FinPerf RE'!K62 -> 0
A25: Surplus/ (Deficit) for the year | B25: =B23+B24 -> 0 | C25: 1450979677 | D25: 0 | E25: 388089231.7 | F25: 388089231.7 | G25: 120914973.1 | H25: 267174258.6 | I25: 2.209604416 | J25: =J23+J24 -> 1450979677
A27: Capital expenditure & funds sources
A28: Capital expenditure | B28: ='C5-Capex'!C40 -> 0 | C28: ='C5-Capex'!D40 -> 653856126.5 | D28: ='C5-Capex'!E40 -> 0 | E28: ='C5-Capex'!F40 -> 10544607.67 | F28: ='C5-Capex'!G40 -> 10544607.67 | G28: ='C5-Capex'!H40 -> 54488010.54 | H28: =F28-G28 -> -43943402.87 | I28: =IF(H28=0,"",H28/G28) -> -0.8064783873 | J28: ='C5-Capex'!K40 -> 653856126.5
A29: Capital transfers recognised | B29: ='C5-Capex'!C70 -> 0 | C29: ='C5-Capex'!D70 -> 378676520 | D29: ='C5-Capex'!E70 -> 0 | E29: ='C5-Capex'!F70 -> 10628808.31 | F29: ='C5-Capex'!G70 -> 10628808.31 | G29: ='C5-Capex'!H70 -> 31556376.67 | H29: -20927568.36 | I29: -0.6631803321 | J29: ='C5-Capex'!K70 -> 378676520
A31: Borrowing | B31: ='C5-Capex'!C72 -> 0 | C31: ='C5-Capex'!D72 -> 177179607 | D31: ='C5-Capex'!E72 -> 0 | E31: ='C5-Capex'!F72 -> 888583.34 | F31: ='C5-Capex'!G72 -> 888583.34 | G31: ='C5-Capex'!H72 -> 14764967.25 | H31: -13876383.91 | I31: -0.93981813 | J31: ='C5-Capex'!K72 -> 177179607
A32: Internally generated funds | B32: ='C5-Capex'!C73 -> 0 | C32: ='C5-Capex'!D73 -> 97999999.49 | D32: ='C5-Capex'!E73 -> 0 | E32: ='C5-Capex'!F73 -> -972783.98 | F32: ='C5-Capex'!G73 -> -972783.98 | G32: ='C5-Capex'!H73 -> 8166666.624 | H32: -9139450.604 | I32: -1.119116406 | J32: ='C5-Capex'!K73 -> 97999999.49
A33: Total sources of capital funds | B33: =+B29+B31+B32 -> 0 | C33: 653856126.5 | D33: 0 | E33: 10544607.67 | F33: 10544607.67 | G33: 54488010.54 | H33: -43943402.87 | I33: -0.8064783873 | J33: =+J29+J31+J32 -> 653856126.5
A35: Financial position
A36: Total current assets | B36: ='C6-FinPos'!C14 -> 0 | C36: ='C6-FinPos'!D14 -> 3039062316 | D36: ='C6-FinPos'!E14 -> 0 | F36: ='C6-FinPos'!F14 -> 2446515276 | J36: ='C6-FinPos'!G14 -> 3039062316
A37: Total non current assets | B37: ='C6-FinPos'!C26 -> 0 | C37: ='C6-FinPos'!D26 -> 9607646408 | D37: ='C6-FinPos'!E26 -> 0 | F37: ='C6-FinPos'!F26 -> 8969227353 | J37: ='C6-FinPos'!G26 -> 9607646408
A38: Total current liabilities | B38: ='C6-FinPos'!C38 -> 0 | C38: ='C6-FinPos'!D38 -> 2153458454 | D38: ='C6-FinPos'!E38 -> 0 | F38: ='C6-FinPos'!F38 -> 931386455.8 | J38: ='C6-FinPos'!G38 -> 2153458454
A39: Total non current liabilities | B39: ='C6-FinPos'!C44 -> 0 | C39: ='C6-FinPos'!D44 -> 3413768978 | D39: ='C6-FinPos'!E44 -> 0 | F39: ='C6-FinPos'!F44 -> 3519049298 | J39: ='C6-FinPos'!G44 -> 3413768978
A40: Community wealth/Equity | B40: ='C6-FinPos'!C51 -> 0 | C40: ='C6-FinPos'!D51 -> 7079481292 | D40: ='C6-FinPos'!E51 -> 0 | F40: ='C6-FinPos'!F51 -> 6965306876 | J40: ='C6-FinPos'!G51 -> 7079481292
A42: Cash flows
A43: Net cash from (used) operating | B43: ='C7-CFlow'!C18 -> 0 | C43: ='C7-CFlow'!D18 -> 885696869 | D43: ='C7-CFlow'!E18 -> 0 | E43: ='C7-CFlow'!F18 -> 0 | F43: ='C7-CFlow'!G18 -> 0 | G43: ='C7-CFlow'!H18 -> 73808072.42 | H43: =G43-F43 -> 73808072.42 | I43: =IF(H43=0,"",H43/G43) -> 1 | J43: ='C7-CFlow'!K18 -> 885696869
A44: Net cash from (used) investing | B44: ='C7-CFlow'!C28 -> 0 | C44: ='C7-CFlow'!D28 -> -653856126 | D44: ='C7-CFlow'!E28 -> 0 | E44: ='C7-CFlow'!F28 -> 0 | F44: ='C7-CFlow'!G28 -> 0 | G44: ='C7-CFlow'!H28 -> -54488010.5 | H44: =G44-F44 -> -54488010.5 | I44: =IF(H44=0,"",H44/G44) -> 1 | J44: ='C7-CFlow'!K28 -> -653856126
A45: Net cash from (used) financing | B45: ='C7-CFlow'!C37 -> 0 | C45: ='C7-CFlow'!D37 -> 87179607 | D45: ='C7-CFlow'!E37 -> 0 | E45: ='C7-CFlow'!F37 -> 0 | F45: ='C7-CFlow'!G37 -> 0 | G45: ='C7-CFlow'!H37 -> 7264967.25 | H45: =G45-F45 -> 7264967.25 | I45: =IF(H45=0,"",H45/G45) -> 1 | J45: ='C7-CFlow'!K37 -> 87179607
A46: Cash/cash equivalents at the month/year end | B46: ='C7-CFlow'!C41 -> 0 | C46: ='C7-CFlow'!D41 -> 685407153 | D46: ='C7-CFlow'!E41 -> 0 | E46: ='C7-CFlow'!F41 -> 0 | F46: ='C7-CFlow'!G41 -> 0 | G46: ='C7-CFlow'!H41 -> 392971832.2 | H46: =G46-F46 -> 392971832.2 | I46: =IF(H46=0,"",H46/G46) -> 1 | J46: ='C7-CFlow'!K41 -> 685407153
A48: Debtors & creditors analysis | B48: ='SC3'!C3 -> 0-30 Days | C48: ='SC3'!D3 -> 31-60 Days | D48: ='SC3'!E3 -> 61-90 Days | E48: ='SC3'!F3 -> 91-120 Days | F48: ='SC3'!G3 -> 121-150 Dys | G48: ='SC3'!H3 -> 151-180 Dys | H48: ='SC3'!I3 -> 181 Dys-1 Yr | I48: ='SC3'!J3 -> Over 1Yr | J48: Total
A49: =LEFT('SC3'!A4,20) -> Debtors Age Analysis
A50: ='SC3'!A14 -> Total By Income Source | B50: ='SC3'!C14 -> 886930593.8 | C50: ='SC3'!D14 -> 162156942 | D50: ='SC3'!E14 -> 142985326 | E50: ='SC3'!F14 -> 144993592.4 | F50: ='SC3'!G14 -> 140356264.1 | G50: ='SC3'!H14 -> 147941957.4 | H50: ='SC3'!I14 -> 839514109.9 | I50: ='SC3'!J14 -> 6332114705 | J50: ='SC3'!K14 -> 8796993490
A51: =LEFT('SC4'!A5,22) -> Creditors Age Analysis
A52: Total Creditors | B52: ='SC4'!C16 -> -2251575999 | C52: ='SC4'!D16 -> 245541299 | D52: ='SC4'!E16 -> 268480605.3 | E52: ='SC4'!F16 -> 133948510.7 | F52: ='SC4'!G16 -> 2094550776 | G52: ='SC4'!H16 -> 0 | H52: ='SC4'!I16 -> 0 | I52: ='SC4'!J16 -> 0 | J52: ='SC4'!K16 -> 490945192.1

Sheet C2-FinPerf SC
A1: =Muni2& " - "&S71A& " - "&date -> KZN225 Msunduzi - Table C2 Monthly Budget Statement - Financial Performance (functional classification) - M01 July
A2: =desc -> Description | B2: =head27 -> Ref | C2: =Head1 -> 2024/25 | D2: =Head2 -> Budget Year 2025/26
C3: =Head5 -> Audited Outcome | D3: =Head6 -> Original Budget | E3: =Head7 -> Adjusted Budget | F3: =Head38 -> Monthly actual | G3: =Head39 -> YearTD actual | H3: =Head40 -> YearTD budget | I3: =Head41 -> YTD variance | J3: =Head41 -> YTD variance | K3: =Head8 -> Full Year Forecast
A4: R thousands | B4: 1 | J4: %
A5: Revenue - Functional
A6: Governance and administration | C6: =SUM(C7:C9) -> 0 | D6: 2802816797 | E6: 0 | F6: 366200862.7 | G6: 366200862.7 | H6: 233568066.4 | I6: =G6-H6 -> 132632796.3 | J6: =IF(I6=0,"",I6/H6) -> 0.5678550082 | K6: =SUM(K7:K9) -> 2802816797
A7: Executive and council | C7: ='C2C'!C7 -> 0 | D7: ='C2C'!D7 -> 0 | E7: ='C2C'!E7 -> 0 | F7: ='C2C'!F7 -> 0 | G7: ='C2C'!G7 -> 0 | H7: ='C2C'!H7 -> 0 | I7: 0 | J7: =IF(I7=0,"",I7/H7) ->  | K7: ='C2C'!K7 -> 0
A8: Finance and administration | C8: ='C2C'!C10 -> 0 | D8: ='C2C'!D10 -> 2802816797 | E8: ='C2C'!E10 -> 0 | F8: ='C2C'!F10 -> 366200862.7 | G8: ='C2C'!G10 -> 366200862.7 | H8: ='C2C'!H10 -> 233568066.4 | I8: 132632796.3 | J8: 0.5678550082 | K8: ='C2C'!K10 -> 2802816797
A9: Internal audit | C9: ='C2C'!C24 -> 0 | D9: ='C2C'!D24 -> 0 | E9: ='C2C'!E24 -> 0 | F9: ='C2C'!F24 -> 0 | G9: ='C2C'!G24 -> 0 | H9: ='C2C'!H24 -> 0 | I9: 0 | K9: ='C2C'!K24 -> 0
A10: Community and public safety | C10: =SUM(C11:C15) -> 0 | D10: 90294634.13 | E10: 0 | F10: 4607310.13 | G10: 4607310.13 | H10: 7524552.844 | I10: -2917242.714 | J10: -0.3876964883 | K10: =SUM(K11:K15) -> 90294634.13
A11: Community and social services | C11: ='C2C'!C27 -> 0 | D11: ='C2C'!D27 -> 27827772 | E11: ='C2C'!E27 -> 0 | F11: ='C2C'!F27 -> 889648.67 | G11: ='C2C'!G27 -> 889648.67 | H11: ='C2C'!H27 -> 2318981 | I11: -1429332.33 | J11: -0.6163622427 | K11: ='C2C'!K27 -> 27827772
A12: Sport and recreation | C12: ='C2C'!C49 -> 0 | D12: ='C2C'!D49 -> 1223878 | E12: ='C2C'!E49 -> 0 | F12: ='C2C'!F49 -> 180539.22 | G12: ='C2C'!G49 -> 180539.22 | H12: ='C2C'!H49 -> 101989.8333 | I12: 78549.38667 | J12: 0.7701687913 | K12: ='C2C'!K49 -> 1223878
A13: Public safety | C13: ='C2C'!C55 -> 0 | D13: ='C2C'!D55 -> 16851132.13 | E13: ='C2C'!E55 -> 0 | F13: ='C2C'!F55 -> 1212048.06 | G13: ='C2C'!G55 -> 1212048.06 | H13: ='C2C'!H55 -> 1404261.01 | I13: -192212.9505 | J13: -0.1368783645 | K13: ='C2C'!K55 -> 16851132.13
A14: Housing | C14: ='C2C'!C64 -> 0 | D14: ='C2C'!D64 -> 44391852 | E14: ='C2C'!E64 -> 0 | F14: ='C2C'!F64 -> 2325074.18 | G14: ='C2C'!G64 -> 2325074.18 | H14: ='C2C'!H64 -> 3699321 | I14: -1374246.82 | J14: -0.3714862322 | K14: ='C2C'!K64 -> 44391852
A15: Health | C15: ='C2C'!C67 -> 0 | D15: ='C2C'!D67 -> 0 | E15: ='C2C'!E67 -> 0 | F15: ='C2C'!F67 -> 0 | G15: ='C2C'!G67 -> 0 | H15: ='C2C'!H67 -> 0 | I15: 0 | K15: ='C2C'!K67 -> 0
A16: Economic and environmental services | C16: =SUM(C17:C19) -> 0 | D16: 146237256 | E16: 0 | F16: 7836168.63 | G16: 7836168.63 | H16: 12186438 | I16: -4350269.37 | J16: -0.3569762854 | K16: =SUM(K17:K19) -> 146237256
A17: Planning and development | C17: ='C2C'!C76 -> 0 | D17: ='C2C'!D76 -> 40664552 | E17: ='C2C'!E76 -> 0 | F17: ='C2C'!F76 -> 2234385.8 | G17: ='C2C'!G76 -> 2234385.8 | H17: ='C2C'!H76 -> 3388712.667 | I17: -1154326.867 | J17: -0.3406387558 | K17: ='C2C'!K76 -> 40664552
A18: Road transport | C18: ='C2C'!C87 -> 0 | D18: ='C2C'!D87 -> 100000000 | E18: ='C2C'!E87 -> 0 | F18: ='C2C'!F87 -> 5567620.87 | G18: ='C2C'!G87 -> 5567620.87 | H18: ='C2C'!H87 -> 8333333.333 | I18: -2765712.463 | J18: -0.3318854956 | K18: ='C2C'!K87 -> 100000000
A19: Environmental protection | C19: ='C2C'!C92 -> 0 | D19: ='C2C'!D92 -> 5572704 | E19: ='C2C'!E92 -> 0 | F19: ='C2C'!F92 -> 34161.96 | G19: ='C2C'!G92 -> 34161.96 | H19: ='C2C'!H92 -> 464392 | I19: -430230.04 | J19: -0.9264372341 | K19: ='C2C'!K92 -> 5572704
A20: Trading services | C20: =SUM(C21:C24) -> 0 | D20: =SUM(D21:D24) -> 6818793885 | E20: 0 | F20: 676489194.4 | G20: 676489194.4 | H20: 568232823.8 | I20: 108256370.6 | J20: 0.1905141099 | K20: =SUM(K21:K24) -> 6818793885
A21: Energy sources | C21: ='C2C'!C100 -> 0 | D21: ='C2C'!D100 -> 4739882813 | E21: ='C2C'!E100 -> 0 | F21: ='C2C'!F100 -> 363284159.7 | G21: ='C2C'!G100 -> 363284159.7 | H21: ='C2C'!H100 -> 394990234.4 | I21: =G21-H21 -> -31706074.74 | J21: -0.08027052818 | K21: ='C2C'!K100 -> 4739882813
A22: Water management | C22: ='C2C'!C104 -> 0 | D22: ='C2C'!D104 -> 1365915970 | E22: ='C2C'!E104 -> 0 | F22: ='C2C'!F104 -> 239589150.7 | G22: ='C2C'!G104 -> 239589150.7 | H22: ='C2C'!H104 -> 113826330.8 | I22: =G22-H22 -> 125762819.9 | J22: 1.104865799 | K22: ='C2C'!K104 -> 1365915970
A23: Waste water management | C23: ='C2C'!C108 -> 0 | D23: ='C2C'!D108 -> 531643608 | E23: ='C2C'!E108 -> 0 | F23: ='C2C'!F108 -> 45097511.57 | G23: ='C2C'!G108 -> 45097511.57 | H23: ='C2C'!H108 -> 44303634 | I23: =G23-H23 -> 793877.57 | J23: 0.01791901698 | K23: ='C2C'!K108 -> 531643608
A24: Waste management | C24: ='C2C'!C113 -> 0 | D24: ='C2C'!D113 -> 181351494 | E24: ='C2C'!E113 -> 0 | F24: ='C2C'!F113 -> 28518372.4 | G24: ='C2C'!G113 -> 28518372.4 | H24: ='C2C'!H113 -> 15112624.5 | I24: =G24-H24 -> 13405747.9 | J24: 0.8870562423 | K24: ='C2C'!K113 -> 181351494
A25: Other | B25: 4 | C25: ='C2C'!C118 -> 0 | D25: ='C2C'!D118 -> 56039039 | E25: ='C2C'!E118 -> 0 | F25: ='C2C'!F118 -> 4902238.69 | G25: ='C2C'!G118 -> 4902238.69 | H25: ='C2C'!H118 -> 4669919.917 | I25: =G25-H25 -> 232318.7733 | J25: 0.04974791377 | K25: ='C2C'!K118 -> 56039039
A26: Total Revenue - Functional | B26: 2 | C26: =C6+C10+C16+C20+C25 -> 0 | D26: =D6+D10+D16+D20+D25 -> 9914181611 | E26: 0 | F26: 1060035775 | G26: 1060035775 | H26: 826181801 | I26: 233853973.6 | J26: 0.2830538912 | K26: =K6+K10+K16+K20+K25 -> 9914181611
A28: Expenditure - Functional
A29: Governance and administration | C29: =SUM(C30:C32) -> 0 | D29: 2246946875 | E29: 0 | F29: 82613225.08 | G29: 82613225.08 | H29: 187245572.9 | I29: =G29-H29 -> -104632347.8 | J29: =IF(I29=0,"",I29/H29) -> -0.5587974456 | K29: =SUM(K30:K32) -> 2246946875
A30: Executive and council | C30: ='C2C'!C129 -> 0 | D30: ='C2C'!D129 -> 844005698 | E30: ='C2C'!E129 -> 0 | F30: ='C2C'!F129 -> 9473432.92 | G30: ='C2C'!G129 -> 9473432.92 | H30: ='C2C'!H129 -> 70333808.17 | I30: -60860375.25 | J30: =IF(I30=0,"",I30/H30) -> -0.8653075503 | K30: ='C2C'!K129 -> 844005698
A31: Finance and administration | C31: ='C2C'!C132 -> 0 | D31: ='C2C'!D132 -> 1372046990 | E31: ='C2C'!E132 -> 0 | F31: ='C2C'!F132 -> 70903519.08 | G31: ='C2C'!G132 -> 70903519.08 | H31: ='C2C'!H132 -> 114337249.2 | I31: -43433730.09 | J31: -0.3798738417 | K31: ='C2C'!K132 -> 1372046990
A32: Internal audit | C32: ='C2C'!C146 -> 0 | D32: ='C2C'!D146 -> 30894187 | E32: ='C2C'!E146 -> 0 | F32: ='C2C'!F146 -> 2236273.08 | G32: ='C2C'!G146 -> 2236273.08 | H32: ='C2C'!H146 -> 2574515.583 | I32: -338242.5033 | J32: -0.1313810278 | K32: ='C2C'!K146 -> 30894187
A33: Community and public safety | C33: =SUM(C34:C38) -> 0 | D33: 543742970 | E33: 0 | F33: 41107427.15 | G33: 41107427.15 | H33: 45311914.17 | I33: -4204487.017 | J33: -0.09278987864 | K33: =SUM(K34:K38) -> 543742970
A34: Community and social services | C34: ='C2C'!C149 -> 0 | D34: ='C2C'!D149 -> 129613880 | E34: ='C2C'!E149 -> 0 | F34: ='C2C'!F149 -> 11109077.73 | G34: ='C2C'!G149 -> 11109077.73 | H34: ='C2C'!H149 -> 10801156.67 | I34: 307921.0633 | J34: 0.02850815638 | K34: ='C2C'!K149 -> 129613880
A35: Sport and recreation | C35: ='C2C'!C171 -> 0 | D35: ='C2C'!D171 -> 116559443 | E35: ='C2C'!E171 -> 0 | F35: ='C2C'!F171 -> 9779241.49 | G35: ='C2C'!G171 -> 9779241.49 | H35: ='C2C'!H171 -> 9713286.917 | I35: 65954.57333 | J35: 0.006790139517 | K35: ='C2C'!K171 -> 116559443
A36: Public safety | C36: ='C2C'!C177 -> 0 | D36: ='C2C'!D177 -> 197671704 | E36: ='C2C'!E177 -> 0 | F36: ='C2C'!F177 -> 14041157.92 | G36: ='C2C'!G177 -> 14041157.92 | H36: ='C2C'!H177 -> 16472642 | I36: -2431484.08 | J36: -0.1476074136 | K36: ='C2C'!K177 -> 197671704
A37: Housing | C37: ='C2C'!C186 -> 0 | D37: ='C2C'!D186 -> 90773667 | E37: ='C2C'!E186 -> 0 | F37: ='C2C'!F186 -> 5499712.18 | G37: ='C2C'!G186 -> 5499712.18 | H37: ='C2C'!H186 -> 7564472.25 | I37: -2064760.07 | J37: -0.2729549401 | K37: ='C2C'!K186 -> 90773667
A38: Health | C38: ='C2C'!C189 -> 0 | D38: ='C2C'!D189 -> 9124276 | E38: ='C2C'!E189 -> 0 | F38: ='C2C'!F189 -> 678237.83 | G38: ='C2C'!G189 -> 678237.83 | H38: ='C2C'!H189 -> 760356.3333 | I38: -82118.50333 | J38: -0.1080000254 | K38: ='C2C'!K189 -> 9124276
A39: Economic and environmental services | C39: =SUM(C40:C42) -> 0 | D39: 448357055 | E39: 0 | F39: 27688201.54 | G39: 27688201.54 | H39: 37363087.92 | I39: -9674886.377 | J39: -0.2589423657 | K39: =SUM(K40:K42) -> 448357055
A40: Planning and development | C40: ='C2C'!C198 -> 0 | D40: ='C2C'!D198 -> 148510104 | E40: ='C2C'!E198 -> 0 | F40: ='C2C'!F198 -> 8140172.78 | G40: ='C2C'!G198 -> 8140172.78 | H40: ='C2C'!H198 -> 12375842 | I40: -4235669.22 | J40: -0.3422530136 | K40: ='C2C'!K198 -> 148510104
A41: Road transport | C41: ='C2C'!C209 -> 0 | D41: ='C2C'!D209 -> 266192677 | E41: ='C2C'!E209 -> 0 | F41: ='C2C'!F209 -> 17702874.5 | G41: ='C2C'!G209 -> 17702874.5 | H41: ='C2C'!H209 -> 22182723.08 | I41: -4479848.583 | J41: -0.2019521484 | K41: ='C2C'!K209 -> 266192677
A42: Environmental protection | C42: ='C2C'!C214 -> 0 | D42: ='C2C'!D214 -> 33654274 | E42: ='C2C'!E214 -> 0 | F42: ='C2C'!F214 -> 1845154.26 | G42: ='C2C'!G214 -> 1845154.26 | H42: ='C2C'!H214 -> 2804522.833 | I42: -959368.5733 | J42: -0.3420790738 | K42: ='C2C'!K214 -> 33654274
A43: Trading services | C43: =SUM(C44:C47) -> 0 | D43: =SUM(D44:D47) -> 5164206060 | E43: 0 | F43: 514033283.2 | G43: 514033283.2 | H43: 430350505 | I43: 83682778.17 | J43: 0.1944526083 | K43: =SUM(K44:K47) -> 5164206060
A44: Energy sources | C44: ='C2C'!C222 -> 0 | D44: ='C2C'!D222 -> 3529418945 | E44: ='C2C'!E222 -> 0 | F44: ='C2C'!F222 -> 366793439.6 | G44: ='C2C'!G222 -> 366793439.6 | H44: ='C2C'!H222 -> 294118245.4 | I44: 72675194.23 | J44: 0.2470951577 | K44: ='C2C'!K222 -> 3529418945
A45: Water management | C45: ='C2C'!C226 -> 0 | D45: ='C2C'!D226 -> 1101523492 | E45: ='C2C'!E226 -> 0 | F45: ='C2C'!F226 -> 112821065.7 | G45: ='C2C'!G226 -> 112821065.7 | H45: ='C2C'!H226 -> 91793624.33 | I45: 21027441.4 | J45: 0.2290730053 | K45: ='C2C'!K226 -> 1101523492
A46: Waste water management | C46: ='C2C'!C230 -> 0 | D46: ='C2C'!D230 -> 410817076 | E46: ='C2C'!E230 -> 0 | F46: ='C2C'!F230 -> 25179924.38 | G46: ='C2C'!G230 -> 25179924.38 | H46: ='C2C'!H230 -> 34234756.33 | I46: -9054831.953 | J46: -0.2644923733 | K46: ='C2C'!K230 -> 410817076
A47: Waste management | C47: ='C2C'!C235 -> 0 | D47: ='C2C'!D235 -> 122446547 | E47: ='C2C'!E235 -> 0 | F47: ='C2C'!F235 -> 9238853.41 | G47: ='C2C'!G235 -> 9238853.41 | H47: ='C2C'!H235 -> 10203878.92 | I47: -965025.5067 | J47: -0.09457437848 | K47: ='C2C'!K235 -> 122446547
A48: Other | C48: ='C2C'!C240 -> 0 | D48: ='C2C'!D240 -> 59948974 | E48: ='C2C'!E240 -> 0 | F48: ='C2C'!F240 -> 6504405.88 | G48: ='C2C'!G240 -> 6504405.88 | H48: ='C2C'!H240 -> 4995747.833 | I48: 1508658.047 | J48: 0.3019884304 | K48: ='C2C'!K240 -> 59948974
A49: Total Expenditure - Functional | B49: 3 | C49: =C29+C33+C39+C43+C48 -> 0 | D49: =D29+D33+D39+D43+D48 -> 8463201934 | E49: 0 | F49: 671946542.8 | G49: 671946542.8 | H49: 705266827.8 | I49: -33320285.01 | J49: -0.0472449344 | K49: =K29+K33+K39+K43+K48 -> 8463201934
A50: Surplus/ (Deficit) for the year | C50: =C26-C49 -> 0 | D50: 1450979677 | E50: 0 | F50: 388089231.7 | G50: 388089231.7 | H50: 120914973.1 | I50: =I26-I49 -> 267174258.6 | J50: =IF(I50=0,"",I50/H50) -> 2.209604416 | K50: =K26-K49 -> 1450979677
A51: =head27a -> References
A52: 1. Government Finance Statistics Functions and Sub-functions are standardised to assist the compilation of national and international accounts for comparison purposes
A53: 2. Total Revenue by functional classification must reconcile to Total Operating Revenue shown in the Financial Performance Statement
A54: 3. Total Expenditure by functional classification must reconcile to total operating expenditure shown in 'Financial Performance Statement'
A55: 4. All amounts must be classified under a functional classification (modified GFS). The GFS function 'Other' is only for Abbatoirs, Air Transport, Licensing and Regulation, Markets and Tourism - and if used must be supported by footnotes. Nothing else may be placed under 'Other'. Assign associate share to relevant classification

Sheet C2C
A1: =Muni2& " - "&S71A& " - "&date -> KZN225 Msunduzi - Table C2 Monthly Budget Statement - Financial Performance (functional classification) - M01 July
A2: =desc -> Description | B2: =head27 -> Ref | C2: =Head1 -> 2024/25 | D2: =Head2 -> Budget Year 2025/26
C3: =Head5 -> Audited Outcome | D3: =Head6 -> Original Budget | E3: =Head7 -> Adjusted Budget | F3: =Head38 -> Monthly actual | G3: =Head39 -> YearTD actual | H3: =Head40 -> YearTD budget | I3: =Head41 -> YTD variance | J3: =Head41 -> YTD variance | K3: =Head8 -> Full Year Forecast
A4: R thousands | B4: 1 | J4: %
A5: Revenue - Functional
A6: Municipal governance and administration | C6: =C7+C10+C24 -> 0 | D6: 2802816797 | E6: 0 | F6: 366200862.7 | G6: 366200862.7 | H6: 233568066.4 | I6: =G6-H6 -> 132632796.3 | J6: =IF(I6=0,"",I6/H6) -> 0.5678550082 | K6: =K7+K10+K24 -> 2802816797
A7: Executive and council | C7: =SUM(C8:C9) -> 0 | D7: =SUM(D8:D9) -> 0 | E7: 0 | F7: 0 | G7: 0 | H7: 0 | I7: =G7-H7 -> 0 | J7: =IF(I7=0,"",I7/H7) ->  | K7: 0
A8: Mayor and Council | G8: 0 | I8: 0
A9: Municipal Manager, Town Secretary and Chief Executive | F9: 0 | G9: 0 | I9: 0 | K9: =D9 -> 0
A10: Finance and administration | C10: =SUM(C11:C23) -> 0 | D10: 2802816797 | E10: 0 | F10: 366200862.7 | G10: 366200862.7 | H10: 233568066.4 | I10: 132632796.3 | J10: 0.5678550082 | K10: =SUM(K11:K23) -> 2802816797
A11: Administrative and Corporate Support | D11: 0 | F11: 0 | G11: 0 | I11: 0 | K11: =D11 -> 0
A12: Asset Management | D12: 4626598 | F12: 0 | G12: 0 | H12: =D12/12*Instructions!X$14 -> 385549.8333 | I12: -385549.8333 | J12: -1 | K12: 4626598
A13: Finance | D13: 950128443 | F13: 364426635.7 | G13: 364426635.7 | H13: =D13/12*Instructions!X$14 -> 79177370.25 | I13: 285249265.4 | J13: 3.602661525 | K13: 950128443
A14: Fleet Management | F14: 0 | G14: 0 | H14: =D14/12*Instructions!X$14 -> 0 | I14: 0 | K14: 0
A15: Human Resources | D15: 9744480 | F15: 654750.84 | G15: 654750.84 | H15: =D15/12*Instructions!X$14 -> 812040 | I15: -157289.16 | J15: -0.1936963204 | K15: 9744480
A16: Information Technology | F16: 0 | G16: 0 | H16: =D16/12*Instructions!X$14 -> 0 | I16: 0 | K16: 0
A17: Legal Services | D17: 1906229 | F17: 0 | G17: 0 | H17: =D17/12*Instructions!X$14 -> 158852.4167 | I17: -158852.4167 | J17: -1 | K17: 1906229
A18: Marketing, Customer Relations, Publicity and Media Co-ordination | F18: 0 | G18: 0 | H18: =D18/12*Instructions!X$14 -> 0 | I18: 0 | K18: 0
A19: Property Services | D19: 1836075148 | F19: 1119330.94 | G19: 1119330.94 | H19: =D19/12*Instructions!X$14 -> 153006262.3 | I19: -151886931.4 | J19: -0.9926844109 | K19: 1836075148
A20: Risk Management | F20: 0 | G20: 0 | H20: =D20/12*Instructions!X$14 -> 0 | I20: 0 | K20: 0
A21: Security Services | F21: 0 | G21: 0 | H21: =D21/12*Instructions!X$14 -> 0 | I21: 0 | K21: 0
A22: Supply Chain Management | D22: 335899 | F22: 145.22 | G22: 145.22 | H22: =D22/12*Instructions!X$14 -> 27991.58333 | I22: -27846.36333 | J22: -0.9948120119 | K22: 335899
A23: Valuation Service | D23: 0 | F23: 0 | G23: 0 | H23: =D23/12*Instructions!X$14 -> 0 | I23: 0 | K23: 0
A24: Internal audit | C24: =SUM(C25:C25) -> 0 | D24: 0 | E24: 0 | F24: 0 | G24: 0 | H24: 0 | I24: 0 | K24: =SUM(K25:K25) -> 0
A25: Governance Function | I25: 0
A26: Community and public safety | C26: =C27+C49+C55+C64+C67 -> 0 | D26: =D27+D49+D55+D64+D67 -> 90294634.13 | E26: =E27+E49+E55+E64+E67 -> 0 | F26: =F27+F49+F55+F64+F67 -> 4607310.13 | G26: 4607310.13 | H26: 7524552.844 | I26: -2917242.714 | J26: -0.3876964883 | K26: =K27+K49+K55+K64+K67 -> 90294634.13
A27: Community and social services | C27: =SUM(C28:C48) -> 0 | D27: 27827772 | E27: 0 | F27: 889648.67 | G27: 889648.67 | H27: 2318981 | I27: -1429332.33 | J27: -0.6163622427 | K27: =SUM(K28:K48) -> 27827772
A28: Aged Care | D28: 0 | F28: 0 | G28: 0 | H28: =D28/12*Instructions!X$14 -> 0 | I28: 0
A29: Agricultural | D29: 0 | F29: 0 | G29: 0 | H29: =D29/12*Instructions!X$14 -> 0 | I29: 0
A30: Animal Care and Diseases | D30: 0 | F30: 0 | G30: 0 | H30: =D30/12*Instructions!X$14 -> 0 | I30: 0
A31: Cemeteries, Funeral Parlours and Crematoriums | D31: 5457889 | F31: 376223.42 | G31: 376223.42 | H31: =D31/12*Instructions!X$14 -> 454824.0833 | I31: -78600.66333 | J31: -0.1728155263 | K31: =D31 -> 5457889
A32: Child Care Facilities | F32: 0 | G32: 0 | H32: =D32/12*Instructions!X$14 -> 0 | I32: 0
A33: Community Halls and Facilities | D33: 4741397 | F33: 70248.41 | G33: 70248.41 | H33: =D33/12*Instructions!X$14 -> 395116.4167 | I33: -324868.0067 | J33: -0.8222083238 | K33: =D33 -> 4741397
A34: Consumer Protection | F34: 0 | G34: 0 | H34: =D34/12*Instructions!X$14 -> 0 | I34: 0
A35: Cultural Matters | F35: 0 | G35: 0 | H35: =D35/12*Instructions!X$14 -> 0 | I35: 0
A36: Disaster Management | F36: 0 | G36: 0 | H36: =D36/12*Instructions!X$14 -> 0 | I36: 0
A37: Education | F37: 0 | G37: 0 | H37: =D37/12*Instructions!X$14 -> 0 | I37: 0
A38: Indigenous and Customary Law | F38: 0 | G38: 0 | H38: =D38/12*Instructions!X$14 -> 0 | I38: 0
A39: Industrial Promotion | F39: 0 | G39: 0 | H39: =D39/12*Instructions!X$14 -> 0 | I39: 0
A40: Language Policy | F40: 0 | G40: 0 | H40: =D40/12*Instructions!X$14 -> 0 | I40: 0
A41: Libraries and Archives | D41: 16382486 | F41: 420303.45 | G41: 420303.45 | H41: =D41/12*Instructions!X$14 -> 1365207.167 | I41: -944903.7167 | J41: -0.6921321099 | K41: =D41 -> 16382486
A42: Literacy Programmes | F42: 0 | G42: 0 | H42: =D42/12*Instructions!X$14 -> 0 | I42: 0 | K42: =D42 -> 0
A43: Media Services | F43: 0 | G43: 0 | H43: =D43/12*Instructions!X$14 -> 0 | I43: 0
A44: Museums and Art Galleries | D44: 1246000 | F44: 22873.39 | G44: 22873.39 | H44: =D44/12*Instructions!X$14 -> 103833.3333 | I44: -80959.94333 | J44: -0.7797105297 | K44: =D44 -> 1246000
A45: Population Development | F45: 0 | G45: 0 | H45: =D45/12*Instructions!X$14 -> 0 | I45: 0
A46: Provincial Cultural Matters | D46: 0 | F46: 0 | G46: 0 | H46: =D46/12*Instructions!X$14 -> 0 | I46: 0
A47: Theatres | D47: 0 | F47: 0 | G47: 0 | H47: =D47/12*Instructions!X$14 -> 0 | I47: 0
A48: Zoo's | D48: 0 | F48: 0 | G48: 0 | H48: =D48/12*Instructions!X$14 -> 0 | I48: 0
A49: Sport and recreation | C49: =SUM(C50:C54) -> 0 | D49: =SUM(D50:D54) -> 1223878 | E49: 0 | F49: 180539.22 | G49: 180539.22 | H49: 101989.8333 | I49: 78549.38667 | J49: 0.7701687913 | K49: 1223878
A50: Beaches and Jetties | F50: 0 | G50: 0 | H50: =D50/12*1 -> 0 | I50: 0
A51: Casinos, Racing, Gambling, Wagering | F51: 0 | G51: 0 | H51: 0 | I51: 0
A52: Community Parks (including Nurseries) | F52: 0 | G52: 0 | H52: 0 | I52: 0
A53: Recreational Facilities | D53: 1223878 | F53: 180539.22 | G53: 180539.22 | H53: 101989.8333 | I53: 78549.38667 | J53: 0.7701687913 | K53: =D53 -> 1223878
A54: Sports Grounds and Stadiums | F54: 0 | G54: 0 | H54: 0 | I54: 0
A55: Public safety | C55: =SUM(C56:C63) -> 0 | D55: =SUM(D56:D63) -> 16851132.13 | E55: 0 | F55: 1212048.06 | G55: 1212048.06 | H55: 1404261.01 | I55: -192212.9505 | J55: -0.1368783645 | K55: 16851132.13
A56: Civil Defence | D56: 0 | F56: 0 | G56: 0 | H56: =D56/12*1 -> 0 | I56: 0
A57: Cleansing | D57: 0 | F57: 0 | G57: 0 | H57: 0 | I57: 0
A58: Control of Public Nuisances | D58: 0 | F58: 0 | G58: 0 | H58: 0 | I58: =G58-H58 -> 0 | J58: =IF(I58=0,"",I58/H58) -> 
A59: Fencing and Fences | D59: 0 | F59: 0 | G59: 0 | H59: 0 | I59: 0
A60: Fire Fighting and Protection | D60: 2087793.128 | F60: 46503.88 | G60: 46503.88 | H60: 173982.7607 | I60: -127478.8807 | J60: -0.7327098396 | K60: =D60 -> 2087793.128
A61: Licensing and Control of Animals | D61: 0 | F61: 0 | G61: 0 | H61: 0 | I61: =G61-H61 -> 0 | J61: =IF(I61=0,"",I61/H61) -> 
A62: Police Forces, Traffic and Street Parking Control | D62: 14763339 | F62: 1165544.18 | G62: 1165544.18 | H62: 1230278.25 | I62: =G62-H62 -> -64734.06985 | J62: =IF(I62=0,"",I62/H62) -> -0.052617422 | K62: =D62 -> 14763339
A63: Pounds | D63: 0 | F63: 0 | G63: 0 | H63: 0 | I63: 0
A64: Housing | C64: =SUM(C65:C66) -> 0 | D64: 44391852 | E64: 0 | F64: 2325074.18 | G64: 2325074.18 | H64: 3699321 | I64: =G64-H64 -> -1374246.82 | J64: =IF(I64=0,"",I64/H64) -> -0.3714862322 | K64: =SUM(K65:K66) -> 44391852
A65: Housing | D65: 44391852 | F65: 2325074.18 | G65: 2325074.18 | H65: =D65/12*1 -> 3699321 | I65: =G65-H65 -> -1374246.82 | J65: =IF(I65=0,"",I65/H65) -> -0.3714862322 | K65: =D65 -> 44391852
A66: Informal Settlements | F66: 0 | G66: 0 | H66: 0 | I66: =G66-H66 -> 0 | J66: =IF(I66=0,"",I66/H66) -> 
A67: Health | C67: =SUM(C68:C74) -> 0 | D67: 0 | E67: 0 | F67: 0 | G67: 0 | H67: 0 | I67: 0 | K67: =SUM(K68:K74) -> 0
A68: Ambulance | F68: 0 | G68: 0 | H68: =D68/12*1 -> 0 | I68: 0
A69: Health Services | F69: 0 | G69: 0 | H69: 0 | I69: 0
A70: Laboratory Services | F70: 0 | G70: 0 | H70: 0 | I70: =G70-H70 -> 0 | J70: =IF(I70=0,"",I70/H70) -> 
A71: Food Control | F71: 0 | G71: 0 | H71: 0 | I71: =G71-H71 -> 0 | J71: =IF(I71=0,"",I71/H71) -> 
A72: Health Surveillance and Prevention of Communicable Diseases including immunizations | F72: 0 | G72: 0 | H72: 0 | I72: 0
A73: Vector Control | F73: 0 | G73: 0 | H73: 0 | I73: 0
A74: Chemical Safety | F74: 0 | G74: 0 | H74: 0 | I74: 0
A75: Economic and environmental services | C75: =C76+C87+C92 -> 0 | D75: =D76+D87+D92 -> 146237256 | E75: =E76+E87+E92 -> 0 | F75: 7836168.63 | G75: 7836168.63 | H75: 12186438 | I75: -4350269.37 | J75: -0.3569762854 | K75: =K76+K87+K92 -> 146237256
A76: Planning and development | C76: =SUM(C77:C86) -> 0 | D76: 40664552 | E76: 0 | F76: 2234385.8 | G76: 2234385.8 | H76: 3388712.667 | I76: -1154326.867 | J76: -0.3406387558 | K76: =SUM(K77:K86) -> 40664552
A77: Billboards | D77: 0 | F77: 0 | G77: 0 | H77: =D77/12*1 -> 0 | I77: =G77-H77 -> 0 | J77: =IF(I77=0,"",I77/H77) -> 
A78: Corporate Wide Strategic Planning (IDPs, LEDs) | D78: 0 | F78: 0 | G78: 0 | H78: 0 | I78: 0
A79: Central City Improvement District | D79: 0 | F79: 0 | G79: 0 | H79: 0 | I79: 0
A80: Development Facilitation | D80: 0 | F80: 0 | G80: 0 | H80: 0 | I80: =G80-H80 -> 0 | J80: =IF(I80=0,"",I80/H80) -> 
A81: Economic Development/Planning | D81: 30000000 | F81: 0 | G81: 0 | H81: 2500000 | I81: =G81-H81 -> -2500000 | J81: =IF(I81=0,"",I81/H81) -> -1 | K81: =D81 -> 30000000
A82: Regional Planning and Development | F82: 0 | G82: 0 | H82: 0 | I82: =G82-H82 -> 0 | J82: =IF(I82=0,"",I82/H82) -> 
A83: Town Planning, Building Regulations and Enforcement, and City Engineer | D83: 10664552 | F83: 2234385.8 | G83: 2234385.8 | H83: 888712.6667 | I83: =G83-H83 -> 1345673.133 | J83: =IF(I83=0,"",I83/H83) -> 1.514182462 | K83: =D83 -> 10664552
A84: Project Management Unit | D84: 0 | F84: 0 | G84: 0 | H84: 0 | I84: 0
A85: Provincial Planning | D85: 0 | F85: 0 | G85: 0 | H85: 0 | I85: 0
A86: Support to Local Municipalities | D86: 0 | F86: 0 | G86: 0 | H86: 0 | I86: 0
A87: Road transport | C87: =SUM(C88:C91) -> 0 | D87: 100000000 | E87: 0 | F87: 5567620.87 | G87: 5567620.87 | H87: 8333333.333 | I87: -2765712.463 | J87: -0.3318854956 | K87: =SUM(K88:K91) -> 100000000
A88: Public Transport | D88: 0 | F88: 0 | G88: 0 | H88: =D88/12*1 -> 0 | I88: 0
A89: Road and Traffic Regulation | D89: 0 | F89: 0 | G89: 0 | H89: 0 | I89: 0
A90: Roads | D90: 100000000 | F90: 5567620.87 | G90: 5567620.87 | H90: 8333333.333 | I90: -2765712.463 | J90: -0.3318854956 | K90: =D90 -> 100000000
A91: Taxi Ranks | D91: 0 | F91: 0 | G91: 0 | H91: 0 | I91: 0
A92: Environmental protection | C92: =SUM(C93:C98) -> 0 | D92: =SUM(D93:D98) -> 5572704 | E92: 0 | F92: 34161.96 | G92: 34161.96 | H92: 464392 | I92: -430230.04 | J92: -0.9264372341 | K92: 5572704
A93: Biodiversity and Landscape | F93: 0 | G93: 0 | H93: =D93/12*1 -> 0 | I93: 0
A94: Coastal Protection | F94: 0 | G94: 0 | H94: 0 | I94: 0
A95: Indigenous Forests | F95: 0 | G95: 0 | H95: 0 | I95: =G95-H95 -> 0 | J95: =IF(I95=0,"",I95/H95) -> 
A96: Nature Conservation | F96: 0 | G96: 0 | H96: 0 | I96: =G96-H96 -> 0 | J96: =IF(I96=0,"",I96/H96) -> 
A97: Pollution Control | D97: 5572704 | F97: 34161.96 | G97: 34161.96 | H97: 464392 | I97: -430230.04 | J97: -0.9264372341 | K97: =D97 -> 5572704
A98: Soil Conservation | F98: 0 | G98: 0 | H98: 0 | I98: 0
A99: Trading services | C99: =C100+C104+C108+C113 -> 0 | D99: =D100+D104+D108+D113 -> 6818793885 | E99: =E100+E104+E108+E113 -> 0 | F99: =F100+F104+F108+F113 -> 676489194.4 | G99: =G100+G104+G108+G113 -> 676489194.4 | H99: 568232823.8 | I99: =I100+I104+I108+I113 -> 108256370.6 | J99: 0.1905141099 | K99: =K100+K104+K108+K113 -> 6818793885
A100: Energy sources | C100: =SUM(C101:C103) -> 0 | D100: =SUM(D101:D103) -> 4739882813 | E100: 0 | F100: 363284159.7 | G100: 363284159.7 | H100: 394990234.4 | I100: -31706074.74 | J100: -0.08027052818 | K100: 4739882813
A101: Electricity | D101: 4739882813 | F101: 363284159.7 | G101: 363284159.7 | H101: =D101/12*1 -> 394990234.4 | I101: -31706074.74 | J101: -0.08027052818 | K101: =D101 -> 4739882813
A102: Street Lighting and Signal Systems | F102: 0 | G102: 0 | H102: 0 | I102: =G102-H102 -> 0 | J102: =IF(I102=0,"",I102/H102) -> 
A103: Nonelectric Energy | F103: 0 | G103: 0 | H103: 0 | I103: 0
A104: Water management | C104: =SUM(C105:C107) -> 0 | D104: =SUM(D105:D107) -> 1365915970 | E104: 0 | F104: 239589150.7 | G104: 239589150.7 | H104: 113826330.8 | I104: 125762819.9 | J104: 1.104865799 | K104: 1365915970
A105: Water Treatment | F105: 0 | G105: 0 | H105: =D105/12*1 -> 0 | I105: 0
A106: Water Distribution | D106: 1365915970 | F106: 239589150.7 | G106: 239589150.7 | H106: 113826330.8 | I106: =G106-H106 -> 125762819.9 | J106: =IF(I106=0,"",I106/H106) -> 1.104865799 | K106: =D106 -> 1365915970
A107: Water Storage | F107: 0 | G107: 0 | H107: 0 | I107: 0
A108: Waste water management | C108: =SUM(C109:C112) -> 0 | D108: =SUM(D109:D112) -> 531643608 | E108: 0 | F108: 45097511.57 | G108: 45097511.57 | H108: 44303634 | I108: 793877.57 | J108: 0.01791901698 | K108: 531643608
A109: Public Toilets | F109: 0 | G109: 0 | H109: =D109/12*1 -> 0 | I109: 0
A110: Sewerage | D110: 531643608 | F110: 45097511.57 | G110: 45097511.57 | H110: 44303634 | I110: 793877.57 | J110: 0.01791901698 | K110: =D110 -> 531643608
A111: Storm Water Management | F111: 0 | G111: 0 | H111: 0 | I111: =G111-H111 -> 0 | J111: =IF(I111=0,"",I111/H111) -> 
A112: Waste Water Treatment | F112: 0 | G112: 0 | H112: 0 | I112: 0
A113: Waste management | C113: =SUM(C114:C117) -> 0 | D113: 181351494 | E113: 0 | F113: 28518372.4 | G113: 28518372.4 | H113: 15112624.5 | I113: 13405747.9 | J113: 0.8870562423 | K113: =SUM(K114:K117) -> 181351494
A114: Recycling | F114: 0 | G114: 0 | H114: =D114/12*1 -> 0 | I114: =G114-H114 -> 0 | J114: =IF(I114=0,"",I114/H114) -> 
A115: Solid Waste Disposal (Landfill Sites) | F115: 13013559.27 | G115: 13013559.27 | H115: 0 | I115: =G115-H115 -> 13013559.27 | J115: =IF(I115=0,"",I115/H115) -> 
A116: Solid Waste Removal | D116: 181351494 | F116: 15504813.13 | G116: 15504813.13 | H116: 15112624.5 | I116: 392188.63 | J116: 0.02595106032 | K116: =D116 -> 181351494
A117: Street Cleaning | F117: 0 | G117: 0 | H117: 0 | I117: =G117-H117 -> 0 | J117: =IF(I117=0,"",I117/H117) -> 
A118: Other | C118: =SUM(C119:C124) -> 0 | D118: =SUM(D119:D124) -> 56039039 | E118: 0 | F118: 4902238.69 | G118: 4902238.69 | H118: 4669919.917 | I118: 232318.7733 | J118: 0.04974791377 | K118: 56039039
A119: Abattoirs | D119: 0 | F119: 0 | G119: 0 | H119: =D119/12*1 -> 0 | I119: 0
A120: Air Transport | D120: 24431490 | F120: 2896065.42 | G120: 2896065.42 | H120: 2035957.5 | I120: 860107.92 | J120: 0.422458681 | K120: =D120 -> 24431490
A121: Forestry | F121: 0 | G121: 0 | H121: 0 | I121: =G121-H121 -> 0 | J121: =IF(I121=0,"",I121/H121) -> 
A122: Licensing and Regulation | D122: 1031714 | F122: 72821.96 | G122: 72821.96 | H122: 85976.16667 | I122: -13154.20667 | J122: -0.1529982922 | K122: =D122 -> 1031714
A123: Markets | D123: 30575835 | F123: 1933351.31 | G123: 1933351.31 | H123: 2547986.25 | I123: -614634.94 | J123: -0.2412238057 | K123: =D123 -> 30575835
A124: Tourism | D124: 0 | F124: 0 | G124: 0 | H124: 0 | I124: =G124-H124 -> 0 | J124: =IF(I124=0,"",I124/H124) -> 
A125: ="Total "&A5 -> Total Revenue - Functional | B125: 2 | C125: =C6+C26+C75+C99+C118 -> 0 | D125: =D6+D26+D75+D99+D118 -> 9914181611 | E125: 0 | F125: 1060035775 | G125: 1060035775 | H125: 826181801 | I125: =G125-H125 -> 233853973.6 | J125: =IF(I125=0,"",I125/H125) -> 0.2830538912 | K125: =K6+K26+K75+K99+K118 -> 9914181611
A127: Expenditure - Functional
A128: =A6 -> Municipal governance and administration | C128: =C129+C132+C146 -> 0 | D128: =D129+D132+D146 -> 2246946875 | E128: =E129+E132+E146 -> 0 | F128: =F129+F132+F146 -> 82613225.08 | G128: 82613225.08 | H128: =H129+H132+H146 -> 187245572.9 | I128: =G128-H128 -> -104632347.8 | J128: =IF(I128=0,"",I128/H128) -> -0.5587974456 | K128: =K129+K132+K146 -> 2246946875
A129: Executive and council | C129: =SUM(C130:C131) -> 0 | D129: 844005698 | E129: 0 | F129: 9473432.92 | G129: 9473432.92 | H129: 70333808.17 | I129: -60860375.25 | J129: -0.8653075503 | K129: 844005698
A130: Mayor and Council | D130: 103028457 | F130: 6602763.98 | G130: 6602763.98 | H130: =D130/12*1 -> 8585704.75 | I130: -1982940.77 | J130: -0.2309584161 | K130: =D130 -> 103028457
A131: Municipal Manager, Town Secretary and Chief Executive | D131: 740977241 | F131: 2870668.94 | G131: 2870668.94 | H131: 61748103.42 | I131: -58877434.48 | J131: -0.9535100063 | K131: 740977241
A132: Finance and administration | C132: =SUM(C133:C145) -> 0 | D132: 1372046990 | E132: 0 | F132: 70903519.08 | G132: 70903519.08 | H132: 114337249.2 | I132: -43433730.09 | J132: -0.3798738417 | K132: =SUM(K133:K145) -> 1372046990
A133: Administrative and Corporate Support | D133: 82197081 | F133: 6630483.89 | G133: 6630483.89 | H133: =D133/12*1 -> 6849756.75 | I133: -219272.86 | J133: -0.03201177326 | K133: =D133 -> 82197081
A134: Asset Management | D134: 74731761 | F134: 4844711.48 | G134: 4844711.48 | H134: 6227646.75 | I134: -1382935.27 | J134: -0.222063859 | K134: 74731761
A135: Finance | D135: 770774195 | F135: 17110280.88 | G135: 17110280.88 | H135: 64231182.92 | I135: -47120902.04 | J135: -0.7336141092 | K135: 770774195
A136: Fleet Management | F136: 0 | G136: 0 | H136: 0 | I136: 0 | K136: 0
A137: Human Resources | D137: 92843175 | F137: 24108926.02 | G137: 24108926.02 | H137: 7736931.25 | I137: 16371994.77 | J137: 2.116083786 | K137: 92843175
A138: Information Technology | D138: 66740994 | F138: 2383935.99 | G138: 2383935.99 | H138: 5561749.5 | I138: -3177813.51 | J138: -0.5713694063 | K138: 66740994
A139: Legal Services | D139: 16867430 | F139: 962138.26 | G139: 962138.26 | H139: 1405619.167 | I139: -443480.9067 | J139: -0.3155057338 | K139: 16867430
A140: Marketing, Customer Relations, Publicity and Media Co-ordination | D140: 1294566 | F140: 198745.57 | G140: 198745.57 | H140: 107880.5 | I140: 90865.07 | J140: 0.8422752027 | K140: 1294566
A141: Property Services | D141: 44670094 | F141: 4740468.14 | G141: 4740468.14 | H141: 3722507.833 | I141: 1017960.307 | J141: 0.2734608904 | K141: 44670094
A142: Risk Management | F142: 0 | G142: 0 | H142: 0 | I142: 0 | K142: 0
A143: Security Services | D143: 127219597 | F143: 6002280.14 | G143: 6002280.14 | H143: 10601633.08 | I143: -4599352.943 | J143: -0.4338343826 | K143: 127219597
A144: Supply Chain Management | D144: 94708097 | F144: 3921548.71 | G144: 3921548.71 | H144: 7892341.417 | I144: -3970792.707 | J144: -0.503119733 | K144: 94708097
A145: Valuation Service | F145: 0 | G145: 0 | H145: 0 | I145: 0 | K145: 0
A146: Internal audit | C146: =SUM(C147:C147) -> 0 | D146: 30894187 | E146: 0 | F146: 2236273.08 | G146: 2236273.08 | H146: 2574515.583 | I146: -338242.5033 | J146: -0.1313810278 | K146: =SUM(K147:K147) -> 30894187
A147: Governance Function | D147: 30894187 | F147: 2236273.08 | G147: 2236273.08 | H147: =D147/12*1 -> 2574515.583 | I147: -338242.5033 | J147: -0.1313810278 | K147: =D147 -> 30894187
A148: Community and public safety | C148: =C149+C171+C177+C186+C189 -> 0 | D148: =D149+D171+D177+D186+D189 -> 543742970 | E148: 0 | F148: 41107427.15 | G148: 41107427.15 | H148: 45311914.17 | I148: -4204487.017 | J148: -0.09278987864 | K148: =K149+K171+K177+K186+K189 -> 543742970
A149: Community and social services | C149: =SUM(C150:C170) -> 0 | D149: 129613880 | E149: 0 | F149: 11109077.73 | G149: 11109077.73 | H149: 10801156.67 | I149: 307921.0633 | J149: 0.02850815638 | K149: =SUM(K150:K170) -> 129613880
A150: Aged Care | D150: 472 | F150: 28.77 | G150: 28.77 | H150: =D150/12*1 -> 39.33333333 | I150: -10.56333333 | J150: -0.268559322 | K150: =D150 -> 472
A151: Agricultural | F151: 0 | G151: 0 | H151: 0 | I151: 0
A152: Animal Care and Diseases | F152: 0 | G152: 0 | H152: 0 | I152: 0
A153: Cemeteries, Funeral Parlours and Crematoriums | D153: 35684749 | F153: 2511616.7 | G153: 2511616.7 | H153: 2973729.083 | I153: -462112.3833 | J153: -0.1553982795 | K153: =D153 -> 35684749
A154: Child Care Facilities | F154: 0 | G154: 0 | H154: 0 | I154: 0
A155: Community Halls and Facilities | D155: 12283298 | F155: 2417808.94 | G155: 2417808.94 | H155: 1023608.167 | I155: 1394200.773 | J155: 1.362045379 | K155: =D155 -> 12283298
A156: Consumer Protection | F156: 0 | G156: 0 | H156: 0 | I156: 0
A157: Cultural Matters | F157: 0 | G157: 0 | H157: 0 | I157: =G157-H157 -> 0 | J157: =IF(I157=0,"",I157/H157) -> 
A158: Disaster Management | F158: 0 | G158: 0 | H158: 0 | I158: =G158-H158 -> 0 | J158: =IF(I158=0,"",I158/H158) -> 
A159: Education | F159: 0 | G159: 0 | H159: 0 | I159: =G159-H159 -> 0 | J159: =IF(I159=0,"",I159/H159) -> 
A160: Indigenous and Customary Law | F160: 0 | G160: 0 | H160: 0 | I160: 0
A161: Industrial Promotion | F161: 0 | G161: 0 | H161: 0 | I161: 0
A162: Language Policy | F162: 0 | G162: 0 | H162: 0 | I162: 0
A163: Libraries and Archives | D163: 68485260 | F163: 5159562.64 | G163: 5159562.64 | H163: 5707105 | I163: -547542.36 | J163: -0.0959404742 | K163: =D163 -> 68485260
A164: Literacy Programmes | F164: 0 | G164: 0 | H164: 0 | I164: 0 | K164: =D164 -> 0
A165: Media Services | F165: 0 | G165: 0 | H165: 0 | I165: 0
A166: Museums and Art Galleries | D166: 6808453 | F166: 550300.08 | G166: 550300.08 | H166: 567371.0833 | I166: -17071.00333 | J166: -0.03008789809 | K166: =D166 -> 6808453
A167: Population Development | D167: 6351648 | F167: 469760.6 | G167: 469760.6 | H167: 529304 | I167: -59543.4 | J167: -0.1124937654 | K167: =D167 -> 6351648
A168: Provincial Cultural Matters | F168: 0 | G168: 0 | H168: 0 | I168: 0
A169: Theatres | F169: 0 | G169: 0 | H169: 0 | I169: 0
A170: Zoo's | F170: 0 | G170: 0 | H170: 0 | I170: 0
A171: Sport and recreation | C171: =SUM(C172:C176) -> 0 | D171: 116559443 | E171: 0 | F171: 9779241.49 | G171: 9779241.49 | H171: 9713286.917 | I171: 65954.57333 | J171: 0.006790139517 | K171: 116559443
A172: Beaches and Jetties | F172: 0 | G172: 0 | H172: =D172/12*1 -> 0 | I172: 0
A173: Casinos, Racing, Gambling, Wagering | F173: 0 | G173: 0 | H173: 0 | I173: 0
A174: Community Parks (including Nurseries) | D174: 47682243 | F174: 3990668.32 | G174: 3990668.32 | H174: 3973520.25 | I174: 17148.07 | J174: 0.004315586412 | K174: =D174 -> 47682243
A175: Recreational Facilities | D175: 68345450 | F175: 5788573.17 | G175: 5788573.17 | H175: 5695454.167 | I175: 93119.00333 | J175: 0.01634970638 | K175: 68345450
A176: Sports Grounds and Stadiums | D176: 531750 | F176: 0 | G176: 0 | H176: 44312.5 | I176: -44312.5 | J176: -1 | K176: 531750
A177: Public safety | C177: =SUM(C178:C185) -> 0 | D177: 197671704 | E177: 0 | F177: 14041157.92 | G177: 14041157.92 | H177: 16472642 | I177: -2431484.08 | J177: -0.1476074136 | K177: 197671704
A178: Civil Defence | D178: 22902848 | F178: 334202.49 | G178: 334202.49 | H178: =D178/12*1 -> 1908570.667 | I178: -1574368.177 | J178: -0.824893835 | K178: =D178 -> 22902848
A179: Cleansing | F179: 0 | G179: 0 | H179: 0 | I179: 0
A180: Control of Public Nuisances | F180: 0 | G180: 0 | H180: 0 | I180: =G180-H180 -> 0 | J180: =IF(I180=0,"",I180/H180) -> 
A181: Fencing and Fences | F181: 0 | G181: 0 | H181: 0 | I181: 0
A182: Fire Fighting and Protection | D182: 84865341 | F182: 7447544.77 | G182: 7447544.77 | H182: 7072111.75 | I182: 375433.02 | J182: 0.05308640944 | K182: =D182 -> 84865341
A183: Licensing and Control of Animals | F183: 0 | G183: 0 | H183: 0 | I183: =G183-H183 -> 0 | J183: =IF(I183=0,"",I183/H183) -> 
A184: Police Forces, Traffic and Street Parking Control | D184: 89903515 | F184: 6259410.66 | G184: 6259410.66 | H184: 7491959.583 | I184: =G184-H184 -> -1232548.923 | J184: =IF(I184=0,"",I184/H184) -> -0.164516227 | K184: =D184 -> 89903515
A185: Pounds | D185: 0 | F185: 0 | G185: 0 | H185: 0 | I185: 0
A186: Housing | C186: =SUM(C187:C188) -> 0 | D186: 90773667 | E186: 0 | F186: 5499712.18 | G186: 5499712.18 | H186: 7564472.25 | I186: =G186-H186 -> -2064760.07 | J186: =IF(I186=0,"",I186/H186) -> -0.2729549401 | K186: =SUM(K187:K188) -> 90773667
A187: Housing | D187: 90773667 | F187: 5499712.18 | G187: 5499712.18 | H187: =D187/12*1 -> 7564472.25 | I187: =G187-H187 -> -2064760.07 | J187: =IF(I187=0,"",I187/H187) -> -0.2729549401 | K187: =D187 -> 90773667
A188: Informal Settlements | D188: 0 | F188: 0 | G188: 0 | H188: 0 | I188: =G188-H188 -> 0 | J188: =IF(I188=0,"",I188/H188) -> 
A189: Health | C189: =SUM(C190:C196) -> 0 | D189: 9124276 | E189: 0 | F189: 678237.83 | G189: 678237.83 | H189: 760356.3333 | I189: -82118.50333 | J189: -0.1080000254 | K189: 9124276
A190: Ambulance | F190: 0 | G190: 0 | H190: =D190/12*1 -> 0 | I190: 0
A191: Health Services | D191: 9124276 | F191: 678237.83 | G191: 678237.83 | H191: 760356.3333 | I191: -82118.50333 | J191: -0.1080000254 | K191: =D191 -> 9124276
A192: =A70 -> Laboratory Services | F192: 0 | G192: 0 | H192: 0 | I192: 0
A193: Food Control | F193: 0 | G193: 0 | H193: 0 | I193: =G193-H193 -> 0 | J193: =IF(I193=0,"",I193/H193) -> 
A194: Health Surveillance and Prevention of Communicable Diseases including immunizations | F194: 0 | G194: 0 | H194: 0 | I194: =G194-H194 -> 0 | J194: =IF(I194=0,"",I194/H194) -> 
A195: Vector Control | F195: 0 | G195: 0 | H195: 0 | I195: 0
A196: Chemical Safety | F196: 0 | G196: 0 | H196: 0 | I196: 0
A197: Economic and environmental services | C197: =C198+C209+C214 -> 0 | D197: 448357055 | E197: 0 | F197: 27688201.54 | G197: 27688201.54 | H197: 37363087.92 | I197: -9674886.377 | J197: -0.2589423657 | K197: =K198+K209+K214 -> 448357055
A198: Planning and development | C198: =SUM(C199:C208) -> 0 | D198: 148510104 | E198: 0 | F198: 8140172.78 | G198: 8140172.78 | H198: 12375842 | I198: -4235669.22 | J198: -0.3422530136 | K198: 148510104
A199: Billboards | D199: 0 | F199: 0 | G199: 0 | H199: =D199/12*1 -> 0 | I199: 0
A200: Corporate Wide Strategic Planning (IDPs, LEDs) | D200: 10310167 | F200: 575307.57 | G200: 575307.57 | H200: 859180.5833 | I200: -283873.0133 | J200: -0.3303997074 | K200: =D200 -> 10310167
A201: Central City Improvement District | F201: 0 | G201: 0 | H201: 0 | I201: 0
... 54 more rows

Sheet C3-FinPerf V
A1: =Muni2& " - "&S71C& " - "&date -> KZN225 Msunduzi - Table C3 Monthly Budget Statement - Financial Performance (revenue and expenditure by municipal vote) - M01 July
A2: =Vdesc -> Vote Description | B2: =head27 -> Ref | C2: =Head1 -> 2024/25 | D2: =Head2 -> Budget Year 2025/26
C3: =Head5 -> Audited Outcome | D3: =Head6 -> Original Budget | E3: =Head7 -> Adjusted Budget | F3: =Head38 -> Monthly actual | G3: =Head39 -> YearTD actual | H3: =Head40 -> YearTD budget | I3: =Head41 -> YTD variance | J3: =Head41 -> YTD variance | K3: =Head8 -> Full Year Forecast
A4: R thousands | J4: %
A5: Revenue by Vote | B5: 1
A6: ='Org structure'!A2 -> Vote 1 - City Manager | C6: ='C3C'!C6 -> 0 | D6: ='C3C'!D6 -> 0 | E6: ='C3C'!E6 -> 0 | F6: ='C3C'!F6 -> 0 | G6: ='C3C'!G6 -> 0 | H6: ='C3C'!H6 -> 0 | I6: =G6-H6 -> 0 | J6: =IF(I6=0,"",I6/H6) ->  | K6: ='C3C'!K6 -> 0
A7: ='Org structure'!A3 -> Vote 2 - City Finance | C7: ='C3C'!C17 -> 0 | D7: ='C3C'!D17 -> 2789049796 | E7: ='C3C'!E17 -> 0 | F7: ='C3C'!F17 -> 363361591.3 | G7: ='C3C'!G17 -> 363344225.1 | H7: ='C3C'!H17 -> 232420816.3 | I7: =G7-H7 -> 130923408.8 | J7: =IF(I7=0,"",I7/H7) -> 0.5633032827 | K7: ='C3C'!K17 -> 2789049796
A8: ='Org structure'!A4 -> Vote 3 - Corporate Services | C8: ='C3C'!C28 -> 0 | D8: ='C3C'!D28 -> 1906229.052 | E8: ='C3C'!E28 -> 0 | F8: ='C3C'!F28 -> 0 | G8: ='C3C'!G28 -> 0 | H8: ='C3C'!H28 -> 158852.421 | I8: -158852.421 | J8: -1 | K8: ='C3C'!K28 -> 1906229.052
A9: ='Org structure'!A5 -> Vote 4 - Community Services and Social Equity | C9: ='C3C'!C39 -> 0 | D9: ='C3C'!D39 -> 265343548.9 | E9: ='C3C'!E39 -> 0 | F9: ='C3C'!F39 -> 30683758.17 | G9: ='C3C'!G39 -> 30683758.17 | H9: ='C3C'!H39 -> 22111962.41 | I9: 8571795.762 | J9: 0.3876542301 | K9: ='C3C'!K39 -> 265343548.9
A10: ='Org structure'!A6 -> Vote 5 - Infrastructure Services | C10: ='C3C'!C50 -> 0 | D10: ='C3C'!D50 -> 2007035209 | E10: ='C3C'!E50 -> 0 | F10: ='C3C'!F50 -> 290909034 | G10: ='C3C'!G50 -> 290909034 | H10: ='C3C'!H50 -> 167252934.1 | I10: 123656099.9 | J10: 0.7393359084 | K10: ='C3C'!K50 -> 2007035209
A11: ='Org structure'!A7 -> Vote 6 - Sustainable Development and City Enterprises | C11: ='C3C'!C61 -> 0 | D11: ='C3C'!D61 -> 97217466.13 | E11: ='C3C'!E61 -> 0 | F11: ='C3C'!F61 -> 9518734.02 | G11: ='C3C'!G61 -> 9518734.02 | H11: ='C3C'!H61 -> 8101455.511 | I11: 1417278.509 | J11: 0.1749412198 | K11: ='C3C'!K61 -> 97217466.13
A12: ='Org structure'!A8 -> Vote 7 - Electricity | C12: ='C3C'!C72 -> 0 | D12: ='C3C'!D72 -> 4753629362 | E12: ='C3C'!E72 -> 0 | F12: ='C3C'!F72 -> 365562657.1 | G12: ='C3C'!G72 -> 365580023.2 | H12: ='C3C'!H72 -> 396135780.2 | I12: -30555757.01 | J12: -0.07713455471 | K12: ='C3C'!K72 -> 4753629362
A13: ='Org structure'!A9 -> Vote 8 - [NAME OF VOTE 8] | C13: ='C3C'!C83 -> 0 | D13: ='C3C'!D83 -> 0 | E13: ='C3C'!E83 -> 0 | F13: ='C3C'!F83 -> 0 | G13: ='C3C'!G83 -> 0 | H13: ='C3C'!H83 -> 0 | I13: 0 | K13: ='C3C'!K83 -> 0
A14: ='Org structure'!A10 -> Vote 9 - [NAME OF VOTE 9] | C14: ='C3C'!C94 -> 0 | D14: ='C3C'!D94 -> 0 | E14: ='C3C'!E94 -> 0 | F14: ='C3C'!F94 -> 0 | G14: ='C3C'!G94 -> 0 | H14: ='C3C'!H94 -> 0 | I14: 0 | K14: ='C3C'!K94 -> 0
A15: ='Org structure'!A11 -> Vote 10 - [NAME OF VOTE 10] | C15: ='C3C'!C105 -> 0 | D15: ='C3C'!D105 -> 0 | E15: ='C3C'!E105 -> 0 | F15: ='C3C'!F105 -> 0 | G15: ='C3C'!G105 -> 0 | H15: ='C3C'!H105 -> 0 | I15: 0 | K15: ='C3C'!K105 -> 0
A16: ='Org structure'!A12 -> Vote 11 - [NAME OF VOTE 11] | C16: ='C3C'!C116 -> 0 | D16: ='C3C'!D116 -> 0 | E16: ='C3C'!E116 -> 0 | F16: ='C3C'!F116 -> 0 | G16: ='C3C'!G116 -> 0 | H16: ='C3C'!H116 -> 0 | I16: 0 | K16: ='C3C'!K116 -> 0
A17: ='Org structure'!A13 -> Vote 12 - [NAME OF VOTE 12] | C17: ='C3C'!C127 -> 0 | D17: ='C3C'!D127 -> 0 | E17: ='C3C'!E127 -> 0 | F17: ='C3C'!F127 -> 0 | G17: ='C3C'!G127 -> 0 | H17: ='C3C'!H127 -> 0 | I17: 0 | K17: ='C3C'!K127 -> 0
A18: ='Org structure'!A14 -> Vote 13 - [NAME OF VOTE 13] | C18: ='C3C'!C138 -> 0 | D18: ='C3C'!D138 -> 0 | E18: ='C3C'!E138 -> 0 | F18: ='C3C'!F138 -> 0 | G18: ='C3C'!G138 -> 0 | H18: ='C3C'!H138 -> 0 | I18: 0 | K18: ='C3C'!K138 -> 0
A19: ='Org structure'!A15 -> Vote 14 - [NAME OF VOTE 14] | C19: ='C3C'!C149 -> 0 | D19: ='C3C'!D149 -> 0 | E19: ='C3C'!E149 -> 0 | F19: ='C3C'!F149 -> 0 | G19: ='C3C'!G149 -> 0 | H19: ='C3C'!H149 -> 0 | I19: 0 | K19: ='C3C'!K149 -> 0
A20: ='Org structure'!A16 -> Vote 15 - [NAME OF VOTE 15] | C20: ='C3C'!C160 -> 0 | D20: ='C3C'!D160 -> 0 | E20: ='C3C'!E160 -> 0 | F20: ='C3C'!F160 -> 0 | G20: ='C3C'!G160 -> 0 | H20: ='C3C'!H160 -> 0 | I20: 0 | K20: ='C3C'!K160 -> 0
A21: Total Revenue by Vote | B21: 2 | C21: =SUM(C6:C20) -> 0 | D21: =SUM(D6:D20) -> 9914181611 | E21: 0 | F21: 1060035775 | G21: 1060035775 | H21: 826181801 | I21: 233853973.6 | J21: 0.2830538912 | K21: =SUM(K6:K20) -> 9914181611
A23: Expenditure by Vote | B23: 1
A24: ='Org structure'!A2 -> Vote 1 - City Manager | C24: ='C3C'!C175 -> 0 | D24: ='C3C'!D175 -> 228589928.7 | E24: ='C3C'!E175 -> 0 | F24: ='C3C'!F175 -> 13003749.01 | G24: ='C3C'!G175 -> 13003749.01 | H24: ='C3C'!H175 -> 19049160.72 | I24: =G24-H24 -> -6045411.714 | J24: =IF(I24=0,"",I24/H24) -> -0.3173584286 | K24: ='C3C'!K175 -> 228589928.7
A25: ='Org structure'!A3 -> Vote 2 - City Finance | C25: ='C3C'!C186 -> 0 | D25: ='C3C'!D186 -> 1199140482 | E25: ='C3C'!E186 -> 0 | F25: ='C3C'!F186 -> 26127286.17 | G25: ='C3C'!G186 -> 26127286.17 | H25: ='C3C'!H186 -> 99928373.53 | I25: -73801087.36 | J25: -0.7385398636 | K25: ='C3C'!K186 -> 1199140482
A26: ='Org structure'!A4 -> Vote 3 - Corporate Services | C26: ='C3C'!C197 -> 0 | D26: ='C3C'!D197 -> 207252148.3 | E26: ='C3C'!E197 -> 0 | F26: ='C3C'!F197 -> 28855585.08 | G26: ='C3C'!G197 -> 28855585.08 | H26: ='C3C'!H197 -> 17271012.36 | I26: 11584572.72 | J26: 0.6707523846 | K26: ='C3C'!K197 -> 207252148.3
A27: ='Org structure'!A5 -> Vote 4 - Community Services and Social Equity | C27: ='C3C'!C208 -> 0 | D27: ='C3C'!D208 -> 845155484.9 | E27: ='C3C'!E208 -> 0 | F27: ='C3C'!F208 -> 58186308.4 | G27: ='C3C'!G208 -> 58186308.4 | H27: ='C3C'!H208 -> 70429623.74 | I27: -12243315.34 | J27: -0.1738375798 | K27: ='C3C'!K208 -> 845155484.9
A28: ='Org structure'!A6 -> Vote 5 - Infrastructure Services | C28: ='C3C'!C219 -> 0 | D28: ='C3C'!D219 -> 1832374517 | E28: ='C3C'!E219 -> 0 | F28: ='C3C'!F219 -> 158015815.4 | G28: ='C3C'!G219 -> 158015815.4 | H28: ='C3C'!H219 -> 152697876.4 | I28: 5317938.942 | J28: 0.03482654157 | K28: ='C3C'!K219 -> 1832374517
A29: ='Org structure'!A7 -> Vote 6 - Sustainable Development and City Enterprises | C29: ='C3C'!C230 -> 0 | D29: ='C3C'!D230 -> 339955707.2 | E29: ='C3C'!E230 -> 0 | F29: ='C3C'!F230 -> 20964954.79 | G29: ='C3C'!G230 -> 20964954.79 | H29: ='C3C'!H230 -> 28329642.27 | I29: -7364687.481 | J29: -0.2599640126 | K29: ='C3C'!K230 -> 339955707.2
A30: ='Org structure'!A8 -> Vote 7 - Electricity | C30: ='C3C'!C241 -> 0 | D30: ='C3C'!D241 -> 3810733665 | E30: ='C3C'!E241 -> 0 | F30: ='C3C'!F241 -> 366792844 | G30: ='C3C'!G241 -> 366792844 | H30: ='C3C'!H241 -> 317561138.8 | I30: 49231705.21 | J30: 0.1550306357 | K30: ='C3C'!K241 -> 3810733665
A31: ='Org structure'!A9 -> Vote 8 - [NAME OF VOTE 8] | C31: ='C3C'!C253 -> 0 | D31: ='C3C'!D253 -> 0 | E31: ='C3C'!E253 -> 0 | F31: ='C3C'!F253 -> 0 | G31: ='C3C'!G253 -> 0 | H31: ='C3C'!H253 -> 0 | I31: 0 | K31: ='C3C'!K253 -> 0
A32: ='Org structure'!A10 -> Vote 9 - [NAME OF VOTE 9] | C32: ='C3C'!C264 -> 0 | D32: ='C3C'!D264 -> 0 | E32: ='C3C'!E264 -> 0 | F32: ='C3C'!F264 -> 0 | G32: ='C3C'!G264 -> 0 | H32: ='C3C'!H264 -> 0 | I32: 0 | K32: ='C3C'!K264 -> 0
A33: ='Org structure'!A11 -> Vote 10 - [NAME OF VOTE 10] | C33: ='C3C'!C275 -> 0 | D33: ='C3C'!D275 -> 0 | E33: ='C3C'!E275 -> 0 | F33: ='C3C'!F275 -> 0 | G33: ='C3C'!G275 -> 0 | H33: ='C3C'!H275 -> 0 | I33: 0 | J33: =IF(I33=0,"",I33/H33) ->  | K33: ='C3C'!K275 -> 0
A34: ='Org structure'!A12 -> Vote 11 - [NAME OF VOTE 11] | C34: ='C3C'!C286 -> 0 | D34: ='C3C'!D286 -> 0 | E34: ='C3C'!E286 -> 0 | F34: ='C3C'!F286 -> 0 | G34: ='C3C'!G286 -> 0 | H34: ='C3C'!H286 -> 0 | I34: 0 | J34: =IF(I34=0,"",I34/H34) ->  | K34: ='C3C'!K286 -> 0
A35: ='Org structure'!A13 -> Vote 12 - [NAME OF VOTE 12] | C35: ='C3C'!C297 -> 0 | D35: ='C3C'!D297 -> 0 | E35: ='C3C'!E297 -> 0 | F35: ='C3C'!F297 -> 0 | G35: ='C3C'!G297 -> 0 | H35: ='C3C'!H297 -> 0 | I35: 0 | J35: =IF(I35=0,"",I35/H35) ->  | K35: ='C3C'!K297 -> 0
A36: ='Org structure'!A14 -> Vote 13 - [NAME OF VOTE 13] | C36: ='C3C'!C308 -> 0 | D36: ='C3C'!D308 -> 0 | E36: ='C3C'!E308 -> 0 | F36: ='C3C'!F308 -> 0 | G36: ='C3C'!G308 -> 0 | H36: ='C3C'!H308 -> 0 | I36: 0 | J36: =IF(I36=0,"",I36/H36) ->  | K36: ='C3C'!K308 -> 0
A37: ='Org structure'!A15 -> Vote 14 - [NAME OF VOTE 14] | C37: ='C3C'!C319 -> 0 | D37: ='C3C'!D319 -> 0 | E37: ='C3C'!E319 -> 0 | F37: ='C3C'!F319 -> 0 | G37: ='C3C'!G319 -> 0 | H37: ='C3C'!H319 -> 0 | I37: 0 | J37: =IF(I37=0,"",I37/H37) ->  | K37: ='C3C'!K319 -> 0
A38: ='Org structure'!A16 -> Vote 15 - [NAME OF VOTE 15] | C38: ='C3C'!C330 -> 0 | D38: ='C3C'!D330 -> 0 | E38: ='C3C'!E330 -> 0 | F38: ='C3C'!F330 -> 0 | G38: ='C3C'!G330 -> 0 | H38: ='C3C'!H330 -> 0 | I38: 0 | K38: ='C3C'!K330 -> 0
A39: Total Expenditure by Vote | B39: 2 | C39: =SUM(C24:C38) -> 0 | D39: =SUM(D24:D38) -> 8463201934 | E39: 0 | F39: 671946542.8 | G39: 671946542.8 | H39: 705266827.8 | I39: -33320285.01 | J39: =IF(I39=0,"",I39/H39) -> -0.0472449344 | K39: =SUM(K24:K38) -> 8463201934
A40: =result -> Surplus/ (Deficit) for the year | B40: 2 | C40: =C21-C39 -> 0 | D40: 1450979677 | E40: 0 | F40: 388089231.7 | G40: 388089231.7 | H40: 120914973.1 | I40: =I21-I39 -> 267174258.6 | J40: =IF(I40=0,"",I40/H40) -> 2.209604416 | K40: =K21-K39 -> 1450979677
A41: =head27a -> References
A42: 1. Insert 'Vote'; e.g. Department, if different to standard classification structure
A43: 2. Must reconcile to Monthly Budget Statement - Financial Performance Statement (standard classification)

Sheet C3C
A1: =Muni2& " - "&S71C& " - "&"A"& " - "&date -> KZN225 Msunduzi - Table C3 Monthly Budget Statement - Financial Performance (revenue and expenditure by municipal vote) - A - M01 July
A2: =Vdesc -> Vote Description | B2: =head27 -> Ref | C2: =Head1 -> 2024/25 | D2: =Head2 -> Budget Year 2025/26 | L2: =Head4 -> 
A3: R thousand | C3: =Head5 -> Audited Outcome | D3: =Head6 -> Original Budget | E3: =Head7 -> Adjusted Budget | F3: =Head38 -> Monthly actual | G3: =Head39 -> YearTD actual | H3: =Head40 -> YearTD budget | I3: =Head41 -> YTD variance | J3: =Head41 -> YTD variance | K3: =Head8 -> Full Year Forecast | L3: =Head12 -> Forecast 2010/11 | M3: =Head13 -> Forecast 2011/12 | N3: =Head14 -> Forecast 2012/13 | O3: =Head15 -> Forecast 2013/14 | P3: =Head16 -> Forecast 2014/15 | Q3: =Head17 -> Forecast 2015/16 | R3: =Head18 -> Forecast 2016/17 | S3: =Head19 -> Forecast 2017/18 | T3: =Head20 -> Forecast 2018/19 | U3: =Head21 -> Forecast 2019/20 | V3: =Head22 -> Forecast 2020/21 | W3: =Head23 -> Forecast 2021/22
J4: %
A5: Revenue by Vote | B5: 1
A6: ='Org structure'!A2 -> Vote 1 - City Manager | C6: =SUM(C7:C16) -> 0 | D6: =SUM(D7:D16) -> 0 | E6: 0 | F6: 0 | G6: 0 | H6: 0 | I6: =G6-H6 -> 0 | J6: =IF(I6=0,"",I6/H6) ->  | K6: 0
A7: ='Org structure'!E3 -> 1.1 - Internal Audit and Compliance | I7: 0
A8: ='Org structure'!E4 -> 1.2 - Office of the City Manager | I8: 0
A9: ='Org structure'!E5 -> 1.3 - Political Support | I9: 0
A10: ='Org structure'!E6 -> 1.4 - Strategic Planning | I10: 0
A11: ='Org structure'!E7 -> 0 | I11: 0
A12: ='Org structure'!E8 -> 0 | I12: 0
A13: ='Org structure'!E9 -> 0 | I13: 0
A14: ='Org structure'!E10 -> 0 | I14: 0
A15: ='Org structure'!E11 -> 0 | I15: 0
A16: ='Org structure'!E12 -> 0 | I16: 0
A17: ='Org structure'!A3 -> Vote 2 - City Finance | C17: =SUM(C18:C27) -> 0 | D17: =SUM(D18:D27) -> 2789049796 | E17: 0 | F17: 363361591.3 | G17: 363344225.1 | H17: =SUM(H18:H27) -> 232420816.3 | I17: 130923408.8 | J17: 0.5633032827 | K17: 2789049796
A18: ='Org structure'!E14 -> 2.1 - Asset Management | D18: 50046102.4 | F18: 1264444.87 | G18: 1264444.87 | H18: =D18/12*Instructions!X$14 -> 4170508.533 | I18: =G18-H18 -> -2906063.663 | J18: =IF(I18=0,"",I18/H18) -> -0.6968127843 | K18: =D18 -> 50046102.4
A19: ='Org structure'!E15 -> 2.2 - Budget and Treasury Management | D19: 898343228.4 | F19: 204434831.8 | G19: 204434831.8 | H19: =D19/12*Instructions!X$14 -> 74861935.7 | I19: 129572896.1 | J19: 1.730824816 | K19: =D19 -> 898343228.4
A20: ='Org structure'!E16 -> 2.3 - Expenditure Management | D20: 0 | F20: 0 | G20: 0 | H20: =D20/12*Instructions!X$14 -> 0 | I20: 0 | K20: 0
A21: ='Org structure'!E17 -> 2.4 - Revenue Management | D21: 1840324567 | F21: 157662169.4 | G21: 157644803.3 | H21: =D21/12*Instructions!X$14 -> 153360380.6 | I21: =G21-H21 -> 4284422.692 | J21: =IF(I21=0,"",I21/H21) -> 0.02793695918 | K21: 1840324567
A22: ='Org structure'!E18 -> 2.5 - Supply Chain Management | D22: 335898.357 | F22: 145.22 | G22: 145.22 | H22: =D22/12*Instructions!X$14 -> 27991.52975 | I22: -27846.30975 | J22: -0.994812002 | K22: 335898.357
A23: ='Org structure'!E19 -> 0 | I23: 0
A24: ='Org structure'!E20 -> 0 | I24: 0
A25: ='Org structure'!E21 -> 0 | I25: 0
A26: ='Org structure'!E22 -> 0 | I26: 0
A27: ='Org structure'!E23 -> 0 | I27: 0
A28: ='Org structure'!A4 -> Vote 3 - Corporate Services | C28: =SUM(C29:C38) -> 0 | D28: 1906229.052 | E28: 0 | F28: 0 | G28: 0 | H28: 158852.421 | I28: -158852.421 | J28: -1 | K28: 1906229.052
A29: ='Org structure'!E25 -> Human Resources Management | D29: 0 | F29: 0 | G29: 0 | H29: =D29/12*Instructions!X$14 -> 0 | I29: 0 | K29: =D29 -> 0
A30: ='Org structure'!E26 -> Information Technology | D30: 0 | F30: 0 | G30: 0 | H30: =D30/12*Instructions!X$14 -> 0 | I30: 0 | K30: 0
A31: ='Org structure'!E27 -> Legal Services | D31: 1906229.052 | F31: 0 | G31: 0 | H31: =D31/12*Instructions!X$14 -> 158852.421 | I31: -158852.421 | J31: -1 | K31: 1906229.052
A32: ='Org structure'!E28 -> Secretariat and Auxiliary Services | D32: 0 | F32: 0 | G32: 0 | H32: =D32/12*Instructions!X$14 -> 0 | I32: 0 | K32: 0
A33: ='Org structure'!E29 -> General Manager: Corporate Service | D33: 0 | F33: 0 | G33: 0 | H33: =D33/12*Instructions!X$14 -> 0 | I33: 0 | K33: 0
A34: ='Org structure'!E30 -> 0 | I34: 0
A35: ='Org structure'!E31 -> 0 | I35: 0
A36: ='Org structure'!E32 -> 0 | I36: 0
A37: ='Org structure'!E33 -> 0 | I37: 0
A38: ='Org structure'!E34 -> 0 | I38: 0
A39: ='Org structure'!A5 -> Vote 4 - Community Services and Social Equity | C39: =SUM(C40:C49) -> 0 | D39: 265343548.9 | E39: 0 | F39: 30683758.17 | G39: 30683758.17 | H39: 22111962.41 | I39: 8571795.762 | J39: 0.3876542301 | K39: 265343548.9
A40: ='Org structure'!E36 -> 4.1 - Area Based Management | D40: 813465.3034 | F40: 58014.37 | G40: 58014.37 | H40: =D40/12*Instructions!X$14 -> 67788.77529 | I40: -9774.405287 | J40: -0.1441891411 | K40: =D40 -> 813465.3034
A41: ='Org structure'!E37 -> 4.2 - Public Safety, Emergency Services and Enforcement | D41: 16851132.13 | F41: 1212048.06 | G41: 1212048.06 | H41: =D41/12*Instructions!X$14 -> 1404261.01 | I41: -192212.9505 | J41: -0.1368783645 | K41: 16851132.13
A42: ='Org structure'!E38 -> 4.3 - Recreation and Facilities | D42: 56861146.81 | F42: 895323.34 | G42: 895323.34 | H42: =D42/12*Instructions!X$14 -> 4738428.901 | I42: -3843105.561 | J42: -0.8110505911 | K42: 56861146.81
A43: ='Org structure'!E39 -> 4.4 - Waste Management | D43: 190817804.7 | F43: 28518372.4 | G43: 28518372.4 | H43: =D43/12*Instructions!X$14 -> 15901483.72 | I43: 12616888.68 | J43: 0.7934409707 | K43: 190817804.7
A44: ='Org structure'!E40 -> 4.5 - General Manager: Community Services | D44: 0 | F44: 0 | G44: 0 | H44: =D44/12*Instructions!X$14 -> 0 | I44: 0 | K44: 0
A45: ='Org structure'!E41 -> 0 | I45: 0
A46: ='Org structure'!E42 -> 0 | I46: 0
A47: ='Org structure'!E43 -> 0 | I47: 0
A48: ='Org structure'!E44 -> 0 | I48: 0
A49: ='Org structure'!E45 -> 0 | I49: 0
A50: ='Org structure'!A6 -> Vote 5 - Infrastructure Services | C50: =SUM(C51:C60) -> 0 | D50: =SUM(D51:D60) -> 2007035209 | E50: 0 | F50: 290909034 | G50: 290909034 | H50: 167252934.1 | I50: 123656099.9 | J50: 0.7393359084 | K50: 2007035209
A51: ='Org structure'!E47 -> 5.1 - Project Management Office | D51: 9744480 | F51: 654750.84 | G51: 654750.84 | H51: =D51/12*Instructions!X$14 -> 812040 | I51: -157289.16 | J51: -0.1936963204 | K51: =D51 -> 9744480
A52: ='Org structure'!E48 -> 5.2 - Roads and Transportation | D52: 165933833.6 | F52: 5567620.87 | G52: 5567620.87 | H52: =D52/12*Instructions!X$14 -> 13827819.47 | I52: -8260198.599 | J52: -0.5973608939 | K52: 165933833.6
A53: ='Org structure'!E49 -> 5.3 - Water and Sanitation | D53: 1831356895 | F53: 284686662.3 | G53: 284686662.3 | H53: =D53/12*Instructions!X$14 -> 152613074.6 | I53: 132073587.7 | J53: 0.8654146314 | K53: 1831356895
A54: ='Org structure'!E50 -> 5.4 - General Manager: Infrastructure | D54: 0 | F54: 0 | G54: 0 | H54: =D54/12*Instructions!X$14 -> 0 | I54: 0 | K54: 0
A55: ='Org structure'!E51 -> 0 | I55: 0
A56: ='Org structure'!E52 -> 0 | I56: 0
A57: ='Org structure'!E53 -> 0 | I57: 0
A58: ='Org structure'!E54 -> 0 | I58: 0
A59: ='Org structure'!E55 -> 0 | I59: 0
A60: ='Org structure'!E56 -> 0 | I60: 0
A61: ='Org structure'!A7 -> Vote 6 - Sustainable Development and City Enterprises | C61: =SUM(C62:C71) -> 0 | D61: =SUM(D62:D71) -> 97217466.13 | E61: 0 | F61: 9518734.02 | G61: 9518734.02 | H61: 8101455.511 | I61: 1417278.509 | J61: 0.1749412198 | K61: 97217466.13
A62: ='Org structure'!E58 -> 6.1 - City Entities | D62: 55628475.84 | F62: 4852290.12 | G62: 4852290.12 | H62: =D62/12*Instructions!X$14 -> 4635706.32 | I62: 216583.7996 | J62: 0.04672077666 | K62: =D62 -> 55628475.84
A63: ='Org structure'!E59 -> 6.2 - Development Services | D63: 1031713.313 | F63: 72821.96 | G63: 72821.96 | H63: =D63/12*Instructions!X$14 -> 85976.10938 | I63: -13154.14938 | J63: -0.1529977278 | K63: 1031713.313
A64: ='Org structure'!E60 -> 6.3 - Human Settlement Development | D64: 24320021.44 | F64: 2325074.18 | G64: 2325074.18 | H64: =D64/12*Instructions!X$14 -> 2026668.453 | I64: 298405.7269 | J64: 0.1472395381 | K64: 24320021.44
A65: ='Org structure'!E61 -> 6.4 - Town Planning | D65: 16237255.54 | F65: 2268547.76 | G65: 2268547.76 | H65: =D65/12*Instructions!X$14 -> 1353104.628 | I65: 915443.1319 | J65: 0.6765501447 | K65: 16237255.54
A66: ='Org structure'!E62 -> 6.5 - General Manager: Sustainable Development and City Enterprises | D66: 0 | F66: 0 | G66: 0 | H66: =D66/12*Instructions!X$14 -> 0 | I66: 0 | K66: 0
A67: ='Org structure'!E63 -> 0 | I67: 0
A68: ='Org structure'!E64 -> 0 | I68: 0
A69: ='Org structure'!E65 -> 0 | I69: 0
A70: ='Org structure'!E66 -> 0 | I70: =G70-H70 -> 0 | J70: =IF(I70=0,"",I70/H70) -> 
A71: ='Org structure'!E67 -> 0 | I71: 0
A72: ='Org structure'!A8 -> Vote 7 - Electricity | C72: =SUM(C73:C82) -> 0 | D72: 4753629362 | E72: 0 | F72: 365562657.1 | G72: 365580023.2 | H72: 396135780.2 | I72: -30555757.01 | J72: -0.07713455471 | K72: 4753629362
A73: ='Org structure'!E69 -> 7.1 Electricity planning | D73: 26481433.42 | F73: 0 | G73: 0 | H73: =D73/12*Instructions!X$14 -> 2206786.118 | I73: -2206786.118 | J73: -1 | K73: =D73 -> 26481433.42
A74: ='Org structure'!E70 -> 7.2 Methods and Standards | F74: 0 | G74: 0 | H74: =D74/12*Instructions!X$14 -> 0 | I74: 0 | K74: 0
A75: ='Org structure'!E71 -> 7.3 Operations and Maintenance | F75: 0 | G75: 0 | H75: =D75/12*Instructions!X$14 -> 0 | I75: 0 | K75: 0
A76: ='Org structure'!E72 -> 7.4 Revenue Management | D76: 4691071887 | F76: 91513.92 | G76: 112489.02 | H76: =D76/12*Instructions!X$14 -> 390922657.2 | I76: -390810168.2 | J76: -0.9997122474 | K76: 4691071887
A77: ='Org structure'!E73 -> 7.5 General Manager Electricity | D77: 36076042.1 | F77: 0 | G77: 0 | H77: =D77/12*Instructions!X$14 -> 3006336.842 | I77: -3006336.842 | J77: -1 | K77: 36076042.1
A78: ='Org structure'!E74 -> 0 | F78: 365471143.1 | G78: 365467534.2 | I78: 365467534.2
A79: ='Org structure'!E75 -> 0 | I79: 0
A80: ='Org structure'!E76 -> 0 | I80: 0
A81: ='Org structure'!E77 -> 0 | I81: 0
A82: ='Org structure'!E78 -> 0 | I82: 0
A83: ='Org structure'!A9 -> Vote 8 - [NAME OF VOTE 8] | C83: =SUM(C84:C93) -> 0 | D83: =SUM(D84:D93) -> 0 | E83: 0 | F83: 0 | G83: 0 | H83: 0 | I83: 0 | K83: 0
A84: ='Org structure'!E80 -> 8.1 - [Name of sub-vote] | I84: 0
A85: ='Org structure'!E81 -> 0 | I85: 0
A86: ='Org structure'!E82 -> 0 | I86: 0
A87: ='Org structure'!E83 -> 0 | I87: 0
A88: ='Org structure'!E84 -> 0 | I88: 0
A89: ='Org structure'!E85 -> 0 | I89: 0
A90: ='Org structure'!E86 -> 0 | I90: 0
A91: ='Org structure'!E87 -> 0 | I91: 0
A92: ='Org structure'!E88 -> 0 | I92: 0
A93: ='Org structure'!E89 -> 0 | I93: 0
A94: ='Org structure'!A10 -> Vote 9 - [NAME OF VOTE 9] | C94: =SUM(C95:C104) -> 0 | D94: =SUM(D95:D104) -> 0 | E94: 0 | F94: 0 | G94: 0 | H94: 0 | I94: 0 | K94: 0
A95: ='Org structure'!E91 -> 9.1 - [Name of sub-vote] | I95: 0
A96: ='Org structure'!E92 -> 0 | I96: 0
A97: ='Org structure'!E93 -> 0 | I97: 0
A98: ='Org structure'!E94 -> 0 | I98: 0
A99: ='Org structure'!E95 -> 0 | I99: 0
A100: ='Org structure'!E96 -> 0 | I100: 0
A101: ='Org structure'!E97 -> 0 | I101: 0
A102: ='Org structure'!E98 -> 0 | I102: 0
A103: ='Org structure'!E99 -> 0 | I103: 0
A104: ='Org structure'!E100 -> 0 | I104: 0
A105: ='Org structure'!A11 -> Vote 10 - [NAME OF VOTE 10] | C105: =SUM(C106:C115) -> 0 | D105: =SUM(D106:D115) -> 0 | E105: 0 | F105: 0 | G105: 0 | H105: 0 | I105: 0 | K105: 0
A106: ='Org structure'!E102 -> 10.1 - [Name of sub-vote] | I106: 0
A107: ='Org structure'!E103 -> 0 | I107: 0
A108: ='Org structure'!E104 -> 0 | I108: 0
A109: ='Org structure'!E105 -> 0 | I109: 0
A110: ='Org structure'!E106 -> 0 | I110: 0
A111: ='Org structure'!E107 -> 0 | I111: 0
A112: ='Org structure'!E108 -> 0 | I112: 0
A113: ='Org structure'!E109 -> 0 | I113: 0
A114: ='Org structure'!E110 -> 0 | I114: 0
A115: ='Org structure'!E111 -> 0 | I115: 0
A116: ='Org structure'!A12 -> Vote 11 - [NAME OF VOTE 11] | C116: =SUM(C117:C126) -> 0 | D116: =SUM(D117:D126) -> 0 | E116: 0 | F116: 0 | G116: 0 | H116: 0 | I116: 0 | K116: 0
A117: ='Org structure'!E113 -> 11.1 - [Name of sub-vote] | I117: 0
A118: ='Org structure'!E114 -> 0 | I118: 0
A119: ='Org structure'!E115 -> 0 | I119: 0
A120: ='Org structure'!E116 -> 0 | I120: 0
A121: ='Org structure'!E117 -> 0 | I121: 0
A122: ='Org structure'!E118 -> 0 | I122: 0
A123: ='Org structure'!E119 -> 0 | I123: 0
A124: ='Org structure'!E120 -> 0 | I124: 0
A125: ='Org structure'!E121 -> 0 | I125: 0
A126: ='Org structure'!E122 -> 0 | I126: 0
A127: ='Org structure'!A13 -> Vote 12 - [NAME OF VOTE 12] | C127: =SUM(C128:C137) -> 0 | D127: =SUM(D128:D137) -> 0 | E127: 0 | F127: 0 | G127: 0 | H127: 0 | I127: 0 | K127: 0
A128: ='Org structure'!E124 -> 12.1 - [Name of sub-vote] | I128: 0
A129: ='Org structure'!E125 -> 0 | I129: 0
A130: ='Org structure'!E126 -> 0 | I130: 0
A131: ='Org structure'!E127 -> 0 | I131: 0
A132: ='Org structure'!E128 -> 0 | I132: 0
A133: ='Org structure'!E129 -> 0 | I133: 0
A134: ='Org structure'!E130 -> 0 | I134: =G134-H134 -> 0 | J134: =IF(I134=0,"",I134/H134) -> 
A135: ='Org structure'!E131 -> 0 | I135: 0
A136: ='Org structure'!E132 -> 0 | I136: 0
A137: ='Org structure'!E133 -> 0 | I137: 0
A138: ='Org structure'!A14 -> Vote 13 - [NAME OF VOTE 13] | C138: =SUM(C139:C148) -> 0 | D138: =SUM(D139:D148) -> 0 | E138: 0 | F138: 0 | G138: 0 | H138: 0 | I138: 0 | K138: 0
A139: ='Org structure'!E135 -> 13.1 - [Name of sub-vote] | I139: 0
A140: ='Org structure'!E136 -> 0 | I140: 0
A141: ='Org structure'!E137 -> 0 | I141: 0
A142: ='Org structure'!E138 -> 0 | I142: 0
A143: ='Org structure'!E139 -> 0 | I143: 0
A144: ='Org structure'!E140 -> 0 | I144: 0
A145: ='Org structure'!E141 -> 0 | I145: 0
A146: ='Org structure'!E142 -> 0 | I146: 0
A147: ='Org structure'!E143 -> 0 | I147: 0
A148: ='Org structure'!E144 -> 0 | I148: 0
A149: ='Org structure'!A15 -> Vote 14 - [NAME OF VOTE 14] | C149: =SUM(C150:C159) -> 0 | D149: =SUM(D150:D159) -> 0 | E149: 0 | F149: 0 | G149: 0 | H149: 0 | I149: 0 | K149: 0
A150: ='Org structure'!E146 -> 14.1 - [Name of sub-vote] | I150: 0
A151: ='Org structure'!E147 -> 0 | I151: 0
A152: ='Org structure'!E148 -> 0 | I152: 0
A153: ='Org structure'!E149 -> 0 | I153: 0
A154: ='Org structure'!E150 -> 0 | I154: 0
A155: ='Org structure'!E151 -> 0 | I155: 0
A156: ='Org structure'!E152 -> 0 | I156: 0
A157: ='Org structure'!E153 -> 0 | I157: 0
A158: ='Org structure'!E154 -> 0 | I158: 0
A159: ='Org structure'!E155 -> 0 | I159: 0
A160: ='Org structure'!A16 -> Vote 15 - [NAME OF VOTE 15] | C160: =SUM(C161:C171) -> 0 | D160: =SUM(D161:D171) -> 0 | E160: 0 | F160: 0 | G160: 0 | H160: 0 | I160: 0 | K160: 0
A161: ='Org structure'!E157 -> 15.1 - [Name of sub-vote] | I161: 0
A162: ='Org structure'!E158 -> 0 | I162: 0
A163: ='Org structure'!E159 -> 0 | I163: 0
A164: ='Org structure'!E160 -> 0 | I164: 0
A165: ='Org structure'!E161 -> 0 | I165: 0
A166: ='Org structure'!E162 -> 0 | I166: 0
A167: ='Org structure'!E163 -> 0 | I167: 0
A168: ='Org structure'!E164 -> 0 | I168: 0
A169: ='Org structure'!E165 -> 0 | I169: 0
A170: 5.1 - Electricity | H170: =D170/12*Instructions!X$14 -> 0 | I170: 0 | K170: =D170 -> 0
A171: ='Org structure'!E166 -> 0 | I171: 0 | L171: =SUM(L78:L81) -> 0 | M171: 0 | N171: 0 | O171: 0 | P171: 0 | Q171: 0 | R171: 0 | S171: 0 | T171: 0 | U171: 0 | V171: 0 | W171: 0
A172: Total Revenue by Vote | B172: 2 | C172: =C6+C17+C28+C39+C50+C61+C72+C83+C94+C105+C116+C127+C138+C149+C160 -> 0 | D172: =D6+D17+D28+D39+D50+D61+D72+D83+D94+D105+D116+D127+D138+D149+D160 -> 9914181611 | E172: 0 | F172: 1060035775 | G172: 1060035775 | H172: 826181801 | I172: 233853973.6 | J172: 0.2830538912 | K172: 9914181611
I173: 0
A174: Expenditure by Vote | B174: 1 | I174: 0
A175: ='Org structure'!A2 -> Vote 1 - City Manager | C175: =SUM(C176:C185) -> 0 | D175: 228589928.7 | E175: 0 | F175: 13003749.01 | G175: 13003749.01 | H175: 19049160.72 | I175: -6045411.714 | J175: -0.3173584286 | K175: 228589928.7
A176: ='Org structure'!E3 -> 1.1 - Internal Audit and Compliance | D176: 32954187.75 | F176: 2236273.08 | G176: 2236273.08 | H176: =D176/12*Instructions!X$14 -> 2746182.312 | I176: -509909.2321 | J176: -0.1856793083 | K176: =D176 -> 32954187.75
A177: ='Org structure'!E4 -> 1.2 - Office of the City Manager | D177: 74782313.62 | F177: 2798059.38 | G177: 2798059.38 | H177: =D177/12*Instructions!X$14 -> 6231859.468 | I177: -3433800.088 | J177: -0.5510073046 | K177: 74782313.62
A178: ='Org structure'!E5 -> 1.3 - Political Support | D178: 110523261 | F178: 7394108.98 | G178: 7394108.98 | H178: =D178/12*Instructions!X$14 -> 9210271.748 | I178: -1816162.768 | J178: -0.1971888363 | K178: 110523261
A179: ='Org structure'!E6 -> 1.4 - Strategic Planning | D179: 10330166.35 | F179: 575307.57 | G179: 575307.57 | H179: =D179/12*Instructions!X$14 -> 860847.1955 | I179: -285539.6256 | J179: -0.3316960629 | K179: 10330166.35
A180: ='Org structure'!E7 -> 0 | I180: 0
A181: ='Org structure'!E8 -> 0 | I181: 0
A182: ='Org structure'!E9 -> 0 | I182: 0
A183: ='Org structure'!E10 -> 0 | I183: 0
A184: ='Org structure'!E11 -> 0 | I184: 0
A185: ='Org structure'!E12 -> 0 | I185: 0
A186: ='Org structure'!A3 -> Vote 2 - City Finance | C186: =SUM(C187:C196) -> 0 | D186: =SUM(D187:D196) -> 1199140482 | E186: =SUM(E187:E196) -> 0 | F186: 26127286.17 | G186: 26127286.17 | H186: 99928373.53 | I186: -73801087.36 | J186: -0.7385398636 | K186: 1199140482
A187: ='Org structure'!E14 -> 2.1 - Asset Management | D187: 83025490.82 | F187: 5441814.12 | G187: 5441814.12 | H187: =D187/12*Instructions!X$14 -> 6918790.902 | I187: -1476976.782 | J187: -0.2134732503 | K187: =D187 -> 83025490.82
A188: ='Org structure'!E15 -> 2.2 - Budget and Treasury Management | D188: 156771459.6 | F188: 6343960.4 | G188: 6343960.4 | H188: =D188/12*Instructions!X$14 -> 13064288.3 | I188: -6720327.899 | J188: -0.5144044394 | K188: 156771459.6
A189: ='Org structure'!E16 -> 2.3 - Expenditure Management | D189: 50763030.63 | F189: 1456532.34 | G189: 1456532.34 | H189: =D189/12*Instructions!X$14 -> 4230252.553 | I189: -2773720.213 | J189: -0.6556866707 | K189: 50763030.63
A190: ='Org structure'!E17 -> 2.4 - Revenue Management | D190: 805548210.6 | F190: 8963430.6 | G190: 8963430.6 | H190: =D190/12*Instructions!X$14 -> 67129017.55 | I190: -58165586.95 | J190: -0.866474575 | K190: 805548210.6
A191: ='Org structure'!E18 -> 2.5 - Supply Chain Management | D191: 103032290.7 | F191: 3921548.71 | G191: 3921548.71 | H191: =D191/12*Instructions!X$14 -> 8586024.225 | I191: -4664475.515 | J191: -0.5432637263 | K191: 103032290.7
A192: ='Org structure'!E19 -> 0 | I192: 0
A193: ='Org structure'!E20 -> 0 | I193: 0
A194: ='Org structure'!E21 -> 0 | I194: 0
A195: ='Org structure'!E22 -> 0 | I195: 0
A196: ='Org structure'!E23 -> 0 | I196: 0
A197: ='Org structure'!A4 -> Vote 3 - Corporate Services | C197: =SUM(C198:C207) -> 0 | D197: 207252148.3 | E197: 0 | F197: 28855585.08 | G197: 28855585.08 | H197: 17271012.36 | I197: 11584572.72 | J197: 0.6707523846 | K197: 207252148.3
A198: ='Org structure'!E25 -> Human Resources Management | D198: 99149068.76 | F198: 23815421.54 | G198: 23815421.54 | H198: =D198/12*Instructions!X$14 -> 8262422.397 | I198: 15552999.14 | J198: 1.882377637 | K198: =D198 -> 99149068.76
A199: ='Org structure'!E26 -> Information Technology | D199: 54550028.7 | F199: 1184901.77 | G199: 1184901.77 | H199: =D199/12*Instructions!X$14 -> 4545835.725 | I199: =G199-H199 -> -3360933.955 | J199: =IF(I199=0,"",I199/H199) -> -0.7393434691 | K199: 54550028.7
A200: ='Org structure'!E27 -> Legal Services | D200: 16880430.62 | F200: 962138.26 | G200: 962138.26 | H200: =D200/12*Instructions!X$14 -> 1406702.552 | I200: -444564.2917 | J200: -0.3160329034 | K200: 16880430.62
... 149 more rows

Sheet C4-FinPerf RE
A1: =Muni2& " - "&S71B& " - "&date -> KZN225 Msunduzi - Table C4 Monthly Budget Statement - Financial Performance (revenue and expenditure) - M01 July
A2: =desc -> Description | B2: =head27 -> Ref | C2: =Head1 -> 2024/25 | D2: =Head2 -> Budget Year 2025/26
C3: =Head5 -> Audited Outcome | D3: =Head6 -> Original Budget | E3: =Head7 -> Adjusted Budget | F3: =Head38 -> Monthly actual | G3: =Head39 -> YearTD actual | H3: =Head40 -> YearTD budget | I3: =Head41 -> YTD variance | J3: =Head41 -> YTD variance | K3: =Head8 -> Full Year Forecast
A4: R thousands | J4: %
A5: Revenue
A6: Exchange Revenue
A7: Service charges - Electricity | D7: 4702555292 | F7: 353058648.3 | G7: 353058648.3 | H7: =D7/12*Instructions!X$14 -> 391879607.7 | I7: =G7-H7 -> -38820959.4 | J7: =IF(I7=0,"",I7/H7) -> -0.09906348438 | K7: =D7 -> 4702555292
A8: Service charges - Water | D8: 1161224094 | F8: 90183585.7 | G8: 90183585.7 | H8: =D8/12*Instructions!X$14 -> 96768674.5 | I8: -6585088.8 | J8: -0.06804979849 | K8: =D8 -> 1161224094
A9: Service charges - Waste Water Management | D9: 229216321 | F9: 21355741.71 | G9: 21355741.71 | H9: =D9/12*Instructions!X$14 -> 19101360.08 | I9: 2254381.627 | J9: 0.1180220475 | K9: 229216321
A10: Service charges - Waste management | D10: 166268131 | F10: 14392256.13 | G10: 14392256.13 | H10: =D10/12*Instructions!X$14 -> 13855677.58 | I10: 536578.5467 | J10: 0.03872625813 | K10: 166268131
A11: Sale of Goods and Rendering of Services | D11: 23403150 | F11: 0 | G11: 0 | H11: =D11/12*Instructions!X$14 -> 1950262.5 | I11: -1950262.5 | J11: -1 | K11: 23403150
A12: Agency services | D12: 5507583 | F12: 381928 | G12: 381928 | H12: =D12/12*Instructions!X$14 -> 458965.25 | I12: -77037.25 | J12: -0.1678498536 | K12: 5507583
A13: Interest | D13: 0 | F13: 0 | G13: 0 | H13: =D13/12*Instructions!X$14 -> 0 | I13: 0 | K13: 0
A14: Interest earned from Receivables | D14: 0 | F14: 47797160.99 | G14: 47797160.99 | H14: =D14/12*Instructions!X$14 -> 0 | I14: 47797160.99 | K14: 0
A15: Interest from Current and Non Current Assets | D15: 256056786 | F15: 0 | G15: 0 | H15: =D15/12*Instructions!X$14 -> 21338065.5 | I15: -21338065.5 | J15: -1 | K15: 256056786
A16: Dividends | D16: 19996228 | F16: 0 | G16: 0 | H16: =D16/12*Instructions!X$14 -> 1666352.333 | I16: -1666352.333 | J16: -1 | K16: 19996228
A17: Rent on Land | D17: 0 | F17: 0 | G17: 0 | H17: =D17/12*Instructions!X$14 -> 0 | I17: 0 | K17: 0
A18: Rental from Fixed Assets | D18: 44671740 | F18: 2525353.01 | G18: 2525353.01 | H18: =D18/12*Instructions!X$14 -> 3722645 | I18: -1197291.99 | J18: -0.3216240039 | K18: 44671740
A19: Licence and permits | D19: 3096657 | F19: 245890.34 | G19: 245890.34 | H19: =D19/12*Instructions!X$14 -> 258054.75 | I19: -12164.41 | J19: -0.04713887266 | K19: 3096657
A20: Other revenue | F20: 4185019.88 | G20: 4185019.88 | H20: =D20/12*Instructions!X$14 -> 0 | I20: =G20-H20 -> 4185019.88 | J20: =IF(I20=0,"",I20/H20) ->  | K20: =D20 -> 0
A21: Special rating levies | D21: 0 | F21: 0 | G21: 0 | H21: =D21/12*Instructions!X$14 -> 0 | I21: 0 | K21: 0
A22: Operational Revenue | D22: 102111695 | H22: =D22/12*Instructions!X$14 -> 8509307.917 | I22: -8509307.917 | J22: -1 | K22: 102111695
A23: Non-Exchange Revenue | F23: 0 | G23: 0 | H23: =D23/12*Instructions!X$14 -> 0 | I23: 0 | K23: 0
A24: Property rates | D24: 1721664641 | F24: 142227870.5 | G24: 142227870.5 | H24: =D24/12*Instructions!X$14 -> 143472053.4 | I24: -1244182.917 | J24: -0.008671953088 | K24: 1721664641
A25: Surcharges and Taxes | D25: 0 | H25: =D25/12*Instructions!X$14 -> 0 | I25: 0 | K25: 0
A26: Fines, penalties and forfeits | D26: 12213207 | F26: 955049.47 | G26: 955049.47 | H26: =D26/12*Instructions!X$14 -> 1017767.25 | I26: -62717.78 | J26: -0.06162291035 | K26: 12213207
A27: Licence and permits | D27: 0 | H27: =D27/12*Instructions!X$14 -> 0 | I27: 0 | K27: 0
A28: Transfers and subsidies - Operational | D28: 1017128645 | F28: 367744494.6 | G28: 367744494.6 | H28: =D28/12*Instructions!X$14 -> 84760720.42 | I28: 282983774.2 | J28: 3.338619266 | K28: 1017128645
A29: Interest | D29: 66114156 | F29: 2761729.04 | G29: 2761729.04 | H29: =D29/12*Instructions!X$14 -> 5509513 | I29: -2747783.96 | J29: -0.4987344544 | K29: 66114156
A30: Fuel Levy | D30: 0 | H30: =D30/12*Instructions!X$14 -> 0 | I30: 0 | K30: 0
A31: Operational Revenue | D31: 0 | H31: =D31/12*Instructions!X$14 -> 0 | I31: 0 | K31: 0
A32: Gains on disposal of Assets | D32: 4276765 | H32: =D32/12*Instructions!X$14 -> 356397.0833 | I32: -356397.0833 | J32: -1 | K32: 4276765
A33: Other Gains | D33: 0 | F33: 452888.83 | G33: 452888.83 | H33: =D33/12*Instructions!X$14 -> 0 | I33: 452888.83 | K33: 0
A34: Discontinued Operations | D34: 0 | H34: =D34/12*Instructions!X$14 -> 0 | I34: 0 | K34: 0
A35: Total Revenue (excluding capital transfers and contributions) | C35: =SUM(C7:C22)+SUM(C24:C34) -> 0 | D35: 9535505091 | E35: 0 | F35: 1048267616 | G35: 1048267616 | H35: 794625424.3 | I35: =G35-H35 -> 253642192.2 | J35: 0.319197177 | K35: =SUM(K7:K22)+SUM(K24:K34) -> 9535505091
A36: Expenditure By Type
A37: Employee related costs | D37: 1900194538 | F37: 130193473.8 | G37: 130193473.8 | H37: =D37/12*Instructions!X$14 -> 158349544.8 | I37: =G37-H37 -> -28156071.03 | J37: =IF(I37=0,"",I37/H37) -> -0.1778096114 | K37: =D37 -> 1900194538
A38: Remuneration of councillors | D38: 70449647 | F38: 4836489.64 | G38: 4836489.64 | H38: =D38/12*Instructions!X$14 -> 5870803.917 | I38: -1034314.277 | J38: -0.1761793259 | K38: 70449647
A39: Bulk purchases - electricity | D39: 3522533168 | F39: 351192604.9 | G39: 351192604.9 | H39: =D39/12*Instructions!X$14 -> 293544430.7 | I39: 57648174.25 | J39: 0.1963865372 | K39: 3522533168
A40: Inventory consumed | D40: 995038710 | F40: 108644928.2 | G40: 108644928.2 | H40: =D40/12*Instructions!X$14 -> 82919892.5 | I40: 25725035.72 | J40: 0.3102396174 | K40: 995038710
A41: Debt impairment | D41: 420000000 | F41: 467857.47 | G41: 467857.47 | H41: =D41/12*Instructions!X$14 -> 35000000 | I41: -34532142.53 | J41: -0.9866326437 | K41: 420000000
A42: Depreciation and amortisation | D42: 390011595 | F42: 28534714.51 | G42: 28534714.51 | H42: =D42/12*Instructions!X$14 -> 32500966.25 | I42: -3966251.74 | J42: -0.1220348869 | K42: 390011595
A43: Interest | D43: 56180000 | F43: 3602920.86 | G43: 3602920.86 | H43: =D43/12*Instructions!X$14 -> 4681666.667 | I43: -1078745.807 | J43: -0.2304191826 | K43: 56180000
A44: Contracted services | D44: 811629311 | F44: 14455484.75 | G44: 14455484.75 | H44: =D44/12*Instructions!X$14 -> 67635775.92 | I44: -53180291.17 | J44: -0.786274578 | K44: 811629311
A45: Transfers and subsidies | D45: 72456937 | F45: 3283140.01 | G45: 3283140.01 | H45: =D45/12*Instructions!X$14 -> 6038078.083 | I45: -2754938.073 | J45: -0.4562607564 | K45: 72456937
A46: Irrecoverable debts written off | F46: 0 | G46: 0 | H46: =D46/12*Instructions!X$14 -> 0 | I46: 0 | K46: 0
A47: Other expenditure | H47: =D47/12*Instructions!X$14 -> 0 | I47: =G47-H47 -> 0 | J47: =IF(I47=0,"",I47/H47) ->  | K47: =D47 -> 0
A48: Operational costs | D48: 224708028 | F48: 26734928.64 | G48: 26734928.64 | H48: =D48/12*Instructions!X$14 -> 18725669 | I48: 8009259.64 | J48: 0.4277155406 | K48: 224708028
A49: Losses on Disposal of Assets | F49: 0 | G49: 0 | H49: =D49/12*Instructions!X$14 -> 0 | I49: 0 | K49: 0
A50: Other Losses | F50: 0 | G50: 0 | H50: =D50/12*Instructions!X$14 -> 0 | I50: 0 | K50: 0
A51: Total Expenditure | C51: =SUM(C37:C50) -> 0 | D51: 8463201934 | E51: 0 | F51: 671946542.8 | G51: 671946542.8 | H51: 705266827.8 | I51: =G51-H51 -> -33320285.01 | J51: -0.0472449344 | K51: =SUM(K37:K50) -> 8463201934
A52: Surplus/(Deficit) | C52: =C35-C51 -> 0 | D52: 1072303157 | E52: 0 | F52: 376321073.7 | G52: 376321073.7 | H52: =H35-H51 -> 89358596.46 | I52: =I35-I51 -> 286962477.2 | J52: 3.211358376 | K52: =K35-K51 -> 1072303157
A53: Transfers and subsidies - capital (monetary allocations) | D53: 378676520 | F53: 11768158.06 | G53: 11768158.06 | H53: =D53/12*Instructions!X$14 -> 31556376.67 | I53: =G53-H53 -> -19788218.61 | J53: -0.6270751175 | K53: =D53 -> 378676520
A54: Transfers and subsidies - capital (in-kind) | F54: 0 | G54: 0 | H54: =D54/12*Instructions!X$14 -> 0 | I54: =G54-H54 -> 0 | K54: 0
A55: Surplus/(Deficit) after capital transfers & contributions | C55: =C52+SUM(C53:C54) -> 0 | D55: 1450979677 | E55: 0 | F55: 388089231.7 | G55: 388089231.7 | H55: 120914973.1 | I55: =G55-H55 -> 267174258.6 | J55: 2.209604416 | K55: =K52+SUM(K53:K54) -> 1450979677
A56: Income Tax | H56: =D56/12*Instructions!X$14 -> 0 | I56: =G56-H56 -> 0 | K56: =D56 -> 0
A57: Surplus/(Deficit) after income tax | C57: =C55-C56 -> 0 | D57: 1450979677 | E57: 0 | F57: 388089231.7 | G57: 388089231.7 | H57: 120914973.1 | I57: 267174258.6 | J57: 2.209604416 | K57: =K55-K56 -> 1450979677
A58: Share of Surplus/Deficit attributable to Joint Venture | H58: =D58/12*Instructions!X$14 -> 0 | I58: 0 | K58: =D58 -> 0
A59: Share of Surplus/Deficit attributable to Minorities | H59: =D59/12*Instructions!X$14 -> 0 | I59: 0 | K59: 0
A60: Surplus/(Deficit) attributable to municipality | C60: =SUM(C57:C59) -> 0 | D60: 1450979677 | E60: 0 | F60: 388089231.7 | G60: 388089231.7 | H60: 120914973.1 | I60: 267174258.6 | J60: 2.209604416 | K60: =SUM(K57:K59) -> 1450979677
A61: Share of Surplus/Deficit attributable to Associate | H61: =D61/12*Instructions!X$14 -> 0 | I61: 0
A62: Intercompany/Parent subsidiary transactions | H62: =D62/12*Instructions!X$14 -> 0 | I62: 0
A63: Surplus/ (Deficit) for the year | C63: =SUM(C60:C62) -> 0 | D63: 1450979677 | E63: 0 | F63: 388089231.7 | G63: 388089231.7 | H63: 120914973.1 | I63: 267174258.6 | J63: 2.209604416 | K63: =SUM(K60:K62) -> 1450979677
A64: =head27a -> References
A65: 1. Material variances to be explained on Table SC1
A68: =A35&" including capital transfers/contributions etc" -> Total Revenue (excluding capital transfers and contributions) including capital transfers/contributions etc | C68: =C35+SUM(C53:C54) -> 0 | D68: 9914181611 | E68: 0 | F68: 1060035775 | G68: 1060035775 | H68: 826181801 | I68: 233853973.6 | K68: =K35+SUM(K53:K54) -> 9914181611

Sheet C5-Capex
A1: =Muni2& " - "&S71D& " - "&date -> KZN225 Msunduzi - Table C5 Monthly Budget Statement - Capital Expenditure (municipal vote, functional classification and funding) - M01 July
A2: =Vdesc -> Vote Description | B2: =head27 -> Ref | C2: =Head1 -> 2024/25 | D2: =Head2 -> Budget Year 2025/26
C3: =Head5 -> Audited Outcome | D3: =Head6 -> Original Budget | E3: =Head7 -> Adjusted Budget | F3: =Head38 -> Monthly actual | G3: =Head39 -> YearTD actual | H3: =Head40 -> YearTD budget | I3: =Head41 -> YTD variance | J3: =Head41 -> YTD variance | K3: =Head8 -> Full Year Forecast
A4: R thousands | B4: 1 | J4: %
A5: Multi-Year expenditure appropriation | B5: 2
A6: ='Org structure'!A2 -> Vote 1 - City Manager | C6: ='C5C'!C7 -> 0 | D6: ='C5C'!D7 -> 0 | E6: ='C5C'!E7 -> 0 | F6: ='C5C'!F7 -> 0 | G6: ='C5C'!G7 -> 0 | H6: ='C5C'!H7 -> 0 | I6: =G6-H6 -> 0 | J6: =IF(I6=0,"",I6/H6) ->  | K6: ='C5C'!K7 -> 0
A7: ='Org structure'!A3 -> Vote 2 - City Finance | C7: ='C5C'!C18 -> 0 | D7: ='C5C'!D18 -> 45000000 | E7: ='C5C'!E18 -> 0 | F7: ='C5C'!F18 -> 0 | G7: ='C5C'!G18 -> 0 | H7: ='C5C'!H18 -> 3750000 | I7: =G7-H7 -> -3750000 | J7: =IF(I7=0,"",I7/H7) -> -1 | K7: ='C5C'!K18 -> 45000000
A8: ='Org structure'!A4 -> Vote 3 - Corporate Services | C8: ='C5C'!C29 -> 0 | D8: ='C5C'!D29 -> 10000000 | E8: ='C5C'!E29 -> 0 | F8: ='C5C'!F29 -> 0 | G8: ='C5C'!G29 -> 0 | H8: ='C5C'!H29 -> 833333.3333 | I8: =G8-H8 -> -833333.3333 | J8: =IF(I8=0,"",I8/H8) -> -1 | K8: ='C5C'!K29 -> 10000000
A9: ='Org structure'!A5 -> Vote 4 - Community Services and Social Equity | C9: ='C5C'!C40 -> 0 | D9: ='C5C'!D40 -> 15966720 | E9: ='C5C'!E40 -> 0 | F9: ='C5C'!F40 -> 0 | G9: ='C5C'!G40 -> 0 | H9: ='C5C'!H40 -> 1330560 | I9: -1330560 | J9: -1 | K9: ='C5C'!K40 -> 15966720
A10: ='Org structure'!A6 -> Vote 5 - Infrastructure Services | C10: ='C5C'!C51 -> 0 | D10: ='C5C'!D51 -> 346701440 | E10: ='C5C'!E51 -> 0 | F10: ='C5C'!F51 -> 9656024.33 | G10: ='C5C'!G51 -> 9656024.33 | H10: ='C5C'!H51 -> 28891786.67 | I10: -19235762.34 | J10: -0.6657865281 | K10: ='C5C'!K51 -> 346701440
A11: ='Org structure'!A7 -> Vote 6 - Sustainable Development and City Enterprises | C11: ='C5C'!C62 -> 0 | D11: ='C5C'!D62 -> 30000000 | E11: ='C5C'!E62 -> 0 | F11: ='C5C'!F62 -> 0 | G11: ='C5C'!G62 -> 0 | H11: ='C5C'!H62 -> 2500000 | I11: -2500000 | J11: -1 | K11: ='C5C'!K62 -> 30000000
A12: ='Org structure'!A8 -> Vote 7 - Electricity | C12: ='C5C'!C73 -> 0 | D12: ='C5C'!D73 -> 196987966.5 | E12: ='C5C'!E73 -> 0 | F12: ='C5C'!F73 -> 888583.34 | G12: ='C5C'!G73 -> 888583.34 | H12: ='C5C'!H73 -> 16415663.87 | I12: -15527080.53 | J12: -0.9458697896 | K12: ='C5C'!K73 -> 196987966.5
A13: ='Org structure'!A9 -> Vote 8 - [NAME OF VOTE 8] | C13: ='C5C'!C84 -> 0 | D13: ='C5C'!D84 -> 0 | E13: ='C5C'!E84 -> 0 | F13: ='C5C'!F84 -> 0 | G13: ='C5C'!G84 -> 0 | H13: ='C5C'!H84 -> 0 | I13: 0 | K13: ='C5C'!K84 -> 0
A14: ='Org structure'!A10 -> Vote 9 - [NAME OF VOTE 9] | C14: ='C5C'!C95 -> 0 | D14: ='C5C'!D95 -> 0 | E14: ='C5C'!E95 -> 0 | F14: ='C5C'!F95 -> 0 | G14: ='C5C'!G95 -> 0 | H14: ='C5C'!H95 -> 0 | I14: 0 | K14: ='C5C'!K95 -> 0
A15: ='Org structure'!A11 -> Vote 10 - [NAME OF VOTE 10] | C15: ='C5C'!C106 -> 0 | D15: ='C5C'!D106 -> 0 | E15: ='C5C'!E106 -> 0 | F15: ='C5C'!F106 -> 0 | G15: ='C5C'!G106 -> 0 | H15: ='C5C'!H106 -> 0 | I15: 0 | K15: ='C5C'!K106 -> 0
A16: ='Org structure'!A12 -> Vote 11 - [NAME OF VOTE 11] | C16: ='C5C'!C117 -> 0 | D16: ='C5C'!D117 -> 0 | E16: ='C5C'!E117 -> 0 | F16: ='C5C'!F117 -> 0 | G16: ='C5C'!G117 -> 0 | H16: ='C5C'!H117 -> 0 | I16: 0 | K16: ='C5C'!K117 -> 0
A17: ='Org structure'!A13 -> Vote 12 - [NAME OF VOTE 12] | C17: ='C5C'!C128 -> 0 | D17: ='C5C'!D128 -> 0 | E17: ='C5C'!E128 -> 0 | F17: ='C5C'!F128 -> 0 | G17: ='C5C'!G128 -> 0 | H17: ='C5C'!H128 -> 0 | I17: 0 | K17: ='C5C'!K128 -> 0
A18: ='Org structure'!A14 -> Vote 13 - [NAME OF VOTE 13] | C18: ='C5C'!C139 -> 0 | D18: ='C5C'!D139 -> 0 | E18: ='C5C'!E139 -> 0 | F18: ='C5C'!F139 -> 0 | G18: ='C5C'!G139 -> 0 | H18: ='C5C'!H139 -> 0 | I18: =G18-H18 -> 0 | J18: =IF(I18=0,"",I18/H18) ->  | K18: ='C5C'!K139 -> 0
A19: ='Org structure'!A15 -> Vote 14 - [NAME OF VOTE 14] | C19: ='C5C'!C150 -> 0 | D19: ='C5C'!D150 -> 0 | E19: ='C5C'!E150 -> 0 | F19: ='C5C'!F150 -> 0 | G19: ='C5C'!G150 -> 0 | H19: ='C5C'!H150 -> 0 | I19: =G19-H19 -> 0 | J19: =IF(I19=0,"",I19/H19) ->  | K19: ='C5C'!K150 -> 0
A20: ='Org structure'!A16 -> Vote 15 - [NAME OF VOTE 15] | C20: ='C5C'!C161 -> 0 | D20: ='C5C'!D161 -> 0 | E20: ='C5C'!E161 -> 0 | F20: ='C5C'!F161 -> 0 | G20: ='C5C'!G161 -> 0 | H20: ='C5C'!H161 -> 0 | I20: =G20-H20 -> 0 | J20: =IF(I20=0,"",I20/H20) ->  | K20: ='C5C'!K161 -> 0
A21: Total Capital Multi-year expenditure | B21: 4,7 | C21: =SUM(C6:C20) -> 0 | D21: =SUM(D6:D20) -> 644656126.5 | E21: 0 | F21: 10544607.67 | G21: 10544607.67 | H21: 53721343.87 | I21: -43176736.2 | J21: =IF(I21=0,"",I21/H21) -> -0.8037166067 | K21: =SUM(K6:K20) -> 644656126.5
A23: Single Year expenditure appropriation | B23: 2
A24: ='Org structure'!A2 -> Vote 1 - City Manager | C24: ='C5C'!C177 -> 0 | D24: ='C5C'!D177 -> 0 | E24: ='C5C'!E177 -> 0 | F24: ='C5C'!F177 -> 0 | G24: ='C5C'!G177 -> 0 | H24: ='C5C'!H177 -> 0 | I24: ='C5C'!I177 -> 0 | J24: =IF(I24=0,"",I24/H24) ->  | K24: ='C5C'!K177 -> 0
A25: ='Org structure'!A3 -> Vote 2 - City Finance | C25: ='C5C'!C188 -> 0 | D25: ='C5C'!D188 -> 8000000 | E25: ='C5C'!E188 -> 0 | F25: ='C5C'!F188 -> 0 | G25: ='C5C'!G188 -> 0 | H25: ='C5C'!H188 -> 666666.6667 | I25: ='C5C'!I188 -> -666666.6667 | J25: =IF(I25=0,"",I25/H25) -> -1 | K25: ='C5C'!K188 -> 8000000
A26: ='Org structure'!A4 -> Vote 3 - Corporate Services | C26: ='C5C'!C199 -> 0 | D26: ='C5C'!D199 -> 0 | E26: ='C5C'!E199 -> 0 | F26: ='C5C'!F199 -> 0 | G26: ='C5C'!G199 -> 0 | H26: ='C5C'!H199 -> 0 | I26: ='C5C'!I199 -> 0 | K26: ='C5C'!K199 -> 0
A27: ='Org structure'!A5 -> Vote 4 - Community Services and Social Equity | C27: ='C5C'!C210 -> 0 | D27: ='C5C'!D210 -> 1200000 | E27: ='C5C'!E210 -> 0 | F27: ='C5C'!F210 -> 0 | G27: ='C5C'!G210 -> 0 | H27: ='C5C'!H210 -> 100000 | I27: ='C5C'!I210 -> -100000 | J27: -1 | K27: ='C5C'!K210 -> 1200000
A28: ='Org structure'!A6 -> Vote 5 - Infrastructure Services | C28: ='C5C'!C221 -> 0 | D28: ='C5C'!D221 -> 0 | E28: ='C5C'!E221 -> 0 | F28: ='C5C'!F221 -> 0 | G28: ='C5C'!G221 -> 0 | H28: ='C5C'!H221 -> 0 | I28: ='C5C'!I221 -> 0 | K28: ='C5C'!K221 -> 0
A29: ='Org structure'!A7 -> Vote 6 - Sustainable Development and City Enterprises | C29: ='C5C'!C232 -> 0 | D29: ='C5C'!D232 -> 0 | E29: ='C5C'!E232 -> 0 | F29: ='C5C'!F232 -> 0 | G29: ='C5C'!G232 -> 0 | H29: ='C5C'!H232 -> 0 | I29: ='C5C'!I232 -> 0 | K29: ='C5C'!K232 -> 0
A30: ='Org structure'!A8 -> Vote 7 - Electricity | C30: ='C5C'!C243 -> 0 | D30: ='C5C'!D243 -> 0 | E30: ='C5C'!E243 -> 0 | F30: ='C5C'!F243 -> 0 | G30: ='C5C'!G243 -> 0 | H30: ='C5C'!H243 -> 0 | I30: ='C5C'!I243 -> 0 | K30: ='C5C'!K243 -> 0
A31: ='Org structure'!A9 -> Vote 8 - [NAME OF VOTE 8] | C31: ='C5C'!C254 -> 0 | D31: ='C5C'!D254 -> 0 | E31: ='C5C'!E254 -> 0 | F31: ='C5C'!F254 -> 0 | G31: ='C5C'!G254 -> 0 | H31: ='C5C'!H254 -> 0 | I31: ='C5C'!I254 -> 0 | K31: ='C5C'!K254 -> 0
A32: ='Org structure'!A10 -> Vote 9 - [NAME OF VOTE 9] | C32: ='C5C'!C265 -> 0 | D32: ='C5C'!D265 -> 0 | E32: ='C5C'!E265 -> 0 | F32: ='C5C'!F265 -> 0 | G32: ='C5C'!G265 -> 0 | H32: ='C5C'!H265 -> 0 | I32: ='C5C'!I265 -> 0 | K32: ='C5C'!K265 -> 0
A33: ='Org structure'!A11 -> Vote 10 - [NAME OF VOTE 10] | C33: ='C5C'!C276 -> 0 | D33: ='C5C'!D276 -> 0 | E33: ='C5C'!E276 -> 0 | F33: ='C5C'!F276 -> 0 | G33: ='C5C'!G276 -> 0 | H33: ='C5C'!H276 -> 0 | I33: ='C5C'!I276 -> 0 | K33: ='C5C'!K276 -> 0
A34: ='Org structure'!A12 -> Vote 11 - [NAME OF VOTE 11] | C34: ='C5C'!C287 -> 0 | D34: ='C5C'!D287 -> 0 | E34: ='C5C'!E287 -> 0 | F34: ='C5C'!F287 -> 0 | G34: ='C5C'!G287 -> 0 | H34: ='C5C'!H287 -> 0 | I34: ='C5C'!I287 -> 0 | K34: ='C5C'!K287 -> 0
A35: ='Org structure'!A13 -> Vote 12 - [NAME OF VOTE 12] | C35: ='C5C'!C298 -> 0 | D35: ='C5C'!D298 -> 0 | E35: ='C5C'!E298 -> 0 | F35: ='C5C'!F298 -> 0 | G35: ='C5C'!G298 -> 0 | H35: ='C5C'!H298 -> 0 | I35: ='C5C'!I298 -> 0 | K35: ='C5C'!K298 -> 0
A36: ='Org structure'!A14 -> Vote 13 - [NAME OF VOTE 13] | C36: ='C5C'!C309 -> 0 | D36: ='C5C'!D309 -> 0 | E36: ='C5C'!E309 -> 0 | F36: ='C5C'!F309 -> 0 | G36: ='C5C'!G309 -> 0 | H36: ='C5C'!H309 -> 0 | I36: ='C5C'!I309 -> 0 | K36: ='C5C'!K309 -> 0
A37: ='Org structure'!A15 -> Vote 14 - [NAME OF VOTE 14] | C37: ='C5C'!C320 -> 0 | D37: ='C5C'!D320 -> 0 | E37: ='C5C'!E320 -> 0 | F37: ='C5C'!F320 -> 0 | G37: ='C5C'!G320 -> 0 | H37: ='C5C'!H320 -> 0 | I37: ='C5C'!I320 -> 0 | K37: ='C5C'!K320 -> 0
A38: ='Org structure'!A16 -> Vote 15 - [NAME OF VOTE 15] | C38: ='C5C'!C331 -> 0 | D38: ='C5C'!D331 -> 0 | E38: ='C5C'!E331 -> 0 | F38: ='C5C'!F331 -> 0 | G38: ='C5C'!G331 -> 0 | H38: ='C5C'!H331 -> 0 | I38: ='C5C'!I331 -> 0 | K38: ='C5C'!K331 -> 0
A39: Total Capital single-year expenditure | B39: 4 | C39: =SUM(C24:C38) -> 0 | D39: 9200000 | E39: 0 | F39: 0 | G39: 0 | H39: 766666.6667 | I39: -766666.6667 | J39: -1 | K39: =SUM(K24:K38) -> 9200000
A40: Total Capital Expenditure | C40: =C39+C21 -> 0 | D40: 653856126.5 | E40: 0 | F40: 10544607.67 | G40: 10544607.67 | H40: 54488010.54 | I40: -43943402.87 | J40: =IF(I40=0,"",I40/H40) -> -0.8064783873 | K40: =K39+K21 -> 653856126.5
A42: Capital Expenditure - Functional Classification
A43: Governance and administration | C43: =SUM(C44:C46) -> 0 | D43: 58000000 | E43: 0 | F43: 0 | G43: 0 | H43: 4833333.333 | I43: =G43-H43 -> -4833333.333 | J43: =IF(I43=0,"",I43/H43) -> -1 | K43: =SUM(K44:K46) -> 58000000
A44: Executive and council | H44: =D44/12*Instructions!X$14 -> 0 | I44: 0 | J44: =IF(I44=0,"",I44/H44) ->  | K44: =D44 -> 0
A45: Finance and administration | D45: 58000000 | H45: =D45/12*Instructions!X$14 -> 4833333.333 | I45: -4833333.333 | J45: -1 | K45: =D45 -> 58000000
A46: Internal audit | D46: 0 | H46: =D46/12*Instructions!X$14 -> 0 | I46: 0 | K46: 0
A47: Community and public safety | C47: =SUM(C48:C52) -> 0 | D47: 17166720 | E47: 0 | F47: 0 | G47: 0 | H47: 1430560 | I47: -1430560 | J47: -1 | K47: =SUM(K48:K52) -> 17166720
A48: Community and social services | D48: 17166720 | H48: =D48/12*Instructions!X$14 -> 1430560 | I48: -1430560 | J48: -1 | K48: =D48 -> 17166720
A49: Sport and recreation | H49: =D49/12*Instructions!X$14 -> 0 | I49: 0 | K49: 0
A50: Public safety | H50: =D50/12*Instructions!X$14 -> 0 | I50: 0 | K50: 0
A51: Housing | H51: =D51/12*Instructions!X$14 -> 0 | I51: 0 | K51: 0
A52: Health | H52: =D52/12*Instructions!X$14 -> 0 | I52: 0 | K52: 0
A53: Economic and environmental services | C53: =SUM(C54:C56) -> 0 | D53: 160584000 | E53: 0 | F53: 3415068.82 | G53: 3415068.82 | H53: 13382000 | I53: -9966931.18 | J53: -0.7448013137 | K53: =SUM(K54:K56) -> 160584000
A54: Planning and development | D54: 30000000 | F54: 0 | G54: 0 | H54: =D54/12*Instructions!X$14 -> 2500000 | I54: -2500000 | J54: -1 | K54: =D54 -> 30000000
A55: Road transport | D55: 130584000 | F55: 3415068.82 | G55: 3415068.82 | H55: =D55/12*Instructions!X$14 -> 10882000 | I55: -7466931.18 | J55: -0.686172687 | K55: 130584000
A56: Environmental protection | D56: 0 | F56: 0 | G56: 0 | H56: =D56/12*Instructions!X$14 -> 0 | I56: 0 | K56: 0
A57: Trading services | C57: =SUM(C58:C61) -> 0 | D57: 418105407 | E57: 0 | F57: 7129538.85 | G57: 7129538.85 | H57: 34842117.25 | I57: -27712578.4 | J57: -0.7953758436 | K57: =SUM(K58:K61) -> 418105407
A58: Energy sources | D58: 196987967 | F58: 888583.34 | G58: 888583.34 | H58: =D58/12*Instructions!X$14 -> 16415663.92 | I58: -15527080.58 | J58: -0.9458697897 | K58: =D58 -> 196987967
A59: Water management | D59: 108900000 | F59: 1110000 | G59: 1110000 | H59: =D59/12*Instructions!X$14 -> 9075000 | I59: -7965000 | J59: -0.8776859504 | K59: 108900000
A60: Waste water management | D60: 112217440 | F60: 5130955.51 | G60: 5130955.51 | H60: =D60/12*Instructions!X$14 -> 9351453.333 | I60: -4220497.823 | J60: -0.4513199898 | K60: 112217440
A61: Waste management | F61: 0 | G61: 0 | H61: =D61/12*Instructions!X$14 -> 0 | I61: 0 | K61: 0
A62: Other | F62: 0 | G62: 0 | H62: =D62/12*Instructions!X$14 -> 0 | I62: 0 | K62: 0
A63: Total Capital Expenditure - Functional Classification | B63: 3 | C63: =C43+C47+C53+C57+C62 -> 0 | D63: =D43+D47+D53+D57+D62 -> 653856127 | E63: 0 | F63: 10544607.67 | G63: 10544607.67 | H63: 54488010.58 | I63: -43943402.91 | J63: -0.8064783875 | K63: =K43+K47+K53+K57+K62 -> 653856127
A65: Funded by:
A66: National Government | D66: 376126520 | F66: 10628808.31 | G66: 10628808.31 | H66: =D66/12*Instructions!X$14 -> 31343876.67 | I66: =G66-H66 -> -20715068.36 | J66: =IF(I66=0,"",I66/H66) -> -0.6608968181 | K66: =D66 -> 376126520
A67: Provincial Government | D67: 2550000 | F67: 0 | G67: 0 | H67: =D67/12*Instructions!X$14 -> 212500 | I67: -212500 | J67: -1 | K67: 2550000
A68: District Municipality | H68: =D68/12*Instructions!X$14 -> 0 | I68: 0 | K68: 0
A69: Transfers and subsidies - capital (monetary allocations) (Nat / Prov Departm Agencies, Households, Non-profit Institutions, Private Enterprises, Public Corporatons, Higher Educ Institutions) | H69: =D69/12*Instructions!X$14 -> 0 | I69: 0 | K69: 0
A70: Transfers recognised - capital | C70: =SUM(C66:C69) -> 0 | D70: 378676520 | E70: 0 | F70: 10628808.31 | G70: 10628808.31 | H70: 31556376.67 | I70: -20927568.36 | J70: -0.6631803321 | K70: =SUM(K66:K69) -> 378676520
A72: Borrowing | B72: 6 | D72: 177179607 | F72: 888583.34 | G72: 888583.34 | H72: =D72/12*Instructions!X$14 -> 14764967.25 | I72: -13876383.91 | J72: -0.93981813 | K72: =D72 -> 177179607
A73: Internally generated funds | D73: 97999999.49 | F73: -972783.98 | G73: -972783.98 | H73: =D73/12*Instructions!X$14 -> 8166666.624 | I73: -9139450.604 | J73: -1.119116406 | K73: 97999999.49
A74: Total Capital Funding | C74: =+C70+C72+C73 -> 0 | D74: 653856126.5 | E74: 0 | F74: 10544607.67 | G74: 10544607.67 | H74: 54488010.54 | I74: -43943402.87 | J74: -0.8064783873 | K74: =+K70+K72+K73 -> 653856126.5
A75: =head27a -> References
A76: 1. Municipalities may choose to appropriate for capital expenditure for three years or for one year (if one year appropriation projected expenditure required for yr2 and yr3).
A77: 2. Include capital component of PPP unitary payment
A78: 3. Capital expenditure by functional classification must reconcile to the total of multi-year and single year appropriations
A79: 4. Include expenditure on investment property, intangible and biological assets
A81: 6. Include finance leases and PPP capital funding component of unitary payment - total borrowing/repayments to reconcile to changes in Table SA17
A82: 7. Total Capital Funding must balance with Total Capital Expenditure
A86: check balance | C86: =C40-C74 -> 0 | D86: =D40-D74 -> 0 | E86: 0 | F86: 0 | G86: 0 | H86: 0 | K86: 0

Sheet C5C
A1: =Muni2& " - "&S71D& " - "&"A"& " - "&date -> KZN225 Msunduzi - Table C5 Monthly Budget Statement - Capital Expenditure (municipal vote, functional classification and funding) - A - M01 July
A2: =Vdesc -> Vote Description | B2: =head27 -> Ref | C2: =Head1 -> 2024/25 | D2: =Head2 -> Budget Year 2025/26 | L2: =Head4 -> 
A3: R thousand | C3: =Head5 -> Audited Outcome | D3: =Head6 -> Original Budget | E3: =Head7 -> Adjusted Budget | F3: =Head38 -> Monthly actual | G3: =Head39 -> YearTD actual | H3: =Head40 -> YearTD budget | I3: =Head41 -> YTD variance | J3: =Head41 -> YTD variance | K3: =Head8 -> Full Year Forecast | L3: =Head12 -> Forecast 2010/11 | M3: =Head13 -> Forecast 2011/12 | N3: =Head14 -> Forecast 2012/13 | O3: =Head15 -> Forecast 2013/14 | P3: =Head16 -> Forecast 2014/15 | Q3: =Head17 -> Forecast 2015/16 | R3: =Head18 -> Forecast 2016/17 | S3: =Head19 -> Forecast 2017/18 | T3: =Head20 -> Forecast 2018/19 | U3: =Head21 -> Forecast 2019/20 | V3: =Head22 -> Forecast 2020/21 | W3: =Head23 -> Forecast 2021/22
J4: %
A5: Capital expenditure - Municipal Vote
A6: Expenditure of multi-year capital appropriation | B6: 1
A7: ='Org structure'!A2 -> Vote 1 - City Manager | C7: =SUM(C8:C17) -> 0 | D7: =SUM(D8:D17) -> 0 | E7: 0 | F7: 0 | G7: 0 | H7: 0 | I7: =G7-H7 -> 0 | J7: =IF(I7=0,"",I7/H7) ->  | K7: 0
A8: ='Org structure'!E3 -> 1.1 - Internal Audit and Compliance | I8: 0 | K8: =D8 -> 0
A9: ='Org structure'!E4 -> 1.2 - Office of the City Manager | I9: 0 | K9: 0
A10: ='Org structure'!E5 -> 1.3 - Political Support | I10: 0 | K10: 0
A11: ='Org structure'!E6 -> 1.4 - Strategic Planning | I11: 0 | K11: 0
A12: ='Org structure'!E7 -> 0 | I12: 0
A13: ='Org structure'!E8 -> 0 | I13: 0
A14: ='Org structure'!E9 -> 0 | I14: 0
A15: ='Org structure'!E10 -> 0 | I15: 0
A16: ='Org structure'!E11 -> 0 | I16: 0
A17: ='Org structure'!E12 -> 0 | I17: 0
A18: ='Org structure'!A3 -> Vote 2 - City Finance | C18: =SUM(C19:C28) -> 0 | D18: =SUM(D19:D28) -> 45000000 | E18: 0 | F18: 0 | G18: 0 | H18: 3750000 | I18: -3750000 | J18: -1 | K18: 45000000
A19: ='Org structure'!E14 -> 2.1 - Asset Management | I19: 0 | K19: =D19 -> 0
A20: ='Org structure'!E15 -> 2.2 - Budget and Treasury Management | D20: 45000000 | H20: =D20/12*Instructions!X$14 -> 3750000 | I20: -3750000 | J20: -1 | K20: 45000000
A21: ='Org structure'!E16 -> 2.3 - Expenditure Management | I21: 0 | K21: 0
A22: ='Org structure'!E17 -> 2.4 - Revenue Management | I22: 0 | K22: 0
A23: ='Org structure'!E18 -> 2.5 - Supply Chain Management | I23: 0 | K23: 0
A24: ='Org structure'!E19 -> 0 | I24: 0
A25: ='Org structure'!E20 -> 0 | I25: 0
A26: ='Org structure'!E21 -> 0 | I26: 0
A27: ='Org structure'!E22 -> 0 | I27: 0
A28: ='Org structure'!E23 -> 0 | I28: 0
A29: ='Org structure'!A4 -> Vote 3 - Corporate Services | C29: =SUM(C30:C39) -> 0 | D29: 10000000 | E29: 0 | F29: 0 | G29: 0 | H29: 833333.3333 | I29: -833333.3333 | J29: -1 | K29: 10000000
A30: ='Org structure'!E25 -> Human Resources Management | H30: =D30/12*Instructions!X$14 -> 0 | I30: 0 | K30: =D30 -> 0
A31: ='Org structure'!E26 -> Information Technology | D31: 10000000 | H31: =D31/12*Instructions!X$14 -> 833333.3333 | I31: -833333.3333 | J31: -1 | K31: 10000000
A32: ='Org structure'!E27 -> Legal Services | H32: =D32/12*Instructions!X$14 -> 0 | I32: 0 | K32: 0
A33: ='Org structure'!E28 -> Secretariat and Auxiliary Services | H33: =D33/12*Instructions!X$14 -> 0 | I33: 0 | K33: 0
A34: ='Org structure'!E29 -> General Manager: Corporate Service | H34: =D34/12*Instructions!X$14 -> 0 | I34: 0 | K34: 0
A35: ='Org structure'!E30 -> 0 | I35: 0
A36: ='Org structure'!E31 -> 0 | I36: 0
A37: ='Org structure'!E32 -> 0 | I37: 0
A38: ='Org structure'!E33 -> 0 | I38: 0
A39: ='Org structure'!E34 -> 0 | I39: 0
A40: ='Org structure'!A5 -> Vote 4 - Community Services and Social Equity | C40: =SUM(C41:C50) -> 0 | D40: 15966720 | E40: 0 | F40: 0 | G40: 0 | H40: 1330560 | I40: -1330560 | J40: -1 | K40: 15966720
A41: ='Org structure'!E36 -> 4.1 - Area Based Management | H41: =D41/12*Instructions!X$14 -> 0 | I41: 0 | K41: =D41 -> 0
A42: ='Org structure'!E37 -> 4.2 - Public Safety, Emergency Services and Enforcement | H42: =D42/12*Instructions!X$14 -> 0 | I42: 0 | K42: 0
A43: ='Org structure'!E38 -> 4.3 - Recreation and Facilities | D43: 15966720 | H43: =D43/12*Instructions!X$14 -> 1330560 | I43: -1330560 | J43: -1 | K43: 15966720
A44: ='Org structure'!E39 -> 4.4 - Waste Management | H44: =D44/12*Instructions!X$14 -> 0 | I44: 0 | K44: 0
A45: ='Org structure'!E40 -> 4.5 - General Manager: Community Services | H45: =D45/12*Instructions!X$14 -> 0 | I45: 0 | K45: 0
A46: ='Org structure'!E41 -> 0 | I46: 0
A47: ='Org structure'!E42 -> 0 | I47: 0
A48: ='Org structure'!E43 -> 0 | I48: 0
A49: ='Org structure'!E44 -> 0 | I49: 0
A50: ='Org structure'!E45 -> 0 | I50: 0
A51: ='Org structure'!A6 -> Vote 5 - Infrastructure Services | C51: =SUM(C52:C61) -> 0 | D51: =SUM(D52:D61) -> 346701440 | E51: 0 | F51: 9656024.33 | G51: 9656024.33 | H51: 28891786.67 | I51: -19235762.34 | J51: -0.6657865281 | K51: 346701440
A52: ='Org structure'!E47 -> 5.1 - Project Management Office | F52: 0 | G52: 0 | H52: =D52/12*Instructions!X$14 -> 0 | I52: 0 | K52: =D52 -> 0
A53: ='Org structure'!E48 -> 5.2 - Roads and Transportation | D53: 125584000 | F53: 3415068.82 | G53: 3415068.82 | H53: =D53/12*Instructions!X$14 -> 10465333.33 | I53: -7050264.513 | J53: -0.6736779698 | K53: 125584000
A54: ='Org structure'!E49 -> 5.3 - Water and Sanitation | D54: 221117440 | F54: 6240955.51 | G54: 6240955.51 | H54: =D54/12*Instructions!X$14 -> 18426453.33 | I54: -12185497.82 | J54: -0.6613045714 | K54: 221117440
A55: ='Org structure'!E50 -> 5.4 - General Manager: Infrastructure | F55: 0 | G55: 0 | H55: =D55/12*Instructions!X$14 -> 0 | I55: 0 | K55: 0
A56: ='Org structure'!E51 -> 0 | I56: 0
A57: ='Org structure'!E52 -> 0 | I57: 0
A58: ='Org structure'!E53 -> 0 | I58: 0
A59: ='Org structure'!E54 -> 0 | I59: 0
A60: ='Org structure'!E55 -> 0 | I60: 0
A61: ='Org structure'!E56 -> 0 | I61: 0
A62: ='Org structure'!A7 -> Vote 6 - Sustainable Development and City Enterprises | C62: =SUM(C63:C72) -> 0 | D62: =SUM(D63:D72) -> 30000000 | E62: 0 | F62: 0 | G62: 0 | H62: 2500000 | I62: -2500000 | J62: -1 | K62: 30000000
A63: ='Org structure'!E58 -> 6.1 - City Entities | H63: =D63/12*Instructions!X$14 -> 0 | I63: 0 | K63: =D63 -> 0
A64: ='Org structure'!E59 -> 6.2 - Development Services | D64: 30000000 | H64: =D64/12*Instructions!X$14 -> 2500000 | I64: -2500000 | J64: -1 | K64: 30000000
A65: ='Org structure'!E60 -> 6.3 - Human Settlement Development | H65: =D65/12*Instructions!X$14 -> 0 | I65: 0 | K65: 0
A66: ='Org structure'!E61 -> 6.4 - Town Planning | H66: =D66/12*Instructions!X$14 -> 0 | I66: 0 | K66: 0
A67: ='Org structure'!E62 -> 6.5 - General Manager: Sustainable Development and City Enterprises | H67: =D67/12*Instructions!X$14 -> 0 | I67: 0 | K67: 0
A68: ='Org structure'!E63 -> 0 | I68: 0
A69: ='Org structure'!E64 -> 0 | I69: 0
A70: ='Org structure'!E65 -> 0 | I70: 0
A71: ='Org structure'!E66 -> 0 | I71: =G71-H71 -> 0 | J71: =IF(I71=0,"",I71/H71) -> 
A72: ='Org structure'!E67 -> 0 | I72: 0
A73: ='Org structure'!A8 -> Vote 7 - Electricity | C73: =SUM(C74:C83) -> 0 | D73: 196987966.5 | E73: 0 | F73: 888583.34 | G73: 888583.34 | H73: 16415663.87 | I73: -15527080.53 | J73: -0.9458697896 | K73: 196987966.5
A74: ='Org structure'!E69 -> 7.1 Electricity planning | D74: 196987966.5 | F74: 888583.34 | G74: 888583.34 | H74: =D74/12*Instructions!X$14 -> 16415663.87 | I74: -15527080.53 | J74: -0.9458697896 | K74: =D74 -> 196987966.5
A75: ='Org structure'!E70 -> 7.2 Methods and Standards | F75: 0 | G75: 0 | H75: =D75/12*Instructions!X$14 -> 0 | I75: 0 | K75: 0
A76: ='Org structure'!E71 -> 7.3 Operations and Maintenance | F76: 0 | G76: 0 | H76: =D76/12*Instructions!X$14 -> 0 | I76: 0 | K76: 0
A77: ='Org structure'!E72 -> 7.4 Revenue Management | F77: 0 | G77: 0 | H77: =D77/12*Instructions!X$14 -> 0 | I77: 0 | K77: 0
A78: ='Org structure'!E73 -> 7.5 General Manager Electricity | F78: 0 | G78: 0 | H78: =D78/12*Instructions!X$14 -> 0 | I78: 0 | K78: 0
A79: ='Org structure'!E74 -> 0 | F79: 0 | G79: 0 | I79: 0
A80: ='Org structure'!E75 -> 0 | I80: 0
A81: ='Org structure'!E76 -> 0 | I81: 0
A82: ='Org structure'!E77 -> 0 | I82: 0
A83: ='Org structure'!E78 -> 0 | I83: 0
A84: ='Org structure'!A9 -> Vote 8 - [NAME OF VOTE 8] | C84: =SUM(C85:C94) -> 0 | D84: =SUM(D85:D94) -> 0 | E84: 0 | F84: 0 | G84: 0 | H84: 0 | I84: 0 | K84: 0
A85: ='Org structure'!E80 -> 8.1 - [Name of sub-vote] | I85: 0
A86: ='Org structure'!E81 -> 0 | I86: 0
A87: ='Org structure'!E82 -> 0 | I87: 0
A88: ='Org structure'!E83 -> 0 | I88: 0
A89: ='Org structure'!E84 -> 0 | I89: 0
A90: ='Org structure'!E85 -> 0 | I90: 0
A91: ='Org structure'!E86 -> 0 | I91: 0
A92: ='Org structure'!E87 -> 0 | I92: 0
A93: ='Org structure'!E88 -> 0 | I93: 0
A94: ='Org structure'!E89 -> 0 | I94: 0
A95: ='Org structure'!A10 -> Vote 9 - [NAME OF VOTE 9] | C95: =SUM(C96:C105) -> 0 | D95: =SUM(D96:D105) -> 0 | E95: 0 | F95: 0 | G95: 0 | H95: 0 | I95: 0 | K95: 0
A96: ='Org structure'!E91 -> 9.1 - [Name of sub-vote] | I96: 0
A97: ='Org structure'!E92 -> 0 | I97: 0
A98: ='Org structure'!E93 -> 0 | I98: 0
A99: ='Org structure'!E94 -> 0 | I99: 0
A100: ='Org structure'!E95 -> 0 | I100: 0
A101: ='Org structure'!E96 -> 0 | I101: 0
A102: ='Org structure'!E97 -> 0 | I102: 0
A103: ='Org structure'!E98 -> 0 | I103: 0
A104: ='Org structure'!E99 -> 0 | I104: 0
A105: ='Org structure'!E100 -> 0 | I105: 0
A106: ='Org structure'!A11 -> Vote 10 - [NAME OF VOTE 10] | C106: =SUM(C107:C116) -> 0 | D106: =SUM(D107:D116) -> 0 | E106: 0 | F106: 0 | G106: 0 | H106: 0 | I106: 0 | K106: 0
A107: ='Org structure'!E102 -> 10.1 - [Name of sub-vote] | I107: 0
A108: ='Org structure'!E103 -> 0 | I108: 0
A109: ='Org structure'!E104 -> 0 | I109: 0
A110: ='Org structure'!E105 -> 0 | I110: 0
A111: ='Org structure'!E106 -> 0 | I111: 0
A112: ='Org structure'!E107 -> 0 | I112: 0
A113: ='Org structure'!E108 -> 0 | I113: 0
A114: ='Org structure'!E109 -> 0 | I114: 0
A115: ='Org structure'!E110 -> 0 | I115: 0
A116: ='Org structure'!E111 -> 0 | I116: 0
A117: ='Org structure'!A12 -> Vote 11 - [NAME OF VOTE 11] | C117: =SUM(C118:C127) -> 0 | D117: =SUM(D118:D127) -> 0 | E117: 0 | F117: 0 | G117: 0 | H117: 0 | I117: 0 | K117: 0
A118: ='Org structure'!E113 -> 11.1 - [Name of sub-vote] | I118: 0
A119: ='Org structure'!E114 -> 0 | I119: 0
A120: ='Org structure'!E115 -> 0 | I120: 0
A121: ='Org structure'!E116 -> 0 | I121: 0
A122: ='Org structure'!E117 -> 0 | I122: 0
A123: ='Org structure'!E118 -> 0 | I123: 0
A124: ='Org structure'!E119 -> 0 | I124: 0
A125: ='Org structure'!E120 -> 0 | I125: 0
A126: ='Org structure'!E121 -> 0 | I126: 0
A127: ='Org structure'!E122 -> 0 | I127: 0
A128: ='Org structure'!A13 -> Vote 12 - [NAME OF VOTE 12] | C128: =SUM(C129:C138) -> 0 | D128: =SUM(D129:D138) -> 0 | E128: 0 | F128: 0 | G128: 0 | H128: 0 | I128: 0 | K128: 0
A129: ='Org structure'!E124 -> 12.1 - [Name of sub-vote] | I129: 0
A130: ='Org structure'!E125 -> 0 | I130: 0
A131: ='Org structure'!E126 -> 0 | I131: 0
A132: ='Org structure'!E127 -> 0 | I132: 0
A133: ='Org structure'!E128 -> 0 | I133: 0
A134: ='Org structure'!E129 -> 0 | I134: 0
A135: ='Org structure'!E130 -> 0 | I135: =G135-H135 -> 0 | J135: =IF(I135=0,"",I135/H135) -> 
A136: ='Org structure'!E131 -> 0 | I136: 0
A137: ='Org structure'!E132 -> 0 | I137: 0
A138: ='Org structure'!E133 -> 0 | I138: 0
A139: ='Org structure'!A14 -> Vote 13 - [NAME OF VOTE 13] | C139: =SUM(C140:C149) -> 0 | D139: =SUM(D140:D149) -> 0 | E139: 0 | F139: 0 | G139: 0 | H139: 0 | I139: 0 | K139: 0
A140: ='Org structure'!E135 -> 13.1 - [Name of sub-vote] | I140: 0
A141: ='Org structure'!E136 -> 0 | I141: 0
A142: ='Org structure'!E137 -> 0 | I142: 0
A143: ='Org structure'!E138 -> 0 | I143: 0
A144: ='Org structure'!E139 -> 0 | I144: 0
A145: ='Org structure'!E140 -> 0 | I145: 0
A146: ='Org structure'!E141 -> 0 | I146: 0
A147: ='Org structure'!E142 -> 0 | I147: 0
A148: ='Org structure'!E143 -> 0 | I148: 0
A149: ='Org structure'!E144 -> 0 | I149: 0
A150: ='Org structure'!A15 -> Vote 14 - [NAME OF VOTE 14] | C150: =SUM(C151:C160) -> 0 | D150: =SUM(D151:D160) -> 0 | E150: 0 | F150: 0 | G150: 0 | H150: 0 | I150: 0 | K150: 0
A151: ='Org structure'!E146 -> 14.1 - [Name of sub-vote] | I151: 0
A152: ='Org structure'!E147 -> 0 | I152: 0
A153: ='Org structure'!E148 -> 0 | I153: 0
A154: ='Org structure'!E149 -> 0 | I154: 0
A155: ='Org structure'!E150 -> 0 | I155: 0
A156: ='Org structure'!E151 -> 0 | I156: 0
A157: ='Org structure'!E152 -> 0 | I157: 0
A158: ='Org structure'!E153 -> 0 | I158: 0
A159: ='Org structure'!E154 -> 0 | I159: 0
A160: ='Org structure'!E155 -> 0 | I160: 0
A161: ='Org structure'!A16 -> Vote 15 - [NAME OF VOTE 15] | C161: =SUM(C162:C171) -> 0 | D161: =SUM(D162:D171) -> 0 | E161: 0 | F161: 0 | G161: 0 | H161: 0 | I161: 0 | K161: 0
A162: ='Org structure'!E157 -> 15.1 - [Name of sub-vote] | I162: 0
A163: ='Org structure'!E158 -> 0 | I163: 0
A164: ='Org structure'!E159 -> 0 | I164: 0
A165: ='Org structure'!E160 -> 0 | I165: 0
A166: ='Org structure'!E161 -> 0 | I166: 0
A167: ='Org structure'!E162 -> 0 | I167: 0
A168: ='Org structure'!E163 -> 0 | I168: 0
A169: ='Org structure'!E164 -> 0 | I169: 0
A170: ='Org structure'!E165 -> 0 | I170: 0
A171: ='Org structure'!E166 -> 0 | I171: 0 | L171: =SUM(L79:L82) -> 0 | M171: 0 | N171: 0 | O171: 0 | P171: 0 | Q171: 0 | R171: 0 | S171: 0 | T171: 0 | U171: 0 | V171: 0 | W171: 0
A172: 5.1 - Electricity | H172: =D172/12*Instructions!X$14 -> 0 | I172: 0 | K172: =D172 -> 0
A173: Total multi-year capital expenditure | C173: =C7+C18+C29+C40+C51+C62+C73+C84+C95+C106+C117+C128+C139+C150+C161 -> 0 | D173: =D7+D18+D29+D40+D51+D62+D73+D84+D95+D106+D117+D128+D139+D150+D161 -> 644656126.5 | E173: 0 | F173: 10544607.67 | G173: 10544607.67 | H173: 53721343.87 | I173: -43176736.2 | J173: -0.8037166067 | K173: 644656126.5
I174: 0
A175: Capital expenditure - Municipal Vote
A176: Expenditue of single-year capital appropriation | B176: 1
A177: ='Org structure'!A2 -> Vote 1 - City Manager | C177: =SUM(C178:C187) -> 0 | D177: 0 | E177: 0 | F177: 0 | G177: 0 | H177: 0 | I177: 0 | K177: 0
A178: ='Org structure'!E3 -> 1.1 - Internal Audit and Compliance | H178: =D178/12*Instructions!X$14 -> 0 | I178: 0
A179: ='Org structure'!E4 -> 1.2 - Office of the City Manager | H179: =D179/12*Instructions!X$14 -> 0 | I179: 0
A180: ='Org structure'!E5 -> 1.3 - Political Support | H180: =D180/12*Instructions!X$14 -> 0 | I180: 0
A181: ='Org structure'!E6 -> 1.4 - Strategic Planning | H181: =D181/12*Instructions!X$14 -> 0 | I181: 0
A182: ='Org structure'!E7 -> 0 | I182: 0
A183: ='Org structure'!E8 -> 0 | I183: 0
A184: ='Org structure'!E9 -> 0 | I184: 0
A185: ='Org structure'!E10 -> 0 | I185: 0
A186: ='Org structure'!E11 -> 0 | I186: 0
A187: ='Org structure'!E12 -> 0 | I187: 0
A188: ='Org structure'!A3 -> Vote 2 - City Finance | C188: =SUM(C189:C198) -> 0 | D188: =SUM(D189:D198) -> 8000000 | E188: =SUM(E189:E198) -> 0 | F188: 0 | G188: 0 | H188: 666666.6667 | I188: -666666.6667 | J188: -1 | K188: 8000000
A189: ='Org structure'!E14 -> 2.1 - Asset Management | D189: 3000000 | H189: =D189/12*Instructions!X$14 -> 250000 | I189: -250000 | J189: -1 | K189: =D189 -> 3000000
A190: ='Org structure'!E15 -> 2.2 - Budget and Treasury Management | D190: 5000000 | H190: =D190/12*Instructions!X$14 -> 416666.6667 | I190: -416666.6667 | J190: -1 | K190: 5000000
A191: ='Org structure'!E16 -> 2.3 - Expenditure Management | H191: =D191/12*Instructions!X$14 -> 0 | I191: 0 | K191: 0
A192: ='Org structure'!E17 -> 2.4 - Revenue Management | H192: =D192/12*Instructions!X$14 -> 0 | I192: 0 | K192: 0
A193: ='Org structure'!E18 -> 2.5 - Supply Chain Management | H193: =D193/12*Instructions!X$14 -> 0 | I193: 0 | K193: 0
A194: ='Org structure'!E19 -> 0 | I194: 0
A195: ='Org structure'!E20 -> 0 | I195: 0
A196: ='Org structure'!E21 -> 0 | I196: 0
A197: ='Org structure'!E22 -> 0 | I197: 0
A198: ='Org structure'!E23 -> 0 | I198: 0
A199: ='Org structure'!A4 -> Vote 3 - Corporate Services | C199: =SUM(C200:C209) -> 0 | D199: 0 | E199: 0 | F199: 0 | G199: 0 | H199: 0 | I199: 0 | K199: 0
A200: ='Org structure'!E25 -> Human Resources Management | H200: =D200/12*Instructions!X$14 -> 0 | I200: 0
... 146 more rows

Sheet C6-FinPos
A1: =Muni2& " - "&S71E& " - "&date -> KZN225 Msunduzi - Table C6 Monthly Budget Statement - Financial Position - M01 July
A2: =desc -> Description | B2: =head27 -> Ref | C2: =Head1 -> 2024/25 | D2: =Head2 -> Budget Year 2025/26
C3: =Head5 -> Audited Outcome | D3: =Head6 -> Original Budget | E3: =Head7 -> Adjusted Budget | F3: =Head39 -> YearTD actual | G3: =Head8 -> Full Year Forecast
A4: R thousands | B4: 1
A5: ASSETS
A6: Current assets
A7: Cash and cash equivalents | D7: 395446286 | F7: -881398.53 | G7: =D7 -> 395446286
A8: Trade and other receivables from exchange transactions | D8: 1677176747 | F8: 1217386785 | G8: =D8 -> 1677176747
A9: Receivables from non-exchange transactions | D9: 467187807 | F9: 0 | G9: 467187807
A10: Current portion of non-current receivables | D10: 28684 | F10: 0 | G10: 28684
A11: Inventory | D11: 498280564 | F11: 498579683.3 | G11: 498280564
A12: VAT | F12: 0 | G12: 0
A13: Other current assets | D13: 942228 | F13: 731430206.8 | G13: 942228
A14: Total current assets | C14: =SUM(C7:C13) -> 0 | D14: =SUM(D7:D13) -> 3039062316 | E14: =SUM(E7:E13) -> 0 | F14: =SUM(F7:F13) -> 2446515276 | G14: =SUM(G7:G13) -> 3039062316
A15: Non current assets
A16: Investments | F16: 0 | G16: =D16 -> 0
A17: Investment property | D17: 922391726 | F17: 928429205.3 | G17: 922391726
A18: Property, plant and equipment | D18: 8253747220 | F18: 8019778790 | G18: 8253747220
A19: Biological assets | D19: 83234407 | F19: 442991.64 | G19: 83234407
A20: Living and non-living resources | D20: 0 | F20: 0 | G20: 0
A21: Heritage assets | D21: 323519929 | F21: 0 | G21: 323519929
A22: Intangible assets | D22: 24753126 | F22: 20417175.72 | G22: 24753126
A23: Trade and other receivables from exchange transactions | F23: 0 | G23: 0
A24: Non-current receivables from non-exchange transactions | F24: 0 | G24: 0
A25: Other non-current assets | F25: 159189.9 | G25: 0
A26: Total non current assets | C26: =SUM(C16:C25) -> 0 | D26: =SUM(D16:D25) -> 9607646408 | E26: =SUM(E16:E25) -> 0 | F26: =SUM(F16:F25) -> 8969227353 | G26: =SUM(G16:G25) -> 9607646408
A27: TOTAL ASSETS | C27: =C14+C26 -> 0 | D27: =D14+D26 -> 12646708724 | E27: =E14+E26 -> 0 | F27: =F14+F26 -> 1.141574263e+10 | G27: =G14+G26 -> 12646708724
A28: LIABILITIES
A29: Current liabilities
A30: Bank overdraft | F30: 0 | G30: =D30 -> 0
A31: Financial liabilities | D31: 76586310 | F31: 35059079.58 | G31: 76586310
A32: Consumer deposits | D32: 152357428 | F32: 169358249 | G32: 152357428
A33: Trade and other payables from exchange transactions | D33: 1709233896 | F33: 673923554.2 | G33: 1709233896
A34: Trade and other payables from non-exchange transactions | D34: 0 | F34: 0 | G34: 0
A35: Provision | D35: 53143375 | F35: 53045572.99 | G35: 53143375
A36: VAT | D36: 162137445 | F36: 0 | G36: 162137445
A37: Other current liabilities | D37: 0 | F37: 0 | G37: 0
A38: Total current liabilities | C38: =SUM(C30:C37) -> 0 | D38: =SUM(D30:D37) -> 2153458454 | E38: =SUM(E30:E37) -> 0 | F38: =SUM(F30:F37) -> 931386455.8 | G38: =SUM(G30:G37) -> 2153458454
A39: Non current liabilities
A40: Financial liabilities | D40: 0 | F40: 0 | G40: =D40 -> 0
A41: Provision | D41: 117456093 | F41: 0 | G41: 117456093
A42: Long term portion of trade payables | D42: 2796913885 | F42: 315531725.4 | G42: 2796913885
A43: Other non-current liabilities | D43: 499399000 | F43: 3203517572 | G43: 499399000
A44: Total non current liabilities | C44: =SUM(C40:C43) -> 0 | D44: =SUM(D40:D43) -> 3413768978 | E44: =SUM(E40:E43) -> 0 | F44: =SUM(F40:F43) -> 3519049298 | G44: =SUM(G40:G43) -> 3413768978
A45: TOTAL LIABILITIES | C45: =C38+C44 -> 0 | D45: =D38+D44 -> 5567227432 | E45: =E38+E44 -> 0 | F45: =F38+F44 -> 4450435754 | G45: =G38+G44 -> 5567227432
A46: NET ASSETS | B46: 2 | C46: =C27-C45 -> 0 | D46: =D27-D45 -> 7079481292 | E46: =E27-E45 -> 0 | F46: =F27-F45 -> 6965306876 | G46: =G27-G45 -> 7079481292
A47: COMMUNITY WEALTH/EQUITY
A48: Accumulated surplus/(deficit) | D48: 7079481292 | F48: 6633337031 | G48: =D48 -> 7079481292
A49: Reserves and funds | F49: 331969844.8 | G49: 0
A50: Other | F50: 0 | G50: 0
A51: TOTAL COMMUNITY WEALTH/EQUITY | B51: 2 | C51: =SUM(C48:C50) -> 0 | D51: =SUM(D48:D50) -> 7079481292 | E51: =SUM(E48:E50) -> 0 | F51: =SUM(F48:F50) -> 6965306876 | G51: =SUM(G48:G50) -> 7079481292
A52: =head27a -> References
A53: 1. Material variances to be explained in Table SC1
A54: 2. Net assets must balance with Total Community Wealth/Equity
A57: check balance | C57: =C46-C51 -> 0 | D57: =D46-D51 -> 0 | E57: =E46-E51 -> 0 | F57: =F46-F51 -> 0 | G57: =G46-G51 -> 0

Sheet C7-CFlow
A1: =Muni2& " - "&S71F& " - "&date -> KZN225 Msunduzi - Table C7 Monthly Budget Statement - Cash Flow - M01 July
A2: =desc -> Description | B2: =head27 -> Ref | C2: =Head1 -> 2024/25 | D2: =Head2 -> Budget Year 2025/26
C3: =Head5 -> Audited Outcome | D3: =Head6 -> Original Budget | E3: =Head7 -> Adjusted Budget | F3: =Head38 -> Monthly actual | G3: =Head39 -> YearTD actual | H3: =Head40 -> YearTD budget | I3: =Head41 -> YTD variance | J3: =Head41 -> YTD variance | K3: =Head8 -> Full Year Forecast
A4: R thousands | B4: 1 | J4: %
A5: CASH FLOW FROM OPERATING ACTIVITIES
A6: Receipts
A7: Property rates | D7: 1532281589 | H7: =D7/12*Instructions!X$14 -> 127690132.4 | I7: =G7-H7 -> -127690132.4 | J7: =IF(I7=0,"",I7/H7) -> -1 | K7: =D7 -> 1532281589
A8: Service charges | D8: 5220730333 | H8: =D8/12*Instructions!X$14 -> 435060861.1 | I8: -435060861.1 | J8: =IF(I8=0,"",I8/H8) -> -1 | K8: =D8 -> 5220730333
A9: Other revenue | D9: 194259851 | H9: =D9/12*Instructions!X$14 -> 16188320.92 | I9: -16188320.92 | J9: =IF(I9=0,"",I9/H9) -> -1 | K9: 194259851
A10: Transfers and Subsidies - Operational | D10: 989608195 | H10: =D10/12*Instructions!X$14 -> 82467349.58 | I10: -82467349.58 | J10: =IF(I10=0,"",I10/H10) -> -1 | K10: 989608195
A11: Transfers and Subsidies - Capital | D11: 376126520 | H11: =D11/12*Instructions!X$14 -> 31343876.67 | I11: -31343876.67 | J11: =IF(I11=0,"",I11/H11) -> -1 | K11: 376126520
A12: Interest | D12: 19996228 | H12: =D12/12*Instructions!X$14 -> 1666352.333 | I12: -1666352.333 | J12: -1 | K12: 19996228
A13: Dividends | D13: 0 | H13: =D13/12*Instructions!X$14 -> 0 | I13: 0 | K13: 0
A14: Payments
A15: Suppliers and employees | D15: -7318668911 | H15: =D15/12*Instructions!X$14 -> -609889075.9 | I15: =H15-G15 -> -609889075.9 | J15: 1 | K15: =D15 -> -7318668911
A16: Interest | D16: -56180000 | H16: =D16/12*Instructions!X$14 -> -4681666.667 | I16: =H16-G16 -> -4681666.667 | J16: 1 | K16: -56180000
A17: Transfers and Subsidies | D17: -72456936 | H17: =D17/12*Instructions!X$14 -> -6038078 | I17: =H17-G17 -> -6038078 | J17: 1 | K17: -72456936
A18: NET CASH FROM/(USED) OPERATING ACTIVITIES | C18: =SUM(C7:C13)+SUM(C15:C17) -> 0 | D18: 885696869 | E18: 0 | F18: 0 | G18: 0 | H18: 73808072.42 | I18: =H18-G18 -> 73808072.42 | J18: 1 | K18: =SUM(K7:K13)+SUM(K15:K17) -> 885696869
A20: CASH FLOWS FROM INVESTING ACTIVITIES
A21: Receipts
A22: Proceeds on disposal of PPE | H22: =D22/12*Instructions!X$14 -> 0 | I22: =G22-H22 -> 0 | J22: =IF(I22=0,"",I22/H22) -> 
H23: =D23/12*Instructions!X$14 -> 0
A24: Decrease (increase) in non-current receivables | H24: =D24/12*Instructions!X$14 -> 0 | I24: =G24-H24 -> 0
A25: Decrease (increase) in non-current investments | H25: =D25/12*Instructions!X$14 -> 0 | I25: =G25-H25 -> 0
A26: Payments
A27: Capital assets | D27: -653856126 | H27: =D27/12*Instructions!X$14 -> -54488010.5 | I27: =H27-G27 -> -54488010.5 | J27: 1 | K27: =D27 -> -653856126
A28: NET CASH FROM/(USED) INVESTING ACTIVITIES | C28: =SUM(C22:C25)+C27 -> 0 | D28: =SUM(D22:D25)+D27 -> -653856126 | E28: 0 | F28: 0 | G28: 0 | H28: -54488010.5 | I28: =H28-G28 -> -54488010.5 | J28: 1 | K28: =SUM(K22:K25)+K27 -> -653856126
A30: CASH FLOWS FROM FINANCING ACTIVITIES
A31: Receipts
A32: Short term loans | H32: =D32/12*Instructions!X$14 -> 0 | I32: =G32-H32 -> 0 | J32: =IF(I32=0,"",I32/H32) ->  | K32: =D32 -> 0
A33: Borrowing long term/refinancing | D33: 177179607 | H33: =D33/12*Instructions!X$14 -> 14764967.25 | I33: =G33-H33 -> -14764967.25 | J33: -1 | K33: 177179607
A34: Increase (decrease) in consumer deposits | H34: =D34/12*Instructions!X$14 -> 0 | I34: =G34-H34 -> 0 | K34: 0
A35: Payments
A36: Repayment of borrowing | D36: -90000000 | H36: =D36/12*Instructions!X$14 -> -7500000 | I36: =H36-G36 -> -7500000 | J36: 1 | K36: =D36 -> -90000000
A37: NET CASH FROM/(USED) FINANCING ACTIVITIES | C37: =SUM(C32:C34)+C36 -> 0 | D37: 87179607 | E37: 0 | F37: 0 | G37: 0 | H37: 7264967.25 | I37: =H37-G37 -> 7264967.25 | J37: 1 | K37: =SUM(K32:K34)+K36 -> 87179607
A39: NET INCREASE/ (DECREASE) IN CASH HELD | C39: =C18+C28+C37 -> 0 | D39: 319020350 | E39: 0 | F39: 0 | G39: 0 | H39: 26585029.17 | K39: =K18+K28+K37 -> 319020350
A40: Cash/cash equivalents at beginning: | D40: 366386803 | H40: =IF(E40=0, D40, E40) -> 366386803 | K40: =D40 -> 366386803
A41: Cash/cash equivalents at month/year end: | C41: =C39+C40 -> 0 | D41: 685407153 | E41: 0 | F41: 0 | G41: 0 | H41: 392971832.2 | K41: =K39+K40 -> 685407153
A42: References
A43: 1. Material variances to be explained in Table SC1

Sheet SC1
A1: =Muni2& " - "&S71G& " - "&date -> KZN225 Msunduzi - Supporting Table SC1 Material variance explanations - M01 July
A2: =head27 -> Ref | B2: =desc -> Description
C3: Variance | D3: Reasons for material deviations | E3: Remedial or corrective steps/remarks
B4: R thousands
A5: 1 | B5: ='[2]C4-FinPerf RE'!A5 -> Revenue
B6: Rental from Fixed Assets | C6: -0.3216240039 | D6: Projections higher than the actual revenue | E6: No remedial action is required
B7: Operational Revenue | C7: -0.5081832834 | D7: Projections higher than the actual revenue | E7: No remedial action is required
B8: Transfers and subsidies - Operational | C8: 3.338619266 | D8: Actual higher than the projected revenue | E8: This will self correct during the year
B9: Interest | C9: -0.4987344544 | D9: Projections higher than the actual revenue | E9: No remedial action is required
A16: 2 | B16: ='[2]C4-FinPerf RE'!A34 -> Expenditure By Type
B17: Employee related costs | C17: -0.1839652082 | D17: Projections higher than the actual revenue | E17: This will self correct during the year
B18: Remuneration of councillors | C18: -0.1761793259 | D18: Projections higher than the actual revenue | E18: This will self correct during the year
B19: Bulk purchases - electricity | C19: 0.1963865372 | D19: Actual higher than the projected revenue | E19: This will self correct during the year
B20: Inventory consumed | C20: 0.3102396174 | D20: Actual higher than the projected revenue | E20: This will self correct during the year
B21: Debt impairment | C21: -0.9866326437 | D21: Projections higher than the actual revenue | E21: This will self correct during the year
B22: Depreciation and amortisation | C22: -0.1239710711 | D22: Projections higher than the actual revenue | E22: This will self correct during the year
B23: Interest | C23: -0.2304191826 | D23: Projections higher than the actual revenue | E23: This will self correct during the year
B24: Contracted services | C24: -0.7866311873 | D24: Projections higher than the actual revenue | E24: This will self correct during the year
B25: Transfers and subsidies | C25: -0.2712941206 | D25: Projections higher than the actual revenue | E25: This will self correct during the year
B26: Operational costs | C26: 0.4168738479 | D26: Actual higher than the projected revenue | E26: This will self correct during the year
A33: 3 | B33: =RIGHT('C5-Capex'!A40,19) -> Capital Expenditure
B34: Total Capital Expenditure | C34: -0.8070936147 | D34: Projections higher than the actual revenue | E34: This will self correct during the year
A38: 4 | B38: Financial Position
A43: 5 | B43: Cash Flow
A48: 6 | B48: Measureable performance
A53: 7 | B53: Municipal Entities
A59: =head27a -> References
A60: 1. Revenue for each source, vote and standard classification
A61: 2. Expenditure for each type, vote and standard classification
A62: 3. Capital expenditure for each vote and standard classification
A63: 4. Explain any material variances between the annual budget and the expected financial position based on current trends
A64: 5. Cash receipts by source and cash payments by type where not explained under revenue and expenditure
A65: 6. For Sept, Dec, Mar and Jun statements explain any material variances in achievement of measurable performance objectives

Sheet SC2
A1: =Muni2& " - "&S71H& " - "&Head57 -> KZN225 Msunduzi - Supporting Table SC2 Monthly Budget Statement - performance indicators - M01 July
A2: Description of financial indicator | B2: Basis of calculation | C2: =head27 -> Ref | D2: =Head1 -> 2024/25 | E2: =Head2 -> Budget Year 2025/26
D3: =Head5 -> Audited Outcome | E3: =Head6 -> Original Budget | F3: =Head7 -> Adjusted Budget | G3: =Head39 -> YearTD actual | H3: =Head8 -> Full Year Forecast
A5: Borrowing Management
A7: Capital Charges to Operating Expenditure | B7: Interest & principal paid/Operating Expenditure | D7: =IF(ISERROR((D42-D43)/D45),0,((D42-D43)/D45)) -> 0 | E7: =IF(ISERROR((E42+E44)/E45),0,((E42+E44)/E45)) -> 0.05272136934 | F7: =IF(ISERROR((F42+F44)/F45),0,((F42+F44)/F45)) -> 0 | G7: =IF(ISERROR((G42+G44)/G45),0,((G42+G44)/G45)) -> 0.04782766682 | H7: =IF(ISERROR((H42+H44)/H45),0,((H42+H44)/H45)) -> 0.01496238043
A8: Borrowed funding of 'own' capital expenditure | B8: Borrowings/Capital expenditure excl. transfers and grants | D8: =IF(ISERROR(D47/D46),0,(D47/D46)) -> 0 | E8: =IF(ISERROR(E47/E46),0,(E47/E46)) -> 0.2709764422 | F8: =IF(ISERROR(F47/F46),0,(F47/F46)) -> 0 | G8: =IF(ISERROR(G47/G46),0,(G47/G46)) -> 0.08426898068 | H8: =IF(ISERROR(H47/H46),0,(H47/H46)) -> 16.80286385
A9: Safety of Capital
A10: Debt to Equity | B10: Loans, Accounts Payable, Overdraft & Tax Provision/ Funds & Reserves | D10: =IF(ISERROR(D48/D49),0,(D48/D49)) -> 0 | E10: =IF(ISERROR(E48/E49),0,(E48/E49)) -> 0.3227947235 | F10: =IF(ISERROR(F48/F49),0,(F48/F49)) -> 0 | G10: =IF(ISERROR(G48/G49),0,(G48/G49)) -> 0.5617125385 | H10: =IF(ISERROR(H48/H49),0,(H48/H49)) -> 0.3227947235
A11: Gearing | B11: Long Term Borrowing/ Funds & Reserves | D11: =IF(ISERROR(D51/D50),0,(D51/D50)) -> 0 | E11: =IF(ISERROR(E51/E50),0,(E51/E50)) -> 0 | F11: =IF(ISERROR(F51/F50),0,(F51/F50)) -> 0 | G11: =IF(ISERROR(G51/G50),0,(G51/G50)) -> 0 | H11: =IF(ISERROR(H51/H50),0,(H51/H50)) -> 0
A12: Liquidity
A13: Current Ratio | B13: Current assets/current liabilities | C13: 1 | D13: =IF(ISERROR(D52/D53),0,(D52/D53)) -> 0 | E13: =IF(ISERROR(E52/E53),0,(E52/E53)) -> 1.411247248 | F13: =IF(ISERROR(F52/F53),0,(F52/F53)) -> 0 | G13: =IF(ISERROR(G52/G53),0,(G52/G53)) -> 2.626745602 | H13: =IF(ISERROR(H52/H53),0,(H52/H53)) -> 1.411247248
A14: Liquidity Ratio | B14: Monetary Assets/Current Liabilities | D14: =IF(ISERROR(D54/D53),0,(D54/D53)) -> 0 | E14: =IF(ISERROR(E54/E53),0,(E54/E53)) -> 0.183633116 | F14: =IF(ISERROR(F54/F53),0,(F54/F53)) -> 0 | G14: =IF(ISERROR(G54/G53),0,(G54/G53)) -> -0.0009463295548 | H14: =IF(ISERROR(H54/H53),0,(H54/H53)) -> 0.183633116
A15: Revenue Management
A16: Annual Debtors Collection Rate (Payment Level %) | B16: Last 12 Mths Receipts/ Last 12 Mths Billing
A17: Outstanding Debtors to Revenue | B17: Total Outstanding Debtors to Annual Revenue | D17: =IF(ISERROR(D59/D55),0,(D59/D55)) -> 0 | E17: =IF(ISERROR(E59/E55),0,(E59/E55)) -> 0.2249839359 | F17: =IF(ISERROR(F59/F55),0,(F59/F55)) -> 0 | G17: =IF(ISERROR(G59/G55),0,(G59/G55)) -> 1.859083464 | H17: =IF(ISERROR(H59/H55),0,(H59/H55)) -> 0.2249839359
A18: Longstanding Debtors Recovered | B18: Debtors > 12 Mths Recovered/Total Debtors > 12 Months Old | D18: =IF(ISERROR(D64/D63),0,(D64/D63)) -> 0 | E18: =IF(ISERROR(E64/E63),0,(E64/E63)) -> 0 | F18: =IF(ISERROR(F64/F63),0,(F64/F63)) -> 0 | G18: =IF(ISERROR(G64/G63),0,(G64/G63)) -> 0 | H18: =IF(ISERROR(H64/H63),0,(H64/H63)) -> 0
A19: Creditors Management
A20: Creditors System Efficiency | B20: % of Creditors Paid Within Terms (within MFMA s 65(e))
A21: Funding of Provisions
A22: Percentage Of Provisions Not Funded | B22: Unfunded Provisions/Total Provisions
A23: Other Indicators
A24: Electricity Distribution Losses | B24: % Volume (units purchased and generated less units sold)/units purchased and generated | C24: 2
A25: Water Distribution Losses | B25: % Volume (units purchased and own source less units sold)/Total units purchased and own source | C25: 2
A26: Employee costs | B26: Employee costs/Total Revenue - capital revenue | D26: =IF(ISERROR(D40/D55),0,(D40/D55)) -> 0 | E26: =IF(ISERROR(E40/E55),0,(E40/E55)) -> 0.199275709 | F26: =IF(ISERROR(F40/F55),0,(F40/F55)) -> 0 | G26: =IF(ISERROR(G40/G55),0,(G40/G55)) -> 0.1241986986 | H26: =IF(ISERROR(H40/H55),0,(H40/H55)) -> 0.199275709
A27: Repairs & Maintenance | B27: R&M/Total Revenue - capital revenue | D27: =IF(ISERROR(D41/D55),0,(D41/D55)) -> 0 | E27: =IF(ISERROR(E41/E55),0,(E41/E55)) -> 0.04974985629 | F27: =IF(ISERROR(F41/F55),0,(F41/F55)) -> 0 | G27: =IF(ISERROR(G41/G55),0,(G41/G55)) -> -0.001802100017 | H27: =IF(ISERROR(H41/H55),0,(H41/H55)) -> 0.04974985629
A28: Interest & Depreciation | B28: I&D/Total Revenue - capital revenue | D28: =IF(ISERROR((D42+D44)/D55),0,((D42+D44)/D55)) -> 0 | E28: =IF(ISERROR((E42+E44)/E55),0,((E42+E44)/E55)) -> 0.04679265448 | F28: =IF(ISERROR((F42+F44)/F55),0,((F42+F44)/F55)) -> 0 | G28: =IF(ISERROR((G42+G44)/G55),0,((G42+G44)/G55)) -> 0.03065785384 | H28: =IF(ISERROR((H42+H44)/H55),0,((H42+H44)/H55)) -> 0.01327980488
A29: IDP regulation financial viability indicators
A30: i. Debt coverage | B30: (Total Operating Revenue - Operating Grants)/Debt service payments due within financial year)
A31: ii. O/S Service Debtors to Revenue | B31: Total outstanding service debtors/annual revenue received for services
A32: iii. Cost coverage | B32: (Available cash + Investments)/monthly fixed operational expenditure
A33: References
A34: 1. Consumer debtors > 12 months old are excluded from current assets.
A35: 2. Material variances to be explained.
A37: Calculations
A38: ='C6-FinPos'!A40 -> Financial liabilities | D38: ='C6-FinPos'!C40 -> 0 | E38: ='C6-FinPos'!D40 -> 0 | F38: ='C6-FinPos'!E40 -> 0 | G38: ='C6-FinPos'!F40 -> 0 | H38: ='C6-FinPos'!G40 -> 0
A39: Total Assets | D39: ='C6-FinPos'!C27 -> 0 | E39: ='C6-FinPos'!D27 -> 12646708724 | F39: ='C6-FinPos'!E27 -> 0 | G39: ='C6-FinPos'!F27 -> 1.141574263e+10 | H39: ='C6-FinPos'!G27 -> 12646708724
A40: ='[2]C4-FinPerf RE'!A35 -> Employee related costs | D40: ='C4-FinPerf RE'!C37 -> 0 | E40: ='C4-FinPerf RE'!D37 -> 1900194538 | F40: ='C4-FinPerf RE'!E37 -> 0 | G40: ='C4-FinPerf RE'!G37 -> 130193473.8 | H40: ='C4-FinPerf RE'!K37 -> 1900194538
A41: =A27 -> Repairs & Maintenance | D41: =+SC13c!C175 -> 0 | E41: =+SC13c!D175 -> 474390008 | F41: =+SC13c!E175 -> 0 | G41: =+SC13c!G175 -> -1889083.09 | H41: =+SC13c!K175 -> 474390008
A42: Interest (finance charges) | D42: ='C4-FinPerf RE'!C43 -> 0 | E42: ='C4-FinPerf RE'!D43 -> 56180000 | F42: ='C4-FinPerf RE'!E43 -> 0 | G42: ='C4-FinPerf RE'!G43 -> 3602920.86 | H42: ='C4-FinPerf RE'!K43 -> 56180000
A43: Principal paid | D43: =-'C7-CFlow'!C36 -> 0 | E43: =-'C7-CFlow'!D36 -> 90000000 | F43: =-'C7-CFlow'!E36 -> 0 | G43: =-'C7-CFlow'!G36 -> 0 | H43: =-'C7-CFlow'!K36 -> 90000000
A44: Depreciation | D44: ='C4-FinPerf RE'!C42 -> 0 | E44: ='C4-FinPerf RE'!D42 -> 390011595 | F44: ='C4-FinPerf RE'!E42 -> 0 | G44: ='C4-FinPerf RE'!F42 -> 28534714.51 | H44: ='C4-FinPerf RE'!K38 -> 70449647
A45: Operating expenditure | D45: ='C4-FinPerf RE'!C51 -> 0 | E45: ='C4-FinPerf RE'!D51 -> 8463201934 | F45: ='C4-FinPerf RE'!E51 -> 0 | G45: ='C4-FinPerf RE'!G51 -> 671946542.8 | H45: ='C4-FinPerf RE'!K51 -> 8463201934
A46: ='C5-Capex'!A40 -> Total Capital Expenditure | D46: ='C5-Capex'!C63 -> 0 | E46: ='C5-Capex'!D63 -> 653856127 | F46: ='C5-Capex'!E63 -> 0 | G46: ='C5-Capex'!F63 -> 10544607.67 | H46: ='C5-Capex'!G63 -> 10544607.67
A47: Borrowed funding for capital | D47: ='C5-Capex'!C72 -> 0 | E47: ='C5-Capex'!D72 -> 177179607 | F47: ='C5-Capex'!E72 -> 0 | G47: ='C5-Capex'!G72 -> 888583.34 | H47: ='C5-Capex'!K72 -> 177179607
A48: Debt | D48: ='C6-FinPos'!C30+'C6-FinPos'!C31+'C6-FinPos'!C33+'C6-FinPos'!C34+'C6-FinPos'!C40+'C6-FinPos'!C43 -> 0 | E48: ='C6-FinPos'!D30+'C6-FinPos'!D31+'C6-FinPos'!D33+'C6-FinPos'!D34+'C6-FinPos'!D40+'C6-FinPos'!D43 -> 2285219206 | F48: ='C6-FinPos'!E30+'C6-FinPos'!E31+'C6-FinPos'!E33+'C6-FinPos'!E34+'C6-FinPos'!E40+'C6-FinPos'!E43 -> 0 | G48: ='C6-FinPos'!F30+'C6-FinPos'!F31+'C6-FinPos'!F33+'C6-FinPos'!F34+'C6-FinPos'!F40+'C6-FinPos'!F43 -> 3912500206 | H48: ='C6-FinPos'!G30+'C6-FinPos'!G31+'C6-FinPos'!G33+'C6-FinPos'!G34+'C6-FinPos'!G40+'C6-FinPos'!G43 -> 2285219206
A49: Equity | D49: ='C6-FinPos'!C51 -> 0 | E49: ='C6-FinPos'!D51 -> 7079481292 | F49: ='C6-FinPos'!E51 -> 0 | G49: ='C6-FinPos'!F51 -> 6965306876 | H49: ='C6-FinPos'!G51 -> 7079481292
A50: ='C6-FinPos'!A49 -> Reserves and funds | D50: ='C6-FinPos'!C50 -> 0 | E50: ='C6-FinPos'!D50 -> 0 | F50: ='C6-FinPos'!E50 -> 0 | G50: ='C6-FinPos'!F50 -> 0 | H50: ='C6-FinPos'!G50 -> 0
A51: Borrowing | D51: ='C6-FinPos'!C40 -> 0 | E51: ='C6-FinPos'!D40 -> 0 | F51: ='C6-FinPos'!E40 -> 0 | G51: ='C6-FinPos'!F40 -> 0 | H51: ='C6-FinPos'!G40 -> 0
A52: ='C6-FinPos'!A6 -> Current assets | D52: ='C6-FinPos'!C14 -> 0 | E52: ='C6-FinPos'!D14 -> 3039062316 | F52: ='C6-FinPos'!E14 -> 0 | G52: ='C6-FinPos'!F14 -> 2446515276 | H52: ='C6-FinPos'!G14 -> 3039062316
A53: ='C6-FinPos'!A29 -> Current liabilities | D53: ='C6-FinPos'!C38 -> 0 | E53: ='C6-FinPos'!D38 -> 2153458454 | F53: ='C6-FinPos'!E38 -> 0 | G53: ='C6-FinPos'!F38 -> 931386455.8 | H53: ='C6-FinPos'!G38 -> 2153458454
A54: Monetary assets | D54: ='C6-FinPos'!C7 -> 0 | E54: ='C6-FinPos'!D7 -> 395446286 | F54: ='C6-FinPos'!E7 -> 0 | G54: ='C6-FinPos'!F7 -> -881398.53 | H54: ='C6-FinPos'!G7 -> 395446286
A55: ='[2]C4-FinPerf RE'!A33 -> Total Revenue (excluding capital transfers and contributions) | D55: ='C4-FinPerf RE'!C35 -> 0 | E55: ='C4-FinPerf RE'!D35 -> 9535505091 | F55: ='C4-FinPerf RE'!E35 -> 0 | G55: ='C4-FinPerf RE'!G35 -> 1048267616 | H55: ='C4-FinPerf RE'!K35 -> 9535505091
A56: ='[2]C4-FinPerf RE'!A26 -> Transfers and subsidies - Operational | D56: ='C4-FinPerf RE'!C28 -> 0 | E56: ='C4-FinPerf RE'!D30 -> 0 | F56: ='C4-FinPerf RE'!E30 -> 0 | G56: ='C4-FinPerf RE'!G30 -> 0 | H56: ='C4-FinPerf RE'!K30 -> 0
A57: ='[2]C4-FinPerf RE'!A50 -> Transfers and subsidies - capital (monetary allocations) | D57: ='C4-FinPerf RE'!C53 -> 0 | E57: ='C4-FinPerf RE'!D53 -> 378676520 | F57: ='C4-FinPerf RE'!E53 -> 0 | G57: ='C4-FinPerf RE'!G53 -> 11768158.06 | H57: ='C4-FinPerf RE'!K53 -> 378676520
A58: Debt service payments | D58: ='C7-CFlow'!C12+'C7-CFlow'!C36 -> 0 | E58: ='C7-CFlow'!D12+'C7-CFlow'!D36 -> -70003772 | F58: ='C7-CFlow'!E12+'C7-CFlow'!E36 -> 0 | G58: ='C7-CFlow'!F12+'C7-CFlow'!F36 -> 0 | H58: ='C7-CFlow'!G12+'C7-CFlow'!G36 -> 0
A59: Outstanding debtors (receivables) | D59: ='C6-FinPos'!C8+'C6-FinPos'!C9+'C6-FinPos'!C10+'C6-FinPos'!C13+'C6-FinPos'!C23+'C6-FinPos'!C24 -> 0 | E59: ='C6-FinPos'!D8+'C6-FinPos'!D9+'C6-FinPos'!D10+'C6-FinPos'!D13+'C6-FinPos'!D23+'C6-FinPos'!D24 -> 2145335466 | F59: ='C6-FinPos'!E8+'C6-FinPos'!E9+'C6-FinPos'!E10+'C6-FinPos'!E13+'C6-FinPos'!E23+'C6-FinPos'!E24 -> 0 | G59: ='C6-FinPos'!F8+'C6-FinPos'!F9+'C6-FinPos'!F10+'C6-FinPos'!F13+'C6-FinPos'!F23+'C6-FinPos'!F24 -> 1948816992 | H59: ='C6-FinPos'!G8+'C6-FinPos'!G9+'C6-FinPos'!G10+'C6-FinPos'!G13+'C6-FinPos'!G23+'C6-FinPos'!G24 -> 2145335466
A60: Annual services revenue | D60: ='C4-FinPerf RE'!C7+'C4-FinPerf RE'!C8+'C4-FinPerf RE'!C9+'C4-FinPerf RE'!C10+'C4-FinPerf RE'!C24 -> 0 | E60: ='C4-FinPerf RE'!D7+'C4-FinPerf RE'!D8+'C4-FinPerf RE'!D9+'C4-FinPerf RE'!D10+'C4-FinPerf RE'!D24 -> 7980928479 | F60: ='C4-FinPerf RE'!E7+'C4-FinPerf RE'!E8+'C4-FinPerf RE'!E9+'C4-FinPerf RE'!E10+'C4-FinPerf RE'!E24 -> 0 | G60: ='C4-FinPerf RE'!F7+'C4-FinPerf RE'!F8+'C4-FinPerf RE'!F9+'C4-FinPerf RE'!F10+'C4-FinPerf RE'!F24 -> 621218102.4 | H60: ='C4-FinPerf RE'!G7+'C4-FinPerf RE'!G8+'C4-FinPerf RE'!G9+'C4-FinPerf RE'!G10+'C4-FinPerf RE'!G24 -> 621218102.4
A61: Cash + investments | B61: Including LT investments | D61: ='C6-FinPos'!C7+'C6-FinPos'!C16-'C6-FinPos'!C30 -> 0 | E61: ='C6-FinPos'!D7+'C6-FinPos'!D16-'C6-FinPos'!D30 -> 395446286 | F61: ='C6-FinPos'!E7+'C6-FinPos'!E16-'C6-FinPos'!E30 -> 0 | G61: ='C6-FinPos'!F7+'C6-FinPos'!F16-'C6-FinPos'!F30 -> -881398.53 | H61: ='C6-FinPos'!G7+'C6-FinPos'!G16-'C6-FinPos'!G30 -> 395446286
A62: Fixed operational expend. (monthly)
A63: Longstanding debtors outstanding | D63: ='C6-FinPos'!C23+'C6-FinPos'!C24 -> 0 | E63: ='C6-FinPos'!D23+'C6-FinPos'!D24 -> 0 | F63: ='C6-FinPos'!E23+'C6-FinPos'!E24 -> 0 | G63: ='C6-FinPos'!F23+'C6-FinPos'!F24 -> 0 | H63: ='C6-FinPos'!G23+'C6-FinPos'!G24 -> 0
A64: Longstanding debtors recovered
A65: Attorney collections

Sheet SC3
A1: =Muni2& " - "&S71I& " - "&Head57 -> KZN225 Msunduzi - Supporting Table SC3 Monthly Budget Statement - aged debtors - M01 July
A2: =desc -> Description | C2: =Head2 -> Budget Year 2025/26
A3: R thousands | B3: NT Code | C3: 0-30 Days | D3: 31-60 Days | E3: 61-90 Days | F3: 91-120 Days | G3: 121-150 Dys | H3: 151-180 Dys | I3: 181 Dys-1 Yr | J3: Over 1Yr | K3: Total | L3: Total over 90 days | M3: Actual Bad Debts Written Off against Debtors | N3: Impairment - Bad Debts i.t.o Council Policy
A4: Debtors Age Analysis By Income Source
A5: Trade and Other Receivables from Exchange Transactions - Water | B5: 1200 | C5: 160869397.8 | D5: 46327028.9 | E5: 47002536.39 | F5: 48326674.47 | G5: 49156546.79 | H5: 48456699.73 | I5: 286973629.3 | J5: 2709156255 | K5: =SUM(C5:J5) -> 3396268769 | L5: =SUM(F5:J5) -> 3142069806 | N5: 2236994741
A6: Trade and Other Receivables from Exchange Transactions - Electricity | B6: 1300 | C6: 386737137.4 | D6: 7504340.34 | E6: 13998326.47 | F6: 11268667.14 | G6: 4670196.17 | H6: 17166419.38 | I6: 83194144.69 | J6: 357484974.5 | K6: =SUM(C6:J6) -> 882024206.1 | L6: =SUM(F6:J6) -> 473784401.9 | N6: 195729014.1
A7: Receivables from Non-exchange Transactions - Property Rates | B7: 1400 | C7: 176631029.5 | D7: 40590191.08 | E7: 28354279.18 | F7: 29091185.71 | G7: 25320520.18 | H7: 25558746.55 | I7: 146027928.5 | J7: 1009552864 | K7: =SUM(C7:J7) -> 1481126745 | L7: 1235551245 | N7: 796907542.6
A8: Receivables from Exchange Transactions - Waste Water Management | B8: 1500 | C8: 34522488.54 | D8: 7941590.93 | E8: 7049064.89 | F8: 7204678.54 | G8: 7138416.7 | H8: 6836579.61 | I8: 40634533.4 | J8: 386206100.2 | K8: 497533452.9 | L8: 448020308.5 | N8: 314563232.6
A9: Receivables from Exchange Transactions - Waste Management | B9: 1600 | C9: 18552221.1 | D9: 5239161.84 | E9: 4443798.07 | F9: 4484780.73 | G9: 4749877.35 | H9: 4295903.28 | I9: 25529097.74 | J9: 205790646.8 | K9: 273085486.9 | L9: =SUM(F9:J9) -> 244850305.9 | N9: 170654611.7
A10: Receivables from Exchange Transactions - Property Rental Debtors | B10: 1700 | C10: 3317052.7 | D10: 1259223.39 | E10: 1160599.45 | F10: 994157.47 | G10: 856618.73 | H10: 867158.23 | I10: 5244750.86 | J10: 57600753.89 | K10: 71300314.72 | L10: =SUM(F10:J10) -> 65563439.18 | N10: 49605329.69
A11: Interest on Arrear Debtor Accounts | B11: 1810 | C11: 105625714.6 | D11: 53030956.45 | E11: 40677489.61 | F11: 43439241.41 | G11: 47972845.01 | H11: 44662634.18 | I11: 251223459.3 | J11: 1445457504 | K11: 2032089845 | L11: 1832755684 | N11: 1033365469
A12: Recoverable unauthorised, irregular, fruitless and wasteful expenditure | B12: 1820 | K12: 0 | L12: 0
A13: Other | B13: 1900 | C13: 675552.14 | D13: 264449.05 | E13: 299231.91 | F13: 184206.9 | G13: 491243.21 | H13: 97816.48 | I13: 686566.22 | J13: 160865605.7 | K13: 163564671.6 | L13: =SUM(F13:J13) -> 162325438.5 | N13: 159812595
A14: Total By Income Source | B14: 2000 | C14: =SUM(C5:C13) -> 886930593.8 | D14: 162156942 | E14: 142985326 | F14: 144993592.4 | G14: 140356264.1 | H14: 147941957.4 | I14: 839514109.9 | J14: 6332114705 | K14: 8796993490 | L14: =SUM(L5:L13) -> 7604920629 | M14: 0 | N14: 4957632536
A15: =Head1&" - totals only" -> 2024/25 - totals only | C15: 875793910.7 | D15: 139133815.9 | E15: 129053952.3 | F15: 122500943.3 | G15: 129065589 | H15: 125983656 | I15: 741521732.3 | J15: 5161654978 | K15: =SUM(C15:J15) -> 7424708578 | L15: =SUM(F15:J15) -> 6280726899 | N15: 3972310408
A16: Debtors Age Analysis By Customer Group
A17: Commercial | B17: 2300 | C17: 380649583.3 | D17: 31969194.14 | E17: 26584262.91 | F17: 27063165.6 | G17: 21913204.2 | H17: 26227046.94 | I17: 144976471.2 | J17: 840150346.1 | K17: =SUM(C17:J17) -> 1499533274 | L17: =SUM(F17:J17) -> 1060330234 | N17: 593859693
A18: Organs of State | B18: 2200 | C18: 111499111.9 | D18: 8068547.7 | E18: 6015520.56 | F18: 6304637.44 | G18: 5975668.23 | H18: 4421102.78 | I18: 25342754.51 | J18: 105927319.7 | K18: =SUM(C18:J18) -> 273554662.7 | L18: =SUM(F18:J18) -> 147971482.6 | N18: 77724468.58
A19: Households | B19: 2400 | C19: 394781898.6 | D19: 122119200.1 | E19: 110385542.5 | F19: 111625789.3 | G19: 112467391.7 | H19: 117293807.7 | I19: 669194884.2 | J19: 5386037039 | K19: =SUM(C19:J19) -> 7023905553 | L19: =SUM(F19:J19) -> 6396618912 | N19: 4286048374
A20: Other | B20: 2500 | K20: =SUM(C20:J20) -> 0 | L20: =SUM(F20:J20) -> 0
A21: Total By Customer Group | B21: 2600 | C21: =SUM(C17:C20) -> 886930593.8 | D21: 162156942 | E21: 142985326 | F21: 144993592.4 | G21: 140356264.1 | H21: 147941957.4 | I21: 839514110 | J21: =SUM(J17:J20) -> 6332114705 | K21: =SUM(K17:K20) -> 8796993490 | L21: =SUM(L17:L20) -> 7604920629 | M21: =SUM(M17:M20) -> 0 | N21: =SUM(N17:N20) -> 4957632536
A22: Notes
A23: Material increases in value of debtors' categories compared to previous month to be explained
A24: Bad debts = amounts actually written off in the month
A25: Total by Income Source must reconcile with Total by Customer Group
C26: =C14-C21 -> 0 | D26: =D14-D21 -> 0 | E26: =E14-E21 -> 0 | F26: 0 | G26: 0 | H26: 0 | I26: 0 | J26: =J14-J21 -> 0 | K26: 0
C27: =IF(C26=0,"","MUST AGREE") ->  | D27: =IF(D26=0,"","MUST AGREE") -> 

Sheet SC4
A1: =Muni2& " - "&S71J& " - "&Head57 -> KZN225 Msunduzi - Supporting Table SC4 Monthly Budget Statement - aged creditors - M01 July
A2: =desc -> Description | B2: NT Code | C2: =Head2 -> Budget Year 2025/26 | L2: Prior year totals for chart (same period)
C3: 0 - 30 Days | D3: 31 - 60 Days | E3: 61 - 90 Days | F3: 91 - 120 Days | G3: 121 - 150 Days | H3: 151 - 180 Days | I3: 181 Days - 1 Year | J3: Over 1 Year | K3: Total
A4: R thousands
A5: Creditors Age Analysis By Customer Type
A6: Bulk Electricity | B6: 0100 | C6: -1384757721 | D6: 68186000.02 | E6: 149772186.6 | F6: 156603658.5 | G6: 1103027289 | K6: =SUM(C6:J6) -> 92831413.41 | L6: 1515703792
A7: Bulk Water | B7: 0200 | C7: -896963369.2 | D7: 94255084.86 | E7: 110735319.1 | F7: -25574849.02 | G7: 955846574.1 | K7: =SUM(C7:J7) -> 238298759.8 | L7: 551346494.2
A8: PAYE deductions | B8: 0300 | K8: 0 | L8: 0
A9: VAT (output less input) | B9: 0400 | K9: 0 | L9: 0
A10: Pensions / Retirement deductions | B10: 0500 | K10: 0 | L10: 0
A11: Loan repayments | B11: 0600 | K11: 0 | L11: 0
A12: Trade Creditors | B12: 0700 | K12: 0 | L12: 0
A13: Auditor General | B13: 0800 | K13: 0 | L13: 0
A14: Other | B14: 0900 | C14: 30145090.64 | D14: 83100214.08 | E14: 7973099.61 | F14: 2919701.26 | G14: 35676913.28 | K14: =SUM(C14:J14) -> 159815018.9 | L14: 229261050.6
A15: Medical Aid deductions | B15: 0950 | K15: =SUM(C15:J15) -> 0 | L15: 0
A16: Total By Customer Type | B16: 1000 | C16: =SUM(C6:C15) -> -2251575999 | D16: =SUM(D6:D15) -> 245541299 | E16: 268480605.3 | F16: 133948510.7 | G16: 2094550776 | H16: 0 | I16: 0 | J16: 0 | K16: 490945192.1 | L16: 2296311337
A17: Notes
A18: Material increases in value of creditors' categories compared to previous month to be explained

Sheet SC5
A1: =Muni2& " - "&S71K& " - "&Head57 -> KZN225 Msunduzi - Supporting Table SC5 Monthly Budget Statement - investment portfolio - M01 July
A2: Investments by maturity Name of institution & investment ID | B2: Ref | C2: Period of Investment | D2: Type of Investment | E2: Capital Guarantee (Yes/ No) | F2: Variable or Fixed interest rate | G2: Interest Rate ᶟ | H2: Commission Paid (Rands) | I2: Commission Recipient | J2: Expiry date of investment | K2: Opening balance | L2: Interest to be realised | M2: Partial / Premature Withdrawal (4) | N2: Investment Top Up | O2: Closing Balance
A3: R thousands | C3: Yrs/Months
A4: Municipality
A5: Municipal Infrastructure Grant | K5: 51766266.25 | M5: -28912160.57 | N5: 60000000 | O5: =SUM(K5:N5) -> 82854105.68
A6: Unspent Conditional Grant | K6: 112715872.6 | L6: 30893.41 | M6: -43429902.28 | N6: 73262500 | O6: =SUM(K6:N6) -> 142579363.7
A7: Housing Accreditation | K7: 10329774.29 | L7: 85529.3 | M7: -1334938.79 | N7: 4722671.74 | O7: 13803036.54
A8: Municipal Housing Account | K8: 140111728.8 | L8: 5791.06 | M8: -234871.99 | N8: 843572.49 | O8: 140726220.4
A9: Housing Projects: Principal-Agent | K9: 9691589.51 | L9: 21911.77 | M9: -480060.8 | O9: 9233440.48
A10: Compensation Fund (COID)1131010020 | K10: 958737.79 | L10: 5781.32 | O10: 964519.11
A11: Compensation Fund (COID) | K11: 24093935 | O11: 24093935
A12: Airport Development Fund | K12: 30655.7 | L12: 184.86 | O12: 30840.56
A13: Insurance Fund | K13: 8480261.51 | L13: 51137.14 | O13: 8531398.65
A14: Vat Recovery on Prov. Grants | K14: 1105335.14 | L14: 6665.32 | O14: 1112000.46
A15: Vat Refunds | K15: 7256781.78 | L15: 43759.38 | O15: 7300541.16
A16: Call - General Reserves | K16: 48800000 | M16: -312000000 | N16: 365547000 | O16: 102347000
A17: 7 Day Notice - General Reserves | K17: 54057.14 | L17: 319.09 | O17: 54376.23
A18: 1 Day Notice - General Reserves | K18: 130756.24 | L18: 849.56 | O18: 131605.8
A19: Call Account-Loan | K19: 198668258.7 | L19: 1206482.92 | M19: -14655786.67 | O19: 185218954.9
A20: Standard | K20: 2331970.35 | L20: 14363.13 | O20: 2346333.48
O21: 0
O22: 0
A23: Municipality sub-total | K23: =SUM(K5:K22) -> 616525980.8 | L23: =SUM(L5:L22) -> 1473668.26 | M23: =SUM(M5:M22) -> -401047721.1 | N23: =SUM(N5:N22) -> 504375744.2 | O23: =SUM(O5:O22) -> 721327672.2
A25: Entities
O26: =SUM(K26:N26) -> 0
O27: 0
O28: 0
O29: 0
O30: 0
O31: 0
O32: 0
A33: Entities sub-total | K33: =SUM(K26:K32) -> 0 | L33: =SUM(L26:L32) -> 0 | M33: =SUM(M26:M32) -> 0 | N33: =SUM(N26:N32) -> 0 | O33: =SUM(O26:O32) -> 0
A35: TOTAL INVESTMENTS AND INTEREST | B35: 2 | K35: =K23+K33 -> 616525980.8 | L35: =L23+L33 -> 1473668.26 | M35: =M23+M33 -> -401047721.1 | N35: =N23+N33 -> 504375744.2 | O35: =O23+O33 -> 721327672.2
A36: =head27a -> References
A37: 2. List investments in expiry date order
A38: 3. If 'variable' is selected in column F, input interest rate range
A39: 4. Withdrawals to be entered as negative

Sheet SC6
A1: =Muni2& " - "&S71L& " - "&Head57 -> KZN225 Msunduzi - Supporting Table SC6 Monthly Budget Statement - transfers and grant receipts - M01 July
A2: =desc -> Description | B2: =head27 -> Ref | C2: =Head1 -> 2024/25 | D2: =Head2 -> Budget Year 2025/26
C3: =Head5 -> Audited Outcome | D3: =Head6 -> Original Budget | E3: =Head7 -> Adjusted Budget | F3: =Head38 -> Monthly actual | G3: =Head39 -> YearTD actual | H3: =Head40 -> YearTD budget | I3: =Head41 -> YTD variance | J3: =Head41 -> YTD variance | K3: =Head8 -> Full Year Forecast
A4: R thousands | J4: %
A5: RECEIPTS: | B5: 1,2
A7: Operating Transfers and Grants
A8: National Government: | C8: =SUM(C9:C19) -> 0 | D8: 966680480 | E8: 0 | F8: 391696140.2 | G8: 391696140.2 | H8: 80556706.67 | I8: 311139433.5 | J8: =IF(I8=0,"",I8/H8) -> 3.862365362 | K8: =SUM(K9:K19) -> 966680480
A9: Equitable Share | D9: 877312000 | F9: 365547000 | G9: 365547000 | H9: =D9/12*Instructions!X$14 -> 73109333.33 | I9: =G9-H9 -> 292437666.7 | J9: 4.000004559 | K9: =D9 -> 877312000
A10: Energy Efficiency and Demand Side Management | H10: =D10/12*Instructions!X$14 -> 0 | I10: =G10-H10 -> 0 | J10: =IF(I10=0,"",I10/H10) ->  | K10: =D10 -> 0
A11: Expanded Public Works Programme Integrated Grant | D11: 2624000 | H11: =D11/12*Instructions!X$14 -> 218666.6667 | I11: -218666.6667 | J11: -1 | K11: 2624000
A12: Local Government Financial Management Grant | D12: 2000000 | H12: =D12/12*Instructions!X$14 -> 166666.6667 | I12: -166666.6667 | J12: -1 | K12: 2000000
A13: Municipal Infrastructure Grant | D13: 9744480 | F13: 2400000 | G13: 2400000 | H13: =D13/12*Instructions!X$14 -> 812040 | I13: 1587960 | J13: 1.955519433 | K13: 9744480
A14: Municipal Systems Improvement Grant | B14: 3 | H14: =D14/12*Instructions!X$14 -> 0 | I14: 0 | K14: 0
A15: Municipal Water Infrastructure Grant [Schedule 5B] | D15: 25000000 | F15: 8000000 | G15: 8000000 | H15: =D15/12*Instructions!X$14 -> 2083333.333 | I15: 5916666.667 | J15: 2.84 | K15: 25000000
A16: Public Transport Network Grant | D16: 50000000 | F16: 15000000 | G16: 15000000 | H16: =D16/12*Instructions!X$14 -> 4166666.667 | I16: 10833333.33 | J16: 2.6 | K16: 50000000
A17: Regional Bulk Infrastructure Grant | H17: =D17/12*Instructions!X$14 -> 0 | I17: 0 | K17: 0
H18: =D18/12*Instructions!X$14 -> 0 | I18: 0 | K18: 0
A19: SETA- Bursaries for Non Employees | F19: 749140.21 | G19: 749140.21 | H19: =D19/12*Instructions!X$14 -> 0 | I19: 749140.21 | K19: 0
A20: Provincial Government: | C20: =SUM(C21:C26) -> 0 | D20: 50448165.24 | E20: 0 | F20: 0 | G20: 0 | H20: 4204013.77 | I20: -4204013.77 | J20: -1 | K20: =SUM(K21:K26) -> 50448165.24
A21: Infrastructure | D21: 50448165.24 | H21: =D21/12*Instructions!X$14 -> 4204013.77 | I21: =G21-H21 -> -4204013.77 | J21: -1 | K21: =D21 -> 50448165.24
A22: Capacity Building and Other | H22: =D22/12*Instructions!X$14 -> 0 | I22: 0 | J22: =IF(I22=0,"",I22/H22) ->  | K22: 0
H23: =D23/12*Instructions!X$14 -> 0 | I23: 0 | K23: 0
B24: 4 | H24: =D24/12*Instructions!X$14 -> 0 | I24: 0 | K24: 0
H25: =D25/12*Instructions!X$14 -> 0 | I25: 0 | K25: 0
A26: Other transfers and grants [insert description] | H26: =D26/12*Instructions!X$14 -> 0 | I26: 0 | K26: 0
A27: District Municipality: | C27: =SUM(C28:C29) -> 0 | D27: 0 | E27: 0 | F27: 0 | G27: 0 | H27: 0 | I27: 0 | K27: =SUM(K28:K29) -> 0
A28: [insert description] | I28: 0
I29: 0
A30: Other grant providers: | C30: =SUM(C31:C37) -> 0 | D30: 0 | E30: 0 | F30: 0 | G30: 0 | H30: 0 | I30: 0 | K30: =SUM(K31:K37) -> 0
A31: [insert description] | I31: 0
I32: 0 | J32: =IF(I32=0,"",I32/H32) -> 
I33: 0
I34: 0
I35: 0
I36: 0
I37: 0
A38: Total Operating Transfers and Grants | B38: 5 | C38: =C8+C20+C27+C30 -> 0 | D38: 1017128645 | E38: 0 | F38: 391696140.2 | G38: 391696140.2 | H38: 84760720.44 | I38: 306935419.8 | J38: 3.621198808 | K38: =K8+K20+K27+K30 -> 1017128645
A40: Capital Transfers and Grants
A41: =A8 -> National Government: | C41: =SUM(C42:C51) -> 0 | D41: 376126520 | E41: 0 | F41: 107600000 | G41: 107600000 | H41: 31343876.67 | I41: 76256123.33 | J41: =IF(I41=0,"",I41/H41) -> 2.432887423 | K41: 376126520
A42: Energy Efficiency and Demand Side Management Grant | H42: =D42/12*Instructions!X$14 -> 0 | I42: =G42-H42 -> 0 | K42: =D42 -> 0
A43: Integrated National Electrification Programme (Municipal Grant) [Schedule 5B] | H43: =D43/12*Instructions!X$14 -> 0 | I43: 0 | K43: 0
A44: Municipal Disaster Recovery Grant | D44: 13214000 | H44: =D44/12*Instructions!X$14 -> 1101166.667 | I44: -1101166.667 | J44: -1 | K44: 13214000
A45: Municipal Disaster Relief Grant | H45: =D45/12*Instructions!X$14 -> 0 | I45: 0 | K45: 0
A46: Municipal Infrastructure Grant | D46: 232912520 | F46: 57600000 | G46: 57600000 | H46: =D46/12*Instructions!X$14 -> 19409376.67 | I46: 38190623.33 | J46: 1.967637807 | K46: 232912520
A47: Neighbourhood Development Partnership Grant | D47: 30000000 | F47: 23000000 | G47: 23000000 | H47: =D47/12*Instructions!X$14 -> 2500000 | I47: 20500000 | J47: 8.2 | K47: 30000000
A48: Public Transport Network Grant | D48: 50000000 | F48: 5000000 | G48: 5000000 | H48: =D48/12*Instructions!X$14 -> 4166666.667 | I48: =G48-H48 -> 833333.3333 | J48: 0.2 | K48: 50000000
A49: Water Services Infrastructure Grant | D49: 50000000 | F49: 22000000 | G49: 22000000 | H49: =D49/12*Instructions!X$14 -> 4166666.667 | I49: 17833333.33 | J49: 4.28 | K49: 50000000
H50: =D50/12*Instructions!X$14 -> 0 | I50: 0 | K50: 0
A51: Other capital transfers [insert description] | H51: =D51/12*Instructions!X$14 -> 0 | I51: 0 | K51: 0
A52: =A20 -> Provincial Government: | C52: =SUM(C53:C58) -> 0 | D52: 2550000 | E52: 0 | F52: 0 | G52: 0 | H52: 212500 | I52: -212500 | J52: =IF(I52=0,"",I52/H52) -> -1 | K52: =SUM(K53:K58) -> 2550000
A53: Infrastructure | D53: 2550000 | H53: =D53/12*Instructions!X$14 -> 212500 | I53: -212500 | J53: =IF(I53=0,"",I53/H53) -> -1 | K53: =D53 -> 2550000
H54: =D54/12*Instructions!X$14 -> 0 | I54: =G54-H54 -> 0 | J54: =IF(I54=0,"",I54/H54) ->  | K54: 0
H55: =D55/12*Instructions!X$14 -> 0 | I55: 0 | K55: 0
H56: =D56/12*Instructions!X$14 -> 0 | I56: 0 | K56: 0
H57: =D57/12*Instructions!X$14 -> 0 | I57: 0 | K57: 0
H58: =D58/12*Instructions!X$14 -> 0 | I58: 0 | K58: 0
A59: =A27 -> District Municipality: | C59: =SUM(C60:C61) -> 0 | D59: 0 | E59: 0 | F59: 0 | G59: 0 | H59: 0 | I59: 0 | K59: =SUM(K60:K61) -> 0
A60: [insert description] | I60: 0
I61: 0
A62: =A30 -> Other grant providers: | C62: =SUM(C63:C68) -> 0 | D62: 0 | E62: 0 | F62: 0 | G62: 0 | H62: 0 | I62: 0 | K62: =SUM(K63:K68) -> 0
A63: [insert description] | I63: =G63-H63 -> 0
I64: 0
I65: 0
I66: 0
I67: 0
I68: 0
A69: Total Capital Transfers and Grants | B69: 5 | C69: =C41+C52+C59+C62 -> 0 | D69: =D41+D52+D59+D62 -> 378676520 | E69: 0 | F69: 107600000 | G69: 107600000 | H69: 31556376.67 | I69: 76043623.33 | J69: 2.409770429 | K69: 378676520
A71: TOTAL RECEIPTS OF TRANSFERS & GRANTS | B71: 5 | C71: =C38+C69 -> 0 | D71: 1395805165 | E71: 0 | F71: 499296140.2 | G71: 499296140.2 | H71: 116317097.1 | I71: 382979043.1 | J71: 3.292542994 | K71: 1395805165
A72: =head27a -> References
A73: 1. Each grant is listed by name as gazetted together with the name of the transferring department or municipality, donor or other organisation
A74: 2. Grant expenditure must be separately listed for each grant received
A75: 3. Replacement of RSC levies
A76: 4. Housing subsidies for housing where ownership transferred
A77: 5. Total recurrent/capital grants and subsidies must reconcile to the 'Financial Performance' Statement

Sheet SC7
A1: =Muni2& " - "&S71M& " - "&Head57 -> KZN225 Msunduzi - Supporting Table SC7(1) Monthly Budget Statement - transfers and grant expenditure - M01 July
A2: =desc -> Description | B2: =head27 -> Ref | C2: =Head1 -> 2024/25 | D2: =Head2 -> Budget Year 2025/26
C3: =Head5 -> Audited Outcome | D3: =Head6 -> Original Budget | E3: =Head7 -> Adjusted Budget | F3: =Head38 -> Monthly actual | G3: =Head39 -> YearTD actual | H3: =Head40 -> YearTD budget | I3: =Head41 -> YTD variance | J3: =Head41 -> YTD variance | K3: =Head8 -> Full Year Forecast
A4: R thousands | J4: %
A5: EXPENDITURE
A7: Operating expenditure of Transfers and Grants
A8: ='SC6'!A8 -> National Government: | C8: =SUM(C9:C20) -> 0 | D8: 966680480 | E8: 0 | F8: 366882965.8 | G8: 366882965.8 | H8: =SUM(H9:H20) -> 80556706.67 | I8: 289028895 | J8: =IF(I8=0,"",I8/H8) -> 3.587893633 | K8: =SUM(K9:K20) -> 966680480
A9: Equitable Share | D9: 877312000 | F9: 365547000 | G9: 365547000 | H9: =D9/12*Instructions!X$14 -> 73109333.33 | I9: =G9-H9 -> 292437666.7 | J9: =IF(I9=0,"",I9/H9) -> 4.000004559 | K9: =D9 -> 877312000
A10: Energy Efficiency and Demand Side Management | H10: =D10/12*Instructions!X$14 -> 0 | I10: =G10-H10 -> 0 | J10: =IF(I10=0,"",I10/H10) ->  | K10: =D10 -> 0
A11: Expanded Public Works Programme Integrated Grant | D11: 2624000 | F11: 0 | G11: 0 | H11: =D11/12*Instructions!X$14 -> 218666.6667 | I11: =G11-H11 -> -218666.6667 | J11: -1 | K11: 2624000
A12: Local Government Financial Management Grant | D12: 2000000 | F12: 133671.09 | G12: 133671.09 | H12: =D12/12*Instructions!X$14 -> 166666.6667 | K12: 2000000
A13: Municipal Infrastructure Grant | D13: 9744480 | F13: 654750.84 | G13: 654750.84 | H13: =D13/12*Instructions!X$14 -> 812040 | K13: 9744480
A14: Municipal Systems Improvement Grant | F14: 0 | G14: 0 | H14: =D14/12*Instructions!X$14 -> 0 | K14: 0
A15: Municipal Water Infrastructure Grant [Schedule 5B] | D15: 25000000 | F15: -429017.81 | G15: -429017.81 | H15: =D15/12*Instructions!X$14 -> 2083333.333 | K15: 25000000
A16: Public Transport Network Grant | D16: 50000000 | F16: 976561.65 | G16: 976561.65 | H16: =D16/12*Instructions!X$14 -> 4166666.667 | I16: -3190105.017 | J16: -0.765625204 | K16: 50000000
H17: =D17/12*Instructions!X$14 -> 0 | I17: =G17-H17 -> 0 | J17: =IF(I17=0,"",I17/H17) ->  | K17: =D17 -> 0
A18: Regional Bulk Infrastructure Grant | H18: =D18/12*Instructions!X$14 -> 0 | I18: 0 | K18: 0
A21: ='SC6'!A20 -> Provincial Government: | C21: =SUM(C22:C39) -> 0 | D21: 50448165.24 | E21: 0 | F21: 861528.81 | G21: 861528.81 | H21: 4204013.77 | I21: -3342484.96 | J21: -0.7950699362 | K21: =SUM(K22:K39) -> 50448165.24
A22: ='SC6'!A21 -> Infrastructure | D22: 50448165.24 | H22: =D22/12*Instructions!X$14 -> 4204013.77 | I22: =G22-H22 -> -4204013.77 | J22: -1 | K22: =D22 -> 50448165.24
A23: Provincial Government: | F23: 0 | G23: 0 | H23: =D23/12*Instructions!X$14 -> 0 | I23: =G23-H23 -> 0 | J23: =IF(I23=0,"",I23/H23) ->  | K23: =D23 -> 0
A24: Expanded Public Works Grant | F24: 0 | G24: 0 | H24: =D24/12*Instructions!X$14 -> 0 | I24: 0 | K24: 0
A25: Sport and Recreation | F25: 0 | G25: 0 | H25: =D25/12*Instructions!X$14 -> 0 | I25: 0 | K25: 0
A26: Human Settlements - Title Deeds Restoration | F26: 0 | G26: 0 | H26: =D26/12*Instructions!X$14 -> 0 | I26: 0 | K26: 0
A27: Housing Accreditation-OPERATING | F27: 418351.97 | G27: 418351.97 | H27: =D27/12*Instructions!X$14 -> 0 | I27: 418351.97 | K27: 0
A28: Human Settlements - Accredited Municipal RO | F28: 0 | G28: 0 | H28: =D28/12*Instructions!X$14 -> 0 | I28: 0 | K28: 0
A29: Housing Projects -OPERATING | F29: 0 | G29: 0 | H29: =D29/12*Instructions!X$14 -> 0 | I29: 0 | K29: 0
A30: Arts and Culture- Community Library Services | F30: 0 | G30: 0 | H30: =D30/12*Instructions!X$14 -> 0 | I30: 0 | K30: 0
A31: Community Library Service and Provincialsation Library-OPERATING | F31: 420303.45 | G31: 420303.45 | H31: =D31/12*Instructions!X$14 -> 0 | I31: 420303.45 | K31: 0
A32: Municipal Employment Initiative - OPERATING | F32: 0 | G32: 0 | H32: =D32/12*Instructions!X$14 -> 0 | I32: 0 | K32: 0
A33: Tatham Art Gallery-OPERATING | F33: 22873.39 | G33: 22873.39 | H33: =D33/12*Instructions!X$14 -> 0 | I33: 22873.39 | K33: 0
A34: Greater Edendale Development Iniatative-OPERATING | F34: 0 | G34: 0 | H34: =D34/12*Instructions!X$14 -> 0 | I34: 0 | K34: 0
A35: Operation Dlulisumlando-OPERATING | F35: 0 | G35: 0 | H35: =D35/12*Instructions!X$14 -> 0 | I35: 0 | K35: 0
A36: SETA- Bursaries for Non Employees- OPERATING | F36: 0 | G36: 0 | H36: =D36/12*Instructions!X$14 -> 0 | I36: 0 | K36: 0
A37: COGTA-OPERATING | F37: 0 | G37: 0 | H37: =D37/12*Instructions!X$14 -> 0 | I37: 0 | K37: 0
A38: REG BULK INFRA GRANT | F38: 0 | G38: 0 | H38: =D38/12*Instructions!X$14 -> 0 | I38: 0 | K38: 0
A39: PMB Airport-OPERATING | F39: 0 | G39: 0 | H39: =D39/12*Instructions!X$14 -> 0 | I39: 0 | K39: 0
A40: ='SC6'!A27 -> District Municipality: | C40: =SUM(C41:C42) -> 0 | D40: 0 | E40: =SUM(E41:E42) -> 0 | F40: 0 | G40: 0 | H40: 0 | I40: 0 | K40: =SUM(K41:K42) -> 0
I41: 0
A42: ='SC6'!A28 -> [insert description] | I42: 0
A43: ='SC6'!A30 -> Other grant providers: | C43: =SUM(C44:C45) -> 0 | D43: 0 | E43: 0 | F43: 0 | G43: 0 | H43: 0 | I43: 0 | K43: =SUM(K44:K45) -> 0
I44: 0
A45: ='SC6'!A31 -> [insert description] | I45: 0
A46: Total operating expenditure of Transfers and Grants: | C46: =C8+C21+C40+C43 -> 0 | D46: 1017128645 | E46: 0 | F46: 367744494.6 | G46: 367744494.6 | H46: 84760720.44 | I46: 285686410 | J46: 3.37050474 | K46: =K8+K21+K40+K43 -> 1017128645
A48: Capital expenditure of Transfers and Grants
A49: ='SC6'!A41 -> National Government: | C49: =SUM(C50:C60) -> 0 | D49: 376126520 | E49: 0 | F49: 11768158.06 | G49: 11768158.06 | H49: 31343876.67 | I49: -8333333.333 | J49: =IF(I49=0,"",I49/H49) -> -0.2658679851 | K49: 376126520
A50: Energy Efficiency and Demand Side Management Grant | H50: =D50/12*Instructions!X$14 -> 0 | I50: =G50-H50 -> 0 | K50: =D50 -> 0
A51: Integrated National Electrification Programme (Municipal Grant) [Schedule 5B] | H51: =D51/12*Instructions!X$14 -> 0 | K51: 0
A52: Municipal Disaster Recovery Grant | D52: 13214000 | H52: =D52/12*Instructions!X$14 -> 1101166.667 | K52: 13214000
A53: Municipal Disaster Relief Grant | H53: =D53/12*Instructions!X$14 -> 0 | K53: 0
A54: Municipal Infrastructure Grant | D54: 232912520 | F54: 11768158.06 | G54: 11768158.06 | H54: =D54/12*Instructions!X$14 -> 19409376.67 | K54: 232912520
A55: Neighbourhood Development Partnership Grant | D55: 30000000 | H55: =D55/12*Instructions!X$14 -> 2500000 | K55: 30000000
A56: Public Transport Network Grant | D56: 50000000 | H56: =D56/12*Instructions!X$14 -> 4166666.667 | I56: -4166666.667 | J56: -1 | K56: 50000000
A57: Water Services Infrastructure Grant | D57: 50000000 | H57: =D57/12*Instructions!X$14 -> 4166666.667 | I57: -4166666.667 | J57: -1 | K57: 50000000
A61: ='SC6'!A52 -> Provincial Government: | C61: =SUM(C62:C63) -> 0 | D61: 2550000 | E61: 0 | F61: 0 | G61: 0 | H61: 212500 | I61: -212500 | J61: -1 | K61: =SUM(K62:K63) -> 2550000
A62: Infrastructure | D62: 2550000 | H62: =D62/12*Instructions!X$14 -> 212500 | I62: -212500 | J62: -1 | K62: =D62 -> 2550000
A63: ='SC6'!A58 -> 0 | H63: =D63/12*Instructions!X$14 -> 0 | I63: 0 | K63: 0
A64: ='SC6'!A59 -> District Municipality: | C64: =SUM(C65:C66) -> 0 | D64: 0 | E64: 0 | F64: 0 | G64: 0 | H64: 0 | I64: 0 | K64: =SUM(K65:K66) -> 0
I65: 0
A66: ='SC6'!A61 -> 0 | I66: 0
A67: ='SC6'!A62 -> Other grant providers: | C67: =SUM(C68:C69) -> 0 | D67: 0 | E67: 0 | F67: 0 | G67: 0 | H67: 0 | I67: 0 | K67: =SUM(K68:K69) -> 0
I68: 0
A69: ='SC6'!A68 -> 0 | I69: 0
A70: Total capital expenditure of Transfers and Grants | C70: =C49+C61+C64+C67 -> 0 | D70: =D49+D61+D64+D67 -> 378676520 | E70: 0 | F70: 11768158.06 | G70: 11768158.06 | H70: 31556376.67 | I70: -8545833.333 | J70: =IF(I70=0,"",I70/H70) -> -0.2708116151 | K70: 378676520
A72: TOTAL EXPENDITURE OF TRANSFERS AND GRANTS | C72: =C46+C70 -> 0 | D72: 1395805165 | E72: 0 | F72: 379512652.6 | G72: 379512652.6 | H72: 116317097.1 | I72: 277140576.7 | J72: =IF(I72=0,"",I72/H72) -> 2.382629756 | K72: 1395805165
A73: =head27a -> References

Sheet SC8
A1: =Muni2& " - "&S71N& " - "&Head57 -> KZN225 Msunduzi - Supporting Table SC8 Monthly Budget Statement - councillor and staff benefits - M01 July
A2: Summary of Employee and Councillor remuneration | B2: =head27 -> Ref | C2: =Head1 -> 2024/25 | D2: =Head2 -> Budget Year 2025/26
C3: =Head5 -> Audited Outcome | D3: =Head6 -> Original Budget | E3: =Head7 -> Adjusted Budget | F3: =Head38 -> Monthly actual | G3: =Head39 -> YearTD actual | H3: =Head40 -> YearTD budget | I3: =Head41 -> YTD variance | J3: =Head41 -> YTD variance | K3: =Head8 -> Full Year Forecast
A4: R thousands | J4: %
B5: 1 | C5: A | D5: B | E5: C | K5: D
A6: Councillors (Political Office Bearers plus Other)
A7: Basic Salaries and Wages | D7: 4064722.28 | F7: 3790477.14 | G7: 3790477.14 | H7: =D7/12*Instructions!X$14 -> 338726.8566 | I7: =G7-H7 -> 3451750.283 | J7: =IF(I7=0,"",I7/H7) -> 10.19036494 | K7: =D7 -> 4064722.28
A8: Pension and UIF Contributions | D8: 3702489.985 | F8: 266282.92 | G8: 266282.92 | H8: =D8/12*Instructions!X$14 -> 308540.8321 | I8: -42257.91207 | J8: -0.1369605176 | K8: =D8 -> 3702489.985
A9: Medical Aid Contributions | D9: 8989591.248 | F9: 188529.3 | G9: 188529.3 | H9: =D9/12*Instructions!X$14 -> 749132.604 | I9: -560603.304 | J9: -0.7483365442 | K9: 8989591.248
A10: Motor Vehicle Allowance | D10: 44126771.74 | F10: 250738.71 | G10: 250738.71 | H10: =D10/12*Instructions!X$14 -> 3677230.978 | I10: -3426492.268 | J10: -0.9318131737 | K10: 44126771.74
A11: Cellphone Allowance | D11: 839106.653 | F11: 309443 | G11: 309443 | H11: =D11/12*Instructions!X$14 -> 69925.55442 | I11: 239517.4456 | J11: 3.425320651 | K11: 839106.653
A12: Housing Allowances | D12: 8726965.043 | F12: 17670.51 | G12: 17670.51 | H12: =D12/12*Instructions!X$14 -> 727247.087 | I12: -709576.577 | J12: -0.9757021921 | K12: 8726965.043
A13: Other benefits and allowances | F13: 1614.38 | G13: 1614.38 | H13: =D13/12*Instructions!X$14 -> 0 | I13: 1614.38 | K13: 0
A14: Sub Total - Councillors | C14: =SUM(C7:C13) -> 0 | D14: 70449646.94 | E14: 0 | F14: 4824755.96 | G14: 4824755.96 | H14: 5870803.912 | I14: -1046047.952 | J14: -0.1781779749 | K14: =SUM(K7:K13) -> 70449646.94
A15: % increase | B15: 4 | D15: =IF(D14=0,"",(D14/C14)-1) ->  | E15: =IF(E14=0,"",(E14/C14)-1) ->  | K15: =IF(K14=0,"",(K14/C14)-1) -> 
A17: Senior Managers of the Municipality | B17: 3
A18: Basic Salaries and Wages | D18: 220237000.4 | F18: 667022.48 | G18: 667022.48 | H18: =D18/12*Instructions!X$14 -> 18353083.37 | I18: =G18-H18 -> -17686060.89 | J18: =IF(I18=0,"",I18/H18) -> -0.963656108 | K18: =D18 -> 220237000.4
A19: Pension and UIF Contributions | D19: 1182533.763 | F19: 102830.79 | G19: 102830.79 | H19: =D19/12*Instructions!X$14 -> 98544.48028 | I19: 4286.309717 | J19: 0.04349619283 | K19: 1182533.763
A20: Medical Aid Contributions | D20: 261982.1482 | F20: 16926.6 | G20: 16926.6 | H20: =D20/12*Instructions!X$14 -> 21831.84568 | I20: -4905.245683 | J20: -0.2246830504 | K20: 261982.1482
A21: Overtime | F21: 0 | G21: 0 | H21: =D21/12*Instructions!X$14 -> 0 | I21: 0 | K21: 0
A22: Performance Bonus | F22: 0 | G22: 0 | H22: =D22/12*Instructions!X$14 -> 0 | I22: 0 | K22: 0
A23: Motor Vehicle Allowance | D23: 2211603.069 | F23: 70832.01 | G23: 70832.01 | H23: =D23/12*Instructions!X$14 -> 184300.2558 | I23: -113468.2458 | J23: -0.6156705822 | K23: 2211603.069
A24: Cellphone Allowance | D24: 148637.44 | F24: 8850 | G24: 8850 | H24: =D24/12*Instructions!X$14 -> 12386.45333 | I24: -3536.453333 | J24: -0.2855097612 | K24: 148637.44
A25: Housing Allowances | D25: 232398.5976 | F25: 16170.23 | G25: 16170.23 | H25: =D25/12*Instructions!X$14 -> 19366.5498 | I25: -3196.3198 | J25: -0.1650433264 | K25: 232398.5976
A26: Other benefits and allowances | D26: 341880.0192 | F26: 11.95 | G26: 11.95 | H26: =D26/12*Instructions!X$14 -> 28490.0016 | I26: -28478.0516 | J26: -0.9995805546 | K26: 341880.0192
A27: Payments in lieu of leave | F27: 0 | G27: 0 | H27: =D27/12*Instructions!X$14 -> 0 | I27: 0 | K27: 0
A28: Long service awards | F28: 0 | G28: 0 | H28: =D28/12*Instructions!X$14 -> 0 | I28: 0 | K28: 0
A29: Post-retirement benefit obligations | B29: 2 | F29: 0 | G29: 0 | H29: =D29/12*Instructions!X$14 -> 0 | I29: 0 | K29: 0
A30: Entertainment | H30: =D30/12*Instructions!X$14 -> 0 | I30: =G30-H30 -> 0 | J30: =IF(I30=0,"",I30/H30) ->  | K30: 0
A31: Scarcity | H31: =D31/12*Instructions!X$14 -> 0 | I31: 0 | K31: 0
A32: Acting and post related allowance | H32: =D32/12*Instructions!X$14 -> 0 | I32: 0 | K32: 0
A33: In kind benefits | H33: =D33/12*Instructions!X$14 -> 0 | I33: 0 | K33: 0
A34: Sub Total - Senior Managers of Municipality | C34: =SUM(C18:C33) -> 0 | D34: 224616035.5 | E34: 0 | F34: 882644.06 | G34: 882644.06 | H34: 18718002.95 | I34: =G34-H34 -> -17835358.89 | J34: =IF(I34=0,"",I34/H34) -> -0.95284518 | K34: =SUM(K18:K33) -> 224616035.5
A35: % increase | B35: 4 | D35: =IF(D34=0,"",(D34/C34)-1) ->  | E35: =IF(E34=0,"",(E34/C34)-1) ->  | K35: =IF(K34=0,"",(K34/C34)-1) -> 
A37: Other Municipal Staff
A38: Basic Salaries and Wages | D38: 1148627268 | F38: 88115481.82 | G38: 88115481.82 | H38: =D38/12*Instructions!X$14 -> 95718938.97 | I38: =G38-H38 -> -7603457.154 | J38: =IF(I38=0,"",I38/H38) -> -0.07943524276 | K38: =D38 -> 1148627268
A39: Pension and UIF Contributions | D39: 220182557 | F39: 15327091.96 | G39: 15327091.96 | H39: =D39/12*Instructions!X$14 -> 18348546.42 | I39: -3021454.461 | J39: -0.164669963 | K39: 220182557
A40: Medical Aid Contributions | D40: 23618797.08 | F40: 7557437.2 | G40: 7557437.2 | H40: =D40/12*Instructions!X$14 -> 1968233.09 | I40: 5589204.11 | J40: 2.839706403 | K40: 23618797.08
A41: Overtime | D41: 104690164.7 | F41: 11281781.61 | G41: 11281781.61 | H41: =D41/12*Instructions!X$14 -> 8724180.39 | I41: 2557601.22 | J41: 0.2931623495 | K41: 104690164.7
A42: Performance Bonus | F42: 0 | G42: 0 | H42: =D42/12*Instructions!X$14 -> 0 | I42: 0 | K42: 0
A43: Motor Vehicle Allowance | D43: 63861570.59 | F43: 2868388.36 | G43: 2868388.36 | H43: =D43/12*Instructions!X$14 -> 5321797.549 | I43: -2453409.189 | J43: -0.4610113719 | K43: 63861570.59
A44: Cellphone Allowance | D44: 7496545.875 | F44: 500488.65 | G44: 500488.65 | H44: =D44/12*Instructions!X$14 -> 624712.1563 | I44: -124223.5063 | J44: -0.19884919 | K44: 7496545.875
A45: Housing Allowances | D45: 6001631.405 | F45: 366226.16 | G45: 366226.16 | H45: =D45/12*Instructions!X$14 -> 500135.9504 | I45: -133909.7904 | J45: -0.2677467803 | K45: 6001631.405
A46: Other benefits and allowances | D46: 74060684.98 | F46: 1611083.66 | G46: 1611083.66 | H46: =D46/12*Instructions!X$14 -> 6171723.749 | I46: -4560640.089 | J46: -0.7389572629 | K46: 74060684.98
A47: Payments in lieu of leave | F47: 0 | G47: 0 | H47: =D47/12*Instructions!X$14 -> 0 | I47: 0 | K47: 0
A48: Long service awards | D48: 27039283.19 | F48: 1682850.32 | G48: 1682850.32 | H48: =D48/12*Instructions!X$14 -> 2253273.599 | I48: -570423.2795 | J48: -0.2531531367 | K48: 27039283.19
A49: Post-retirement benefit obligations | B49: 2 | F49: 0 | G49: 0 | H49: =D49/12*Instructions!X$14 -> 0 | I49: 0 | K49: 0
A50: Entertainment | H50: =D50/12*Instructions!X$14 -> 0 | I50: 0 | K50: 0
A51: Scarcity | H51: =D51/12*Instructions!X$14 -> 0 | I51: 0 | K51: 0
A52: Acting and post related allowance | H52: =D52/12*Instructions!X$14 -> 0 | I52: 0 | K52: 0
A53: In kind benefits | H53: =D53/12*Instructions!X$14 -> 0 | I53: 0 | K53: 0
A54: Sub Total - Other Municipal Staff | C54: =SUM(C38:C53) -> 0 | D54: 1675578503 | E54: 0 | F54: 129310829.7 | G54: 129310829.7 | H54: 139631541.9 | I54: -10320712.14 | J54: -0.07391390226 | K54: =SUM(K38:K53) -> 1675578503
A55: % increase | B55: 4 | D55: =IF(D54=0,"",(D54/C54)-1) ->  | E55: =IF(E54=0,"",(E54/C54)-1) ->  | K55: =IF(K54=0,"",(K54/C54)-1) -> 
A56: Total Parent Municipality | C56: =C14+C34+C54 -> 0 | D56: 1970644185 | E56: 0 | F56: 135018229.8 | G56: 135018229.8 | H56: 164220348.7 | I56: =G56-H56 -> -29202118.99 | J56: =IF(I56=0,"",I56/H56) -> -0.1778227802 | K56: =K14+K34+K54 -> 1970644185
D57: =IF(D56=0,"",(D56/C56)-1) ->  | E57: =IF(E56=0,"",(E56/C56)-1) ->  | K57: =IF(K56=0,"",(K56/C56)-1) -> 
A58: Unpaid salary, allowances & benefits in arrears:
A60: Board Members of Entities
A61: Basic Salaries and Wages | H61: =D61/12*Instructions!X$14 -> 0 | I61: =G61-H61 -> 0 | J61: =IF(I61=0,"",I61/H61) ->  | K61: =D61 -> 0
A62: Pension and UIF Contributions | H62: =D62/12*Instructions!X$14 -> 0 | I62: 0 | K62: 0
A63: Medical Aid Contributions | H63: =D63/12*Instructions!X$14 -> 0 | I63: 0 | K63: 0
A64: Overtime | H64: =D64/12*Instructions!X$14 -> 0 | I64: 0 | K64: 0
A65: Performance Bonus | H65: =D65/12*Instructions!X$14 -> 0 | I65: 0 | K65: 0
A66: Motor Vehicle Allowance | H66: =D66/12*Instructions!X$14 -> 0 | I66: 0 | K66: 0
A67: Cellphone Allowance | H67: =D67/12*Instructions!X$14 -> 0 | I67: 0 | K67: 0
A68: Housing Allowances | H68: =D68/12*Instructions!X$14 -> 0 | I68: 0 | K68: 0
A69: Other benefits and allowances | H69: =D69/12*Instructions!X$14 -> 0 | I69: 0 | K69: 0
A70: Board Fees | B70: 5 | H70: =D70/12*Instructions!X$14 -> 0 | I70: 0 | K70: 0
A71: Payments in lieu of leave | H71: =D71/12*Instructions!X$14 -> 0 | I71: 0 | K71: 0
A72: Long service awards | H72: =D72/12*Instructions!X$14 -> 0 | I72: 0 | K72: 0
A73: Post-retirement benefit obligations | H73: =D73/12*Instructions!X$14 -> 0 | I73: 0 | K73: 0
A74: Entertainment | H74: =D74/12*Instructions!X$14 -> 0 | I74: =G74-H74 -> 0 | J74: =IF(I74=0,"",I74/H74) ->  | K74: 0
A75: Scarcity | H75: =D75/12*Instructions!X$14 -> 0 | I75: 0 | K75: 0
A76: Acting and post related allowance | H76: =D76/12*Instructions!X$14 -> 0 | I76: 0 | K76: 0
A77: In kind benefits | H77: =D77/12*Instructions!X$14 -> 0 | I77: 0 | K77: 0
A78: Sub Total - Executive members Board | B78: 2 | C78: =SUM(C61:C77) -> 0 | D78: 0 | E78: 0 | F78: 0 | G78: 0 | H78: 0 | I78: =G78-H78 -> 0 | J78: =IF(I78=0,"",I78/H78) ->  | K78: =SUM(K61:K77) -> 0
A79: % increase | B79: 4 | D79: =IF(D78=0,"",(D78/C78)-1) ->  | E79: =IF(E78=0,"",(E78/C78)-1) ->  | K79: =IF(K78=0,"",(K78/C78)-1) -> 
A81: Senior Managers of Entities
A82: Basic Salaries and Wages | H82: =D82/12*Instructions!X$14 -> 0 | I82: =G82-H82 -> 0 | J82: =IF(I82=0,"",I82/H82) ->  | K82: =D82 -> 0
A83: Pension and UIF Contributions | H83: =D83/12*Instructions!X$14 -> 0 | I83: 0 | K83: 0
A84: Medical Aid Contributions | H84: =D84/12*Instructions!X$14 -> 0 | I84: 0 | K84: 0
A85: Overtime | H85: =D85/12*Instructions!X$14 -> 0 | I85: 0 | K85: 0
A86: Performance Bonus | H86: =D86/12*Instructions!X$14 -> 0 | I86: 0 | K86: 0
A87: Motor Vehicle Allowance | H87: =D87/12*Instructions!X$14 -> 0 | I87: 0 | K87: 0
A88: Cellphone Allowance | H88: =D88/12*Instructions!X$14 -> 0 | I88: 0 | K88: 0
A89: Housing Allowances | H89: =D89/12*Instructions!X$14 -> 0 | I89: 0 | K89: 0
A90: Other benefits and allowances | H90: =D90/12*Instructions!X$14 -> 0 | I90: 0 | K90: 0
A91: Payments in lieu of leave | H91: =D91/12*Instructions!X$14 -> 0 | I91: 0 | K91: 0
A92: Long service awards | H92: =D92/12*Instructions!X$14 -> 0 | I92: 0 | K92: 0
A93: Post-retirement benefit obligations | B93: 2 | H93: =D93/12*Instructions!X$14 -> 0 | I93: 0 | K93: 0
A94: Entertainment | H94: =D94/12*Instructions!X$14 -> 0 | I94: =G94-H94 -> 0 | J94: =IF(I94=0,"",I94/H94) ->  | K94: 0
A95: Scarcity | H95: =D95/12*Instructions!X$14 -> 0 | I95: 0 | K95: 0
A96: Acting and post related allowance | H96: =D96/12*Instructions!X$14 -> 0 | I96: 0 | K96: 0
A97: In kind benefits | H97: =D97/12*Instructions!X$14 -> 0 | I97: 0 | K97: 0
A98: Sub Total - Senior Managers of Entities | C98: =SUM(C82:C97) -> 0 | D98: 0 | E98: 0 | F98: 0 | G98: 0 | H98: 0 | I98: =G98-H98 -> 0 | J98: =IF(I98=0,"",I98/H98) ->  | K98: =SUM(K82:K97) -> 0
A99: % increase | B99: 4 | D99: =IF(D98=0,"",(D98/C98)-1) ->  | E99: =IF(E98=0,"",(E98/C98)-1) ->  | K99: =IF(K98=0,"",(K98/C98)-1) -> 
A101: Other Staff of Entities
A102: Basic Salaries and Wages | H102: =D102/12*Instructions!X$14 -> 0 | I102: =G102-H102 -> 0 | J102: =IF(I102=0,"",I102/H102) ->  | K102: =D102 -> 0
A103: Pension and UIF Contributions | H103: =D103/12*Instructions!X$14 -> 0 | I103: 0 | K103: 0
A104: Medical Aid Contributions | H104: =D104/12*Instructions!X$14 -> 0 | I104: 0 | K104: 0
A105: Overtime | H105: =D105/12*Instructions!X$14 -> 0 | I105: 0 | K105: 0
A106: Performance Bonus | H106: =D106/12*Instructions!X$14 -> 0 | I106: 0 | K106: 0
A107: Motor Vehicle Allowance | H107: =D107/12*Instructions!X$14 -> 0 | I107: 0 | K107: 0
A108: Cellphone Allowance | H108: =D108/12*Instructions!X$14 -> 0 | I108: 0 | K108: 0
A109: Housing Allowances | H109: =D109/12*Instructions!X$14 -> 0 | I109: 0 | K109: 0
A110: Other benefits and allowances | H110: =D110/12*Instructions!X$14 -> 0 | I110: 0 | K110: 0
A111: Payments in lieu of leave | H111: =D111/12*Instructions!X$14 -> 0 | I111: 0 | K111: 0
A112: Long service awards | H112: =D112/12*Instructions!X$14 -> 0 | I112: 0 | K112: 0
A113: Post-retirement benefit obligations | H113: =D113/12*Instructions!X$14 -> 0 | I113: 0 | K113: 0
A114: Entertainment | H114: =D114/12*Instructions!X$14 -> 0 | I114: 0 | K114: 0
A115: Scarcity | H115: =D115/12*Instructions!X$14 -> 0 | I115: 0 | K115: 0
A116: Acting and post related allowance | H116: =D116/12*Instructions!X$14 -> 0 | I116: 0 | K116: 0
A117: In kind benefits | H117: =D117/12*Instructions!X$14 -> 0 | I117: 0 | K117: 0
A118: Sub Total - Other Staff of Entities | C118: =SUM(C102:C117) -> 0 | D118: 0 | E118: 0 | F118: 0 | G118: 0 | H118: 0 | I118: =G118-H118 -> 0 | J118: =IF(I118=0,"",I118/H118) ->  | K118: =SUM(K102:K117) -> 0
A119: % increase | B119: 4 | D119: =IF(D118=0,"",(D118/C118)-1) ->  | E119: =IF(E118=0,"",(E118/C118)-1) ->  | K119: =IF(K118=0,"",(K118/C118)-1) -> 
A120: Total Municipal Entities | C120: =C78+C98+C118 -> 0 | D120: 0 | E120: 0 | F120: 0 | G120: 0 | H120: 0 | I120: =G120-H120 -> 0 | J120: =IF(I120=0,"",I120/H120) ->  | K120: =K78+K98+K118 -> 0
A121: TOTAL SALARY, ALLOWANCES & BENEFITS | C121: =C56+C120 -> 0 | D121: 1970644185 | E121: 0 | F121: 135018229.8 | G121: 135018229.8 | H121: 164220348.7 | I121: =G121-H121 -> -29202118.99 | J121: =IF(I121=0,"",I121/H121) -> -0.1778227802 | K121: =K56+K120 -> 1970644185
A122: % increase | B122: 4 | D122: =IF(D121=0,"",(D121/C121)-1) ->  | E122: =IF(E121=0,"",(E121/C121)-1) ->  | K122: =IF(K121=0,"",(K121/C121)-1) -> 
A123: TOTAL MANAGERS AND STAFF | C123: =C34+C54+C98+C118 -> 0 | D123: 1900194538 | E123: 0 | F123: 130193473.8 | G123: 130193473.8 | H123: 158349544.8 | I123: -28156071.03 | J123: =IF(I123=0,"",I123/H123) -> -0.1778096114 | K123: =K34+K54+K98+K118 -> 1900194538
A124: =head27a -> References
A125: 1. Include 'Loans and advances' where applicable if any reportable amounts until phased compliance with s164 of MFMA achieved
A126: 2. If benefits in kind are provided (e.g. provision of living quarters) the full market value must be shown as the cost to the municipality
A127: 3. s57 of the Systems Act
A128: 4. B/A, C/A, D/A
A129: 5. Included in Contracted services
A130: Column Definitions:
A131: A. Audited actual 2022/23 (audited financial statements). If audited amounts unavailable, unaudited amounts must be provided with a note stating these are unaudited
A132: B. The original budget approved by council for the 2023/24 budget year.
A133: C. The budget for 2023/24 budget year as adjusted by council resolution in terms of section 28 of the MFMA.
A134: D. An estimate of final actual amounts (pre audit - 2006/07 budget year) at the time of preparing the budget for the 2007/08 budget year. This may differ from C.

Sheet SC9
A1: =Muni2& " - "&S71O& " - "&Head57 -> KZN225 Msunduzi - Supporting Table SC9 Monthly Budget Statement - actuals and revised targets for cash receipts - M01 July
A2: =desc -> Description | B2: =head27 -> Ref | C2: =Head2 -> Budget Year 2025/26 | O2: ='Template names'!B5 -> 2025/26 Medium Term Revenue & Expenditure Framework
C3: July | D3: August | E3: Sept | F3: October | G3: Nov | H3: Dec | I3: January | J3: Feb | K3: March | L3: April | M3: May | N3: June | O3: =Head9 -> Budget Year 2025/26 | P3: =Head10 -> Budget Year +1 2026/27 | Q3: =Head11 -> Budget Year +2 2027/28
A4: R thousands | B4: 1 | C4: Outcome | D4: Outcome | E4: Outcome | F4: Outcome | G4: Outcome | H4: Outcome | I4: Budget | J4: Budget | K4: Budget | L4: Budget | M4: Budget | N4: Budget
A5: Cash Receipts By Source
A6: Property rates | N6: =O6-SUM(C6:M6) -> 0
A7: Service charges - Electricity revenue | N7: 0
A8: Service charges - Water revenue | N8: 0
A9: Service charges - Waste Water Management | N9: 0
A10: Service charges - Waste Mangement | N10: 0
N11: 0
A12: Rental of facilities and equipment | N12: 0
A13: Interest earned - external investments | N13: 0
A14: Interest earned - outstanding debtors | N14: 0
A15: Dividends received | N15: 0
A16: Fines, penalties and forfeits | N16: 0
A17: Licences and permits | N17: 0
A18: Agency services | N18: 0
A19: Transfers and Subsidies - Operational | N19: 0
A20: Other revenue | N20: 0
A21: Cash Receipts by Source | C21: =SUM(C6:C20) -> 0 | D21: 0 | E21: 0 | F21: 0 | G21: 0 | H21: 0 | I21: 0 | J21: 0 | K21: 0 | L21: 0 | M21: 0 | N21: 0 | O21: 0 | P21: 0 | Q21: 0
A22: Other Cash Flows by Source | N22: =O22-SUM(C22:M22) -> 0
A23: Transfers and subsidies - capital (monetary allocations) (National / Provincial and District) | N23: 0
A24: Transfers and subsidies - capital (monetary allocations) (Nat / Prov Departm Agencies, Households, Non-profit Institutions, Private Enterprises, Public Corporatons, Higher Educ Institutions) | N24: 0
A25: Proceeds on Disposal of Fixed and Intangible Assets | N25: 0
A26: Short term loans | N26: 0
A27: Borrowing long term/refinancing | N27: 0
A28: Increase (decrease) in consumer deposits | N28: 0
A29: VAT Control (receipts) | N29: 0
A30: Decrease (increase) in non-current receivables | N30: 0
A31: Decrease (increase) in non-current investments | N31: 0
A32: Total Cash Receipts by Source | C32: =SUM(C21:C31) -> 0 | D32: =SUM(D21:D31) -> 0 | E32: 0 | F32: 0 | G32: 0 | H32: 0 | I32: 0 | J32: 0 | K32: 0 | L32: 0 | M32: 0 | N32: 0 | O32: 0 | P32: 0 | Q32: 0
A33: Cash Payments by Type | N33: =O33-SUM(C33:M33) -> 0
A34: Employee related costs | N34: 0
A35: Remuneration of councillors | N35: 0
A36: Interest | N36: 0
A37: Bulk purchases - Electricity | N37: 0
A38: Acquisitions - water & other inventory | N38: 0
A40: Contracted services | N40: 0
A41: Transfers and subsidies - other municipalities | N41: 0
A42: Transfers and subsidies - other | N42: 0
A43: Other expenditure | N43: 0
A44: Cash Payments by Type | B44: =SUM(B34:B43) -> 0 | C44: =SUM(C34:C43) -> 0 | D44: =SUM(D34:D43) -> 0 | E44: 0 | F44: 0 | G44: 0 | H44: 0 | I44: 0 | J44: 0 | K44: 0 | L44: 0 | M44: 0 | N44: 0 | O44: 0 | P44: 0 | Q44: 0
A45: Other Cash Flows/Payments by Type
A46: Capital assets | N46: =O46-SUM(C46:M46) -> 0
A47: Repayment of borrowing | N47: =O47-SUM(C47:M47) -> 0
A48: Other Cash Flows/Payments | N48: =O48-SUM(C48:M48) -> 0
A49: Total Cash Payments by Type | B49: =SUM(B44:B48) -> 0 | C49: 0 | D49: 0 | E49: 0 | F49: 0 | G49: 0 | H49: 0 | I49: 0 | J49: 0 | K49: 0 | L49: 0 | M49: 0 | N49: 0 | O49: 0 | P49: 0 | Q49: 0
A50: NET INCREASE/(DECREASE) IN CASH HELD | B50: =B32-B49 -> 0 | C50: 0 | D50: 0 | E50: 0 | F50: 0 | G50: 0 | H50: 0 | I50: 0 | J50: 0 | K50: 0 | L50: 0 | M50: 0 | N50: 0 | O50: 0 | P50: 0 | Q50: 0
A51: Cash/cash equivalents at the month/year beginning: | D51: =C52 -> 0 | E51: =D52 -> 0 | F51: 0 | G51: 0 | H51: 0 | I51: 0 | J51: 0 | K51: 0 | L51: 0 | M51: 0 | N51: 0 | O51: =C51 -> 0 | P51: =O52 -> 0 | Q51: =P52 -> 0
A52: Cash/cash equivalents at the month/year end: | C52: =C50+C51 -> 0 | D52: =D50+D51 -> 0 | E52: =E50+E51 -> 0 | F52: 0 | G52: 0 | H52: 0 | I52: 0 | J52: 0 | K52: 0 | L52: 0 | M52: 0 | N52: 0 | O52: =O50+O51 -> 0 | P52: =P50+P51 -> 0 | Q52: =Q50+Q51 -> 0
A53: =head27a -> References
A54: 1. Replace 'budget' heading with adjusted budget, or 'outcome' only for month/s complete
A55: 2. Total of monthly amounts must always agree to the approved or adjusted budget
A56: 3. Amend 'cash-at-beginning' when prior year actual known (as part of the adjustments budget)
E61: =E44+E60 -> 0 | F61: 0 | G61: 0 | H61: 0 | I61: 0 | J61: 0 | K61: 0 | L61: 0 | N61: =N44+N60 -> 0 | O61: =O44+O60 -> 0 | P61: =P44+P60 -> 0
E62: =E50-E60 -> 0 | F62: 0 | G62: 0 | H62: 0 | I62: 0 | J62: 0 | K62: 0 | L62: 0 | M62: =M50-M60 -> 0 | N62: =N50-N60 -> 0 | O62: 0 | P62: 0

Sheet SC10
A1: =Muni2& " - "&S71P& " - "&Head57 -> KZN225 Msunduzi - NOT REQUIRED - municipality does not have entities or this is the parent municipality's budget - M01 July
A2: =desc -> Description | B2: =head27 -> Ref | C2: =Head1 -> 2024/25 | D2: =Head2 -> Budget Year 2025/26
C3: =Head5 -> Audited Outcome | D3: =Head6 -> Original Budget | E3: =Head7 -> Adjusted Budget | F3: =Head38 -> Monthly actual | G3: =Head39 -> YearTD actual | H3: =Head40 -> YearTD budget | I3: =Head41 -> YTD variance | J3: =Head41 -> YTD variance | K3: =Head8 -> Full Year Forecast
A4: R thousands | B4: 1 | J4: %
A5: ='[2]C4-FinPerf RE'!A5 -> Revenue
A6: Exchange Revenue
A7: Service charges - Electricity | D7: 4702555292 | F7: 353058648.3 | G7: 353058648.3 | H7: =D7/12*Instructions!X$14 -> 391879607.7 | I7: =G7-H7 -> -38820959.4 | J7: =IF(I7=0,"",I7/H7) -> -0.09906348438 | K7: =D7 -> 4702555292
A8: Service charges - Water | D8: 1161224094 | F8: 90183585.7 | G8: 90183585.7 | H8: =D8/12*Instructions!X$14 -> 96768674.5 | I8: -6585088.8 | J8: -0.06804979849 | K8: =D8 -> 1161224094
A9: Service charges - Waste Water Management | D9: 229216321 | F9: 21355741.71 | G9: 21355741.71 | H9: =D9/12*Instructions!X$14 -> 19101360.08 | I9: 2254381.627 | J9: 0.1180220475 | K9: 229216321
A10: Service charges - Waste management | D10: 166268131 | F10: 14392256.13 | G10: 14392256.13 | H10: =D10/12*Instructions!X$14 -> 13855677.58 | I10: 536578.5467 | J10: 0.03872625813 | K10: 166268131
A11: Sale of Goods and Rendering of Services | D11: 23403150 | F11: 0 | G11: 0 | H11: =D11/12*Instructions!X$14 -> 1950262.5 | I11: =G11-H11 -> -1950262.5 | J11: =IF(I11=0,"",I11/H11) -> -1 | K11: 23403150
A12: Agency services | D12: 5507583 | F12: 381928 | G12: 381928 | H12: =D12/12*Instructions!X$14 -> 458965.25 | I12: -77037.25 | J12: -0.1678498536 | K12: 5507583
A13: Interest | D13: 0 | F13: 0 | G13: 0 | H13: =D13/12*Instructions!X$14 -> 0 | I13: 0 | K13: 0
A14: Interest earned from Receivables | D14: 0 | F14: 47797160.99 | G14: 47797160.99 | H14: =D14/12*Instructions!X$14 -> 0 | I14: 47797160.99 | K14: 0
A15: Interest earned from Current and Non Current Assets | D15: 256056786 | F15: 0 | G15: 0 | H15: =D15/12*Instructions!X$14 -> 21338065.5 | I15: =G15-H15 -> -21338065.5 | J15: =IF(I15=0,"",I15/H15) -> -1 | K15: 256056786
A16: Dividends | D16: 19996228 | F16: 0 | G16: 0 | H16: =D16/12*Instructions!X$14 -> 1666352.333 | I16: -1666352.333 | J16: -1 | K16: 19996228
A17: Rent on Land | D17: 0 | F17: 0 | G17: 0 | H17: =D17/12*Instructions!X$14 -> 0 | I17: 0 | K17: 0
A18: Rental from Fixed Assets | D18: 44671740 | F18: 2525353.01 | G18: 2525353.01 | H18: =D18/12*Instructions!X$14 -> 3722645 | I18: -1197291.99 | J18: -0.3216240039 | K18: 44671740
A19: Licence and permits | D19: 3096657 | F19: 245890.34 | G19: 245890.34 | H19: =D19/12*Instructions!X$14 -> 258054.75 | I19: -12164.41 | J19: -0.04713887266 | K19: 3096657
A20: Other revenue | F20: 4185019.88 | G20: 4185019.88 | H20: =D20/12*Instructions!X$14 -> 0 | I20: =G20-H20 -> 4185019.88 | J20: =IF(I20=0,"",I20/H20) ->  | K20: =D20 -> 0
A21: Special rating levies | D21: 0 | F21: 0 | G21: 0 | H21: =D21/12*Instructions!X$14 -> 0 | I21: 0 | K21: 0
A22: Operational Revenue | D22: 102111695 | H22: =D22/12*Instructions!X$14 -> 8509307.917 | I22: -8509307.917 | J22: -1 | K22: 102111695
A23: Non-Exchange Revenue | F23: 0 | G23: 0 | H23: =D23/12*Instructions!X$14 -> 0 | I23: 0 | K23: 0
A24: Property rates | D24: 1721664641 | F24: 142227870.5 | G24: 142227870.5 | H24: =D24/12*Instructions!X$14 -> 143472053.4 | I24: =G24-H24 -> -1244182.917 | J24: =IF(I24=0,"",I24/H24) -> -0.008671953088 | K24: 1721664641
A25: Surcharges and Taxes | D25: 0 | H25: =D25/12*Instructions!X$14 -> 0 | I25: 0 | K25: 0
A26: Fines, penalties and forfeits | D26: 12213207 | F26: 955049.47 | G26: 955049.47 | H26: =D26/12*Instructions!X$14 -> 1017767.25 | I26: -62717.78 | J26: -0.06162291035 | K26: 12213207
A27: Licences or permits | D27: 0 | H27: =D27/12*Instructions!X$14 -> 0 | I27: 0 | K27: 0
A28: Transfer and subsidies - Operational | D28: 1017128645 | F28: 367744494.6 | G28: 367744494.6 | H28: =D28/12*Instructions!X$14 -> 84760720.42 | I28: 282983774.2 | J28: 3.338619266 | K28: 1017128645
A29: Interest | D29: 66114156 | F29: 2761729.04 | G29: 2761729.04 | H29: =D29/12*Instructions!X$14 -> 5509513 | I29: -2747783.96 | J29: -0.4987344544 | K29: 66114156
A30: Fuel Levy | D30: 0 | H30: =D30/12*Instructions!X$14 -> 0 | I30: 0 | K30: 0
A31: Operational Revenue | D31: 0 | H31: =D31/12*Instructions!X$14 -> 0 | I31: 0 | K31: 0
A32: Gains on disposal of Assets | D32: 4276765 | H32: =D32/12*Instructions!X$14 -> 356397.0833 | I32: -356397.0833 | J32: -1 | K32: 4276765
A33: Other Gains | D33: 0 | F33: 452888.83 | G33: 452888.83 | H33: =D33/12*Instructions!X$14 -> 0 | I33: 452888.83 | K33: 0
A34: Discontinued Operations | D34: 0 | H34: =D34/12*Instructions!X$14 -> 0 | I34: 0 | K34: 0
A35: Total Revenue (excluding capital transfers and contributions) | C35: =SUM(C7:C22)+SUM(C24:C34) -> 0 | D35: =SUM(D7:D22)+SUM(D24:D34) -> 9535505091 | E35: 0 | F35: =SUM(F7:F22)+SUM(F24:F34) -> 1048267616 | G35: =SUM(G7:G22)+SUM(G24:G34) -> 1048267616 | H35: =SUM(H7:H22)+SUM(H24:H34) -> 794625424.3 | I35: =G35-H35 -> 253642192.2 | J35: 0.319197177 | K35: =SUM(K7:K22)+SUM(K24:K34) -> 9535505091
A36: Expenditure By Type
A37: Employee related costs | D37: 1900194538 | F37: 130193473.8 | G37: 130193473.8 | H37: =D37/12*Instructions!X$14 -> 158349544.8 | I37: =G37-H37 -> -28156071.03 | J37: =IF(I37=0,"",I37/H37) -> -0.1778096114 | K37: =D37 -> 1900194538
A38: Remuneration of councillors | D38: 70449647 | F38: 4836489.64 | G38: 4836489.64 | H38: =D38/12*Instructions!X$14 -> 5870803.917 | I38: -1034314.277 | J38: -0.1761793259 | K38: 70449647
A39: Bulk purchases - electricity | D39: 3522533168 | F39: 351192604.9 | G39: 351192604.9 | H39: =D39/12*Instructions!X$14 -> 293544430.7 | I39: 57648174.25 | J39: 0.1963865372 | K39: 3522533168
A40: Inventory consumed | D40: 995038710 | F40: 108644928.2 | G40: 108644928.2 | H40: =D40/12*Instructions!X$14 -> 82919892.5 | I40: 25725035.72 | J40: 0.3102396174 | K40: 995038710
A41: Debt impairment | D41: 420000000 | F41: 467857.47 | G41: 467857.47 | H41: =D41/12*Instructions!X$14 -> 35000000 | I41: -34532142.53 | J41: -0.9866326437 | K41: 420000000
A42: Depreciation and amortisation | D42: 390011595 | F42: 28534714.51 | G42: 28534714.51 | H42: =D42/12*Instructions!X$14 -> 32500966.25 | I42: -3966251.74 | J42: -0.1220348869 | K42: 390011595
A43: Interest | D43: 56180000 | F43: 3602920.86 | G43: 3602920.86 | H43: =D43/12*Instructions!X$14 -> 4681666.667 | I43: -1078745.807 | J43: -0.2304191826 | K43: 56180000
A44: Contracted services | D44: 811629311 | F44: 14455484.75 | G44: 14455484.75 | H44: =D44/12*Instructions!X$14 -> 67635775.92 | I44: -53180291.17 | J44: -0.786274578 | K44: 811629311
A45: Transfers and subsidies | D45: 72456937 | F45: 3283140.01 | G45: 3283140.01 | H45: =D45/12*Instructions!X$14 -> 6038078.083 | I45: -2754938.073 | J45: -0.4562607564 | K45: 72456937
A46: Irrecoverable debts written off | F46: 0 | G46: 0 | H46: =D46/12*Instructions!X$14 -> 0 | I46: 0 | K46: 0
A47: Operational costs | D47: 224708028 | F47: 26734928.64 | G47: 26734928.64 | H47: =D47/12*Instructions!X$14 -> 18725669 | I47: =G47-H47 -> 8009259.64 | J47: =IF(I47=0,"",I47/H47) -> 0.4277155406 | K47: 224708028
A48: Losses on disposal of Assets | F48: 0 | G48: 0 | H48: =D48/12*Instructions!X$14 -> 0 | I48: =G48-H48 -> 0 | J48: =IF(I48=0,"",I48/H48) ->  | K48: 0
A49: Other Losses | F49: 0 | G49: 0 | H49: =D49/12*Instructions!X$14 -> 0 | I49: 0 | K49: 0
A50: Total Expenditure | C50: =SUM(C37:C49) -> 0 | D50: =SUM(D37:D49) -> 8463201934 | E50: 0 | F50: 671946542.8 | G50: 671946542.8 | H50: 705266827.8 | I50: -33320285.01 | J50: -0.0472449344 | K50: =SUM(K37:K49) -> 8463201934
A51: ='[2]C4-FinPerf RE'!A49 -> Surplus/(Deficit) | C51: =C35-C50 -> 0 | D51: 1072303157 | E51: 0 | F51: 376321073.7 | G51: 376321073.7 | H51: 89358596.46 | I51: 286962477.2 | J51: 3.211358376 | K51: =K35-K50 -> 1072303157
A52: ='[2]C4-FinPerf RE'!A50 -> Transfers and subsidies - capital (monetary allocations) | D52: 378676520 | F52: 11768158.06 | G52: 11768158.06 | H52: =D52/12*Instructions!X$14 -> 31556376.67 | I52: -19788218.61 | J52: -0.6270751175 | K52: =D52 -> 378676520
A53: ='[2]C4-FinPerf RE'!A51 -> Transfers and subsidies - capital (in-kind) | F53: 0 | G53: 0 | H53: =D53/12*Instructions!X$14 -> 0 | I53: 0 | K53: =D53 -> 0
A54: ='[2]C4-FinPerf RE'!A52 -> Surplus/(Deficit) after capital transfers & contributions | C54: =C51+SUM(C52:C53) -> 0 | D54: 1450979677 | E54: 0 | F54: 388089231.7 | G54: 388089231.7 | H54: 120914973.1 | I54: 267174258.6 | J54: 2.209604416 | K54: =K51+SUM(K52:K53) -> 1450979677
A55: ='[2]C4-FinPerf RE'!A53 -> Income Tax | I55: 0
A56: ='[2]C4-FinPerf RE'!A54 -> Surplus/(Deficit) after income tax | C56: =C54-C55 -> 0 | D56: 1450979677 | E56: 0 | F56: 388089231.7 | G56: 388089231.7 | H56: 120914973.1 | I56: 267174258.6 | J56: 2.209604416 | K56: =K54-K55 -> 1450979677
A57: =head27a -> References
A58: 1. Votes (consolidated) are revenue sources and expenditure type

Sheet SC11
A1: =Muni2& " - "&S71Q& " - "&Head57 -> KZN225 Msunduzi - NOT REQUIRED - municipality does not have entities or this is the parent municipality's budget - M01 July
A2: =desc -> Description | B2: =head27 -> Ref | C2: =Head1 -> 2024/25 | D2: =Head2 -> Budget Year 2025/26
C3: =Head5 -> Audited Outcome | D3: =Head6 -> Original Budget | E3: =Head7 -> Adjusted Budget | F3: =Head38 -> Monthly actual | G3: =Head39 -> YearTD actual | H3: =Head40 -> YearTD budget | I3: =Head41 -> YTD variance | J3: =Head41 -> YTD variance | K3: =Head8 -> Full Year Forecast
A4: R thousands | J4: %
A5: Revenue By Municipal Entity
A6: Insert name of municipal entity | I6: =G6-H6 -> 0 | J6: =IF(I6=0,"",I6/H6) -> 
I7: 0 | J7: =IF(I7=0,"",I7/H7) -> 
I8: 0
I9: 0
I10: 0
I11: 0
I12: 0
I13: 0
I14: 0
I15: 0
A16: Total Operating Revenue | B16: 1 | C16: =SUM(C6:C15) -> 0 | D16: 0 | E16: 0 | F16: 0 | G16: 0 | H16: 0 | I16: 0 | K16: =SUM(K6:K15) -> 0
A18: Expenditure By Municipal Entity
A19: =A6 -> Insert name of municipal entity | I19: 0 | J19: =IF(I19=0,"",I19/H19) -> 
A20: =IF(A7="","",A7) ->  | I20: 0
A21: =IF(A8="","",A8) ->  | I21: 0
I22: 0
I23: 0
I24: 0
I25: 0
I26: 0
I27: 0
I28: 0
A29: Total Operating Expenditure | B29: 2 | C29: =SUM(C19:C28) -> 0 | D29: 0 | E29: 0 | F29: 0 | G29: 0 | H29: 0 | I29: 0 | K29: =SUM(K19:K28) -> 0
A31: =Head42 -> Surplus/ (Deficit) for the yr/period | C31: =C16-C29 -> 0 | D31: =D16-D29 -> 0 | E31: 0 | F31: 0 | G31: 0 | H31: 0 | I31: =I16+I29 -> 0 | K31: 0
A32: Capital Expenditure By Municipal Entity
A33: =$A$6 -> Insert name of municipal entity | I33: 0
A34: =IF(A7="","",A7) ->  | I34: 0
A35: =IF(A8="","",A8) ->  | I35: 0
I36: 0
I37: 0
I38: 0
I39: 0
I40: 0
I41: 0
A43: Total Capital Expenditure | B43: 3 | C43: =SUM(C32:C42) -> 0 | D43: =SUM(D32:D42) -> 0 | E43: 0 | F43: 0 | G43: 0 | H43: =SUM(H32:H42) -> 0 | I43: =G43-H43 -> 0 | K43: 0
A44: =head27a -> References
A45: 1. Must reconcile to the sum of all municipal entity monthly revenue reports
A46: 2. Must reconcile to the sum of all municipal entity monthly expenditure reports
A47: 3. YTD = Year to date; FAV - favourable variance or unfavourable variance
A48: 4. Material variances to be explained
A49: 5. Insert additional 'Adjustment' Budget column for each Adjustment made by an entity

Sheet SC12
A1: =Muni2& " - "&S71R& " - "&Head57 -> KZN225 Msunduzi - Supporting Table SC12 Monthly Budget Statement - capital expenditure trend - M01 July
A2: Month | B2: =Head1 -> 2024/25 | C2: =Head2 -> Budget Year 2025/26
B3: =Head5 -> Audited Outcome | C3: =Head6 -> Original Budget | D3: =Head7 -> Adjusted Budget | E3: =Head38 -> Monthly actual | F3: =Head39 -> YearTD actual | G3: =Head40 -> YearTD budget | H3: =Head41 -> YTD variance | I3: =Head41 -> YTD variance | J3: % spend of Original Budget
A4: R thousands | I4: %
A5: Monthly expenditure performance trend
A6: July | C6: 54488010.54 | E6: 10544607.67 | F6: =IF(E6>0,E6,"") -> 10544607.67 | G6: =IF(D6>0,D6,C6) -> 54488010.54 | H6: =IF(F6="",0,G6-F6) -> 43943402.87 | I6: =IF(F6="","",IF(H6=0,"",H6/G6)) -> 0.8064783873 | J6: =IF(F6="","",F6/$C$18) -> 0.01612680105
A7: August | C7: 54488010.54 | F7: =IF(E7>0,E7+F6,"") ->  | G7: =IF(D7>0,D7+D6,C7+C6) -> 108976021.1 | H7: 0
A8: September | C8: 54488010.54 | F8: =IF(E8>0,E8+F7,"") ->  | G8: =IF(D8>0,D8+G7,C8+G7) -> 163464031.6 | H8: 0
A9: October | C9: 54488010.54 | G9: =IF(D9>0,D9+G8,C9+G8) -> 217952042.2 | H9: 0
A10: November | C10: 54488010.54 | G10: 272440052.7 | H10: 0
A11: December | C11: 54488010.54 | G11: 326928063.2 | H11: 0
A12: January | C12: 54488010.54 | G12: 381416073.8 | H12: 0
A13: February | C13: 54488010.54 | G13: 435904084.3 | H13: 0
A14: March | C14: 54488010.54 | G14: 490392094.9 | H14: 0
A15: April | C15: 54488010.54 | G15: 544880105.4 | H15: 0
A16: May | C16: 54488010.54 | G16: 599368115.9 | H16: 0
A17: June | C17: 54488010.54 | G17: 653856126.5 | H17: =IF(F17="",0,G17-F17) -> 0 | I17: =IF(F17="","",IF(H17=0,"",H17/G17)) ->  | J17: =IF(F17="","",F17/$C$18) -> 
A18: Total Capital expenditure | B18: =SUM(B6:B17) -> 0 | C18: =SUM(C6:C17) -> 653856126.5 | D18: =SUM(D6:D17) -> 0 | E18: =SUM(E6:E17) -> 10544607.67

Sheet SC13a
A1: =Muni2& " - "&S71Sa& " - "&Head57 -> KZN225 Msunduzi - Supporting Table SC13a Monthly Budget Statement - capital expenditure on new assets by asset class - M01 July
A2: =desc -> Description | B2: =head27 -> Ref | C2: =Head1 -> 2024/25 | D2: =Head2 -> Budget Year 2025/26
C3: =Head5 -> Audited Outcome | D3: =Head6 -> Original Budget | E3: =Head7 -> Adjusted Budget | F3: =Head38 -> Monthly actual | G3: =Head39 -> YearTD actual | H3: =Head40 -> YearTD budget | I3: =Head41 -> YTD variance | J3: =Head41 -> YTD variance | K3: =Head8 -> Full Year Forecast
A4: R thousands | B4: 1 | J4: %
A5: Capital expenditure on new assets by Asset Class/Sub-class
A7: Infrastructure | C7: =C8+C13+C17+C28+C39+C46+C54+C64+C70 -> 0 | D7: 178739800 | E7: 0 | F7: 2640480.75 | G7: 2640480.75 | H7: 14894983.33 | I7: =H7-G7 -> 12254502.58 | J7: =IF(I7=0,"",I7/H7) -> 0.8227268409 | K7: =K8+K13+K17+K28+K39+K46+K54+K64+K70 -> 178739800
A8: Roads Infrastructure | C8: =SUM(C9:C12) -> 0 | D8: 18214000 | E8: 0 | F8: 0 | G8: 0 | H8: 1517833.333 | I8: 1517833.333 | J8: 1 | K8: =SUM(K9:K12) -> 18214000
A9: Roads | D9: 18214000 | F9: 0 | G9: 0 | H9: =D9/12*Instructions!X$14 -> 1517833.333 | I9: 1517833.333 | J9: 1 | K9: =D9 -> 18214000
A10: Road Structures | F10: 0 | G10: 0 | H10: =D10/12*Instructions!X$14 -> 0 | I10: 0
A11: Road Furniture | F11: 0 | G11: 0 | H11: =D11/12*Instructions!X$14 -> 0 | I11: 0
A12: Capital Spares | F12: 0 | G12: 0 | H12: =D12/12*Instructions!X$14 -> 0 | I12: 0
A13: Storm water Infrastructure | C13: =SUM(C14:C16) -> 0 | D13: 0 | E13: 0 | F13: 0 | G13: 0 | H13: 0 | I13: 0 | K13: =SUM(K14:K16) -> 0
A14: Drainage Collection | F14: 0 | G14: 0 | H14: =D14/12*Instructions!X$14 -> 0 | I14: 0 | K14: =D14 -> 0
A15: Storm water Conveyance | F15: 0 | G15: 0 | H15: =D15/12*Instructions!X$14 -> 0 | I15: 0 | K15: 0
A16: Attenuation | F16: 0 | G16: 0 | H16: =D16/12*Instructions!X$14 -> 0 | I16: 0 | K16: 0
A17: Electrical Infrastructure | C17: =SUM(C18:C27) -> 0 | D17: 54808360 | E17: 0 | F17: 888583.34 | G17: 888583.34 | H17: 4567363.333 | I17: 3678779.993 | J17: 0.8054493862 | K17: =SUM(K18:K27) -> 54808360
A18: Power Plants | H18: =D18/12*Instructions!X$14 -> 0 | I18: 0 | K18: =D18 -> 0
A19: NEW:Electricity Reticulation | F19: 888583.34 | G19: 888583.34 | H19: =D19/12*Instructions!X$14 -> 0 | I19: =H19-G19 -> -888583.34 | J19: =IF(I19=0,"",I19/H19) ->  | K19: =D19 -> 0
A20: HV Substations | F20: 0 | G20: 0 | H20: =D20/12*Instructions!X$14 -> 0 | I20: 0 | K20: 0
A21: HV Switching Station | F21: 0 | G21: 0 | H21: =D21/12*Instructions!X$14 -> 0 | I21: 0 | K21: 0
A22: HV Transmission Conductors | F22: 0 | G22: 0 | H22: =D22/12*Instructions!X$14 -> 0 | I22: 0 | K22: 0
A23: MV Substations | F23: 0 | G23: 0 | H23: =D23/12*Instructions!X$14 -> 0 | I23: 0 | K23: 0
A24: MV Switching Stations | F24: 0 | G24: 0 | H24: =D24/12*Instructions!X$14 -> 0 | I24: 0 | K24: 0
A25: MV Networks | D25: 5000000 | F25: 0 | G25: 0 | H25: =D25/12*Instructions!X$14 -> 416666.6667 | I25: 416666.6667 | J25: 1 | K25: 5000000
A26: LV Networks | D26: 30308360 | F26: 0 | G26: 0 | H26: =D26/12*Instructions!X$14 -> 2525696.667 | I26: 2525696.667 | J26: 1 | K26: 30308360
A27: Capital Spares | D27: 19500000 | F27: 0 | G27: 0 | H27: =D27/12*Instructions!X$14 -> 1625000 | I27: 1625000 | J27: 1 | K27: 19500000
A28: Water Supply Infrastructure | C28: =SUM(C29:C38) -> 0 | D28: 37500000 | E28: 0 | F28: 0 | G28: 0 | H28: 3125000 | I28: 3125000 | J28: 1 | K28: =SUM(K29:K38) -> 37500000
A29: Dams and Weirs | H29: =D29/12*Instructions!X$14 -> 0 | I29: 0 | K29: =D29 -> 0
A30: Boreholes | H30: =D30/12*Instructions!X$14 -> 0 | I30: 0 | K30: 0
A31: Reservoirs | D31: 12500000 | H31: =D31/12*Instructions!X$14 -> 1041666.667 | I31: 1041666.667 | J31: 1 | K31: 12500000
A32: Pump Stations | H32: =D32/12*Instructions!X$14 -> 0 | I32: 0 | K32: 0
A33: Water Treatment Works | H33: =D33/12*Instructions!X$14 -> 0 | I33: 0 | K33: 0
A34: Bulk Mains | H34: =D34/12*Instructions!X$14 -> 0 | I34: 0 | K34: 0
A35: Distribution | D35: 25000000 | H35: =D35/12*Instructions!X$14 -> 2083333.333 | I35: 2083333.333 | J35: 1 | K35: 25000000
A36: Distribution Points | H36: =D36/12*Instructions!X$14 -> 0 | I36: 0 | K36: 0
A37: PRV Stations | H37: =D37/12*Instructions!X$14 -> 0 | I37: 0 | K37: 0
A38: Capital Spares | H38: =D38/12*Instructions!X$14 -> 0 | I38: 0 | K38: 0
A39: Sanitation Infrastructure | C39: =SUM(C40:C45) -> 0 | D39: 68217440 | E39: 0 | F39: 1751897.41 | G39: 1751897.41 | H39: 5684786.667 | I39: 3932889.257 | J39: 0.6918270618 | K39: =SUM(K40:K45) -> 68217440
A40: Pump Station | F40: 0 | G40: 0 | H40: =D40/12*Instructions!X$14 -> 0 | I40: 0 | K40: =D40 -> 0
A41: Reticulation | D41: 44184440 | F41: 1751897.41 | G41: 1751897.41 | H41: =D41/12*Instructions!X$14 -> 3682036.667 | I41: =H41-G41 -> 1930139.257 | J41: =IF(I41=0,"",I41/H41) -> 0.5242042466 | K41: 44184440
A42: Waste Water Treatment Works | F42: 0 | G42: 0 | H42: =D42/12*Instructions!X$14 -> 0 | I42: =H42-G42 -> 0 | J42: =IF(I42=0,"",I42/H42) ->  | K42: 0
A43: Outfall Sewers | D43: 24033000 | F43: 0 | G43: 0 | H43: =D43/12*Instructions!X$14 -> 2002750 | I43: =H43-G43 -> 2002750 | J43: =IF(I43=0,"",I43/H43) -> 1 | K43: 24033000
A44: Toilet Facilities | F44: 0 | G44: 0 | H44: =D44/12*Instructions!X$14 -> 0 | I44: 0 | K44: 0
A45: Capital Spares | F45: 0 | G45: 0 | H45: =D45/12*Instructions!X$14 -> 0 | I45: 0 | K45: 0
A46: Solid Waste Infrastructure | C46: =SUM(C47:C53) -> 0 | D46: 0 | E46: 0 | F46: 0 | G46: 0 | H46: 0 | I46: 0 | K46: =SUM(K47:K53) -> 0
A47: Landfill Sites | H47: =D47/12*Instructions!X$14 -> 0 | I47: 0 | K47: =D47 -> 0
A48: Waste Transfer Stations | H48: =D48/12*Instructions!X$14 -> 0 | I48: 0 | K48: 0
A49: Waste Processing Facilities | H49: =D49/12*Instructions!X$14 -> 0 | I49: =H49-G49 -> 0 | J49: =IF(I49=0,"",I49/H49) ->  | K49: 0
A50: Waste Drop-off Points | H50: =D50/12*Instructions!X$14 -> 0 | I50: 0 | K50: 0
A51: Waste Separation Facilities | H51: =D51/12*Instructions!X$14 -> 0 | I51: 0 | K51: 0
A52: Electricity Generation Facilities | H52: =D52/12*Instructions!X$14 -> 0 | I52: 0 | K52: 0
A53: Capital Spares | H53: =D53/12*Instructions!X$14 -> 0 | I53: 0 | K53: 0
A54: Rail Infrastructure | C54: =SUM(C55:C63) -> 0 | D54: 0 | E54: 0 | F54: 0 | G54: 0 | H54: 0 | I54: 0 | K54: =SUM(K55:K63) -> 0
A55: Rail Lines | H55: =D55/12*Instructions!X$14 -> 0 | I55: 0 | K55: =D55 -> 0
A56: Rail Structures | H56: =D56/12*Instructions!X$14 -> 0 | I56: 0 | K56: 0
A57: Rail Furniture | H57: =D57/12*Instructions!X$14 -> 0 | I57: 0 | K57: 0
A58: Drainage Collection | H58: =D58/12*Instructions!X$14 -> 0 | I58: 0 | K58: 0
A59: Storm water Conveyance | H59: =D59/12*Instructions!X$14 -> 0 | I59: 0 | K59: 0
A60: Attenuation | H60: =D60/12*Instructions!X$14 -> 0 | I60: 0 | K60: 0
A61: MV Substations | H61: =D61/12*Instructions!X$14 -> 0 | I61: 0 | K61: 0
A62: LV Networks | H62: =D62/12*Instructions!X$14 -> 0 | I62: 0 | K62: 0
A63: Capital Spares | H63: =D63/12*Instructions!X$14 -> 0 | I63: 0 | K63: 0
A64: Coastal Infrastructure | C64: =SUM(C65:C69) -> 0 | D64: 0 | E64: 0 | F64: 0 | G64: 0 | H64: 0 | I64: 0 | K64: =SUM(K65:K69) -> 0
A65: Sand Pumps | H65: =D65/12*Instructions!X$14 -> 0 | I65: 0 | K65: =D65 -> 0
A66: Piers | H66: =D66/12*Instructions!X$14 -> 0 | I66: 0 | K66: 0
A67: Revetments | H67: =D67/12*Instructions!X$14 -> 0 | I67: 0 | K67: 0
A68: Promenades | H68: =D68/12*Instructions!X$14 -> 0 | I68: 0 | K68: 0
A69: Capital Spares | H69: =D69/12*Instructions!X$14 -> 0 | I69: 0 | K69: 0
A70: Information and Communication Infrastructure | C70: =SUM(C71:C74) -> 0 | D70: 0 | E70: 0 | F70: 0 | G70: 0 | H70: 0 | I70: =H70-G70 -> 0 | K70: =SUM(K71:K74) -> 0
A71: Data Centres | H71: =D71/12*Instructions!X$14 -> 0 | I71: =H71-G71 -> 0 | K71: =D71 -> 0
A72: Core Layers | H72: =D72/12*Instructions!X$14 -> 0 | I72: =H72-G72 -> 0 | J72: =IF(I72=0,"",I72/H72) ->  | K72: 0
A73: Distribution Layers | H73: =D73/12*Instructions!X$14 -> 0 | I73: =H73-G73 -> 0 | K73: 0
A74: Capital Spares | H74: =D74/12*Instructions!X$14 -> 0 | I74: =H74-G74 -> 0 | K74: 0
A76: Community Assets | C76: =+C77+C100 -> 0 | D76: 13400000 | E76: 0 | F76: 0 | G76: 0 | H76: 1116666.667 | I76: =H76-G76 -> 1116666.667 | J76: 1 | K76: =+K77+K100 -> 13400000
A77: Community Facilities | C77: =SUM(C78:C99) -> 0 | D77: 13400000 | E77: 0 | F77: 0 | G77: 0 | H77: 1116666.667 | I77: =H77-G77 -> 1116666.667 | J77: 1 | K77: =SUM(K78:K99) -> 13400000
A78: Halls | D78: 13400000 | H78: =D78/12*Instructions!X$14 -> 1116666.667 | I78: 1116666.667 | J78: 1 | K78: =D78 -> 13400000
A79: Centres | H79: =D79/12*Instructions!X$14 -> 0 | I79: 0 | K79: 0
A80: Crèches | H80: =D80/12*Instructions!X$14 -> 0 | I80: 0 | K80: 0
A81: Clinics/Care Centres | H81: =D81/12*Instructions!X$14 -> 0 | I81: 0 | K81: 0
A82: Fire/Ambulance Stations | H82: =D82/12*Instructions!X$14 -> 0 | I82: 0 | K82: 0
A83: Testing Stations | H83: =D83/12*Instructions!X$14 -> 0 | I83: 0 | K83: 0
A84: Museums | H84: =D84/12*Instructions!X$14 -> 0 | I84: 0 | K84: 0
A85: Galleries | H85: =D85/12*Instructions!X$14 -> 0 | I85: 0 | K85: 0
A86: Theatres | H86: =D86/12*Instructions!X$14 -> 0 | I86: 0 | K86: 0
A87: Libraries | H87: =D87/12*Instructions!X$14 -> 0 | I87: 0 | K87: 0
A88: Cemeteries/Crematoria | H88: =D88/12*Instructions!X$14 -> 0 | I88: 0 | K88: 0
A89: Police | H89: =D89/12*Instructions!X$14 -> 0 | I89: 0 | K89: 0
A90: Purls | H90: =D90/12*Instructions!X$14 -> 0 | I90: 0 | K90: 0
A91: Public Open Space | H91: =D91/12*Instructions!X$14 -> 0 | I91: 0 | K91: 0
A92: Nature Reserves | H92: =D92/12*Instructions!X$14 -> 0 | I92: 0 | K92: 0
A93: Public Ablution Facilities | H93: =D93/12*Instructions!X$14 -> 0 | I93: 0 | K93: 0
A94: Markets | H94: =D94/12*Instructions!X$14 -> 0 | I94: 0 | K94: 0
A95: Stalls | H95: =D95/12*Instructions!X$14 -> 0 | I95: 0 | K95: 0
A96: Abattoirs | H96: =D96/12*Instructions!X$14 -> 0 | I96: 0 | K96: 0
A97: Airports | H97: =D97/12*Instructions!X$14 -> 0 | I97: 0 | K97: 0
A98: Taxi Ranks/Bus Terminals | H98: =D98/12*Instructions!X$14 -> 0 | I98: 0 | K98: 0
A99: Capital Spares | H99: =D99/12*Instructions!X$14 -> 0 | I99: 0 | K99: 0
A100: Sport and Recreation Facilities | C100: =SUM(C101:C103) -> 0 | D100: 0 | E100: 0 | F100: 0 | G100: 0 | H100: 0 | I100: 0 | K100: =SUM(K101:K103) -> 0
A101: Indoor Facilities | H101: =D101/12*Instructions!X$14 -> 0 | I101: 0 | K101: =D101 -> 0
A102: Outdoor Facilities | H102: =D102/12*Instructions!X$14 -> 0 | I102: 0 | K102: 0
A103: Capital Spares | H103: =D103/12*Instructions!X$14 -> 0 | I103: 0 | K103: 0
A104: Heritage assets | C104: =SUM(C105:C109) -> 0 | D104: 0 | E104: 0 | F104: 0 | G104: 0 | H104: 0 | I104: 0 | K104: =SUM(K105:K109) -> 0
A105: Monuments | H105: =D105/12*Instructions!X$14 -> 0 | I105: 0 | K105: =D105 -> 0
A106: Historic Buildings | H106: =D106/12*Instructions!X$14 -> 0 | I106: 0 | K106: 0
A107: Works of Art | H107: =D107/12*Instructions!X$14 -> 0 | I107: 0 | K107: 0
A108: Conservation Areas | H108: =D108/12*Instructions!X$14 -> 0 | I108: 0 | K108: 0
A109: Other Heritage | H109: =D109/12*Instructions!X$14 -> 0 | I109: 0 | K109: 0
I110: 0
A111: Investment properties | C111: =+C112+C115 -> 0 | D111: 0 | E111: 0 | F111: 0 | G111: 0 | H111: 0 | I111: 0 | K111: =+K112+K115 -> 0
A112: Revenue Generating | C112: =SUM(C113:C114) -> 0 | D112: 0 | E112: 0 | F112: 0 | G112: 0 | H112: 0 | I112: 0 | K112: =SUM(K113:K114) -> 0
A113: Improved Property | H113: =D113/12*Instructions!X$14 -> 0 | I113: 0 | K113: =D113 -> 0
A114: Unimproved Property | H114: =D114/12*Instructions!X$14 -> 0 | I114: 0 | K114: 0
A115: Non-revenue Generating | C115: =SUM(C116:C117) -> 0 | D115: 0 | E115: 0 | F115: 0 | G115: 0 | H115: 0 | I115: 0 | K115: =SUM(K116:K117) -> 0
A116: Improved Property | H116: =D116/12*Instructions!X$14 -> 0 | I116: 0 | K116: =D116 -> 0
A117: Unimproved Property | H117: =D117/12*Instructions!X$14 -> 0 | I117: 0 | K117: 0
A118: Other assets | C118: =+C119+C131 -> 0 | D118: 0 | E118: 0 | F118: 0 | G118: 0 | H118: 0 | I118: 0 | K118: =+K119+K131 -> 0
A119: Operational Buildings | C119: =SUM(C120:C130) -> 0 | D119: 0 | E119: 0 | F119: 0 | G119: 0 | H119: 0 | I119: 0 | K119: =SUM(K120:K130) -> 0
A120: Municipal Offices | H120: =D120/12*Instructions!X$14 -> 0 | I120: 0
A121: Pay/Enquiry Points | H121: =D121/12*Instructions!X$14 -> 0 | I121: 0
A122: Building Plan Offices | H122: =D122/12*Instructions!X$14 -> 0 | I122: 0
A123: Workshops | H123: =D123/12*Instructions!X$14 -> 0 | I123: 0
A124: Yards | H124: =D124/12*Instructions!X$14 -> 0 | I124: 0
A125: Stores | H125: =D125/12*Instructions!X$14 -> 0 | I125: 0
A126: Laboratories | H126: =D126/12*Instructions!X$14 -> 0 | I126: 0
A127: Training Centres | H127: =D127/12*Instructions!X$14 -> 0 | I127: 0
A128: Manufacturing Plant | H128: =D128/12*Instructions!X$14 -> 0 | I128: 0
A129: Depots | H129: =D129/12*Instructions!X$14 -> 0 | I129: 0
A130: Capital Spares | H130: =D130/12*Instructions!X$14 -> 0 | I130: 0
A131: Housing | C131: =SUM(C132:C134) -> 0 | D131: 0 | E131: 0 | F131: 0 | G131: 0 | H131: 0 | I131: 0 | K131: =SUM(K132:K134) -> 0
A132: Staff Housing | H132: =D132/12*Instructions!X$14 -> 0 | I132: 0
A133: Social Housing | H133: =D133/12*Instructions!X$14 -> 0 | I133: 0
A134: Capital Spares | H134: =D134/12*Instructions!X$14 -> 0 | I134: 0
A136: Biological or Cultivated Assets | C136: =SUM(C137:C137) -> 0 | D136: 0 | E136: 0 | F136: 0 | G136: 0 | H136: 0 | I136: =H136-G136 -> 0 | J136: =IF(I136=0,"",I136/H136) ->  | K136: =SUM(K137) -> 0
A137: Biological or Cultivated Assets | I137: =H137-G137 -> 0
A139: Intangible Assets | C139: =SUM(C140:C141) -> 0 | D139: 40000000 | E139: 0 | F139: 0 | G139: 0 | H139: 3333333.333 | I139: =H139-G139 -> 3333333.333 | J139: 1 | K139: =SUM(K140:K141) -> 40000000
A140: Servitudes | I140: 0
A141: Licences and Rights | C141: =SUM(C142:C147) -> 0 | D141: 40000000 | E141: 0 | F141: 0 | G141: 0 | H141: 3333333.333 | I141: 3333333.333 | J141: 1 | K141: =SUM(K142:K147) -> 40000000
A142: Water Rights | H142: =D142/12*Instructions!X$14 -> 0 | I142: 0 | K142: =D142 -> 0
A143: Effluent Licenses | H143: =D143/12*Instructions!X$14 -> 0 | I143: 0 | K143: 0
A144: Solid Waste Licenses | H144: =D144/12*Instructions!X$14 -> 0 | I144: 0 | K144: 0
A145: Computer Software and Applications | D145: 40000000 | H145: =D145/12*Instructions!X$14 -> 3333333.333 | I145: 3333333.333 | J145: 1 | K145: 40000000
A146: Load Settlement Software Applications | H146: =D146/12*Instructions!X$14 -> 0 | I146: 0 | K146: 0
A147: Unspecified | H147: =D147/12*Instructions!X$14 -> 0 | I147: 0 | K147: 0
A149: Computer Equipment | C149: =SUM(C150:C150) -> 0 | D149: 200000 | E149: 0 | F149: 0 | G149: 0 | H149: 16666.66667 | I149: =H149-G149 -> 16666.66667 | J149: =IF(I149=0,"",I149/H149) -> 1 | K149: =SUM(K150) -> 200000
A150: Computer Equipment | D150: 200000 | H150: =D150/12*Instructions!X$14 -> 16666.66667 | I150: =H150-G150 -> 16666.66667 | J150: =IF(I150=0,"",I150/H150) -> 1 | K150: =D150 -> 200000
A152: Furniture and Office Equipment | C152: =SUM(C153:C153) -> 0 | D152: 6000000 | E152: 0 | F152: 0 | G152: 0 | H152: 500000 | I152: =H152-G152 -> 500000 | J152: =IF(I152=0,"",I152/H152) -> 1 | K152: =SUM(K153) -> 6000000
A153: Furniture and Office Equipment | D153: 6000000 | H153: =D153/12*Instructions!X$14 -> 500000 | I153: =H153-G153 -> 500000 | J153: =IF(I153=0,"",I153/H153) -> 1 | K153: =D153 -> 6000000
J154: =IF(I154=0,"",I154/H154) -> 
A155: Machinery and Equipment | C155: =SUM(C156:C156) -> 0 | D155: 10000000 | E155: 0 | F155: 0 | G155: 0 | H155: 833333.3333 | I155: =H155-G155 -> 833333.3333 | J155: =IF(I155=0,"",I155/H155) -> 1 | K155: =SUM(K156) -> 10000000
A156: Machinery and Equipment | D156: 10000000 | H156: =D156/12*Instructions!X$14 -> 833333.3333 | I156: =H156-G156 -> 833333.3333 | J156: =IF(I156=0,"",I156/H156) -> 1 | K156: =D156 -> 10000000
A158: Transport Assets | C158: =SUM(C159:C159) -> 0 | D158: 3000000 | E158: 0 | F158: 0 | G158: 0 | H158: 250000 | I158: =H158-G158 -> 250000 | J158: =IF(I158=0,"",I158/H158) -> 1 | K158: =SUM(K159) -> 3000000
A159: Transport Assets | D159: 3000000 | H159: =D159/12*Instructions!X$14 -> 250000 | I159: =H159-G159 -> 250000 | J159: =IF(I159=0,"",I159/H159) -> 1 | K159: =D159 -> 3000000
A161: Land | C161: =SUM(C162:C162) -> 0 | D161: 0 | E161: 0 | F161: 0 | G161: 0 | H161: 0 | I161: =H161-G161 -> 0 | J161: =IF(I161=0,"",I161/H161) ->  | K161: =SUM(K162) -> 0
A162: Land | I162: =H162-G162 -> 0 | J162: =IF(I162=0,"",I162/H162) -> 
A164: Zoo's, Marine and Non-biological Animals | C164: =SUM(C165:C165) -> 0 | D164: 0 | E164: 0 | F164: 0 | G164: 0 | H164: 0 | I164: =H164-G164 -> 0 | J164: =IF(I164=0,"",I164/H164) ->  | K164: =SUM(K165) -> 0
A165: Zoo's, Marine and Non-biological Animals | I165: =H165-G165 -> 0 | J165: =IF(I165=0,"",I165/H165) -> 
A167: Living resources | C167: =+C168+C171 -> 0 | D167: 0 | E167: 0 | F167: 0 | G167: 0 | H167: 0 | I167: =H167-G167 -> 0 | J167: =IF(I167=0,"",I167/H167) ->  | K167: 0
A168: Mature | C168: =+C169+C170 -> 0 | D168: 0 | E168: 0 | F168: 0 | G168: 0 | H168: 0 | I168: 0 | K168: 0
A169: Policing and Protection | I169: 0
A170: Zoological plants and animals | I170: 0
A171: Immature | C171: =+C172+C173 -> 0 | D171: =+D172+D173 -> 0 | E171: 0 | F171: 0 | G171: 0 | H171: 0 | I171: 0 | K171: =+K172+K173 -> 0
A172: Policing and Protection | I172: 0
A173: Zoological plants and animals | I173: 0
A174: Total Capital Expenditure on new assets | B174: 1 | C174: =C7+C76+C104+C111+C118+C136+C139+C149+C152+C155+C158+C161+C164+C167 -> 0 | D174: 251339800 | E174: 0 | F174: 2640480.75 | G174: 2640480.75 | H174: 20944983.33 | I174: =H174-G174 -> 18304502.58 | J174: =IF(I174=0,"",I174/H174) -> 0.8739325447 | K174: =K7+K76+K104+K111+K118+K136+K139+K149+K152+K155+K158+K161+K164+K167 -> 251339800
A176: =head27a -> References
A177: 1. Total Capital Expenditure on new assets (SC13a) plus Total Capital Expenditure on renewal of existing assets (SC13b) plus Total Capital Expenditure on upgrading of existing assets (SC13e) must reconcile to total capital expenditure in Table C5
A179: check balance | C179: =C174+SC13b!C173+SC13e!C174-'C5-Capex'!C40 -> 0 | D179: =D174+SC13b!D173+SC13e!D174-'C5-Capex'!D40 -> 0 | E179: =E174+SC13b!E173+SC13e!E174-'C5-Capex'!E40 -> 0 | F179: =F174+SC13b!F173+SC13e!F174-'C5-Capex'!F40 -> 0 | G179: =G174+SC13b!G173+SC13e!G174-'C5-Capex'!G40 -> 0 | H179: =H174+SC13b!H173+SC13e!H174-'C5-Capex'!H40 -> 0 | K179: =K174+SC13b!K173+SC13e!K174-'C5-Capex'!K40 -> 0

Sheet SC13b
A1: =Muni2& " - "&S71Sb& " - "&Head57 -> KZN225 Msunduzi - Supporting Table SC13b Monthly Budget Statement - capital expenditure on renewal of existing assets by asset class - M01 July
A2: =desc -> Description | B2: =head27 -> Ref | C2: =Head1 -> 2024/25 | D2: =Head2 -> Budget Year 2025/26
C3: =Head5 -> Audited Outcome | D3: =Head6 -> Original Budget | E3: =Head7 -> Adjusted Budget | F3: =Head38 -> Monthly actual | G3: =Head39 -> YearTD actual | H3: =Head40 -> YearTD budget | I3: =Head41 -> YTD variance | J3: =Head41 -> YTD variance | K3: =Head8 -> Full Year Forecast
A4: R thousands | B4: 1 | J4: %
A5: Capital expenditure on renewal of existing assets by Asset Class/Sub-class
A7: Infrastructure | C7: =C8+C13+C17+C27+C38+C45+C53+C63+C69 -> 0 | D7: 241179606.5 | E7: 0 | F7: 0 | G7: 0 | H7: 20098300.54 | I7: =H7-G7 -> 20098300.54 | J7: =IF(I7=0,"",I7/H7) -> 1 | K7: =K8+K13+K17+K27+K38+K45+K53+K63+K69 -> 241179606.5
A8: Roads Infrastructure | C8: =SUM(C9:C12) -> 0 | D8: 102393202.3 | E8: 0 | F8: 0 | G8: 0 | H8: 8532766.861 | I8: 8532766.861 | J8: 1 | K8: =SUM(K9:K12) -> 102393202.3
A9: Roads | D9: 47393202.33 | H9: =D9/12*Instructions!X$14 -> 3949433.528 | I9: 3949433.528 | J9: 1 | K9: =D9 -> 47393202.33
A10: Road Structures | D10: 55000000 | H10: =D10/12*Instructions!X$14 -> 4583333.333 | I10: 4583333.333 | J10: 1 | K10: =D10 -> 55000000
A11: Road Furniture | H11: =D11/12*Instructions!X$14 -> 0 | I11: 0 | K11: 0
A12: Capital Spares | H12: =D12/12*Instructions!X$14 -> 0 | I12: 0 | K12: 0
A13: Storm water Infrastructure | C13: =SUM(C14:C16) -> 0 | D13: 0 | E13: 0 | F13: 0 | G13: 0 | H13: 0 | I13: 0 | K13: =SUM(K14:K16) -> 0
A14: Drainage Collection | I14: 0
A15: Storm water Conveyance | I15: 0
A16: Attenuation | I16: 0
A17: Electrical Infrastructure | C17: =SUM(C18:C26) -> 0 | D17: 47393202.33 | E17: 0 | F17: 0 | G17: 0 | H17: 3949433.528 | I17: 3949433.528 | J17: 1 | K17: =SUM(K18:K26) -> 47393202.33
A18: Power Plants | H18: =D18/12*Instructions!X$14 -> 0 | I18: 0 | K18: =D18 -> 0
A19: HV Substations | D19: 47393202.33 | H19: =D19/12*Instructions!X$14 -> 3949433.528 | I19: 3949433.528 | J19: 1 | K19: 47393202.33
A20: HV Switching Station | H20: =D20/12*Instructions!X$14 -> 0 | I20: 0 | K20: 0
A21: HV Transmission Conductors | H21: =D21/12*Instructions!X$14 -> 0 | I21: 0 | K21: 0
A22: MV Substations | H22: =D22/12*Instructions!X$14 -> 0 | I22: 0 | K22: 0
A23: MV Switching Stations | H23: =D23/12*Instructions!X$14 -> 0 | I23: 0 | K23: 0
A24: MV Networks | H24: =D24/12*Instructions!X$14 -> 0 | I24: 0 | K24: 0
A25: LV Networks | H25: =D25/12*Instructions!X$14 -> 0 | I25: 0 | K25: 0
A26: Capital Spares | H26: =D26/12*Instructions!X$14 -> 0 | I26: 0 | K26: 0
A27: Water Supply Infrastructure | C27: =SUM(C28:C37) -> 0 | D27: 0 | E27: 0 | F27: 0 | G27: 0 | H27: 0 | I27: 0 | K27: =SUM(K28:K37) -> 0
A28: Dams and Weirs | H28: =D28/12*Instructions!X$14 -> 0 | I28: 0
A29: Boreholes | H29: =D29/12*Instructions!X$14 -> 0 | I29: 0
A30: Reservoirs | H30: =D30/12*Instructions!X$14 -> 0 | I30: 0
A31: Pump Stations | H31: =D31/12*Instructions!X$14 -> 0 | I31: 0
A32: Water Treatment Works | H32: =D32/12*Instructions!X$14 -> 0 | I32: 0
A33: Bulk Mains | H33: =D33/12*Instructions!X$14 -> 0 | I33: 0
A34: Distribution | H34: =D34/12*Instructions!X$14 -> 0 | I34: 0
A35: Distribution Points | H35: =D35/12*Instructions!X$14 -> 0 | I35: 0
A36: PRV Stations | H36: =D36/12*Instructions!X$14 -> 0 | I36: 0
A37: Capital Spares | H37: =D37/12*Instructions!X$14 -> 0 | I37: 0
A38: Sanitation Infrastructure | C38: =SUM(C39:C44) -> 0 | D38: 91393201.82 | E38: 0 | F38: 0 | G38: 0 | H38: 7616100.152 | I38: 7616100.152 | J38: 1 | K38: =SUM(K39:K44) -> 91393201.82
A39: Pump Station | H39: =D39/12*Instructions!X$14 -> 0 | I39: 0 | K39: =D39 -> 0
A40: Reticulation | D40: 44000000 | H40: =D40/12*Instructions!X$14 -> 3666666.667 | I40: 3666666.667 | J40: 1 | K40: 44000000
A41: Waste Water Treatment Works | D41: 47393201.82 | H41: =D41/12*Instructions!X$14 -> 3949433.485 | I41: 3949433.485 | J41: 1 | K41: 47393201.82
A42: Outfall Sewers | H42: =D42/12*Instructions!X$14 -> 0 | I42: 0 | K42: 0
A43: Toilet Facilities | H43: =D43/12*Instructions!X$14 -> 0 | I43: 0 | K43: 0
A44: Capital Spares | H44: =D44/12*Instructions!X$14 -> 0 | I44: 0 | K44: 0
A45: Solid Waste Infrastructure | C45: =SUM(C46:C52) -> 0 | D45: 0 | E45: 0 | F45: 0 | G45: 0 | H45: 0 | I45: 0 | K45: =SUM(K46:K52) -> 0
A46: Landfill Sites | I46: 0
A47: Waste Transfer Stations | I47: 0
A48: Waste Processing Facilities | I48: 0
A49: Waste Drop-off Points | I49: 0
A50: Waste Separation Facilities | I50: 0
A51: Electricity Generation Facilities | I51: 0
A52: Capital Spares | I52: 0
A53: Rail Infrastructure | C53: =SUM(C54:C62) -> 0 | D53: 0 | E53: 0 | F53: 0 | G53: 0 | H53: 0 | I53: 0 | K53: =SUM(K54:K62) -> 0
A54: Rail Lines | I54: 0
A55: Rail Structures | I55: 0
A56: Rail Furniture | I56: 0
A57: Drainage Collection | I57: 0
A58: Storm water Conveyance | I58: 0
A59: Attenuation | I59: 0
A60: MV Substations | I60: 0
A61: LV Networks | I61: 0
A62: Capital Spares | I62: 0
A63: Coastal Infrastructure | C63: =SUM(C64:C68) -> 0 | D63: 0 | E63: 0 | F63: 0 | G63: 0 | H63: 0 | I63: 0 | K63: =SUM(K64:K68) -> 0
A64: Sand Pumps | I64: 0
A65: Piers | I65: 0
A66: Revetments | I66: 0
A67: Promenades | I67: 0
A68: Capital Spares | I68: 0
A69: Information and Communication Infrastructure | C69: =SUM(C70:C73) -> 0 | D69: 0 | E69: 0 | F69: 0 | G69: 0 | H69: 0 | I69: 0 | K69: =SUM(K70:K73) -> 0
A70: Data Centres | I70: 0
A71: Core Layers | I71: 0
A72: Distribution Layers | I72: 0
A73: Capital Spares | I73: 0
A75: Community Assets | C75: =+C76+C99 -> 0 | D75: 0 | E75: 0 | F75: 0 | G75: 0 | H75: 0 | I75: 0 | K75: =+K76+K99 -> 0
A76: Community Facilities | C76: =SUM(C77:C98) -> 0 | D76: 0 | E76: 0 | F76: 0 | G76: 0 | H76: 0 | I76: 0 | K76: =SUM(K77:K98) -> 0
A77: Halls | I77: 0
A78: Centres | I78: 0
A79: Crèches | I79: 0
A80: Clinics/Care Centres | I80: 0
A81: Fire/Ambulance Stations | I81: 0
A82: Testing Stations | I82: 0
A83: Museums | I83: 0
A84: Galleries | I84: 0
A85: Theatres | I85: 0
A86: Libraries | I86: 0
A87: Cemeteries/Crematoria | I87: 0
A88: Police | I88: 0
A89: Purls | I89: 0
A90: Public Open Space | I90: 0
A91: Nature Reserves | I91: 0
A92: Public Ablution Facilities | I92: 0
A93: Markets | I93: 0
A94: Stalls | I94: 0
A95: Abattoirs | I95: 0
A96: Airports | I96: 0
A97: Taxi Ranks/Bus Terminals | I97: 0
A98: Capital Spares | I98: 0
A99: Sport and Recreation Facilities | C99: =SUM(C100:C102) -> 0 | D99: 0 | E99: 0 | F99: 0 | G99: 0 | H99: 0 | I99: 0 | K99: =SUM(K100:K102) -> 0
A100: Indoor Facilities | I100: 0
A101: Outdoor Facilities | I101: =H101-G101 -> 0 | J101: =IF(I101=0,"",I101/H101) -> 
A102: Capital Spares | I102: 0
A103: Heritage assets | C103: =SUM(C104:C108) -> 0 | D103: 0 | E103: 0 | F103: 0 | G103: 0 | H103: 0 | I103: 0 | K103: =SUM(K104:K108) -> 0
A104: Monuments | I104: 0
A105: Historic Buildings | I105: 0
A106: Works of Art | I106: 0
A107: Conservation Areas | I107: 0
A108: Other Heritage | I108: 0
I109: 0
A110: Investment properties | C110: =+C111+C114 -> 0 | D110: 0 | E110: 0 | F110: 0 | G110: 0 | H110: 0 | I110: 0 | K110: =+K111+K114 -> 0
A111: Revenue Generating | C111: =SUM(C112:C113) -> 0 | D111: 0 | E111: 0 | F111: 0 | G111: 0 | H111: 0 | I111: 0 | K111: =SUM(K112:K113) -> 0
A112: Improved Property | I112: 0
A113: Unimproved Property | I113: 0
A114: Non-revenue Generating | C114: =SUM(C115:C116) -> 0 | D114: 0 | E114: 0 | F114: 0 | G114: 0 | H114: 0 | I114: 0 | K114: =SUM(K115:K116) -> 0
A115: Improved Property | I115: 0
A116: Unimproved Property | I116: =H116-G116 -> 0 | J116: =IF(I116=0,"",I116/H116) -> 
A117: Other assets | C117: =+C118+C130 -> 0 | D117: 0 | E117: 0 | F117: 0 | G117: 0 | H117: 0 | I117: 0 | K117: =+K118+K130 -> 0
A118: Operational Buildings | C118: =SUM(C119:C129) -> 0 | D118: 0 | E118: 0 | F118: 0 | G118: 0 | H118: 0 | I118: 0 | K118: =SUM(K119:K129) -> 0
A119: Municipal Offices | I119: 0
A120: Pay/Enquiry Points | I120: 0
A121: Building Plan Offices | I121: 0
A122: Workshops | I122: 0
A123: Yards | I123: 0
A124: Stores | I124: 0
A125: Laboratories | I125: 0
A126: Training Centres | I126: 0
A127: Manufacturing Plant | I127: 0
A128: Depots | I128: 0
A129: Capital Spares | I129: 0
A130: Housing | C130: =SUM(C131:C133) -> 0 | D130: 0 | E130: 0 | F130: 0 | G130: 0 | H130: 0 | I130: 0 | K130: =SUM(K131:K133) -> 0
A131: Staff Housing | I131: 0
A132: Social Housing | I132: 0
A133: Capital Spares | I133: 0
A135: Biological or Cultivated Assets | C135: =SUM(C136:C136) -> 0 | D135: 0 | E135: 0 | F135: 0 | G135: 0 | H135: 0 | I135: =H135-G135 -> 0 | K135: =SUM(K136) -> 0
A136: Biological or Cultivated Assets | I136: =H136-G136 -> 0
J137: =IF(I137=0,"",I137/H137) -> 
A138: Intangible Assets | C138: =SUM(C139:C140) -> 0 | D138: 0 | E138: 0 | F138: 0 | G138: 0 | H138: 0 | I138: =H138-G138 -> 0 | K138: =SUM(K139:K140) -> 0
A139: Servitudes | I139: 0
A140: Licences and Rights | C140: =SUM(C141:C146) -> 0 | D140: 0 | E140: 0 | F140: 0 | G140: 0 | H140: 0 | I140: 0 | K140: =SUM(K141:K146) -> 0
A141: Water Rights | I141: 0
A142: Effluent Licenses | I142: 0
A143: Solid Waste Licenses | I143: 0
A144: Computer Software and Applications | I144: 0
A145: Load Settlement Software Applications | I145: 0
A146: Unspecified | I146: 0
A148: Computer Equipment | C148: =SUM(C149:C149) -> 0 | D148: 0 | E148: 0 | F148: 0 | G148: 0 | H148: 0 | I148: =H148-G148 -> 0 | J148: =IF(I148=0,"",I148/H148) ->  | K148: =SUM(K149) -> 0
A149: Computer Equipment | I149: =H149-G149 -> 0 | J149: =IF(I149=0,"",I149/H149) -> 
A151: Furniture and Office Equipment | C151: =SUM(C152:C152) -> 0 | D151: 0 | E151: 0 | F151: 0 | G151: 0 | H151: 0 | I151: =H151-G151 -> 0 | J151: =IF(I151=0,"",I151/H151) ->  | K151: =SUM(K152) -> 0
A152: Furniture and Office Equipment | I152: =H152-G152 -> 0 | J152: =IF(I152=0,"",I152/H152) -> 
J153: =IF(I153=0,"",I153/H153) -> 
A154: Machinery and Equipment | C154: =SUM(C155:C155) -> 0 | D154: 0 | E154: 0 | F154: 0 | G154: 0 | H154: 0 | I154: =H154-G154 -> 0 | J154: =IF(I154=0,"",I154/H154) ->  | K154: =SUM(K155) -> 0
A155: Machinery and Equipment | I155: =H155-G155 -> 0 | J155: =IF(I155=0,"",I155/H155) -> 
A157: Transport Assets | C157: =SUM(C158:C158) -> 0 | D157: 0 | E157: 0 | F157: 0 | G157: 0 | H157: 0 | I157: =H157-G157 -> 0 | J157: =IF(I157=0,"",I157/H157) ->  | K157: =SUM(K158) -> 0
A158: Transport Assets | I158: =H158-G158 -> 0 | J158: =IF(I158=0,"",I158/H158) -> 
A160: Land | C160: =SUM(C161:C161) -> 0 | D160: 0 | E160: 0 | F160: 0 | G160: 0 | H160: 0 | I160: =H160-G160 -> 0 | J160: =IF(I160=0,"",I160/H160) ->  | K160: =SUM(K161) -> 0
A161: Land | I161: =H161-G161 -> 0 | J161: =IF(I161=0,"",I161/H161) -> 
J162: .
A163: Zoo's, Marine and Non-biological Animals | C163: =SUM(C164:C164) -> 0 | D163: 0 | E163: 0 | F163: 0 | G163: 0 | H163: 0 | I163: =H163-G163 -> 0 | J163: =IF(I163=0,"",I163/H163) ->  | K163: =SUM(K164) -> 0
A164: Zoo's, Marine and Non-biological Animals | I164: =H164-G164 -> 0 | J164: =IF(I164=0,"",I164/H164) -> 
A166: Living resources | C166: =+C167+C170 -> 0 | D166: 0 | E166: 0 | F166: 0 | G166: 0 | H166: 0 | I166: =H166-G166 -> 0 | J166: =IF(I166=0,"",I166/H166) ->  | K166: =+K167+K170 -> 0
A167: Mature | C167: =+C168+C169 -> 0 | D167: 0 | E167: 0 | F167: 0 | G167: 0 | H167: 0 | I167: 0 | K167: =+K168+K169 -> 0
A168: Policing and Protection | I168: 0
A169: Zoological plants and animals | I169: 0
A170: Immature | C170: =+C171+C172 -> 0 | D170: 0 | E170: 0 | F170: 0 | G170: 0 | H170: 0 | I170: 0 | K170: =+K171+K172 -> 0
A171: Policing and Protection | I171: 0
A172: Zoological plants and animals | I172: 0
A173: Total Capital Expenditure on renewal of existing assets | B173: 1 | C173: =C7+C75+C103+C110+C117+C135+C138+C148+C151+C154+C157+C160+C163+C166 -> 0 | D173: 241179606.5 | E173: 0 | F173: 0 | G173: 0 | H173: 20098300.54 | I173: =H173-G173 -> 20098300.54 | J173: =IF(I173=0,"",I173/H173) -> 1 | K173: =K7+K75+K103+K110+K117+K135+K138+K148+K151+K154+K157+K160+K163+K166 -> 241179606.5
A175: =head27a -> References
A176: 1. Total Capital Expenditure on new assets (SC13a) plus Total Capital Expenditure on renewal of existing assets (SC13b) plus Total Capital Expenditure on upgrading of existing assets (SC13e) must reconcile to total capital expenditure in Table C5
A178: check balance | C178: =C173+SC13a!C174+SC13e!C174-'C5-Capex'!C40 -> 0 | D178: =D173+SC13a!D174+SC13e!D174-'C5-Capex'!D40 -> 0 | E178: =E173+SC13a!E174+SC13e!E174-'C5-Capex'!E40 -> 0 | F178: =F173+SC13a!F174+SC13e!F174-'C5-Capex'!F40 -> 0 | G178: =G173+SC13a!G174+SC13e!G174-'C5-Capex'!G40 -> 0 | H178: =H173+SC13a!H174+SC13e!H174-'C5-Capex'!H40 -> 0 | K178: =K173+SC13a!K174+SC13e!K174-'C5-Capex'!K40 -> 0

Sheet SC13c
A1: =Muni2& " - "&S71Sc& " - "&Head57 -> KZN225 Msunduzi - Supporting Table SC13c Monthly Budget Statement - expenditure on repairs and maintenance by asset class - M01 July
A2: =desc -> Description | B2: =head27 -> Ref | C2: =Head1 -> 2024/25 | D2: =Head2 -> Budget Year 2025/26
C3: =Head5 -> Audited Outcome | D3: =Head6 -> Original Budget | E3: =Head7 -> Adjusted Budget | F3: =Head38 -> Monthly actual | G3: =Head39 -> YearTD actual | H3: =Head40 -> YearTD budget | I3: =Head41 -> YTD variance | J3: =Head41 -> YTD variance | K3: =Head8 -> Full Year Forecast
A4: R thousands | B4: 1 | J4: %
A5: Repairs and maintenance expenditure by Asset Class/Sub-class
A7: Infrastructure | C7: =C8+C13+C17+C28+C39+C46+C54+C64+C70 -> 0 | D7: 404327796 | E7: 0 | F7: 710170.27 | G7: 710170.27 | H7: 33693983 | I7: =H7-G7 -> 32983812.73 | J7: =IF(I7=0,"",I7/H7) -> 0.978922935 | K7: =K8+K13+K17+K28+K39+K46+K54+K64+K70 -> 404327796
A8: Roads Infrastructure | C8: =SUM(C9:C12) -> 0 | D8: 37420923 | E8: 0 | F8: 0 | G8: 0 | H8: 3118410.25 | I8: 3118410.25 | J8: 1 | K8: =SUM(K9:K12) -> 37420923
A9: Roads | D9: 34294189 | H9: =D9/12*Instructions!X$14 -> 2857849.083 | I9: 2857849.083 | J9: 1 | K9: =D9 -> 34294189
A10: Road Structures | D10: 1400947 | H10: =D10/12*Instructions!X$14 -> 116745.5833 | I10: 116745.5833 | J10: 1 | K10: =D10 -> 1400947
A11: Road Furniture | D11: 1725787 | H11: =D11/12*Instructions!X$14 -> 143815.5833 | I11: 143815.5833 | J11: 1 | K11: 1725787
A12: Capital Spares | H12: =D12/12*Instructions!X$14 -> 0 | I12: 0 | K12: 0
A13: Storm water Infrastructure | C13: =SUM(C14:C16) -> 0 | D13: 0 | E13: 0 | F13: 0 | G13: 0 | H13: 0 | I13: 0 | K13: =SUM(K14:K16) -> 0
A14: Drainage Collection | I14: 0
A15: Storm water Conveyance | I15: 0
A16: Attenuation | I16: 0
A17: Electrical Infrastructure | C17: =SUM(C18:C27) -> 0 | D17: 166287600.5 | E17: 0 | F17: 714458.27 | G17: 714458.27 | H17: 13857300.04 | I17: 13142841.77 | J17: 0.9484417406 | K17: =SUM(K18:K27) -> 166287600.5
A18: Power Plants | H18: =D18/12*Instructions!X$14 -> 0 | I18: 0 | K18: =D18 -> 0
A19: Electricity Reticulation | F19: 714458.27 | G19: 714458.27 | H19: =D19/12*Instructions!X$14 -> 0 | I19: =H19-G19 -> -714458.27 | J19: =IF(I19=0,"",I19/H19) ->  | K19: =D19 -> 0
A20: HV Substations | D20: 147790848.5 | H20: =D20/12*Instructions!X$14 -> 12315904.04 | I20: 12315904.04 | J20: 1 | K20: 147790848.5
A21: HV Switching Station | H21: =D21/12*Instructions!X$14 -> 0 | I21: 0 | K21: 0
A22: HV Transmission Conductors | H22: =D22/12*Instructions!X$14 -> 0 | I22: 0 | K22: 0
A23: MV Substations | H23: =D23/12*Instructions!X$14 -> 0 | I23: 0 | K23: 0
A24: MV Switching Stations | H24: =D24/12*Instructions!X$14 -> 0 | I24: 0 | K24: 0
A25: MV Networks | H25: =D25/12*Instructions!X$14 -> 0 | I25: 0 | K25: 0
A26: LV Networks | D26: 17428589 | H26: =D26/12*Instructions!X$14 -> 1452382.417 | I26: 1452382.417 | J26: 1 | K26: 17428589
A27: Capital Spares | D27: 1068163 | H27: =D27/12*Instructions!X$14 -> 89013.58333 | I27: 89013.58333 | J27: 1 | K27: 1068163
A28: Water Supply Infrastructure | C28: =SUM(C29:C38) -> 0 | D28: 34840000 | E28: 0 | F28: 0 | G28: 0 | H28: 2903333.333 | I28: 2903333.333 | J28: 1 | K28: =SUM(K29:K38) -> 34840000
A29: Dams and Weirs | H29: =D29/12*Instructions!X$14 -> 0 | I29: 0 | K29: =D29 -> 0
A30: Boreholes | H30: =D30/12*Instructions!X$14 -> 0 | I30: 0 | K30: 0
A31: Reservoirs | H31: =D31/12*Instructions!X$14 -> 0 | I31: 0 | K31: 0
A32: Pump Stations | H32: =D32/12*Instructions!X$14 -> 0 | I32: 0 | K32: 0
A33: Water Treatment Works | H33: =D33/12*Instructions!X$14 -> 0 | I33: 0 | K33: 0
A34: Bulk Mains | D34: 900000 | H34: =D34/12*Instructions!X$14 -> 75000 | I34: 75000 | J34: 1 | K34: 900000
A35: Distribution | D35: 33940000 | H35: =D35/12*Instructions!X$14 -> 2828333.333 | I35: 2828333.333 | J35: 1 | K35: 33940000
A36: Distribution Points | H36: =D36/12*Instructions!X$14 -> 0 | I36: 0 | K36: 0
A37: PRV Stations | H37: =D37/12*Instructions!X$14 -> 0 | I37: 0 | K37: 0
A38: Capital Spares | H38: =D38/12*Instructions!X$14 -> 0 | I38: 0 | K38: 0
A39: Sanitation Infrastructure | C39: =SUM(C40:C45) -> 0 | D39: 161715848.5 | E39: 0 | F39: -4288 | G39: -4288 | H39: 13476320.71 | I39: 13480608.71 | J39: 1.000318188 | K39: =SUM(K40:K45) -> 161715848.5
A40: Pump Station | H40: =D40/12*Instructions!X$14 -> 0 | I40: 0 | K40: =D40 -> 0
A41: Reticulation | D41: 13925000 | F41: -4288 | G41: -4288 | H41: =D41/12*Instructions!X$14 -> 1160416.667 | I41: 1164704.667 | J41: 1.003695224 | K41: 13925000
A42: Waste Water Treatment Works | D42: 147790848.5 | H42: =D42/12*Instructions!X$14 -> 12315904.04 | I42: 12315904.04 | J42: 1 | K42: 147790848.5
A43: Outfall Sewers | H43: =D43/12*Instructions!X$14 -> 0 | I43: 0 | K43: 0
A44: Toilet Facilities | H44: =D44/12*Instructions!X$14 -> 0 | I44: 0 | K44: 0
A45: Capital Spares | H45: =D45/12*Instructions!X$14 -> 0 | I45: 0 | K45: 0
A46: Solid Waste Infrastructure | C46: =SUM(C47:C53) -> 0 | D46: 3470000 | E46: 0 | F46: 0 | G46: 0 | H46: 289166.6667 | I46: 289166.6667 | J46: 1 | K46: =SUM(K47:K53) -> 3470000
A47: Landfill Sites | D47: 3470000 | H47: =D47/12*Instructions!X$14 -> 289166.6667 | I47: 289166.6667 | J47: 1 | K47: =D47 -> 3470000
A48: Waste Transfer Stations | H48: =D48/12*Instructions!X$14 -> 0 | I48: 0 | K48: 0
A49: Waste Processing Facilities | H49: =D49/12*Instructions!X$14 -> 0 | I49: 0 | K49: 0
A50: Waste Drop-off Points | H50: =D50/12*Instructions!X$14 -> 0 | I50: 0 | K50: 0
A51: Waste Separation Facilities | H51: =D51/12*Instructions!X$14 -> 0 | I51: 0 | K51: 0
A52: Electricity Generation Facilities | H52: =D52/12*Instructions!X$14 -> 0 | I52: 0 | K52: 0
A53: Capital Spares | H53: =D53/12*Instructions!X$14 -> 0 | I53: 0 | K53: 0
A54: Rail Infrastructure | C54: =SUM(C55:C63) -> 0 | D54: 0 | E54: 0 | F54: 0 | G54: 0 | H54: 0 | I54: 0 | K54: =SUM(K55:K63) -> 0
A55: Rail Lines | H55: =D55/12*Instructions!X$14 -> 0 | I55: 0
A56: Rail Structures | H56: =D56/12*Instructions!X$14 -> 0 | I56: 0
A57: Rail Furniture | H57: =D57/12*Instructions!X$14 -> 0 | I57: 0
A58: Drainage Collection | H58: =D58/12*Instructions!X$14 -> 0 | I58: 0
A59: Storm water Conveyance | H59: =D59/12*Instructions!X$14 -> 0 | I59: 0
A60: Attenuation | H60: =D60/12*Instructions!X$14 -> 0 | I60: 0
A61: MV Substations | H61: =D61/12*Instructions!X$14 -> 0 | I61: 0
A62: LV Networks | H62: =D62/12*Instructions!X$14 -> 0 | I62: 0
A63: Capital Spares | H63: =D63/12*Instructions!X$14 -> 0 | I63: 0
A64: Coastal Infrastructure | C64: =SUM(C65:C69) -> 0 | D64: 593424 | E64: 0 | F64: 0 | G64: 0 | H64: 49452 | I64: 49452 | J64: 1 | K64: =SUM(K65:K69) -> 593424
A65: Sand Pumps | H65: =D65/12*Instructions!X$14 -> 0 | I65: 0 | K65: =D65 -> 0
A66: Piers | H66: =D66/12*Instructions!X$14 -> 0 | I66: 0 | K66: 0
A67: Revetments | H67: =D67/12*Instructions!X$14 -> 0 | I67: 0 | K67: 0
A68: Promenades | H68: =D68/12*Instructions!X$14 -> 0 | I68: 0 | K68: 0
A69: Capital Spares | D69: 593424 | H69: =D69/12*Instructions!X$14 -> 49452 | I69: 49452 | J69: 1 | K69: 593424
A70: Information and Communication Infrastructure | C70: =SUM(C71:C74) -> 0 | D70: 0 | E70: 0 | F70: 0 | G70: 0 | H70: 0 | I70: 0 | K70: =SUM(K71:K74) -> 0
A71: Data Centres | H71: =D71/12*Instructions!X$14 -> 0 | I71: 0
A72: Core Layers | H72: =D72/12*Instructions!X$14 -> 0 | I72: 0
A73: Distribution Layers | H73: =D73/12*Instructions!X$14 -> 0 | I73: 0
A74: Capital Spares | H74: =D74/12*Instructions!X$14 -> 0 | I74: 0
A76: Community Assets | C76: =+C77+C100 -> 0 | D76: 23574427 | E76: 0 | F76: 0 | G76: 0 | H76: 1964535.583 | I76: 1964535.583 | J76: 1 | K76: =+K77+K100 -> 23574427
A77: Community Facilities | C77: =SUM(C78:C99) -> 0 | D77: 22148427 | E77: 0 | F77: 0 | G77: 0 | H77: 1845702.25 | I77: 1845702.25 | J77: 1 | K77: =SUM(K78:K99) -> 22148427
A78: Halls | D78: 21409147 | H78: =D78/12*Instructions!X$14 -> 1784095.583 | I78: 1784095.583 | J78: 1 | K78: =D78 -> 21409147
A79: Centres | H79: =D79/12*Instructions!X$14 -> 0 | I79: 0 | K79: 0
A80: Crèches | H80: =D80/12*Instructions!X$14 -> 0 | I80: 0 | K80: 0
A81: Clinics/Care Centres | H81: =D81/12*Instructions!X$14 -> 0 | I81: 0 | K81: 0
A82: Fire/Ambulance Stations | H82: =D82/12*Instructions!X$14 -> 0 | I82: 0 | K82: 0
A83: Testing Stations | H83: =D83/12*Instructions!X$14 -> 0 | I83: 0 | K83: 0
A84: Museums | H84: =D84/12*Instructions!X$14 -> 0 | I84: 0 | K84: 0
A85: Galleries | H85: =D85/12*Instructions!X$14 -> 0 | I85: 0 | K85: 0
A86: Theatres | H86: =D86/12*Instructions!X$14 -> 0 | I86: 0 | K86: 0
A87: Libraries | H87: =D87/12*Instructions!X$14 -> 0 | I87: 0 | K87: 0
A88: Cemeteries/Crematoria | H88: =D88/12*Instructions!X$14 -> 0 | I88: 0 | K88: 0
A89: Police | H89: =D89/12*Instructions!X$14 -> 0 | I89: 0 | K89: 0
A90: Purls | H90: =D90/12*Instructions!X$14 -> 0 | I90: 0 | K90: 0
A91: Public Open Space | H91: =D91/12*Instructions!X$14 -> 0 | I91: 0 | K91: 0
A92: Nature Reserves | H92: =D92/12*Instructions!X$14 -> 0 | I92: 0 | K92: 0
A93: Public Ablution Facilities | D93: 500000 | H93: =D93/12*Instructions!X$14 -> 41666.66667 | I93: 41666.66667 | J93: 1 | K93: 500000
A94: Markets | H94: =D94/12*Instructions!X$14 -> 0 | I94: 0 | K94: 0
A95: Stalls | H95: =D95/12*Instructions!X$14 -> 0 | I95: 0 | K95: 0
A96: Abattoirs | H96: =D96/12*Instructions!X$14 -> 0 | I96: 0 | K96: 0
A97: Airports | H97: =D97/12*Instructions!X$14 -> 0 | I97: 0 | K97: 0
A98: Taxi Ranks/Bus Terminals | D98: 239280 | H98: =D98/12*Instructions!X$14 -> 19940 | I98: 19940 | J98: 1 | K98: 239280
A99: Capital Spares | H99: =D99/12*Instructions!X$14 -> 0 | I99: 0 | K99: 0
A100: Sport and Recreation Facilities | C100: =SUM(C101:C103) -> 0 | D100: 1426000 | E100: 0 | F100: 0 | G100: 0 | H100: 118833.3333 | I100: 118833.3333 | J100: 1 | K100: =SUM(K101:K103) -> 1426000
A101: Indoor Facilities | H101: =D101/12*Instructions!X$14 -> 0 | I101: 0 | K101: =D101 -> 0
A102: Outdoor Facilities | D102: 1426000 | H102: =D102/12*Instructions!X$14 -> 118833.3333 | I102: =H102-G102 -> 118833.3333 | J102: =IF(I102=0,"",I102/H102) -> 1 | K102: 1426000
A103: Capital Spares | H103: =D103/12*Instructions!X$14 -> 0 | I103: 0 | K103: 0
A104: Heritage assets | C104: =SUM(C105:C109) -> 0 | D104: 0 | E104: 0 | F104: 0 | G104: 0 | H104: 0 | I104: 0 | K104: =SUM(K105:K109) -> 0
A105: Monuments | I105: 0
A106: Historic Buildings | I106: 0
A107: Works of Art | I107: 0
A108: Conservation Areas | I108: 0
A109: Other Heritage | I109: 0
I110: 0
A111: Investment properties | C111: =+C112+C115 -> 0 | D111: 0 | E111: 0 | F111: 0 | G111: 0 | H111: 0 | I111: 0 | K111: =+K112+K115 -> 0
A112: Revenue Generating | C112: =SUM(C113:C114) -> 0 | D112: 0 | E112: 0 | F112: 0 | G112: 0 | H112: 0 | I112: 0 | K112: =SUM(K113:K114) -> 0
A113: Improved Property | I113: 0
A114: Unimproved Property | I114: 0
A115: Non-revenue Generating | C115: =SUM(C116:C117) -> 0 | D115: 0 | E115: 0 | F115: 0 | G115: 0 | H115: 0 | I115: 0 | K115: =SUM(K116:K117) -> 0
A116: Improved Property | I116: 0
A117: Unimproved Property | I117: =H117-G117 -> 0 | J117: =IF(I117=0,"",I117/H117) -> 
A118: Other assets | C118: =+C119+C132 -> 0 | D118: 1290000 | E118: 0 | F118: -188152.28 | G118: -188152.28 | H118: 107500 | I118: 295652.28 | J118: 2.750253767 | K118: =+K119+K132 -> 1290000
A119: Operational Buildings | C119: =SUM(C120:C131) -> 0 | D119: 890000 | E119: 0 | F119: -188152.28 | G119: -188152.28 | H119: 74166.66667 | I119: 262318.9467 | J119: 3.536884674 | K119: =SUM(K120:K131) -> 890000
A120: Municipal Offices | H120: =D120/12*Instructions!X$14 -> 0 | I120: 0 | K120: =D120 -> 0
A121: Pay/Enquiry Points | H121: =D121/12*Instructions!X$14 -> 0 | I121: 0 | K121: 0
A122: Building Plan Offices | D122: 800000 | H122: =D122/12*Instructions!X$14 -> 66666.66667 | I122: 66666.66667 | J122: 1 | K122: 800000
A123: Other | F123: -188152.28 | G123: -188152.28 | H123: =D123/12*Instructions!X$14 -> 0 | I123: =H123-G123 -> 188152.28 | J123: =IF(I123=0,"",I123/H123) ->  | K123: =D123 -> 0
A124: Workshops | H124: =D124/12*Instructions!X$14 -> 0 | I124: 0 | K124: 0
A125: Yards | H125: =D125/12*Instructions!X$14 -> 0 | I125: 0 | K125: 0
A126: Stores | D126: 90000 | H126: =D126/12*Instructions!X$14 -> 7500 | I126: 7500 | J126: 1 | K126: 90000
A127: Laboratories | H127: =D127/12*Instructions!X$14 -> 0 | I127: 0 | K127: 0
A128: Training Centres | H128: =D128/12*Instructions!X$14 -> 0 | I128: 0 | K128: 0
A129: Manufacturing Plant | H129: =D129/12*Instructions!X$14 -> 0 | I129: 0 | K129: 0
A130: Depots | H130: =D130/12*Instructions!X$14 -> 0 | I130: 0 | K130: 0
A131: Capital Spares | H131: =D131/12*Instructions!X$14 -> 0 | I131: 0 | K131: 0
A132: Housing | C132: =SUM(C133:C135) -> 0 | D132: 400000 | E132: 0 | F132: 0 | G132: 0 | H132: 33333.33333 | I132: 33333.33333 | J132: 1 | K132: =SUM(K133:K135) -> 400000
A133: Staff Housing | H133: =D133/12*Instructions!X$14 -> 0 | I133: 0 | K133: =D133 -> 0
A134: Social Housing | D134: 400000 | H134: =D134/12*Instructions!X$14 -> 33333.33333 | I134: 33333.33333 | J134: 1 | K134: 400000
A135: Capital Spares | H135: =D135/12*Instructions!X$14 -> 0 | I135: 0 | K135: 0
A137: Biological or Cultivated Assets | C137: =SUM(C138:C138) -> 0 | D137: 0 | E137: 0 | F137: 0 | G137: 0 | H137: 0 | I137: =H137-G137 -> 0 | K137: =SUM(K138) -> 0
A138: Biological or Cultivated Assets | I138: =H138-G138 -> 0
A140: Intangible Assets | C140: =SUM(C141:C142) -> 0 | D140: 148400 | E140: 0 | F140: 0 | G140: 0 | H140: 12366.66667 | I140: =H140-G140 -> 12366.66667 | J140: 1 | K140: =SUM(K141:K142) -> 148400
A141: Servitudes | I141: 0
A142: Licences and Rights | C142: =SUM(C143:C148) -> 0 | D142: 148400 | E142: 0 | F142: 0 | G142: 0 | H142: 12366.66667 | I142: 12366.66667 | J142: 1 | K142: =SUM(K143:K148) -> 148400
A143: Water Rights | H143: =D143/12*Instructions!X$14 -> 0 | I143: 0 | K143: =D143 -> 0
